Workbook

Sheet InputSheet
A1: Parameter | B1: Units | C1: Type | D1: Default | F1: *selected* | G1: end
A2: Rail Name | C2: Req | E2: Example | F2: Use this column
A3: Part Number | C3: Req | E3: TPS54824
A4: Vin_min | B4: V | C4: Opt | D4: Vin_nom*0.8 | E4: 8
A5: Vin_nom | B5: V | C5: Req | E5: 12 | H5: Directions:
A6: Vin_max | B6: V | C6: Opt | D6: Vin_nom*1.1 | E6: 15 | H6: Check/Calculate Selected Column
A7: Vout | B7: V | C7: Req | E7: 1.8 | H7: Select any cell in the column of the design you would like to check.
A8: Iout | B8: A | C8: Opt | D8: Io_max_IC | E8: 8 | H8: Click on the Check/Calculate to send the input values to the DeviceCalculator worksheet.
A9: dVo_trans | B9: V | C9: Opt | D9: Vout*0.04 | E9: 0.072 | H9: The calculated results on the DeviceCalculator worksheet are then pulled back to check the design.
A10: dVo_dc | B10: V | C10: Opt | D10: Vout*0.01 | E10: 0.018 | H10: The default values shown by the equation in Column D are only used if the cell is empty.
A11: Io_step | B11: A | C11: Opt | D11: Iout*0.5 | E11: 4
A12: Rt | B12: kΩ | C12: Opt | D12: Rt_std | E12: 69.8 | H12: Insert New Design
A13: fsw_calculated | B13: kHz | C13: Calc | E13: 701.475335 | H13: Click on Insert New Design to add another column to check another design.
A14: Lout | B14: µH | C14: Opt | D14: L_rec | E14: 1 | H14: To delete a design that is no longer needed, right click on the column letter then select delete.
A15: DCR | B15: mΩ | C15: Opt | D15: Rdson_LS | E15: 6
A16: Tol_L | C16: Opt | D16: 0.2 | E16: 0.2 | H16: Pull Values from DeviceCalculator Sheet
A17: Cin | B17: µF | C17: Opt | D17: Cin_min | E17: 30 | H17: The DeviceCalculator worksheet has more details to aid in the design.
A18: Cin_derating | C18: Opt | D18: 0.5 | E18: 0.6 | H18: Updates to the design can be mode in the DeviceCalculator sheet.
A19: Vi_ripple | B19: mV | C19: Calc | E19: 110.4814327 | H19: After making updates, click on Pull Values to use the values on the DeviceCalculator sheet and check them.
A20: N_Co_cer | C20: Opt | D20: 1 | E20: 4
A21: Co_cer | B21: µF | C21: Opt | D21: Cout_min | E21: 47 | H21: Check/Calculate All Columns
A22: ESR_cer | B22: mΩ | C22: Opt | D22: 1 | E22: 3 | H22: This will run Check/Calculate Selected Column on all designs
A23: Co_derate_cer | C23: Opt | D23: 0.8 | E23: 0.7
A24: N_Co_bulk | C24: Opt | D24: 0 | E24: 0
A25: Co_bulk | B25: µF | C25: Opt | D25: 0.1 | E25: 0.1
A26: ESR_bulk | B26: mΩ | C26: Opt | D26: 1 | E26: 1
A27: Co_total | B27: µF | C27: Calc | E27: 131.600001
A28: Vo_trans | B28: mV | C28: Calc | E28: 48.46829556
A29: Vo_ripple | B29: mV | C29: Calc | E29: 5.306887037
A30: Rls | B30: kΩ | C30: Opt | D30: Rls_std | E30: 6.04
A31: Rhs | B31: kΩ | C31: Opt | D31: Rhs_std | E31: 12.1
A32: Vout_calc | B32: V | C32: Calc | E32: 1.801986755
A33: fco_target | B33: kHz | C33: Opt | D33: fco_3 | E33: 89.94
A34: Rcomp | B34: kΩ | C34: Opt | D34: Rcomp_std | E34: 9.53
A35: Ccomp | B35: nF | C35: Opt | D35: Ccomp_rec_std | E35: 2.2
A36: Cpole | B36: pF | C36: Opt | D36: Cpole_rec_std | E36: 22
A37: Cff | B37: pF | C37: Opt | D37: Cff_rec_std | E37: 100
A38: fco | B38: kHz | C38: Calc | E38: 100
A39: phaseMargin | B39: ° | C39: Calc | E39: 64.64503587
A40: gainMargin | B40: dB | C40: Calc | E40: -15.83450772
A41: Css | B41: nF | C41: Opt | D41: Css_std | E41: 8.2
A42: tss | B42: ms | C42: Calc | E42: 0.984
A43: Ren_b | B43: kΩ | C43: Opt | D43: 10000 | E43: 10000
A44: Ren_t | B44: kΩ | C44: Opt | D44: 0 | E44: 0
A45: Vstart_typ | B45: V | C45: Calc | E45: 1.2
A46: Vstop_typ | B46: V | C46: Calc | E46: 1.15
A47: Cboot | B47: µF | C47: Opt | D47: Cboot_req | E47: 0.1
A48: Rpg | B48: kΩ | C48: Opt | D48: Rpg_rec | E48: 100
A49: Rt_check | C49: Check | E49: Pass
A50: Lout_check | C50: Check | E50: Pass
A51: Cout_check | C51: Check | E51: Pass
A52: Cin_check | C52: Check | E52: Pass
A53: FB_network_check | C53: Check | E53: Pass
A54: Compensation_check | C54: Check | E54: Pass
A55: Stability_check | C55: Check | E55: Pass
A56: EN_divider_check | C56: Check | E56: Pass
A57: Cboot_Rpg_check | C57: Check | E57: Pass

Sheet DeviceCalculator
B1: Design Calculations
B2: Parameter | C2: Input | D2: Recommended | E2: Selected Value | F2: Calculated with Selected Value | G2: Units | H2: Description
B3: Choose Device
B4: Part Number | C4: TPS54824 | H4: Select IC part number | J4: Key
B5: Vin_min_IC | C5: =VLOOKUP($C$4,partData!$A$3:$ZZ$34,2,FALSE) -> 4.5 | G5: V | H5: IC rated minimum input voltage with internal bias | J5: User Entered Value
B6: Vin_max_IC | C6: =VLOOKUP($C$4,partData!$A$3:$ZZ$34,3,FALSE) -> 17 | G6: V | H6: IC rated maximum input voltage | J6: Fixed IC Parameter
B7: Vref | C7: =VLOOKUP($C$4,partData!$A$3:$ZZ$34,9,FALSE) -> 0.6 | G7: V | H7: Internal voltage reference | J7: Calculated Parameter
B8: Io_max_IC | C8: =VLOOKUP($C$4,partData!$A$3:$ZZ$34,4,FALSE) -> 8 | G8: A | H8: IC rated maximum output current | J8: Recommended Component Value
B9: EN_rise | C9: =VLOOKUP($C$4,partData!$A$3:$ZZ$34,16,FALSE) -> 1.2 | G9: V | H9: EN rising voltage threshold | J9: Design Caution
B10: EN_fall | C10: =VLOOKUP($C$4,partData!$A$3:$ZZ$34,17,FALSE) -> 1.15 | G10: V | H10: EN falling voltage threshold | J10: Design Warning
B11: Ven_max_IC | C11: =VLOOKUP($C$4,partData!$A$3:$ZZ$34,11,FALSE) -> 6.5 | G11: V | H11: Absolute max voltage on EN pin
B12: Iss | C12: =VLOOKUP($C$4,partData!$A$3:$ZZ$34,15,FALSE) -> 5 | G12: µA | H12: Soft start charging current
B13: OCF_response | C13: =VLOOKUP($C$4,partData!$A$3:$ZZ$34,10,FALSE) -> Hiccup | H13: Over current fault response
B14: Ilim_peak | C14: =VLOOKUP($C$4,partData!$A$3:$ZZ$34,7,FALSE) -> 12.9 | G14: A | H14: Typical peak current limit
B15: fsw_min | C15: =VLOOKUP($C$4,partData!$A$3:$ZZ$34,5,FALSE) -> 200000 | G15: Hz | H15: Minimum fsw setting
B16: fsw_max | C16: =VLOOKUP($C$4,partData!$A$3:$ZZ$34,6,FALSE) -> 1600000 | G16: Hz | H16: Maximum fsw setting
B17: ton_min_max | C17: =VLOOKUP($C$4,partData!$A$3:$ZZ$34,8,FALSE) -> 145 | G17: ns | H17: Worst case minimum on-time
B18: toff_min | C18: =VLOOKUP($C$4,partData!$A$3:$ZZ$34,12,FALSE) -> 100 | G18: ns | H18: Typical minimum off-time
B19: Rdson_HS | C19: =VLOOKUP($C$4,partData!$A$3:$ZZ$34,13,FALSE) -> 14 | G19: mΩ | H19: High-side FET Rdson
B20: Rdson_LS | C20: =VLOOKUP($C$4,partData!$A$3:$ZZ$34,14,FALSE) -> 6 | G20: mΩ | H20: Low-side FET Rdson
B21: gmea | C21: =VLOOKUP($C$4,partData!$A$3:$ZZ$34,18,FALSE) -> 1100 | G21: µA/V | H21: Error amplifier transconductance
B22: gmps | C22: =VLOOKUP($C$4,partData!$A$3:$ZZ$34,19,FALSE) -> 23.1 | G22: A/V | H22: Power stage transconductance
B23: I1 | C23: =VLOOKUP($C$4,partData!$A$3:$ZZ$34,25,FALSE) -> 1.2 | G23: µA | H23: EN current measured 50 mV below threshold
B24: Ihysteresis | C24: =VLOOKUP($C$4,partData!$A$3:$ZZ$34,26,FALSE) -> 3.6 | G24: µA | H24: Hysteresis current added measured 50 mV above turn on threshold
B25: Input System Parameters
B26: Vin_min | C26: 9 | G26: V | H26: Minimum input voltage
B27: Vin_nom | C27: 9.5 | G27: V | H27: Nominal input voltage
B28: Vin_max | C28: 10 | G28: V | H28: Maximum input voltage
B29: Vout | C29: 0.77 | G29: V | H29: Output voltage
B30: Iout | C30: 5.5 | G30: A | H30: Maximum output current
B31: Select the Switching Frequency (RT pin)
B32: fsw_max_ton | D32: =IF((1/ton_min_max_sec)*(Vout)/(Vin_max)*1/1.1>=fsw_max,fsw_max,(1/ton_min_max_sec)*(Vout)/(Vin_max)*1/1.1)*10^-3 -> 482.7586207 | G32: kHz | H32: Maximum fsw limited by Vin_max and minimum on-time
B33: fsw_max_toff | D33: =(Vin_min-Vout-Iout*2*(DCR_Ohm+Rdson_HS_Ohm))/(toff_min_sec*1.5*(Vin_min-Iout*2*(Rdson_HS_Ohm-Rdson_LS_Ohm)))*10^-3 -> 5991.921005 | G33: kHz | H33: Maximum fsw allowed limited by Vin_min and minimum off-time for fixed frequency operation (Depends on inductor DCR and includes 2x multiplier on resistance for margin)
B34: fsw_select | C34: =fsw_max_ton -> 482.7586207 | G34: kHz | H34: Enter fsw
B35: Rt_rec | D35: =VLOOKUP($C$4,partData!$A$3:$ZZ$34,22,FALSE) -> 102.1865031 | G35: kΩ | H35: Recommended RT resistor to AGND
B36: Rt_std | D36: =(IF((10^(LOG(D35)-INT(LOG(D35)))*100)-VLOOKUP((10^(LOG(D35)-INT(LOG(D35)))*100),E96_s:E96_f,1)<VLOOKUP((10^(LOG(D35)-INT(LOG(D35)))*100),E96_s:E96_f,2)-(10^(LOG(D35)-INT(LOG(D35)))*100),VLOOKUP((10^(LOG(D35)-INT(LOG(D35)))*100),E96_s:E96_f,1),VLOOKUP((10^(LOG(D35)-INT(LOG(D35)))*100),E96_s:E96_f,2)))*10^INT(LOG(D35))/100 -> 102 | G36: kΩ | H36: Nearest standard E96 resistor value
B37: Rt | E37: 102 | G37: kΩ | H37: Selected RT resistor value
B38: fsw_calculated | F38: =VLOOKUP($C$4,partData!$A$3:$ZZ$34,23,FALSE) -> 484.9709939 | G38: kHz | H38: Estimated switching frequency based on RT resistor value
B39: Choose the Output Inductor (Lout)
B40: The inductance is selected based on a p-p ripple current target. Smaller L reduces solution size while larger L reduces AC loss.
B41: Kind | C41: 0.3 | H41: Target ripple/Iout ratio (typically between 0.2 to 0.4)
B42: L_min | D42: =((Vin_max-Vout)*Vout)/(Io_max_IC*0.5*Vin_max*fsw_Hz)*10^6 -> 0.3663672719 | G42: µH | H42: Minimum recommended inductance (ripple = 50% Io_max_IC)
B43: L_max | D43: =((Vin_max-Vout)*Vout)/(Io_max_IC*0.1*Vin_max*fsw_Hz)*10^6 -> 1.83183636 | G43: µH | H43: Maximum recommended inductance (ripple = 10% Io_max_IC)
B44: L_target | D44: =(1/(Kind*Iout*(fsw_Hz))*(((Vin_max-Vout)*Vout)/Vin_max))*10^6 -> 0.8881630834 | G44: µH | H44: Target inductor value based on Kind
B45: L_rec | D45: =MIN(MAX(D42,D44),D43) -> 0.8881630834 | G45: µH | H45: Recommended inductor value
B46: Lout | E46: 0.888 | G46: µH | H46: Selected inductance
B47: DCR | E47: 6 | G47: mΩ | H47: DC resistance of selected inductor
B48: Tol_L | E48: 0.2 | H48: Tolerance of inductance for selected inductor
B49: Iripple_max | F49: =Vout*(Vin_max-Vout)/(Vin_max*(Lout*(1-Tol_L))*fsw)*1000 -> 2.062878783 | G49: A | H49: Inductor ripple current at Vin_max (includes Tol_L, used for DC ripple calculations)
B50: Ipeak | F50: =Iout+Iripple_max/2 -> 6.531439392 | G50: A | H50: Full load peak current at Vin_max
B51: Irms | F51: =(Iout^2+((1/12)*(Vout*(Vin_max-Vout))/(Vin_max*fsw*Lout))^2)^0.5 -> 5.500000002 | G51: A | H51: Inductor rms current at Vin_max
B52: Iripple_min | F52: =Vout*(Vin_min-Vout)/(Vin_min*(Lout*(1-Tol_L))*fsw)*1000 -> 2.04375736 | G52: A | H52: Inductor ripple current at Vin_min (includes Tol_L)
B53: Choose the Output Capacitor (Cout)
B54: The output capacitance is deteremind based on the output ripple, transient and stability requirements. These calculations do not support mixed type output capacitors.
B55: Io_step | C55: 2.75 | G55: A | H55: Iout load transient step
B56: dVo_trans | C56: 0.031 | G56: V | H56: Target Vout overshoot/undershoot after load step
B57: dVo_dc | C57: 0.008 | G57: V | H57: Target steady state Vout voltage ripple
B58: fco_est | D58: =MIN(fsw_Hz/10,100000)/1000 -> 48.49709939 | G58: kHz | H58: Estimated crossover frequency
B59: Cout_ripple | D59: =1/(8*fsw*(dVo_dc/Iripple_max))*10^3 -> 66.46269858 | G59: µF | H59: Min Cout for DC ripple requirement (ignores ESR)
B60: Cout_trans | D60: =Io_step/(2*PI()*fco_est*dVo_trans)*10^3 -> 291.1222287 | G60: µF | H60: Min Cout for transient requirement assuming fco = fsw/10
B61: Cout_stability | D61: =(15/(PI()*fsw_Hz))^2*1/Lout_H*10^6 -> 109.153654 | G61: µF | H61: Min Cout for stability (f_LC < fsw/30)
B62: Cout_min | D62: =(MAX(D59:D61)) -> 291.1222287 | G62: µF | H62: Recommended min Cout (must include any derating due to DC/AC bias, temp and/or tolerance)
B63: ESR_trans | D63: =dVo_trans/Io_step*1000 -> 11.27272727 | G63: mΩ | H63: Max ESR to meet load step transient requirement
B64: ESR_ripple | D64: =dVo_dc/Iripple_max*1000 -> 3.87807566 | G64: mΩ | H64: Max ESR to meet ripple requirement
B65: ESR_max | D65: =MIN(D63:D64) -> 3.87807566 | G65: mΩ | H65: Recommended max ESR
B66: Co_cer | E66: 100 | G66: µF | H66: Nominal value of single output capacitor
B67: ESR_cer | E67: 3 | G67: mΩ | H67: ESR of output single output capacitor
B68: N_Co_cer | E68: 4 | H68: Number of output capacitors
B69: Co_derate_cer | E69: 0.8 | H69: Remaining output capacitance after derating due to DC/AC bias, temp and/or tolerance
B70: Co_cer_eff | F70: =IF(N_Co_cer=0,10^-6,Co_cer*N_Co_cer*Co_derate_cer) -> 320 | G70: µF | H70: Total Ceramic Output Capacitance
B71: ESR_cer_eff | F71: =IF(N_Co_cer=0,10^6,ESR_cer/N_Co_cer) -> 0.75 | G71: mΩ | H71: Effective Ceramic Capacitance ESR
B72: Co_bulk | E72: 0.1 | G72: µF | H72: Nominal value of a Single Bulk/Polymer/Electrolytic Output Capacitor
B73: ESR_bulk | E73: 1 | G73: mΩ | H73: Single Bulk Capacitor ESR
B74: N_Co_bulk | E74: 0 | H74: Number of Bulk Capacitors
B75: Co_bulk_eff | F75: =IF(N_Co_bulk=0,10^-6,N_Co_bulk*Co_bulk) -> 1e-06 | G75: µF | H75: Total Bulk Output Capacitance
B76: ESR_bulk_eff | F76: =IF(N_Co_bulk=0,10^6,ESR_bulk/N_Co_bulk) -> 1000000 | G76: mΩ | H76: Effective Bulk Capacitance ESR
B77: Calculations with selected output caps
B78: Co_total | F78: =(Co_cer_eff+Co_bulk_eff) -> 320.000001 | G78: µF | H78: Effective Cout (If red, not enough capacitance)
B79: Zcer_fsw | F79: =SQRT((1/(2*PI()*fsw_Hz*Co_cer_eff_F))^2+ESR_cer_eff_Ohm^2)*10^3 -> 1.270527818 | G79: mΩ | H79: Ceramic capacitor impdance at fsw
B80: Zbulk_fsw | F80: =SQRT((1/(2*PI()*fsw_Hz*Co_bulk_eff_F))^2+ESR_bulk_eff_Ohm^2)*10^3 -> 328175672.3 | G80: mΩ | H80: Bulk capacitor impedance at fsw
B81: Zcout_fsw | F81: =Zcer_fsw*Zbulk_fsw/(Zcer_fsw+Zbulk_fsw) -> 1.270527813 | G81: mΩ | H81: Combined output capacitor impedance at fsw
B82: Vo_ripple | F82: =Zcout_fsw*Iripple_max -> 2.620944869 | G82: mV | H82: Estimated capacitive + resistive DC ripple (ignores ESL)
B83: fz_ESR_cer | F83: =IF(N_Co_cer=0,10^6,1/(2*PI()*Co_cer_eff_F*ESR_cer_eff_Ohm)*10^-3) -> 663.1455962 | G83: kHz | H83: Ceramic capacitor ESR zero frequency
B84: fz_ESR_bulk | F84: =IF(N_Co_bulk=0,10^6,1/(2*PI()*Co_bulk_eff_F*ESR_bulk_eff_Ohm)*10^-3) -> 1000000 | G84: kHz | H84: Bulk capacitor ESR zero frequency (if yellow, ESR zero may limit loop bandwidth)
B85: Choose the Input Capacitor (Cin)
B86: The input capacitance is deteremind based on the input ripple requirements. Additional bulk input capacitance may be needed for transients. 0.1µF high frequency bypass capacitors are also required.
B87: Vi_ripple_rec | D87: =Vin_min*0.02*1000 -> 180 | G87: mV | H87: Recommended DC input voltage ripple (2% min Vin)
B88: Vi_ripple_target | C88: =D87 -> 180 | G88: mV | H88: Target DC input voltage ripple
B89: Cin_min | D89: =(Iout*0.25)/(Vi_ripple_target*10^-3*fsw_Hz)*10^6 -> 15.75122839 | G89: µF | H89: Minimum input capacitance required (account for derating)
B90: Cin | E90: 15.8 | G90: µF | H90: Total nominal input ceramic cap used
B91: Cin_derating | E91: 0.5 | H91: Remaining input capacitance after derating due to DC/AC bias, temp and/or tolerance
B92: Cin_eff | F92: =Cin*Cin_derating -> 7.9 | G92: µF | H92: Effective input ceramic cap used
B93: Vi_ripple | F93: =(Iout*Vout/Vin_min*(1-Vout/Vin_min))/(Cin_eff*fsw)*10^6 -> 112.3117968 | G93: mV | H93: Input ripple with selected input capacitance
B94: Iin_rms | F94: =Iout*SQRT(Vout/Vin_min*(Vin_min-Vout)/Vin_min) -> 1.5383865 | G94: A | H94: Input RMS current
B95: Determine feedback network values (FB pin)
B96: Rls_rec | D96: =Vref/0.0001*10^-3 -> 6 | G96: kΩ | H96: Recommended bottom feedback resistor (targets 100µA current in FB divider)
B97: Rls_std | D97: =(IF((10^(LOG(D96)-INT(LOG(D96)))*100)-VLOOKUP((10^(LOG(D96)-INT(LOG(D96)))*100),E96_s:E96_f,1)<VLOOKUP((10^(LOG(D96)-INT(LOG(D96)))*100),E96_s:E96_f,2)-(10^(LOG(D96)-INT(LOG(D96)))*100),VLOOKUP((10^(LOG(D96)-INT(LOG(D96)))*100),E96_s:E96_f,1),VLOOKUP((10^(LOG(D96)-INT(LOG(D96)))*100),E96_s:E96_f,2)))*10^INT(LOG(D96))/100 -> 6.04 | G97: kΩ | H97: Nearest standard E96 resistor value
B98: Rls | E98: 6.04 | G98: kΩ | H98: Selected bottom feedback resistor (1k-20k recommended)
B99: Rhs_target | D99: =Rfb_b*(Vout/Vref-1) -> 1.711333333 | G99: kΩ | H99: Calculated top resistor
B100: Rhs_std | D100: =(IF((10^(LOG(D99)-INT(LOG(D99)))*100)-VLOOKUP((10^(LOG(D99)-INT(LOG(D99)))*100),E96_s:E96_f,1)<VLOOKUP((10^(LOG(D99)-INT(LOG(D99)))*100),E96_s:E96_f,2)-(10^(LOG(D99)-INT(LOG(D99)))*100),VLOOKUP((10^(LOG(D99)-INT(LOG(D99)))*100),E96_s:E96_f,1),VLOOKUP((10^(LOG(D99)-INT(LOG(D99)))*100),E96_s:E96_f,2)))*10^INT(LOG(D99))/100 -> 1.69 | G100: kΩ | H100: Nearest standard E96 resistor value
B101: Rhs | E101: 1.69 | G101: kΩ | H101: Selected top resistor
B102: Vout_calc | F102: =Vref*(1+Rfb_t/Rfb_b) -> 0.7678807947 | G102: V | H102: Calculated Vout (yellow if not within 1% of target Vout)
B103: Determine Compensation network values (COMP pin)
B104: Select fco target For a conservative compensation design, target the minimum of fco1 or fco2 For more optimized transient response, target fco3
B105: fpole | F105: =(Iout)/(2*PI()*Vout*Co_total_F)*10^-3 -> 3.552565683 | G105: kHz | H105: fpole ps
B106: fzero_ESR | F106: =MIN(fz_ESR_cer,fz_ESR_bulk) -> 663.1455962 | G106: kHz | H106: fzero ESR, uses minimum of zero from ceramic caps or bulk caps
B107: fco_1 | D107: =SQRT(fpole_Hz*fzero_ESR_Hz)*10^-3 -> 48.5372876 | G107: kHz | H107: fco1 between ps pole and zero (DS Equation)
B108: fco_2 | D108: =SQRT(fpole_Hz*(fsw_Hz/2))*10^-3 -> 29.35039446 | G108: kHz | H108: fco2 between ps pole and fsw/2 (DS Equation)
B109: fco_3 | D109: =MIN(VLOOKUP(0,'Small Signal'!I2:L212,4,FALSE),1/8*fsw_Hz)*10^-3 -> 60.62137424 | G109: kHz | H109: fco3 recommended target using loop model in 'Small Signal' tab
B110: fco_target | E110: 54.12 | G110: kHz | H110: Crossover Frequency Target (fco)
B111: Select compensation values
B112: Rcomp_rec | D112: =(2*PI()*fco_target_Hz*(Co_total_F)/gmps)*(Vout/(gmea*Vref))/1000 -> 5.495692766 | G112: kΩ | H112: Calculated compensation resistor
B113: Rcomp_std | D113: =(IF((10^(LOG(D112)-INT(LOG(D112)))*100)-VLOOKUP((10^(LOG(D112)-INT(LOG(D112)))*100),E96_s:E96_f,1)<VLOOKUP((10^(LOG(D112)-INT(LOG(D112)))*100),E96_s:E96_f,2)-(10^(LOG(D112)-INT(LOG(D112)))*100),VLOOKUP((10^(LOG(D112)-INT(LOG(D112)))*100),E96_s:E96_f,1),VLOOKUP((10^(LOG(D112)-INT(LOG(D112)))*100),E96_s:E96_f,2)))*10^INT(LOG(D112))/100 -> 5.49 | G113: kΩ | H113: Nearest standard E96 resistor value
B114: Rcomp | E114: 5.49 | G114: kΩ | H114: Selected compensation resistor
B115: Ccomp_ps_fpole | D115: =1/(2*PI()*Rcomp*fpole_Hz*2)*10^9 -> 4.080145732 | G115: nF | H115: Ccomp at 2x ps fpole
B116: Ccomp_fco | D116: =1/(2*PI()*Rcomp*fco_target*10^3/10)*10^9 -> 5.356609649 | G116: nF | H116: Ccomp at 1/10 fco
B117: Ccomp_rec_std | D117: =IF(Ccomp_rec<10000,VLOOKUP((10^(LOG(Ccomp_rec)-INT(LOG(Ccomp_rec)))),c_s1:C_f1,1),VLOOKUP((10^(LOG(Ccomp_rec)-INT(LOG(Ccomp_rec)))),C_s2:C_f2,1))*10^INT(LOG(Ccomp_rec)) -> 4.7 | G117: nF | H117: Ccomp recommended nearest standard value
B118: Ccomp | E118: 4.7 | G118: nF | H118: Ccomp chosen
B119: fzero_Ccomp | F119: =1/(2*PI()*Rcomp*Ccomp)*10^-3 -> 6.168079025 | G119: kHz | H119: Compensation zero with selected Ccomp
B120: Cpole_ESR_fzero | D120: =MAX(0.1,1/(2*PI()*Rcomp*fzero_ESR_Hz)*10^12-10) -> 33.71584699 | G120: pF | H120: Cpole for pole at ESR fzero
B121: Cpole_fsw | D121: =MAX(0.1,1/(Rcomp*PI()*fsw*1000)*10^12-10) -> 109.553424 | G121: pF | H121: Cpole for pole at fsw/2
B122: Cpole_fco | D122: =MAX(0.1,1/(2*PI()*Rcomp*fco_target_Hz*10)*10^12-10) -> 43.56609649 | G122: pF | H122: Cpole for pole at 10x fco
B123: Cpole_rec_std | D123: =IF(Cpole_rec<10000,VLOOKUP((10^(LOG(Cpole_rec)-INT(LOG(Cpole_rec)))),c_s1:C_f1,1),VLOOKUP((10^(LOG(Cpole_rec)-INT(LOG(Cpole_rec)))),C_s2:C_f2,1))*10^INT(LOG(Cpole_rec)) -> 100 | G123: pF | H123: Cpole recommended nearest standard value
B124: Cpole | E124: 100 | G124: pF | H124: Cpole chosen
B125: fpole_Cpole | F125: =1/(2*PI()*Rcomp*Cpole)*10^-3 -> 289.8997142 | G125: kHz | H125: Compensation pole with selected Cpole
B126: Cff_fsw | D126: =1/(2*PI()*Rfb_t*fsw/5)*10^6 -> 970.9294342 | G126: pF | H126: Cff at fsw/5 and nearest STD value
B127: Cff_rec_std | D127: =IF(Cff_rec<10000,VLOOKUP((10^(LOG(Cff_rec)-INT(LOG(Cff_rec)))),c_s1:C_f1,1),VLOOKUP((10^(LOG(Cff_rec)-INT(LOG(Cff_rec)))),C_s2:C_f2,1))*10^INT(LOG(Cff_rec)) -> 820 | G127: pF | H127: Cpole recommended nearest standard value
B128: Cff | E128: 820 | G128: pF | H128: Cff chosen (input 0 if not used)
B129: fzero_ff | F129: =1/(2*PI()*Cff*Rfb_t*10^3)*10^-3 -> 114.8469787 | G129: kHz | H129: Zero from feedforward capacitor
B130: fpole_ff | F130: =1/(2*PI()*Cff*Rfb_t*Rfb_b/(Rfb_b+Rfb_t)*10^3)*10^-3 -> 146.9813155 | G130: kHz | H130: Pole from feedforward capacitor
B131: Results with selected compensation values
B132: fco | F132: =fco*10^-3 -> 54.11695265 | G132: kHz | H132: fco with selected compensation (Red if >fsw/5)
B133: phaseMargin | F133: =phaseMargin -> 68.32541123 | G133: ° | H133: Phase margin with selected compensation (Red if <60)
B134: gainMargin | F134: =gainMargin -> -14.16132946 | G134: dB | H134: Gain margin with selected compensation (Red if >-12)
B135: Zcer_fco | F135: =SQRT((1/(2*PI()*fco*Co_cer_eff_F))^2+ESR_cer_eff_Ohm^2)*10^3 -> 9.221002552 | G135: mΩ | H135: Ceramic capacitor impdance at fco
B136: Zbulk_fco | F136: =SQRT((1/(2*PI()*fco*Co_bulk_eff_F))^2+ESR_bulk_eff_Ohm^2)*10^3 -> 2940944464 | G136: mΩ | H136: Bulk capacitor impedance at fco | J136: Display Power Stage? | K136: NO
B137: Zout_fco | F137: =Zcer_fco*Zbulk_fco/(Zcer_fco+Zbulk_fco) -> 9.221002523 | G137: mΩ | H137: Combined output capacitor impedance at fco | J137: Display Compensation? | K137: NO
B138: Vo_trans | F138: =Io_step*Zout_fco -> 25.35775694 | G138: mV | H138: Estimated overshoot/undershoot based on fco
B139: Select the Soft-Start time (SS pin)
B140: tss_target | C140: 1 | G140: ms | H140: Input target Soft Start time
B141: Css_rec | D141: =tss_target*Iss/Vref -> 8.333333333 | G141: nF | H141: Recommended Css capacitor value
B142: Css_std | D142: =IF(D141*10^-3<10000,IF((10^(LOG(D141*10^-3)-INT(LOG(D141*10^-3))))-VLOOKUP((10^(LOG(D141*10^-3)-INT(LOG(D141*10^-3)))),c_s1:C_f1,1)<VLOOKUP((10^(LOG(D141*10^-3)-INT(LOG(D141*10^-3)))),c_s1:C_f1,2)-(10^(LOG(D141*10^-3)-INT(LOG(D141*10^-3)))),VLOOKUP((10^(LOG(D141*10^-3)-INT(LOG(D141*10^-3)))),c_s1:C_f1,1),VLOOKUP((10^(LOG(D141*10^-3)-INT(LOG(D141*10^-3)))),c_s1:C_f1,2))*10^INT(LOG(D141*10^-3)),IF((10^(LOG(D141*10^-3)-INT(LOG(D141*10^-3))))-VLOOKUP((10^(LOG(D141*10^-3)-INT(LOG(D141*10^-3)))),C_s2:C_f2,1)<VLOOKUP((10^(LOG(D141*10^-3)-INT(LOG(D141*10^-3)))),C_s2:C_f2,2)-(10^(LOG(D141*10^-3)-INT(LOG(D141*10^-3)))),VLOOKUP((10^(LOG(D141*10^-3)-INT(LOG(D141*10^-3)))),C_s2:C_f2,1),VLOOKUP((10^(LOG(D141*10^-3)-INT(LOG(D141*10^-3)))),C_s2:C_f2,2))*10^INT(LOG(D141*10^-3)))*10^3 -> 8.2 | G142: nF | H142: Recommended Css nearest standard value
B143: Css | E143: 8.2 | G143: nF | H143: Chosen Css
B144: tss | F144: =Css*Vref/Iss -> 0.984 | G144: ms | H144: Soft Start time chosen based on Css
B145: Istart | F145: =(Co_total_F)*Vout/(tss*10^-3) -> 0.2504065048 | G145: A | H145: Current needed to charge output caps during startup
B146: UVLO resistor divider (EN pin)
B147: UVLO start voltage | C147: 6.5 | G147: V | H147: Target turn on voltage set by EN resistor divider
B148: UVLO stop voltage | C148: 6.2 | G148: V | H148: Target turn on voltage set by EN resistor divider
B149: Ren_t_calc | D149: =(Vstart_target*(EN_fall/EN_rise)-Vstop_target)/(I_1*(1-EN_fall/EN_rise)+Ihys)*10^-3 -> 7.99086758 | H149: Calculated top resistor
B150: Ren_t | E150: 0 | G150: kΩ | H150: Selected top resistor
B151: Ren_b_calc | D151: =(Ren_t*EN_fall)/((Vstop_target-EN_fall)+Ren_t*(I_1+Ihys))*10^-3 -> 0 | G151: kΩ | H151: Calculated bottom resistor
B152: Ren_b | E152: 10000 | G152: kΩ | H152: Selected bottom resistor
B153: Ven_max | F153: =Vin_max*Ren_b/(Ren_t+Ren_b) -> 10 | G153: V | H153: Maxiumum voltage on EN pin (Red if above absolute max, Yellow if bellow enable logic level)
B154: Vstart_typ | F154: =EN_rise+Ren_t*(EN_rise-I_1*Ren_b)/Ren_b -> 1.2 | G154: V | H154: Estimated typical turn on voltage with selected resistors (Red if below Vin_min, Yellow if near Vin_min)
B155: Vstop_typ | F155: =EN_fall-(Ren_t*(I_1*Ren_b-EN_fall+Ihys*Ren_b))/Ren_b -> 1.15 | G155: V | H155: Estimated typical turn off voltage with selected resistors
B156: BOOT bypass capacitor, PGOOD resistor
B157: Cboot_req | D157: 0.1 | G157: µF | H157: 0.1µF required
B158: Cboot | E158: 0.1 | G158: µF | H158: Selected Cboot
B159: Rpg_rec | D159: 100 | G159: kΩ | H159: 1k-100k recommended
B160: Rpg | E160: 100 | G160: kΩ | H160: Selected Rpg

Sheet Schematic Checklist (hidden)
A1: Pin | B1: Name | C1: Purpose | D1: Connection For Functional Use | E1: Reasoning | F1: Recommended Component Values from Calculator | G1: Component units | H1: Status | I1: Comments
A2: Sensing and Control
A3: 33 | B3: DIFFO | C3: Output of the differential sense amplifier | D3: Ensure that the feedback divider network gives the appropriate Vout based on the VREF=0.6V (VREF can be trimmed using VREF_TRIM PMBUS command). The top resistor is connected between DIFFO and FB. The bottom resistor is connected between FB and AGND. | E3: Output of the differential sense amplifier – can be thought of as Vout. | H3: Open
A4: 34 | B4: FB | C4: Feedback pin for the control loop. | D4: Feedback divider network connected as needed. Resistor network is between DIFFO & FB and between FB & AGND. | E4: Regulates to nominal 600mV if there is no trim applied to device using VREF_TRIM PMBUS command | F4: =CONCATENATE(partData!#REF!, partData!#REF!) ->  | G4: =DeviceCalculator!#REF! ->  | H4: Open
A5: 35 | B5: COMP | C5: Output of the error amplifier. This regulates the D-CAP and D-CAP2 valley voltage reference for output regulation | D5: Tied to AGND with a 10 nF capacitor, 0402, 16V rated, X5R or better dielectric if using D-CAP2 | H5: Open
A6: 35 | B6: COMP | C6: Output of the error amplifier. This regulates the D-CAP and D-CAP2 valley voltage reference for output regulation | D6: Add a placeholder for Rcomp resistor( to use if needed). The Rcomp resistor should be connected to AGND | H6: Open
A7: 32 | B7: VOUTS- | C7: Output voltage sensing, positive side. This sensing provides remote sensing for PMBus reporting and the voltage control loop | D7: You can use a 10 to 100 ohm resistor in series with the trace connecting from the GND at the remote end (desired load ground point) to the VOUTS- pin of the IC. You can use a 0 ohm resistor if you don’t want to use the filter cap between the VOUTS+,VOUTS-nets | E7: This resistor helps to break the net – so that during routing the RSP pin is connected to the remote end of the load rather than the Vout at the output of the buck converter. Also this resistor in combination with the capacitor across the RSP-RSN nets can serve as a filter to filter out the high frequency noise on the RS, RSN lines. Please see note on filter capacitor selection. | H7: Open
A8: 31 | B8: VOUTS+ | C8: Output voltage sensing, negative or common side. This sensing provides remote sensing for PMBus reporting and the voltage control loop | D8: You can use a 10 to 100 ohm resistor in series with the trace connecting from the Vout at the remote end (desired regulation point) to the VOUTS+ pin of the IC. You can use a 0 ohm resistor if you don’t want to use the filter cap between the VOUTS+,VOUTS-nets | H8: Open
A9: 31, 32 | B9: VOUTS+, VOUTS- | D9: If the application has ferrite beads, ensure that the output is take after the ferrite bead. This will adjust the converter for the DC drop across the ferrite bead. | E9: It is necessary that the LC resonance of ferrite bead-cap is away from the LC resonance of inductor-Cout. If they resonate at the same frequency then a huge amount of noise can be passed through to the output. | H9: Open
A10: 31, 32 | B10: VOUTS+, VOUTS- | D10: Connect a Cfilter of 1nF typical between the RSP- RSN pins close to the IC. The Cfilt should be lower than the value mentioned in the equation below. Cfilt = 1 / (2*PI*R*Fsw) R = Series resistance on RSP line + Series resistance on RSN line Fsw = switching frequency. | E10: This filter cap along with the series resistor helps filter the noise on the RSP, RSN pins. If the resistor use is 0 ohms, then this filter does not have much effect. Having the Cfilt lower than the mentioned equation ensures that the phase shift imposed by the feedback signal by the filter at the control loop cross over frequency is minimal while at the same time maximizing the filtering effect. | H10: Open
A13: Configuration
A14: 39 | B14: MODE | C14: D-CAP and D-CAP2 control mode selection pin. | D14: Connect to BP3 for D-CAP2 Connect to AGND for D-CAP | H14: Open
A15: 37 | B15: TSNS | C15: External temperature sense signal input | D15: Tied to AGND when not using an external temperature sensor Refer to WEBENCH schematic for help with this signal. | H15: Open
A16: 37 | B16: TSNS | C16: External temperature sense signal input | D16: It is also recommended to use a small 1-nF capacitor from TSNS to AGND to improve the noise performance of temperature readings | H16: Open
A17: 40 | B17: RT | C17: Frequency-setting resistor | D17: Use the table to determine the frequency setting resistor. Use 1% tolerance resistors only and only the exact values given in the table above | H17: Open
A18: 36 | B18: PGOOD | C18: Power good output. | D18: Have a 100k resistor connected between the pin to BP3 or to BP6. | H18: Open
A21: Power Stage
A22: 8, 9, 10, 11, 12 | B22: SW | C22: Switched power output of the device. | D22: Snubber Capacitor: 1.0nF 0603 minimum 25V Snubber Resistor: 0805 1-ohm resistor from SW to PGND “Snubber” | H22: Open
A23: 21, 22, 23, 24, 25 | B23: VIN | C23: Input power to the power stage | D23: The VIN capacitor should be able to give minimum ripple voltage desired for the application. Use WEBENCH to calculate the input capacitance | H23: Open
A24: 21, 22, 23, 24, 25 | B24: VIN | C24: Input power to the power stage | D24: Multiple (5qty preferable) 2.2nF-10nF 0402 minimum 25V input capacitor from VIN to GND to minimize high-frequency ringing energy | H24: Open
A25: 21, 22, 23, 24, 25 | B25: VIN | C25: Input power to the power stage | D25: If you have a LC filter at the VIN input, check the resonant frequency of the LC filter and see if that is closer to the loop bandwidth. LC filter Resonant frequency = 1/ (2 * PI* SQRT(L*C)) Loop Bandwidth = Fsw * (1/5th ) | E25: For example if Lfilter is 100nH / 0.32mOhm power inductor, combined with 5x 22uF ceramic capacitors creates a high-Q L-C resonant filter at the input to the converter, which could result in ringing and oscillations at the VIN node. The L-C resonance frequency for the 100nH and 110uF combo is about 50kHz, if this is close to the loop bandwidth of the converter, that is extremely dangerous as the loop and VIN could resonant with each other Recommend either: a. Adding higher ESR electrolytic capacitors across the ceramic capacitors to dampen the L-C resonance b. Adding a resistor to help dampen the L-C resonance. c. Select an inductor with a higher DCR The characteristic impedance Sqrt(L/C) is about 13mOhm so the target is to have at least 13mOhms of resistance. If you can find an alternate input inductor with 8-15mOhms DCR, that might be the simplest approach. The example Lfilter inductor is 0.32mohm which is too low. | H25: Open
A26: 7 | B26: BOOT | C26: Bootstrap pin for the internal flying high-side driver | D26: The boot capacitor should be 0.1uF, 0402, 25V rated (for Vinmax of 18V use 50V rating), X5R. | H26: Open
A27: 7 | B27: BOOT | C27: Bootstrap pin for the internal flying high-side driver | D27: A 0 to 2 Ohm, 0402 size resistor can be added in series with Boot Capacitor to reduce the voltage spikes at switch by slowing down the turn-on of the high-side FET. | H27: Open
A28: N/A | B28: Cin | D28: Cin needs to be able to handle I­PK_RIPPLE shared across all Cin. Please follow WEBENCH recommendation. | H28: Open
A29: N/A | B29: Cout | D29: Please follow WEBENCH or datasheet recommendation to meet the ripple, transient requirements for your design | H29: Open
A30: N/A | B30: Cout | D30: Add atleast 1X100uF and 1X47uF and 1x10uF and 1x1uF ceramic capacitor as part of the output capacitor bank – to ensure that there are not gaps due to self-resonances. | E30: Output filters made of 1uF, 10uF and 100uF capacitors without capacitors between those values often have inter-capacitor resonances that result in noise peaks between the two capacitors internal self-resonance frequencies. | H30: Open
A31: N/A | B31: Inductor | D31: Please follow WEBENCH or datasheet recommendations for inductor selection | H31: Open
A32: N/A | B32: Snubber | D32: Snubber resistor needs to be able to handle C*V¬2*Fsw power across it. Typically if the power level is 50mW or less, then 0805 can handle. Please check the power rating of the resistor | H32: Open
A35: Controller
A36: 27 | B36: BP3 | C36: Output of the 3.3-V on-board regulator | D36: BP3 bypassed with a 1 µF, 0402, 10V rated or larger capacitor, X5R or better dielectric to AGND, placed as close as possible to the BP3 pin, in order to stabilize LDO. | E36: This is the output of the 3.3V LDO regulator inside the IC. This LDO powers the controller. | H36: Open
A37: 28 | B37: BP6 | C37: Output of the 6-V on-board regulator | D37: BP6 bypassed with a 4.7 µF, 0402, 16Vrated or larger ceramic capacitor to PGND and GND , placed as close as possible to the BP6 pin, in order to stabilize LDO. | E37: Do not use 10V rated capacitors. The DC bias loss of capacitance on a 10V cap operating at 5.1V output is pretty severe and could compromise the stability of the LDO. This is the output of the 6V LDO regulator inside the IC. This LDO powers the driver stage of the controller. | H37: Open
A38: 30 | B38: BPEXT | C38: External BP voltage for BP crossover function. | D38: If using BPEXT: tied to GND with a 4.7 µF or larger capacitor, placed as close as possible to the BP6 pin. If not using BPEXT: tied to GND. | H38: Open
A39: 30 | B39: BPEXT | C39: External BP voltage for BP crossover function. | D39: The supplied voltage on BPEXT pin must be between 4.5V and 6.5V. | E39: The absolute maximum recommended voltage on the BPEXT is 7V only. Please ensure to stay within the recommended voltage of 6.5V | H39: Open
A40: 13 | B40: AGNDSNS | C40: Analog ground sense. Provides Kelvin connection point to analog ground for precise current measurement. | D40: Kelvin Connect to AGND pin only with a low impedance, low noise path. Do not connect to Thermal PAD externally on the board. | H40: Open
A41: 38 | B41: AGND | C41: Analog ground return for control circuitry. | D41: Kelvin connect to AGNDSNS pin only | H41: Open
A42: 38 | B42: AGND | C42: Analog ground return for control circuitry. | D42: Do not connect to GND or PGND or Thermal PAD | H42: Open
A43: 38 | B43: AGND | C43: Analog ground return for control circuitry. | D43: Use a separate ground symbol for AGND | E43: This is expected to be a clean ground | H43: Open
A44: 14, 15, 16, 17, 18, 19, 20 | B44: GND | C44: Power stage ground return | D44: Use a separate ground symbol for GND | E44: This ground carries the high current and is noisy | H44: Open
A45: 29 | B45: VDD | C45: Input Voltage for analog control circuitry. | D45: Bypass with a 4.7-µF capacitor parallel with a 0.1uF capacitor to GND (thermal pad or GND pins). The capacitor should be X5R or better dielectric, 25V or higher rated, 0402 or larger | H45: Open
A46: 29 | B46: VDD | C46: Input Voltage for analog control circuitry. | D46: VIN and VDD must be at tied together and at the same voltage for accurate short circuit protection. You can use a zero ohm resistor to connect VDD to VIN | H46: Open
A49: PMBUS
A50: 5 | B50: CLK | C50: PMBus CLK pin | D50: Use a 3k effective pull up across the full Bus. DO NOT use a 10k pull-up. | H50: Open
A51: 1 | B51: CNTL | C51: PMBus CNTL pin. | D51: Use a 3k effective pull up across the full Bus. DO NOT use a 10k pull-up. The abs max voltage on the CNTL pin is only 7V. It cannot be connected to VIN directly (unless VIN max is below 6.5V) | H51: Open
A52: 4 | B52: DATA | C52: PMBus DATA pin. | D52: Use a 3k effective pull up across the full Bus. DO NOT use a 10k pull-up. | H52: Open
A53: 6 | B53: SMBALERT | C53: SMBus alert pin | D53: Use a 3k effective pull up across the full Bus. DO NOT use a 10k pull-up. | H53: Open
A54: 3, 2 | B54: ADDR0, ADDR1 | C54: Sets the PMBus address | D54: ADDR0 and ADDR1 resistors should be chosen correctly based one table below. | E54: ADDR0 sets low order 3-bits of the PMBus address ADDR1 sets high order 3 bits of the PMBUS address | H54: Open
A55: 3, 2 | B55: ADDR0, ADDR1 | C55: Sets the PMBus address | D55: Do not use the below addresses. 7-bit Address = 0001000 (8d) 8-bit I2C Write Address of 0x10 (16d) 8-bit I2C Read Address of 0x11 (17d) a. This is the SMB Reserved Address for the SMBus Host. While this is not an issue for the TPS544C20, other devices sharing the common PMBus could attempt to contact the Host using this Address. In addition, some SMBus hosts may attempt to respond to transactions intended for this device due to this address selection. b. It is recommended considering an alternate PMBus address. | H55: Open
A56: 3, 2 | B56: ADDR0, ADDR1 | C56: Sets the PMBus address | D56: The ADDR0, ADDR1 resistors must be connected to AGND | H56: Open
A59: Misc
B60: Boot Voltage | D60: For the TPS544C20 the feedback divider should always be set according to Vout without PMBus programming. The part always boots with Vref = 0.6V and has limited programming range from that level. | H60: Open
B61: Safe Operating Area | D61: Refer to SOA curves in datasheet (Figure 10 to Figure 19) to derate based on the maximum ambient temperature of the application. | H61: Open

Sheet Layout Checklist (hidden)
A1: Pin | B1: Name | C1: Purpose | D1: Placement or Routing? | E1: Remarks | F1: Reasoning | G1: Status | H1: Comments
A2: Sensing and Control
A3: 33 | B3: DIFFO | C3: Output of the differential sense amplifier | D3: Placement | E3: Place the two resistors as close as possible to the pin | G3: Open
A4: 34 | B4: FB | C4: Feedback pin for the control loop. | D4: Routing | E4: Route the FB trace from the DIFFO resistors to the FB pin, keeping the trace as short as possible | G4: Open
A5: 35 | B5: COMP | C5: Output of the error amplifier. This regulates the D-CAP and D-CAP2 valley voltage reference for output regulation | D5: Placement | E5: COMP requires good local bypassing. Place a bypass capacitor as close as possible to the COMP pin which bypasses COMP to the low impedance analog ground (AGND). This return loop should be kept away from fast switching voltage and main current path, as well as the BP6 current path. | G5: Open
A6: 31, 32 | B6: VOUTS+, VOUTS- | D6: Routing | E6: Route the VOUTS+ and VOUTS- lines from the desired regulation point back to the device pins as a tightly coupled differential pair. These traces must be kept away from switching or noisy areas which can add differential-mode noise. | G6: Open
A9: Configuration
A10: 39 | B10: MODE | C10: D-CAP and D-CAP2 control mode selection pin. | D10: Routing | E10: All routing for the MODE pin should be placed away from any high voltage switch node (itself and others), such as SW and BOOT to avoid noise coupling. If using DCAP2, be sure to connect to AGND | G10: Open
A11: 37 | B11: TSNS | C11: External temperature sense signal input. | D11: Routing | E11: When using TSNS, route traces away from switching areas or high current paths on the layout. Connect to AGND when not in use. | G11: Open
A12: 40 | B12: RT | C12: Frequency-setting resistor | D12: Placement | E12: Keep the RT resistor local to the device and place it as close as possible to the RT pin. The resistor should be kept away from fast switching voltage and current paths. Connect the resistor to the low impedance analog ground (AGND). | G12: Open
A13: 36 | B13: PGOOD | C13: Power good output. | D13: Placement | E13: Place the pulllup resistor close to the PGOOD pin and route away from SW and other noisy areas. | G13: Open
A16: Power Stage
A17: 8 | B17: SW | C17: Switched power output of the device. | D17: Routing | E17: The PCB trace defined as switch node, which connects the SW pins and up-stream of the output inductor should be as short and wide as possible. Use separate via or trace to connect SW node to the snubber. Do not combine these connections. | G17: Open
A18: 8 | B18: SW | C18: Switched power output of the device. | D18: Routing | E18: The PCB trace defined as switch node, which connects the SW pins and up-stream of the output inductor should be as short and wide as possible. Use separate via or trace to connect SW node to the bootstrap capacitor. Do not combine these connections. | G18: Open
A19: 9 | B19: SW | C19: Switched power output of the device. | D19: Routing | E19: Adding a space between SW and VOUT node can increase noise immunity against the SW radiating noise across the inductor. | G19: Open
A20: 10 | B20: SW | C20: Switched power output of the device. | D20: Routing | E20: Minimize the SW copper area for best noise performance. Route sensitive traces away from the SW and BOOT pins as these nets contain fast switching voltages and lend easily to capacitive coupling. | G20: Open
A21: 21 | B21: Vin | C21: Input power to the power stage | D21: Placement | E21: Power-stage input bypass capacitors should be as close as physically possible to the VIN and GND pins. | G21: Open
A22: 23 | B22: Vin | C22: Input power to the power stage | D22: Placement | E22: Additionally, a high-frequency bypass capacitor in 0402 package on the VIN pins can be placed right underneath the IC on the other side of the PCB to reduce switching spikes and associated noise. | G22: Open
A23: 7 | B23: BOOT | C23: Bootstrap pin for the internal flying high-side driver | D23: Placement | E23: Place the boot resistor as close to the pin, followed by the boot capacitor. Route these separate from the SW copper plane. | G23: Open
A26: Controller
A27: 27 | B27: BP3 | C27: Output of the 3.3-V on-board regulator | D27: Placement | E27: BP3 requires good local bypassing. Place a bypass capacitor as close as possible to the BP3 pin, with a minimum return loop back to AGND and this return loop should be kept away from fast switching voltage and main current path, as well as the BP6 current path. | F27: Poor bypassing on BP3 can degrade the performance of the regulator. | G27: Open
A28: 28 | B28: BP6 | C28: Output of the 6-V on-board regulator | D28: Placement | E28: BP6 bypass capacitor carries large switching current for gate driver. Place BP6 high frequency bypass capacitors as close as possible to the device pins, with a minimum return loop back to GND. | F28: Bypassing the BP6 pin to GND with a low-impedance path is very critical to the stable operation of the TPS544x25 devices. | G28: Open
A29: 30 | B29: BPEXT | C29: External BP voltage for BP crossover function. | D29: Placement | E29: Place the BPEXT bypass capacitor as close to the pin as possible | G29: Open
A30: 38 | B30: AGND | C30: Analog ground return for control circuitry. | D30: Routing | E30: AGND is not connected to the thermal tab or internal ground plane. Kelvin connect back to AGND pin with a low impedance, low noise path. | F30: The AGNDSNS pin must be connected to the AGND pin to ensure accurate current monitoring. This connection must be made on an internal or bottom layer. It should not segment the thermal tab copper area. | G30: Open
A31: 38 | B31: AGND | C31: Analog ground return for control circuitry. | D31: Routing | E31: Have a large solid ground plane for AGND to minimize impedance of the plane. | G31: Open
A32: 38 | B32: AGND | C32: Analog ground return for control circuitry. | D32: Routing | E32: If you draw the return current flow into GND, it should not cross the AGND copper pour. | F32: If the high current path through GND interferes with AGND, it will cause noise to couple into AGND and cause controller to malfunction. | G32: Open
A33: 26 | B33: PGND | C33: Power ground return for controller device | D33: Routing | E33: PGND is the ground return for the controller. This pin should be connected using a short trace from the pin to the Thermal pad beneath the IC. No other power plane connection should be made between GND and PGND or AGND. | G33: Open
A34: 14, 15, 16, 17, 18, 19, 20 | B34: GND | C34: Power stage ground return | D34: Routing | G34: Open
A35: 14, 15, 16, 17, 18, 19, 20 | B35: GND | C35: Power stage ground return | D35: Routing | E35: It is absolutely critical that GND (pins 13, 14, 15, 16, 17, 18, 19, and 20) be connected directly to the thermal pad underneath the device using a plane. | G35: Open
A36: 26 | B36: PGND | C36: Power ground return for controller device | D36: Routing | E36: Connect to GND at the thermal tab with a minimum of 8 mil wide PCB trace | G36: Open
A37: 29 | B37: VDD | C37: Input Voltage for analog control circuitry. | D37: Routing | E37: VDD should be connected to VIN through a trace from the input copper area. To avoid high frequency noise on VDD, it is recommended to keep the VDD to VIN connection as short as possible to keep the parasitic inductance low. Optionally form a small low-pass R-C between VIN and VDD, with the VDD bypass capacitor (0.1 μF to 1.0 μF) and a 0-Ω to 2-Ω resistor between VIN and VDD. | G37: Open
A38: 29 | B38: VDD | C38: Input Voltage for analog control circuitry. | D38: Placement | E38: VDD requires good local bypassing. Place bypass capacitors as close as possible to the VDD pin, with a minimum return loop back to GND. Route this loop away from fast switching voltage and main current path, as well as BP6 current path. | F38: Poor bypassing on VDD can degrade the performance of the regulator. | G38: Open
A41: PMBUS
A42: 1, 4, 5 | B42: CNTL, DATA, CLK, SMBALERT | C42: PMBus CNTL, DATA, CLK, SMBus Alert pins | D42: Placement | E42: Keep the pullup resistors close to the pin and route these signals away from noisy areas and other noise sensitive traces. | G42: Open
A43: 3 | B43: ADDR0 | C43: Sets low order 3-bits of the PMBus address | D43: Placement | E43: Keep the ADDR0 resistor local to the device and place it as close as possible to the ADDR0 pin. The resistor should be kept away from fast switching voltage and current paths. | G43: Open
A44: 2 | B44: ADDR1 | C44: Sets high order 3-bits of the PMBus address | D44: Placement | E44: Keep the ADDR1 resistor local to the device and place it as close as possible to the ADDR1 pin. The resistor should be kept away from fast switching voltage and current paths. | G44: Open
A47: Misc
B48: Thermal Pad | C48: Power ground pad | D48: Routing | E48: Connect to PCB ground plane using multiple vias for good thermal and electrical performance. | G48: Open
B49: Cin, Cout, L, IC | D49: Placement | E49: Place the power components (including input/output capacitors, output inductor, and IC device) on one side of the PCB (solder side). At least one or two inner layers/planes should be inserted, connecting to power ground, in order to shield and isolate the small signal traces from noisy power lines. | G49: Open
B50: VDD, BP, VIN, GND, AGND, PGND | D50: Routing | E50: Ensure to provide GND vias for each decoupling capacitor and make the loop as small as possible | F50: If this loop area is large, it can sometimes manifest as ground bounce leading to load regulation issues. | G50: Open

Sheet Small Signal (hidden)
B1: Values for plotting | C1: From design equations | D1: Units | E1: =AND(E2:E17) -> TRUE | G1: Anticipated type 3 ea phase | H1: Anticipated type 2 ea phase | I1: find phase >65 | J1: find gain > 0 | K1: find phase > 0 | L1: freq | M1: s=2*pi*freq*i | N1: power stage gain | O1: power stage phase | P1: overall gain | Q1: overall phase | R1: Gain-dB | S1: Phase Degrees | T1: DCM Peak CMC complex | U1: DCM Gain-dB | V1: DCM Phase-Degrees | W1: Compensation Complex | X1: Comp Gain | Y1: Comp Phase | Z1: Cff Complex | AA1: CCM Full Loop Complex | AB1: CCM Full Loop Gain-dB | AC1: CCM Full Loop Phase-Degrees | AD1: DCM Full Loop Complex | AE1: DCM Full Loop Gain-dB | AF1: DCM Full Loop Phase-Degrees | AH1: Zcer(s) | AI1: Zload(s) | AJ1: Zesr(s) | AK1: Zcr(s) | AL1: Ze(s) | AM1: Zl(s) | AN1: Vo(s)/Vc(s) New Equivalent Circuit | AO1: Gain New Equivalent Circuit | AP1: Phase New Equivalent Circuit | AR1: Ze(s) Vin_max | AS1: Vo(s)/Vc(s) New Equivalent Circuit Vin_max | AT1: Gain New Equivalent Circuit Vin_max | AU1: Phase New Equivalent Circuit Vin_max
A2: Vin | B2: =C2 -> 9.5 | C2: =Vin_nom -> 9.5 | D2: V | E2: =B2=C2 -> TRUE | F2: 0 | G2: =DEGREES((ATAN(10)+ATAN(L2/(fsw_ss/6))-ATAN(L2/(fsw_ss/6*Vo_ss/Vref))-ATAN(MAX(1/10,L2/(fsw_ss/2)))))+90 -> 168.5789702 | H2: =DEGREES((ATAN(10)-ATAN(MAX(1/10,L2/(fsw_ss/2)))))+90 -> 168.5788137 | I2: =IF(fz_cff>fsw_ss/4,IF(AU2+H2>65,1,0),IF(AU2+G2>65,1,0)) -> 1 | J2: =IF(P2>0,1,0) -> 1 | K2: =IF(Q2>0,1,0) -> 1 | L2: =10^('Small Signal'!F2/30) -> 1 | M2: =COMPLEX(0,L2*2*PI()) -> 6.28318530717959i | N2: =IF(D$32=1, IF(AND('Small Signal'!$B$63>=1,FCCM=0),U2+0,R2+0), 0) -> 0 | O2: =IF(D$32=1, IF(AND('Small Signal'!$B$63>=1,FCCM=0),V2,S2), 0) -> 0 | P2: =IF(AND('Small Signal'!$B$63>=1,FCCM=0),AE2+0,AB2+0) -> 66.89506489 | Q2: =IF(AND('Small Signal'!$B$63>=1,FCCM=0),AF2,AC2) -> 178.4093758 | R2: =AO2 -> 9.041241072 | S2: =AP2 -> -0.01449927646 | T2: =IMDIV(IMSUM('Small Signal'!$B$76,IMPRODUCT(M2,'Small Signal'!$B$77)),IMSUM(IMPRODUCT('Small Signal'!$B$80,IMPOWER(M2,2)),IMSUM(IMPRODUCT(M2,'Small Signal'!$B$79),'Small Signal'!$B$78))) -> 4.27268360522576-0.000737371265922736i | U2: =20*LOG(IMABS(T2)) -> 12.61401481 | V2: =(180/PI())*IMARGUMENT(T2) -> -0.00988799194 | W2: =IMPRODUCT(IMDIV(IMSUM(IMPRODUCT(M2,'Small Signal'!$B$59*'Small Signal'!$B$6*'Small Signal'!$B$51*'Small Signal'!$B$7*'Small Signal'!$B$8),'Small Signal'!$B$59*'Small Signal'!$B$6*'Small Signal'!$B$51),IMSUM(IMSUM(IMPRODUCT(M2,('Small Signal'!$B$5+'Small Signal'!$B$6)*('Small Signal'!$B$58*'Small Signal'!$B$59)+'Small Signal'!$B$5*'Small Signal'!$B$59*('Small Signal'!$B$8+'Small Signal'!$B$9)+'Small Signal'!$B$6*'Small Signal'!$B$59*('Small Signal'!$B$8+'Small Signal'!$B$9)+'Small Signal'!$B$7*'Small Signal'!$B$8*('Small Signal'!$B$5+'Small Signal'!$B$6)),'Small Signal'!$B$6+'Small Signal'!$B$5),IMPRODUCT(IMPOWER(M2,2),'Small Signal'!$B$58*'Small Signal'!$B$59*'Small Signal'!$B$8*'Small Signal'!$B$7*('Small Signal'!$B$5+'Small Signal'!$B$6)+('Small Signal'!$B$5+'Small Signal'!$B$6)*('Small Signal'!$B$9*'Small Signal'!$B$8*'Small Signal'!$B$59*'Small Signal'!$B$7)))),-1) -> -780.776669391438+21.4849559554042i | X2: =IF(D$33=1, 20*LOG(IMABS(Z2))+20*LOG(IMABS(W2)), 0) -> 0 | Y2: =IF(D$33=1, (180/PI())*IMARGUMENT(Z2)+(180/PI())*IMARGUMENT(W2), 0) -> 0 | Z2: =IMDIV(COMPLEX(1,IMABS(M2)/(2*PI()*fz_cff)),COMPLEX(1,IMABS(M2)/(2*PI()*fp_cff))) -> 1.00000000001295+1.90365233571851E-06i | AA2: =IMPRODUCT(AN2,W2,Z2) -> -2210.98535517208+61.3963300771209i | AB2: =20*LOG(IMABS(AA2)) -> 66.89506489 | AC2: =(180/PI())*IMARGUMENT(AA2) -> 178.4093758 | AD2: =IMPRODUCT(T2,W2) -> -3335.9958322624+92.3741413507652i | AE2: =20*LOG(IMABS(AD2)) -> 70.46783863 | AF2: =(180/PI())*IMARGUMENT(AD2) -> 178.413878 | AH2: =IMSUM(ESR_ss,IMDIV(1,IMPRODUCT(Co_ss,M2))) -> 0.00075-497.359197162172i | AI2: =Ro -> 0.14 | AJ2: =IMSUM(ESR2_ss,IMDIV(1,IMPRODUCT(Co2_ss,M2))) -> 1000-159154943091.895i | AK2: =IMDIV(1,(IMSUM(IMDIV(1,AH2),IMDIV(1,AI2),IMDIV(1,AJ2)))) -> 0.139999988847708-0.0000394081352137418i | AL2: =IMDIV(IMPRODUCT(Re,IMDIV(1,IMPRODUCT(Ce,M2))),IMSUM(Re,IMDIV(1,IMPRODUCT(Ce,M2)))) -> 1.02794354386595-0.0000032208771114733i | AM2: =IMSUM(Rdc_ss,IMPRODUCT(Lo_ss,M2)) -> 0.006+5.57946855277548E-06i | AN2: =IMDIV(IMPRODUCT(AK2,AL2),IMPRODUCT(Ri,IMSUM(AL2,AK2,AM2))) -> 2.83179649363496-0.000716614756892897i | AO2: =20*LOG(IMABS(AN2)) -> 9.041241072 | AP2: =(180/PI())*IMARGUMENT(AN2) -> -0.01449927646 | AR2: =IMDIV(IMPRODUCT(Re_vimax,IMDIV(1,IMPRODUCT(Ce,M2))),IMSUM(Re_vimax,IMDIV(1,IMPRODUCT(Ce,M2)))) -> 1.01809513614215-0.0000031594563086865i | AS2: =IMDIV(IMPRODUCT(AK2,AR2),IMPRODUCT(Ri,IMSUM(AR2,AK2,AM2))) -> 2.82839379780539-0.0007150628127936i | AT2: =20*LOG(IMABS(AS2)) -> 9.030797802 | AU2: =(180/PI())*IMARGUMENT(AS2) -> -0.01448528151
A3: Vout | B3: =C3 -> 0.77 | C3: =Vout -> 0.77 | D3: V | E3: =B3=C3 -> TRUE | F3: 1 | G3: 168.5789827 | H3: 168.5788137 | I3: 1 | J3: =IF(P3>0,1,0) -> 1 | K3: 1 | L3: =10^('Small Signal'!F3/30) -> 1.079775162 | M3: =COMPLEX(0,L3*2*PI()) -> 6.78442743499492i | N3: =IF(D$32=1, IF(AND('Small Signal'!$B$63>=1,FCCM=0),U3+0,R3+0), 0) -> 0 | O3: =IF(D$32=1, IF(AND('Small Signal'!$B$63>=1,FCCM=0),V3,S3), 0) -> 0 | P3: =IF(AND('Small Signal'!$B$63>=1,FCCM=0),AE3+0,AB3+0) -> 66.89451342 | Q3: =IF(AND('Small Signal'!$B$63>=1,FCCM=0),AF3,AC3) -> 178.2825559 | R3: =AO3 -> 9.041241027 | S3: -0.01565595854 | T3: =IMDIV(IMSUM('Small Signal'!$B$76,IMPRODUCT(M3,'Small Signal'!$B$77)),IMSUM(IMPRODUCT('Small Signal'!$B$80,IMPOWER(M3,2)),IMSUM(IMPRODUCT(M3,'Small Signal'!$B$79),'Small Signal'!$B$78))) -> 4.2726835883705-0.000796195176017008i | U3: =20*LOG(IMABS(T3)) -> 12.6140148 | V3: =(180/PI())*IMARGUMENT(T3) -> -0.0106768081 | W3: =IMPRODUCT(IMDIV(IMSUM(IMPRODUCT(M3,'Small Signal'!$B$59*'Small Signal'!$B$6*'Small Signal'!$B$51*'Small Signal'!$B$7*'Small Signal'!$B$8),'Small Signal'!$B$59*'Small Signal'!$B$6*'Small Signal'!$B$51),IMSUM(IMSUM(IMPRODUCT(M3,('Small Signal'!$B$5+'Small Signal'!$B$6)*('Small Signal'!$B$58*'Small Signal'!$B$59)+'Small Signal'!$B$5*'Small Signal'!$B$59*('Small Signal'!$B$8+'Small Signal'!$B$9)+'Small Signal'!$B$6*'Small Signal'!$B$59*('Small Signal'!$B$8+'Small Signal'!$B$9)+'Small Signal'!$B$7*'Small Signal'!$B$8*('Small Signal'!$B$5+'Small Signal'!$B$6)),'Small Signal'!$B$6+'Small Signal'!$B$5),IMPRODUCT(IMPOWER(M3,2),'Small Signal'!$B$58*'Small Signal'!$B$59*'Small Signal'!$B$8*'Small Signal'!$B$7*('Small Signal'!$B$5+'Small Signal'!$B$6)+('Small Signal'!$B$5+'Small Signal'!$B$6)*('Small Signal'!$B$9*'Small Signal'!$B$8*'Small Signal'!$B$59*'Small Signal'!$B$7)))),-1) -> -780.678102830831+23.1959762841502i | X3: 0 | Y3: 0 | Z3: 1.0000000000151+2.05551650980019E-06i | AA3: =IMPRODUCT(AN3,W3,Z3) -> -2210.70367877224+66.2858147782105i | AB3: =20*LOG(IMABS(AA3)) -> 66.89451342 | AC3: =(180/PI())*IMARGUMENT(AA3) -> 178.2825559 | AD3: =IMPRODUCT(T3,W3) -> -3335.57204924109+99.7306393250159i | AE3: =20*LOG(IMABS(AD3)) -> 70.46728719 | AF3: 178.2874173 | AH3: 0.00075-460.61366709899i | AI3: 0.14 | AJ3: 1000-147396373471.677i | AK3: 0.139999986997382-0.0000425519250320449i | AL3: =IMDIV(IMPRODUCT(Re,IMDIV(1,IMPRODUCT(Ce,M3))),IMSUM(Re,IMDIV(1,IMPRODUCT(Ce,M3)))) -> 1.02794354386428-3.47782310587303E-06i | AM3: 0.006+6.02457156227549E-06i | AN3: =IMDIV(IMPRODUCT(AK3,AL3),IMPRODUCT(Ri,IMSUM(AL3,AK3,AM3))) -> 2.83179646400898-0.00077378280748008i | AO3: =20*LOG(IMABS(AN3)) -> 9.041241027 | AP3: =(180/PI())*IMARGUMENT(AN3) -> -0.01565595854 | AR3: 1.01809513614053-3.41150244857383E-06i | AS3: =IMDIV(IMPRODUCT(AK3,AR3),IMPRODUCT(Ri,IMSUM(AR3,AK3,AM3))) -> 2.82839376827851-0.000772107056824443i | AT3: =20*LOG(IMABS(AS3)) -> 9.030797758 | AU3: =(180/PI())*IMARGUMENT(AS3) -> -0.01564084714
A4: Iout (for plot) | B4: =C4 -> 5.5 | C4: =Iout -> 5.5 | D4: A | E4: TRUE | F4: 2 | G4: 168.5789962 | H4: 168.5788137 | I4: 1 | J4: 1 | K4: 1 | L4: =10^('Small Signal'!F4/30) -> 1.165914401 | M4: 7.3256562349222i | N4: =IF(D$32=1, IF(AND('Small Signal'!$B$63>=1,FCCM=0),U4+0,R4+0), 0) -> 0 | O4: =IF(D$32=1, IF(AND('Small Signal'!$B$63>=1,FCCM=0),V4,S4), 0) -> 0 | P4: =IF(AND('Small Signal'!$B$63>=1,FCCM=0),AE4+0,AB4+0) -> 66.89387053 | Q4: =IF(AND('Small Signal'!$B$63>=1,FCCM=0),AF4,AC4) -> 178.1456378 | R4: 9.041240975 | S4: -0.0169049151 | T4: =IMDIV(IMSUM('Small Signal'!$B$76,IMPRODUCT(M4,'Small Signal'!$B$77)),IMSUM(IMPRODUCT('Small Signal'!$B$80,IMPOWER(M4,2)),IMSUM(IMPRODUCT(M4,'Small Signal'!$B$79),'Small Signal'!$B$78))) -> 4.27268356871872-0.000859711772481784i | U4: 12.61401479 | V4: -0.01152855219 | W4: =IMPRODUCT(IMDIV(IMSUM(IMPRODUCT(M4,'Small Signal'!$B$59*'Small Signal'!$B$6*'Small Signal'!$B$51*'Small Signal'!$B$7*'Small Signal'!$B$8),'Small Signal'!$B$59*'Small Signal'!$B$6*'Small Signal'!$B$51),IMSUM(IMSUM(IMPRODUCT(M4,('Small Signal'!$B$5+'Small Signal'!$B$6)*('Small Signal'!$B$58*'Small Signal'!$B$59)+'Small Signal'!$B$5*'Small Signal'!$B$59*('Small Signal'!$B$8+'Small Signal'!$B$9)+'Small Signal'!$B$6*'Small Signal'!$B$59*('Small Signal'!$B$8+'Small Signal'!$B$9)+'Small Signal'!$B$7*'Small Signal'!$B$8*('Small Signal'!$B$5+'Small Signal'!$B$6)),'Small Signal'!$B$6+'Small Signal'!$B$5),IMPRODUCT(IMPOWER(M4,2),'Small Signal'!$B$58*'Small Signal'!$B$59*'Small Signal'!$B$8*'Small Signal'!$B$7*('Small Signal'!$B$5+'Small Signal'!$B$6)+('Small Signal'!$B$5+'Small Signal'!$B$6)*('Small Signal'!$B$9*'Small Signal'!$B$8*'Small Signal'!$B$59*'Small Signal'!$B$7)))),-1) -> -780.563214256943+25.0427318869457i | X4: 0 | Y4: 0 | Z4: 1.00000000001761+2.21949567301692E-06i | AA4: -2210.37535850142+71.5631823248801i | AB4: 66.89387053 | AC4: 178.1456378 | AD4: -3335.07809037049+107.670728433644i | AE4: 70.46664434 | AF4: 178.150887 | AH4: 0.00075-426.582943532457i | AI4: 0.14 | AJ4: 1000-136506541930.386i | AK4: 0.139999984840061-0.00004594651104703i | AL4: 1.02794354386233-3.75526700868397E-06i | AM4: 0.006+6.50518273661091E-06i | AN4: 2.83179642946762-0.000835511446519083i | AO4: 9.041240975 | AP4: -0.0169049151 | AR4: 1.01809513613863-3.68365561018332E-06i | AS4: 2.82839373385268-0.000833702012628321i | AT4: 9.030797706 | AU4: -0.0168885982
A5: Rhs FB | B5: =C5 -> 1690 | C5: =Rfb_t*1000 -> 1690 | D5: Ω | E5: TRUE | F5: 3 | G5: 168.5790107 | H5: 168.5788137 | I5: 1 | J5: 1 | K5: 1 | L5: =10^('Small Signal'!F5/30) -> 1.258925412 | M5: 7.91006165022012i | N5: =IF(D$32=1, IF(AND('Small Signal'!$B$63>=1,FCCM=0),U5+0,R5+0), 0) -> 0 | O5: =IF(D$32=1, IF(AND('Small Signal'!$B$63>=1,FCCM=0),V5,S5), 0) -> 0 | P5: =IF(AND('Small Signal'!$B$63>=1,FCCM=0),AE5+0,AB5+0) -> 66.8931211 | Q5: =IF(AND('Small Signal'!$B$63>=1,FCCM=0),AF5,AC5) -> 177.9978205 | R5: 9.041240914 | S5: -0.01825350737 | T5: =IMDIV(IMSUM('Small Signal'!$B$76,IMPRODUCT(M5,'Small Signal'!$B$77)),IMSUM(IMPRODUCT('Small Signal'!$B$80,IMPOWER(M5,2)),IMSUM(IMPRODUCT(M5,'Small Signal'!$B$79),'Small Signal'!$B$78))) -> 4.2726835458064-0.000928295414977106i | U5: 12.61401477 | V5: -0.0124482443 | W5: =IMPRODUCT(IMDIV(IMSUM(IMPRODUCT(M5,'Small Signal'!$B$59*'Small Signal'!$B$6*'Small Signal'!$B$51*'Small Signal'!$B$7*'Small Signal'!$B$8),'Small Signal'!$B$59*'Small Signal'!$B$6*'Small Signal'!$B$51),IMSUM(IMSUM(IMPRODUCT(M5,('Small Signal'!$B$5+'Small Signal'!$B$6)*('Small Signal'!$B$58*'Small Signal'!$B$59)+'Small Signal'!$B$5*'Small Signal'!$B$59*('Small Signal'!$B$8+'Small Signal'!$B$9)+'Small Signal'!$B$6*'Small Signal'!$B$59*('Small Signal'!$B$8+'Small Signal'!$B$9)+'Small Signal'!$B$7*'Small Signal'!$B$8*('Small Signal'!$B$5+'Small Signal'!$B$6)),'Small Signal'!$B$6+'Small Signal'!$B$5),IMPRODUCT(IMPOWER(M5,2),'Small Signal'!$B$58*'Small Signal'!$B$59*'Small Signal'!$B$8*'Small Signal'!$B$7*('Small Signal'!$B$5+'Small Signal'!$B$6)+('Small Signal'!$B$5+'Small Signal'!$B$6)*('Small Signal'!$B$9*'Small Signal'!$B$8*'Small Signal'!$B$59*'Small Signal'!$B$7)))),-1) -> -780.429306948654+27.0358543329654i | X5: 0 | Y5: 0 | Z5: 1.00000000002053+2.39655630059242E-06i | AA5: -2209.99268786471+77.2588139207437i | AB5: 66.8931211 | AC5: 177.9978205 | AD5: -3334.50236120499+116.240118902634i | AE5: 70.46589496 | AF5: 178.0034885 | AH5: 0.00075-395.066453105715i | AI5: 0.14 | AJ5: 1000-126421264993.829i | AK5: 0.139999982324809-0.000049611900528092i | AL5: 1.02794354386005-4.05484404387665E-06i | AM5: 0.006+7.02413474539547E-06i | AN5: 2.83179638919535-0.000902164495159603i | AO5: 9.041240914 | AP5: -0.01825350737 | AR5: 1.01809513613642-3.97751983443644E-06i | AS5: 2.82839369371511-0.000900210713443706i | AT5: 9.030797645 | AU5: -0.01823588878
A6: Rls FB | B6: 6040 | C6: =Rfb_b*1000 -> 6040 | D6: Ω | E6: TRUE | F6: 4 | G6: 168.5790265 | H6: 168.5788137 | I6: 1 | J6: 1 | K6: 1 | L6: =10^('Small Signal'!F6/30) -> 1.359356391 | M6: 8.54108810238862i | N6: =IF(D$32=1, IF(AND('Small Signal'!$B$63>=1,FCCM=0),U6+0,R6+0), 0) -> 0 | O6: =IF(D$32=1, IF(AND('Small Signal'!$B$63>=1,FCCM=0),V6,S6), 0) -> 0 | P6: =IF(AND('Small Signal'!$B$63>=1,FCCM=0),AE6+0,AB6+0) -> 66.89224749 | Q6: =IF(AND('Small Signal'!$B$63>=1,FCCM=0),AF6,AC6) -> 177.8382408 | R6: 9.041240843 | S6: -0.01970968377 | T6: =IMDIV(IMSUM('Small Signal'!$B$76,IMPRODUCT(M6,'Small Signal'!$B$77)),IMSUM(IMPRODUCT('Small Signal'!$B$80,IMPOWER(M6,2)),IMSUM(IMPRODUCT(M6,'Small Signal'!$B$79),'Small Signal'!$B$78))) -> 4.27268351909261-0.00100235032772505i | U6: 12.61401475 | V6: -0.01344130499 | W6: =IMPRODUCT(IMDIV(IMSUM(IMPRODUCT(M6,'Small Signal'!$B$59*'Small Signal'!$B$6*'Small Signal'!$B$51*'Small Signal'!$B$7*'Small Signal'!$B$8),'Small Signal'!$B$59*'Small Signal'!$B$6*'Small Signal'!$B$51),IMSUM(IMSUM(IMPRODUCT(M6,('Small Signal'!$B$5+'Small Signal'!$B$6)*('Small Signal'!$B$58*'Small Signal'!$B$59)+'Small Signal'!$B$5*'Small Signal'!$B$59*('Small Signal'!$B$8+'Small Signal'!$B$9)+'Small Signal'!$B$6*'Small Signal'!$B$59*('Small Signal'!$B$8+'Small Signal'!$B$9)+'Small Signal'!$B$7*'Small Signal'!$B$8*('Small Signal'!$B$5+'Small Signal'!$B$6)),'Small Signal'!$B$6+'Small Signal'!$B$5),IMPRODUCT(IMPOWER(M6,2),'Small Signal'!$B$58*'Small Signal'!$B$59*'Small Signal'!$B$8*'Small Signal'!$B$7*('Small Signal'!$B$5+'Small Signal'!$B$6)+('Small Signal'!$B$5+'Small Signal'!$B$6)*('Small Signal'!$B$9*'Small Signal'!$B$8*'Small Signal'!$B$59*'Small Signal'!$B$7)))),-1) -> -780.273240822394+29.1867726093568i | X6: 0 | Y6: 0 | Z6: 1.00000000002393+2.58774196846828E-06i | AA6: -2209.54669335806+83.4053694989224i | AB6: 66.89224749 | AC6: 177.8382408 | AD6: -3333.83136107973+125.487949442156i | AE6: 70.4650214 | AF6: 177.8443609 | AH6: 0.00075-365.878441076618i | AI6: 0.14 | AJ6: 1000-117081101144.518i | AK6: 0.139999979392241-0.0000535696968179755i | AL6: 1.02794354385739-4.37831988567914E-06i | AM6: 0.006+7.58448623492109E-06i | AN6: 2.83179634224135-0.000974134798304267i | AO6: 9.041240843 | AP6: -0.01970968377 | AR6: 1.01809513613384-4.29482712487941E-06i | AS6: 2.82839364691814-0.000972025153406872i | AT6: 9.030797574 | AU6: -0.01969065966
A7: Rcomp | B7: =C7 -> 5490 | C7: =Rcomp -> 5490 | D7: Ω | E7: TRUE | F7: 5 | G7: 168.5790434 | H7: 168.5788137 | I7: 1 | J7: 1 | K7: 1 | L7: =10^('Small Signal'!F7/30) -> 1.467799268 | M7: 9.22245479221194i | N7: =IF(D$32=1, IF(AND('Small Signal'!$B$63>=1,FCCM=0),U7+0,R7+0), 0) -> 0 | O7: =IF(D$32=1, IF(AND('Small Signal'!$B$63>=1,FCCM=0),V7,S7), 0) -> 0 | P7: =IF(AND('Small Signal'!$B$63>=1,FCCM=0),AE7+0,AB7+0) -> 66.89122916 | Q7: =IF(AND('Small Signal'!$B$63>=1,FCCM=0),AF7,AC7) -> 177.665968 | R7: 9.04124076 | S7: -0.02128202686 | T7: =IMDIV(IMSUM('Small Signal'!$B$76,IMPRODUCT(M7,'Small Signal'!$B$77)),IMSUM(IMPRODUCT('Small Signal'!$B$80,IMPOWER(M7,2)),IMSUM(IMPRODUCT(M7,'Small Signal'!$B$79),'Small Signal'!$B$78))) -> 4.27268348794661-0.00108231298194946i | U7: 12.61401473 | V7: -0.01451358726 | W7: =IMPRODUCT(IMDIV(IMSUM(IMPRODUCT(M7,'Small Signal'!$B$59*'Small Signal'!$B$6*'Small Signal'!$B$51*'Small Signal'!$B$7*'Small Signal'!$B$8),'Small Signal'!$B$59*'Small Signal'!$B$6*'Small Signal'!$B$51),IMSUM(IMSUM(IMPRODUCT(M7,('Small Signal'!$B$5+'Small Signal'!$B$6)*('Small Signal'!$B$58*'Small Signal'!$B$59)+'Small Signal'!$B$5*'Small Signal'!$B$59*('Small Signal'!$B$8+'Small Signal'!$B$9)+'Small Signal'!$B$6*'Small Signal'!$B$59*('Small Signal'!$B$8+'Small Signal'!$B$9)+'Small Signal'!$B$7*'Small Signal'!$B$8*('Small Signal'!$B$5+'Small Signal'!$B$6)),'Small Signal'!$B$6+'Small Signal'!$B$5),IMPRODUCT(IMPOWER(M7,2),'Small Signal'!$B$58*'Small Signal'!$B$59*'Small Signal'!$B$8*'Small Signal'!$B$7*('Small Signal'!$B$5+'Small Signal'!$B$6)+('Small Signal'!$B$5+'Small Signal'!$B$6)*('Small Signal'!$B$9*'Small Signal'!$B$8*'Small Signal'!$B$59*'Small Signal'!$B$7)))),-1) -> -780.091360325238+31.507763707094i | X7: 0 | Y7: 0 | Z7: 1.0000000000279+2.79417950402535E-06i | AA7: -2209.02692840625+90.0379322767294i | AB7: 66.89122916 | AC7: 177.665968 | AD7: -3333.04937308976+135.467004739811i | AE7: 70.46400313 | AF7: 177.6725763 | AH7: 0.00075-338.846876499624i | AI7: 0.14 | AJ7: 1000-108431000479.88i | AK7: 0.139999975973117-0.000057843226657242i | AL7: 1.0279435438543-0.0000047276010652676i | AM7: 0.006+0.0000081895398554842i | AN7: 2.83179628749696-0.00105184653994737i | AO7: 9.04124076 | AP7: -0.02128202686 | AR7: 1.01809513613084-4.63744765592241E-06i | AS7: 2.82839359235685-0.00104956859787652i | AT7: 9.030797492 | AU7: -0.0212614851
A8: Ccomp | B8: =C8 -> 4.7e-09 | C8: =Ccomp -> 4.7e-09 | D8: F | E8: TRUE | F8: 6 | G8: 168.5790618 | H8: 168.5788137 | I8: 1 | J8: 1 | K8: 1 | L8: =10^('Small Signal'!F8/30) -> 1.584893192 | M8: 9.95817762032062i | N8: =IF(D$32=1, IF(AND('Small Signal'!$B$63>=1,FCCM=0),U8+0,R8+0), 0) -> 0 | O8: =IF(D$32=1, IF(AND('Small Signal'!$B$63>=1,FCCM=0),V8,S8), 0) -> 0 | P8: =IF(AND('Small Signal'!$B$63>=1,FCCM=0),AE8+0,AB8+0) -> 66.89004218 | Q8: =IF(AND('Small Signal'!$B$63>=1,FCCM=0),AF8,AC8) -> 177.4799991 | R8: 9.041240664 | S8: -0.02297980384 | T8: =IMDIV(IMSUM('Small Signal'!$B$76,IMPRODUCT(M8,'Small Signal'!$B$77)),IMSUM(IMPRODUCT('Small Signal'!$B$80,IMPOWER(M8,2)),IMSUM(IMPRODUCT(M8,'Small Signal'!$B$79),'Small Signal'!$B$78))) -> 4.27268345163306-0.00116865466837255i | U8: 12.6140147 | V8: -0.01567141102 | W8: =IMPRODUCT(IMDIV(IMSUM(IMPRODUCT(M8,'Small Signal'!$B$59*'Small Signal'!$B$6*'Small Signal'!$B$51*'Small Signal'!$B$7*'Small Signal'!$B$8),'Small Signal'!$B$59*'Small Signal'!$B$6*'Small Signal'!$B$51),IMSUM(IMSUM(IMPRODUCT(M8,('Small Signal'!$B$5+'Small Signal'!$B$6)*('Small Signal'!$B$58*'Small Signal'!$B$59)+'Small Signal'!$B$5*'Small Signal'!$B$59*('Small Signal'!$B$8+'Small Signal'!$B$9)+'Small Signal'!$B$6*'Small Signal'!$B$59*('Small Signal'!$B$8+'Small Signal'!$B$9)+'Small Signal'!$B$7*'Small Signal'!$B$8*('Small Signal'!$B$5+'Small Signal'!$B$6)),'Small Signal'!$B$6+'Small Signal'!$B$5),IMPRODUCT(IMPOWER(M8,2),'Small Signal'!$B$58*'Small Signal'!$B$59*'Small Signal'!$B$8*'Small Signal'!$B$7*('Small Signal'!$B$5+'Small Signal'!$B$6)+('Small Signal'!$B$5+'Small Signal'!$B$6)*('Small Signal'!$B$9*'Small Signal'!$B$8*'Small Signal'!$B$59*'Small Signal'!$B$7)))),-1) -> -779.879410882867+34.0120039172266i | X8: 0 | Y8: 0 | Z8: 1.00000000003253+0.0000030170856274818i | AA8: -2208.42123459411+97.1941553400047i | AB8: 66.89004218 | AC8: 177.4799991 | AD8: -3332.13810486141+146.233936008309i | AE8: 70.46281621 | AF8: 177.4871346 | AH8: 0.00075-313.812438294245i | AI8: 0.14 | AJ8: 1000-100419980254.159i | AK8: 0.139999971986712-0.0000624576776654145i | AL8: 1.0279435438507-5.10474620765209E-06i | AM8: 0.006+8.84286172684471E-06i | AN8: 2.83179622366975-0.00113575774321098i | AO8: 9.041240664 | AP8: -0.02297980384 | AR8: 1.01809513612733-5.00740079544267E-06i | AS8: 2.82839352874309-0.00113329807805582i | AT8: 9.030797396 | AU8: -0.02295762335
A9: Cpole | B9: =C9 -> 1e-10 | C9: =Cpole -> 1e-10 | D9: F | E9: TRUE | F9: 7 | G9: 168.5790815 | H9: 168.5788137 | I9: 1 | J9: 1 | K9: 1 | L9: =10^('Small Signal'!F9/30) -> 1.711328304 | M9: 10.7525928564699i | N9: =IF(D$32=1, IF(AND('Small Signal'!$B$63>=1,FCCM=0),U9+0,R9+0), 0) -> 0 | O9: =IF(D$32=1, IF(AND('Small Signal'!$B$63>=1,FCCM=0),V9,S9), 0) -> 0 | P9: =IF(AND('Small Signal'!$B$63>=1,FCCM=0),AE9+0,AB9+0) -> 66.88865867 | Q9: =IF(AND('Small Signal'!$B$63>=1,FCCM=0),AF9,AC9) -> 177.2792536 | R9: 9.041240552 | S9: -0.02481302122 | T9: =IMDIV(IMSUM('Small Signal'!$B$76,IMPRODUCT(M9,'Small Signal'!$B$77)),IMSUM(IMPRODUCT('Small Signal'!$B$80,IMPOWER(M9,2)),IMSUM(IMPRODUCT(M9,'Small Signal'!$B$79),'Small Signal'!$B$78))) -> 4.27268340929455-0.00126188427492928i | U9: 12.61401467 | V9: -0.01692160035 | W9: =IMPRODUCT(IMDIV(IMSUM(IMPRODUCT(M9,'Small Signal'!$B$59*'Small Signal'!$B$6*'Small Signal'!$B$51*'Small Signal'!$B$7*'Small Signal'!$B$8),'Small Signal'!$B$59*'Small Signal'!$B$6*'Small Signal'!$B$51),IMSUM(IMSUM(IMPRODUCT(M9,('Small Signal'!$B$5+'Small Signal'!$B$6)*('Small Signal'!$B$58*'Small Signal'!$B$59)+'Small Signal'!$B$5*'Small Signal'!$B$59*('Small Signal'!$B$8+'Small Signal'!$B$9)+'Small Signal'!$B$6*'Small Signal'!$B$59*('Small Signal'!$B$8+'Small Signal'!$B$9)+'Small Signal'!$B$7*'Small Signal'!$B$8*('Small Signal'!$B$5+'Small Signal'!$B$6)),'Small Signal'!$B$6+'Small Signal'!$B$5),IMPRODUCT(IMPOWER(M9,2),'Small Signal'!$B$58*'Small Signal'!$B$59*'Small Signal'!$B$8*'Small Signal'!$B$7*('Small Signal'!$B$5+'Small Signal'!$B$6)+('Small Signal'!$B$5+'Small Signal'!$B$6)*('Small Signal'!$B$9*'Small Signal'!$B$8*'Small Signal'!$B$59*'Small Signal'!$B$7)))),-1) -> -779.632442187569+36.7136200556496i | X9: 0 | Y9: 0 | Z9: 1.00000000003793+3.25777412310796E-06i | AA9: -2207.7154652897+104.914408022655i | AB9: 66.88865867 | AC9: 177.2792536 | AD9: -3331.07627274279+157.849481225939i | AE9: 70.46143278 | AF9: 177.2869584 | AH9: 0.00075-290.627576224061i | AI9: 0.14 | AJ9: 1000-93000824391.6995i | AK9: 0.139999967338905-0.0000674402467888669i | AL9: 1.02794354384649-5.51197816498674E-06i | AM9: 0.006+9.54830245654527E-06i | AN9: 2.83179614925267-0.00122636296980995i | AO9: 9.041240552 | AP9: -0.02481302122 | AR9: 1.01809513612325-0.0000054068670067173i | AS9: 2.82839345457491-0.0012237070846115i | AT9: 9.030797284 | AU9: -0.02478907127
A10: Cff | B10: =C10 -> 8.2e-10 | C10: =Cff -> 8.2e-10 | D10: F | E10: TRUE | F10: 8 | G10: 168.5791029 | H10: 168.5788137 | I10: 1 | J10: 1 | K10: 1 | L10: =10^('Small Signal'!F10/30) -> 1.847849797 | M10: 11.6103826970385i | N10: =IF(D$32=1, IF(AND('Small Signal'!$B$63>=1,FCCM=0),U10+0,R10+0), 0) -> 0 | O10: =IF(D$32=1, IF(AND('Small Signal'!$B$63>=1,FCCM=0),V10,S10), 0) -> 0 | P10: =IF(AND('Small Signal'!$B$63>=1,FCCM=0),AE10+0,AB10+0) -> 66.88704617 | Q10: =IF(AND('Small Signal'!$B$63>=1,FCCM=0),AF10,AC10) -> 177.0625681 | R10: 9.041240421 | S10: -0.02679248375 | T10: =IMDIV(IMSUM('Small Signal'!$B$76,IMPRODUCT(M10,'Small Signal'!$B$77)),IMSUM(IMPRODUCT('Small Signal'!$B$80,IMPOWER(M10,2)),IMSUM(IMPRODUCT(M10,'Small Signal'!$B$79),'Small Signal'!$B$78))) -> 4.2726833599315-0.00136255128607024i | U10: 12.61401463 | V10: -0.01827152373 | W10: =IMPRODUCT(IMDIV(IMSUM(IMPRODUCT(M10,'Small Signal'!$B$59*'Small Signal'!$B$6*'Small Signal'!$B$51*'Small Signal'!$B$7*'Small Signal'!$B$8),'Small Signal'!$B$59*'Small Signal'!$B$6*'Small Signal'!$B$51),IMSUM(IMSUM(IMPRODUCT(M10,('Small Signal'!$B$5+'Small Signal'!$B$6)*('Small Signal'!$B$58*'Small Signal'!$B$59)+'Small Signal'!$B$5*'Small Signal'!$B$59*('Small Signal'!$B$8+'Small Signal'!$B$9)+'Small Signal'!$B$6*'Small Signal'!$B$59*('Small Signal'!$B$8+'Small Signal'!$B$9)+'Small Signal'!$B$7*'Small Signal'!$B$8*('Small Signal'!$B$5+'Small Signal'!$B$6)),'Small Signal'!$B$6+'Small Signal'!$B$5),IMPRODUCT(IMPOWER(M10,2),'Small Signal'!$B$58*'Small Signal'!$B$59*'Small Signal'!$B$8*'Small Signal'!$B$7*('Small Signal'!$B$5+'Small Signal'!$B$6)+('Small Signal'!$B$5+'Small Signal'!$B$6)*('Small Signal'!$B$9*'Small Signal'!$B$8*'Small Signal'!$B$59*'Small Signal'!$B$7)))),-1) -> -779.34469639181+39.6277395653877i | X10: 0 | Y10: 0 | Z10: 1.00000000004422+3.51766358252681E-06i | AA10: -2206.89316613213+113.241919077896i | AB10: 66.88704617 | AC10: 177.0625681 | AD10: -3329.83912109664+170.378680551092i | AE10: 70.45982037 | AF10: 177.0708875 | AH10: 0.00075-269.155641251783i | AI10: 0.14 | AJ10: 1000-86129805200.5705i | AK10: 0.139999961919961-0.0000728203005901316i | AL10: 1.02794354384159-5.95169711781693E-06i | AM10: 0.006+0.0000103100198349702i | AN10: 2.83179606248871-0.00132419623485271i | AO10: 9.041240421 | AP10: -0.02679248375 | AR10: 1.01809513611848-5.83820069983515E-06i | AS10: 2.82839336810113-0.00132132847616238i | AT10: 9.030797153 | AU10: -0.02676662319
A11: fsw | B11: 484970.9939 | C11: =fsw_Hz -> 484970.9939 | D11: Hz | E11: TRUE | F11: 9 | G11: 168.579126 | H11: 168.5788137 | I11: 1 | J11: 1 | K11: 1 | L11: =10^('Small Signal'!F11/30) -> 1.995262315 | M11: 12.5366028613816i | N11: =IF(D$32=1, IF(AND('Small Signal'!$B$63>=1,FCCM=0),U11+0,R11+0), 0) -> 0 | O11: =IF(D$32=1, IF(AND('Small Signal'!$B$63>=1,FCCM=0),V11,S11), 0) -> 0 | P11: =IF(AND('Small Signal'!$B$63>=1,FCCM=0),AE11+0,AB11+0) -> 66.88516689 | Q11: =IF(AND('Small Signal'!$B$63>=1,FCCM=0),AF11,AC11) -> 176.82869 | R11: 9.041240268 | S11: -0.02892985815 | T11: =IMDIV(IMSUM('Small Signal'!$B$76,IMPRODUCT(M11,'Small Signal'!$B$77)),IMSUM(IMPRODUCT('Small Signal'!$B$80,IMPOWER(M11,2)),IMSUM(IMPRODUCT(M11,'Small Signal'!$B$79),'Small Signal'!$B$78))) -> 4.27268330237838-0.00147124902132873i | U11: 12.61401458 | V11: -0.01972913746 | W11: =IMPRODUCT(IMDIV(IMSUM(IMPRODUCT(M11,'Small Signal'!$B$59*'Small Signal'!$B$6*'Small Signal'!$B$51*'Small Signal'!$B$7*'Small Signal'!$B$8),'Small Signal'!$B$59*'Small Signal'!$B$6*'Small Signal'!$B$51),IMSUM(IMSUM(IMPRODUCT(M11,('Small Signal'!$B$5+'Small Signal'!$B$6)*('Small Signal'!$B$58*'Small Signal'!$B$59)+'Small Signal'!$B$5*'Small Signal'!$B$59*('Small Signal'!$B$8+'Small Signal'!$B$9)+'Small Signal'!$B$6*'Small Signal'!$B$59*('Small Signal'!$B$8+'Small Signal'!$B$9)+'Small Signal'!$B$7*'Small Signal'!$B$8*('Small Signal'!$B$5+'Small Signal'!$B$6)),'Small Signal'!$B$6+'Small Signal'!$B$5),IMPRODUCT(IMPOWER(M11,2),'Small Signal'!$B$58*'Small Signal'!$B$59*'Small Signal'!$B$8*'Small Signal'!$B$7*('Small Signal'!$B$5+'Small Signal'!$B$6)+('Small Signal'!$B$5+'Small Signal'!$B$6)*('Small Signal'!$B$9*'Small Signal'!$B$8*'Small Signal'!$B$59*'Small Signal'!$B$7)))),-1) -> -779.009479039351+42.7705381060064i | X11: 0 | Y11: 0 | Z11: 1.00000000005156+3.79828576573745E-06i | AA11: -2205.93520618786+122.222912667783i | AB11: 66.88516689 | AC11: 176.82869 | AD11: -3328.39786737359+183.891080932914i | AE11: 70.4579412 | AF11: 176.8376731 | AH11: 0.00075-249.270080144791i | AI11: 0.14 | AJ11: 1000-79766425646.3329i | AK11: 0.139999955601936-0.0000786295483229983i | AL11: 1.02794354383586-0.0000064264947214804i | AM11: 0.006+0.0000111325033409069i | AN11: 2.83179596132936-0.00142983415415215i | AO11: 9.041240268 | AP11: -0.02892985815 | AR11: 1.01809513611293-6.30394410833191E-06i | AS11: 2.82839326728013-0.00142673761977458i | AT11: 9.030797001 | AU11: -0.02890193457
A12: Lo | B12: 8.88e-07 | C12: =Lout_H -> 8.88e-07 | D12: H | E12: TRUE | F12: 10 | G12: 168.5791509 | H12: 168.5788137 | I12: 1 | J12: 1 | K12: 1 | L12: =10^('Small Signal'!F12/30) -> 2.15443469 | M12: 13.5367123896863i | N12: =IF(D$32=1, IF(AND('Small Signal'!$B$63>=1,FCCM=0),U12+0,R12+0), 0) -> 0 | O12: =IF(D$32=1, IF(AND('Small Signal'!$B$63>=1,FCCM=0),V12,S12), 0) -> 0 | P12: =IF(AND('Small Signal'!$B$63>=1,FCCM=0),AE12+0,AB12+0) -> 66.88297683 | Q12: =IF(AND('Small Signal'!$B$63>=1,FCCM=0),AF12,AC12) -> 176.5762721 | R12: 9.04124009 | S12: -0.03123774186 | T12: =IMDIV(IMSUM('Small Signal'!$B$76,IMPRODUCT(M12,'Small Signal'!$B$77)),IMSUM(IMPRODUCT('Small Signal'!$B$80,IMPOWER(M12,2)),IMSUM(IMPRODUCT(M12,'Small Signal'!$B$79),'Small Signal'!$B$78))) -> 4.27268323527637-0.0015886181322384i | U12: 12.61401453 | V12: -0.02130303255 | W12: =IMPRODUCT(IMDIV(IMSUM(IMPRODUCT(M12,'Small Signal'!$B$59*'Small Signal'!$B$6*'Small Signal'!$B$51*'Small Signal'!$B$7*'Small Signal'!$B$8),'Small Signal'!$B$59*'Small Signal'!$B$6*'Small Signal'!$B$51),IMSUM(IMSUM(IMPRODUCT(M12,('Small Signal'!$B$5+'Small Signal'!$B$6)*('Small Signal'!$B$58*'Small Signal'!$B$59)+'Small Signal'!$B$5*'Small Signal'!$B$59*('Small Signal'!$B$8+'Small Signal'!$B$9)+'Small Signal'!$B$6*'Small Signal'!$B$59*('Small Signal'!$B$8+'Small Signal'!$B$9)+'Small Signal'!$B$7*'Small Signal'!$B$8*('Small Signal'!$B$5+'Small Signal'!$B$6)),'Small Signal'!$B$6+'Small Signal'!$B$5),IMPRODUCT(IMPOWER(M12,2),'Small Signal'!$B$58*'Small Signal'!$B$59*'Small Signal'!$B$8*'Small Signal'!$B$7*('Small Signal'!$B$5+'Small Signal'!$B$6)+('Small Signal'!$B$5+'Small Signal'!$B$6)*('Small Signal'!$B$9*'Small Signal'!$B$8*'Small Signal'!$B$59*'Small Signal'!$B$7)))),-1) -> -778.619010323898+46.1592828140799i | X12: 0 | Y12: 0 | Z12: 1.00000000006012+4.10129462914082E-06i | AA12: -2204.81935288836+131.90673198115i | AB12: 66.88297683 | AC12: 176.5762721 | AD12: -3326.71906260475+198.460922110006i | AE12: 70.45575127 | AF12: 176.5859719 | AH12: 0.00075-230.853689584256i | AI12: 0.14 | AJ12: 1000-73873180666.9621i | AK12: 0.139999948235661-0.0000849022288130494i | AL12: 1.0279435438292-6.93916938103968E-06i | AM12: 0.006+0.0000120206006020414i | AN12: 2.83179584338626-0.0015438993425904i | AO12: 9.04124009 | AP12: -0.03123774186 | AR12: 1.01809513610645-6.80684227283559E-06i | AS12: 2.82839314973149-0.001540555781967i | AT12: 9.030796823 | AU12: -0.03120759067
A13: Rdc | B13: 0.006 | C13: =DCR_Ohm -> 0.006 | D13: Ω | E13: TRUE | F13: 11 | G13: 168.5791778 | H13: 168.5788137 | I13: 1 | J13: 1 | K13: 1 | L13: =10^('Small Signal'!F13/30) -> 2.326305067 | M13: 14.6166058179571i | N13: =IF(D$32=1, IF(AND('Small Signal'!$B$63>=1,FCCM=0),U13+0,R13+0), 0) -> 0 | O13: =IF(D$32=1, IF(AND('Small Signal'!$B$63>=1,FCCM=0),V13,S13), 0) -> 0 | P13: =IF(AND('Small Signal'!$B$63>=1,FCCM=0),AE13+0,AB13+0) -> 66.88042481 | Q13: =IF(AND('Small Signal'!$B$63>=1,FCCM=0),AF13,AC13) -> 176.3038656 | R13: 9.041239882 | S13: -0.03372973726 | T13: =IMDIV(IMSUM('Small Signal'!$B$76,IMPRODUCT(M13,'Small Signal'!$B$77)),IMSUM(IMPRODUCT('Small Signal'!$B$80,IMPOWER(M13,2)),IMSUM(IMPRODUCT(M13,'Small Signal'!$B$79),'Small Signal'!$B$78))) -> 4.27268315704119-0.00171535037820942i | U13: 12.61401447 | V13: -0.02300248536 | W13: =IMPRODUCT(IMDIV(IMSUM(IMPRODUCT(M13,'Small Signal'!$B$59*'Small Signal'!$B$6*'Small Signal'!$B$51*'Small Signal'!$B$7*'Small Signal'!$B$8),'Small Signal'!$B$59*'Small Signal'!$B$6*'Small Signal'!$B$51),IMSUM(IMSUM(IMPRODUCT(M13,('Small Signal'!$B$5+'Small Signal'!$B$6)*('Small Signal'!$B$58*'Small Signal'!$B$59)+'Small Signal'!$B$5*'Small Signal'!$B$59*('Small Signal'!$B$8+'Small Signal'!$B$9)+'Small Signal'!$B$6*'Small Signal'!$B$59*('Small Signal'!$B$8+'Small Signal'!$B$9)+'Small Signal'!$B$7*'Small Signal'!$B$8*('Small Signal'!$B$5+'Small Signal'!$B$6)),'Small Signal'!$B$6+'Small Signal'!$B$5),IMPRODUCT(IMPOWER(M13,2),'Small Signal'!$B$58*'Small Signal'!$B$59*'Small Signal'!$B$8*'Small Signal'!$B$7*('Small Signal'!$B$5+'Small Signal'!$B$6)+('Small Signal'!$B$5+'Small Signal'!$B$6)*('Small Signal'!$B$9*'Small Signal'!$B$8*'Small Signal'!$B$59*'Small Signal'!$B$7)))),-1) -> -778.164254023482+49.8123688875816i | X13: 0 | Y13: 0 | Z13: 1.00000000007009+4.42847607377636E-06i | AA13: -2203.51978317107+142.345943772425i | AB13: 66.88042481 | AC13: 176.3038656 | AD13: -3324.76385591184+214.167293905741i | AE13: 70.4531994 | AF13: 176.3143392 | AH13: 0.00075-213.79792538161i | AI13: 0.14 | AJ13: 1000-68415336122.1152i | AK13: 0.139999939647215-0.0000916753122445471i | AL13: 1.02794354382143-7.49274274477493E-06i | AM13: 0.006+0.0000129795459663459i | AN13: 2.83179570587471-0.00166706408355947i | AO13: 9.041239882 | AP13: -0.03372973726 | AR13: 1.0180951360989-7.34985922003564E-06i | AS13: 2.82839301267984-0.00166345379020561i | AT13: 9.030796616 | AU13: -0.03369718076
A14: Co | B14: 0.00032 | C14: =Co_cer_eff_F -> 0.00032 | D14: F | E14: TRUE | F14: 12 | G14: 168.5792068 | H14: 168.5788137 | I14: 1 | J14: 1 | K14: 1 | L14: =10^('Small Signal'!F14/30) -> 2.511886432 | M14: 15.7826479197648i | N14: =IF(D$32=1, IF(AND('Small Signal'!$B$63>=1,FCCM=0),U14+0,R14+0), 0) -> 0 | O14: =IF(D$32=1, IF(AND('Small Signal'!$B$63>=1,FCCM=0),V14,S14), 0) -> 0 | P14: =IF(AND('Small Signal'!$B$63>=1,FCCM=0),AE14+0,AB14+0) -> 66.87745126 | Q14: =IF(AND('Small Signal'!$B$63>=1,FCCM=0),AF14,AC14) -> 176.0099141 | R14: 9.04123964 | S14: -0.03642053186 | T14: =IMDIV(IMSUM('Small Signal'!$B$76,IMPRODUCT(M14,'Small Signal'!$B$77)),IMSUM(IMPRODUCT('Small Signal'!$B$80,IMPOWER(M14,2)),IMSUM(IMPRODUCT(M14,'Small Signal'!$B$79),'Small Signal'!$B$78))) -> 4.27268306582565-0.00185219270361476i | U14: 12.6140144 | V14: -0.02483751228 | W14: =IMPRODUCT(IMDIV(IMSUM(IMPRODUCT(M14,'Small Signal'!$B$59*'Small Signal'!$B$6*'Small Signal'!$B$51*'Small Signal'!$B$7*'Small Signal'!$B$8),'Small Signal'!$B$59*'Small Signal'!$B$6*'Small Signal'!$B$51),IMSUM(IMSUM(IMPRODUCT(M14,('Small Signal'!$B$5+'Small Signal'!$B$6)*('Small Signal'!$B$58*'Small Signal'!$B$59)+'Small Signal'!$B$5*'Small Signal'!$B$59*('Small Signal'!$B$8+'Small Signal'!$B$9)+'Small Signal'!$B$6*'Small Signal'!$B$59*('Small Signal'!$B$8+'Small Signal'!$B$9)+'Small Signal'!$B$7*'Small Signal'!$B$8*('Small Signal'!$B$5+'Small Signal'!$B$6)),'Small Signal'!$B$6+'Small Signal'!$B$5),IMPRODUCT(IMPOWER(M14,2),'Small Signal'!$B$58*'Small Signal'!$B$59*'Small Signal'!$B$8*'Small Signal'!$B$7*('Small Signal'!$B$5+'Small Signal'!$B$6)+('Small Signal'!$B$5+'Small Signal'!$B$6)*('Small Signal'!$B$9*'Small Signal'!$B$8*'Small Signal'!$B$59*'Small Signal'!$B$7)))),-1) -> -777.634721230876+53.7493464882292i | X14: 0 | Y14: 0 | Z14: 1.00000000008172+4.78175847122763E-06i | AA14: -2202.00652259454+153.596415231064i | AB14: 66.87745126 | AC14: 176.0099141 | AD14: -3322.48715065382+231.094251896194i | AE14: 70.45022602 | AF14: 176.0212232 | AH14: 0.00075-198.002262730991i | AI14: 0.14 | AJ14: 1000-63360724073.9172i | AK14: 0.139999929633824-0.0000989887180422761i | AL14: 1.02794354381237-8.09047751344784E-06i | AM14: 0.006+0.0000140149913527511i | AN14: 2.83179554554802-0.00180005429109508i | AO14: 9.04123964 | AP14: -0.03642053186 | AR14: 1.0180951360901-7.93619543233119E-06i | AS14: 2.82839285288938-0.00179615598645738i | AT14: 9.030796374 | AU14: -0.03638537816
A15: Resr | B15: 0.00075 | C15: =ESR_cer_eff_Ohm -> 0.00075 | D15: Ω | E15: TRUE | F15: 13 | G15: 168.5792382 | H15: 168.5788137 | I15: 1 | J15: 1 | K15: 1 | L15: =10^('Small Signal'!F15/30) -> 2.712272579 | M15: 17.0417112195251i | N15: =IF(D$32=1, IF(AND('Small Signal'!$B$63>=1,FCCM=0),U15+0,R15+0), 0) -> 0 | O15: =IF(D$32=1, IF(AND('Small Signal'!$B$63>=1,FCCM=0),V15,S15), 0) -> 0 | P15: =IF(AND('Small Signal'!$B$63>=1,FCCM=0),AE15+0,AB15+0) -> 66.87398692 | Q15: =IF(AND('Small Signal'!$B$63>=1,FCCM=0),AF15,AC15) -> 175.6927467 | R15: 9.041239358 | S15: -0.03932598486 | T15: =IMDIV(IMSUM('Small Signal'!$B$76,IMPRODUCT(M15,'Small Signal'!$B$77)),IMSUM(IMPRODUCT('Small Signal'!$B$80,IMPOWER(M15,2)),IMSUM(IMPRODUCT(M15,'Small Signal'!$B$79),'Small Signal'!$B$78))) -> 4.27268295947614-0.0019999516401133i | U15: 12.61401432 | V15: -0.02681892874 | W15: =IMPRODUCT(IMDIV(IMSUM(IMPRODUCT(M15,'Small Signal'!$B$59*'Small Signal'!$B$6*'Small Signal'!$B$51*'Small Signal'!$B$7*'Small Signal'!$B$8),'Small Signal'!$B$59*'Small Signal'!$B$6*'Small Signal'!$B$51),IMSUM(IMSUM(IMPRODUCT(M15,('Small Signal'!$B$5+'Small Signal'!$B$6)*('Small Signal'!$B$58*'Small Signal'!$B$59)+'Small Signal'!$B$5*'Small Signal'!$B$59*('Small Signal'!$B$8+'Small Signal'!$B$9)+'Small Signal'!$B$6*'Small Signal'!$B$59*('Small Signal'!$B$8+'Small Signal'!$B$9)+'Small Signal'!$B$7*'Small Signal'!$B$8*('Small Signal'!$B$5+'Small Signal'!$B$6)),'Small Signal'!$B$6+'Small Signal'!$B$5),IMPRODUCT(IMPOWER(M15,2),'Small Signal'!$B$58*'Small Signal'!$B$59*'Small Signal'!$B$8*'Small Signal'!$B$7*('Small Signal'!$B$5+'Small Signal'!$B$6)+('Small Signal'!$B$5+'Small Signal'!$B$6)*('Small Signal'!$B$9*'Small Signal'!$B$8*'Small Signal'!$B$59*'Small Signal'!$B$7)))),-1) -> -777.018245806172+57.9909341435089i | X15: 0 | Y15: 0 | Z15: 1.00000000009528+5.16322402923152E-06i | AA15: -2200.2448036429+165.717352269884i | AB15: 66.87398692 | AC15: 175.6927467 | AD15: -3319.83663899422+249.330875034172i | AE15: 70.44676189 | AF15: 175.7049579 | AH15: 0.00075-183.373603727049i | AI15: 0.14 | AJ15: 1000-58679553192.6557i | AK15: 0.139999917959069-0.00010688555013165i | AL15: 1.02794354380181-8.73589667030205E-06i | AM15: 0.006+0.0000151330395629383i | AN15: 2.83179535862082-0.00194365378804396i | AO15: 9.041239358 | AP15: -0.03932598486 | AR15: 1.01809513607983-8.56930671112344E-06i | AS15: 2.82839266658735-0.00193944449609319i | AT15: 9.030796093 | AU15: -0.03928802677
A16: Co2 | B16: 1e-12 | C16: =Co_bulk_eff_F -> 1e-12 | D16: F | E16: TRUE | F16: 14 | G16: 168.5792721 | H16: 168.5788137 | I16: 1 | J16: 1 | K16: 1 | L16: =10^('Small Signal'!F16/30) -> 2.928644565 | M16: 18.4012164984046i | N16: =IF(D$32=1, IF(AND('Small Signal'!$B$63>=1,FCCM=0),U16+0,R16+0), 0) -> 0 | O16: =IF(D$32=1, IF(AND('Small Signal'!$B$63>=1,FCCM=0),V16,S16), 0) -> 0 | P16: =IF(AND('Small Signal'!$B$63>=1,FCCM=0),AE16+0,AB16+0) -> 66.86995129 | Q16: =IF(AND('Small Signal'!$B$63>=1,FCCM=0),AF16,AC16) -> 175.3505715 | R16: 9.041239029 | S16: -0.04246322063 | T16: =IMDIV(IMSUM('Small Signal'!$B$76,IMPRODUCT(M16,'Small Signal'!$B$77)),IMSUM(IMPRODUCT('Small Signal'!$B$80,IMPOWER(M16,2)),IMSUM(IMPRODUCT(M16,'Small Signal'!$B$79),'Small Signal'!$B$78))) -> 4.27268283548175-0.00215949806015169i | U16: 12.61401423 | V16: -0.028958413 | W16: =IMPRODUCT(IMDIV(IMSUM(IMPRODUCT(M16,'Small Signal'!$B$59*'Small Signal'!$B$6*'Small Signal'!$B$51*'Small Signal'!$B$7*'Small Signal'!$B$8),'Small Signal'!$B$59*'Small Signal'!$B$6*'Small Signal'!$B$51),IMSUM(IMSUM(IMPRODUCT(M16,('Small Signal'!$B$5+'Small Signal'!$B$6)*('Small Signal'!$B$58*'Small Signal'!$B$59)+'Small Signal'!$B$5*'Small Signal'!$B$59*('Small Signal'!$B$8+'Small Signal'!$B$9)+'Small Signal'!$B$6*'Small Signal'!$B$59*('Small Signal'!$B$8+'Small Signal'!$B$9)+'Small Signal'!$B$7*'Small Signal'!$B$8*('Small Signal'!$B$5+'Small Signal'!$B$6)),'Small Signal'!$B$6+'Small Signal'!$B$5),IMPRODUCT(IMPOWER(M16,2),'Small Signal'!$B$58*'Small Signal'!$B$59*'Small Signal'!$B$8*'Small Signal'!$B$7*('Small Signal'!$B$5+'Small Signal'!$B$6)+('Small Signal'!$B$5+'Small Signal'!$B$6)*('Small Signal'!$B$9*'Small Signal'!$B$8*'Small Signal'!$B$59*'Small Signal'!$B$7)))),-1) -> -776.30072834618+62.5590138352856i | X16: 0 | Y16: 0 | Z16: 1.00000000011109+5.57512106398278E-06i | AA16: -2198.19433406024+178.771285477788i | AB16: 66.86995129 | AC16: 175.3505715 | AD16: -3316.75170110768+268.971244535648i | AE16: 70.44272649 | AF16: 175.3637569 | AH16: 0.00075-169.825728656089i | AI16: 0.14 | AJ16: 1000-54344233169.9483i | AK16: 0.139999904347306-0.000115412350962585i | AL16: 1.02794354378948-9.43280424514039E-06i | AM16: 0.006+0.0000163402802505833i | AN16: 2.83179514067975-0.00209870892546419i | AO16: 9.041239029 | AP16: -0.04246322063 | AR16: 1.01809513606786-9.25292454493044E-06i | AS16: 2.8283924493752-0.00209416383728516i | AT16: 9.030795765 | AU16: -0.04242223443
A17: Resr_2 | B17: 1000 | C17: =ESR_bulk_eff_Ohm -> 1000 | D17: Ω | E17: TRUE | F17: 15 | G17: 168.5793086 | H17: 168.5788137 | I17: 1 | J17: 1 | K17: 1 | L17: =10^('Small Signal'!F17/30) -> 3.16227766 | M17: 19.8691765315922i | N17: =IF(D$32=1, IF(AND('Small Signal'!$B$63>=1,FCCM=0),U17+0,R17+0), 0) -> 0 | O17: =IF(D$32=1, IF(AND('Small Signal'!$B$63>=1,FCCM=0),V17,S17), 0) -> 0 | P17: =IF(AND('Small Signal'!$B$63>=1,FCCM=0),AE17+0,AB17+0) -> 66.86525082 | Q17: =IF(AND('Small Signal'!$B$63>=1,FCCM=0),AF17,AC17) -> 174.981469 | R17: 9.041238645 | S17: -0.04585072962 | T17: =IMDIV(IMSUM('Small Signal'!$B$76,IMPRODUCT(M17,'Small Signal'!$B$77)),IMSUM(IMPRODUCT('Small Signal'!$B$80,IMPOWER(M17,2)),IMSUM(IMPRODUCT(M17,'Small Signal'!$B$79),'Small Signal'!$B$78))) -> 4.27268269091489-0.00233177230965584i | U17: 12.61401412 | V17: -0.03126857493 | W17: =IMPRODUCT(IMDIV(IMSUM(IMPRODUCT(M17,'Small Signal'!$B$59*'Small Signal'!$B$6*'Small Signal'!$B$51*'Small Signal'!$B$7*'Small Signal'!$B$8),'Small Signal'!$B$59*'Small Signal'!$B$6*'Small Signal'!$B$51),IMSUM(IMSUM(IMPRODUCT(M17,('Small Signal'!$B$5+'Small Signal'!$B$6)*('Small Signal'!$B$58*'Small Signal'!$B$59)+'Small Signal'!$B$5*'Small Signal'!$B$59*('Small Signal'!$B$8+'Small Signal'!$B$9)+'Small Signal'!$B$6*'Small Signal'!$B$59*('Small Signal'!$B$8+'Small Signal'!$B$9)+'Small Signal'!$B$7*'Small Signal'!$B$8*('Small Signal'!$B$5+'Small Signal'!$B$6)),'Small Signal'!$B$6+'Small Signal'!$B$5),IMPRODUCT(IMPOWER(M17,2),'Small Signal'!$B$58*'Small Signal'!$B$59*'Small Signal'!$B$8*'Small Signal'!$B$7*('Small Signal'!$B$5+'Small Signal'!$B$6)+('Small Signal'!$B$5+'Small Signal'!$B$6)*('Small Signal'!$B$9*'Small Signal'!$B$8*'Small Signal'!$B$59*'Small Signal'!$B$7)))),-1) -> -775.465845436743+67.4766017530645i | X17: 0 | Y17: 0 | Z17: 1.00000000012952+6.01987725146217E-06i | AA17: -2195.80846597281+192.823986527694i | AB17: 66.86525082 | AC17: 174.981469 | AD17: -3313.16215512174+290.114318137549i | AE17: 70.43802629 | AF17: 174.9957063 | AH17: 0.00075-157.278787826522i | AI17: 0.14 | AJ17: 1000-50329212104.487i | AK17: 0.139999888477159-0.000124619375792932i | AL17: 1.02794354377512-0.0000101853077348597i | AM17: 0.006+0.0000176438287600539i | AN17: 2.83179488657917-0.00226613357046509i | AO17: 9.041238645 | AP17: -0.04585072962 | AR17: 1.01809513605391-0.0000099910781023714i | AS17: 2.82839219612448-0.00226122589804566i | AT17: 9.030795382 | AU17: -0.04580647375
F18: 16 | G18: 168.5793481 | H18: 168.5788137 | I18: 1 | J18: 1 | K18: 1 | L18: =10^('Small Signal'!F18/30) -> 3.414548874 | M18: 21.4542433147179i | N18: =IF(D$32=1, IF(AND('Small Signal'!$B$63>=1,FCCM=0),U18+0,R18+0), 0) -> 0 | O18: =IF(D$32=1, IF(AND('Small Signal'!$B$63>=1,FCCM=0),V18,S18), 0) -> 0 | P18: =IF(AND('Small Signal'!$B$63>=1,FCCM=0),AE18+0,AB18+0) -> 66.85977688 | Q18: =IF(AND('Small Signal'!$B$63>=1,FCCM=0),AF18,AC18) -> 174.5833859 | R18: 9.041238198 | S18: -0.04950847734 | T18: =IMDIV(IMSUM('Small Signal'!$B$76,IMPRODUCT(M18,'Small Signal'!$B$77)),IMSUM(IMPRODUCT('Small Signal'!$B$80,IMPOWER(M18,2)),IMSUM(IMPRODUCT(M18,'Small Signal'!$B$79),'Small Signal'!$B$78))) -> 4.27268252236231-0.00251778975015662i | U18: 12.61401399 | V18: -0.03376303035 | W18: =IMPRODUCT(IMDIV(IMSUM(IMPRODUCT(M18,'Small Signal'!$B$59*'Small Signal'!$B$6*'Small Signal'!$B$51*'Small Signal'!$B$7*'Small Signal'!$B$8),'Small Signal'!$B$59*'Small Signal'!$B$6*'Small Signal'!$B$51),IMSUM(IMSUM(IMPRODUCT(M18,('Small Signal'!$B$5+'Small Signal'!$B$6)*('Small Signal'!$B$58*'Small Signal'!$B$59)+'Small Signal'!$B$5*'Small Signal'!$B$59*('Small Signal'!$B$8+'Small Signal'!$B$9)+'Small Signal'!$B$6*'Small Signal'!$B$59*('Small Signal'!$B$8+'Small Signal'!$B$9)+'Small Signal'!$B$7*'Small Signal'!$B$8*('Small Signal'!$B$5+'Small Signal'!$B$6)),'Small Signal'!$B$6+'Small Signal'!$B$5),IMPRODUCT(IMPOWER(M18,2),'Small Signal'!$B$58*'Small Signal'!$B$59*'Small Signal'!$B$8*'Small Signal'!$B$7*('Small Signal'!$B$5+'Small Signal'!$B$6)+('Small Signal'!$B$5+'Small Signal'!$B$6)*('Small Signal'!$B$9*'Small Signal'!$B$8*'Small Signal'!$B$59*'Small Signal'!$B$7)))),-1) -> -774.494721084267+72.7677872343176i | X18: 0 | Y18: 0 | Z18: 1.00000000015101+6.50011393589127E-06i | AA18: -2193.0332569299+207.944293670724i | AB18: 66.85977688 | AC18: 174.5833859 | AD18: -3308.98684444978+312.863667577344i | AE18: 70.43255268 | AF18: 174.5987589 | AH18: 0.00075-145.658830943537i | AI18: 0.14 | AJ18: 1000-46610825901.9318i | AK18: 0.139999869973931-0.000134560888846338i | AL18: 1.02794354375838-0.0000109978423125867i | AM18: 0.006+0.0000190513680634695i | AN18: 2.83179459031971-0.00244691449186003i | AO18: 9.041238198 | AP18: -0.04950847734 | AR18: 1.01809513603765-0.0000107881179796446i | AS18: 2.82839190085586-0.00244161531021839i | AT18: 9.030794936 | AU18: -0.04946069096
A19: fco | C19: =VLOOKUP(0,J2:P212,3,FALSE) -> 54116.95265 | D19: Hz | F19: 17 | G19: 168.5793907 | H19: 168.5788137 | I19: 1 | J19: 1 | K19: 1 | L19: =10^('Small Signal'!F19/30) -> 3.686945065 | M19: 23.1657590577677i | N19: =IF(D$32=1, IF(AND('Small Signal'!$B$63>=1,FCCM=0),U19+0,R19+0), 0) -> 0 | O19: =IF(D$32=1, IF(AND('Small Signal'!$B$63>=1,FCCM=0),V19,S19), 0) -> 0 | P19: =IF(AND('Small Signal'!$B$63>=1,FCCM=0),AE19+0,AB19+0) -> 66.85340345 | Q19: =IF(AND('Small Signal'!$B$63>=1,FCCM=0),AF19,AC19) -> 174.1541289 | R19: 9.041237677 | S19: -0.05345802205 | T19: =IMDIV(IMSUM('Small Signal'!$B$76,IMPRODUCT(M19,'Small Signal'!$B$77)),IMSUM(IMPRODUCT('Small Signal'!$B$80,IMPOWER(M19,2)),IMSUM(IMPRODUCT(M19,'Small Signal'!$B$79),'Small Signal'!$B$78))) -> 4.27268232584446-0.00271864674300525i | U19: 12.61401384 | V19: -0.03645648131 | W19: =IMPRODUCT(IMDIV(IMSUM(IMPRODUCT(M19,'Small Signal'!$B$59*'Small Signal'!$B$6*'Small Signal'!$B$51*'Small Signal'!$B$7*'Small Signal'!$B$8),'Small Signal'!$B$59*'Small Signal'!$B$6*'Small Signal'!$B$51),IMSUM(IMSUM(IMPRODUCT(M19,('Small Signal'!$B$5+'Small Signal'!$B$6)*('Small Signal'!$B$58*'Small Signal'!$B$59)+'Small Signal'!$B$5*'Small Signal'!$B$59*('Small Signal'!$B$8+'Small Signal'!$B$9)+'Small Signal'!$B$6*'Small Signal'!$B$59*('Small Signal'!$B$8+'Small Signal'!$B$9)+'Small Signal'!$B$7*'Small Signal'!$B$8*('Small Signal'!$B$5+'Small Signal'!$B$6)),'Small Signal'!$B$6+'Small Signal'!$B$5),IMPRODUCT(IMPOWER(M19,2),'Small Signal'!$B$58*'Small Signal'!$B$59*'Small Signal'!$B$8*'Small Signal'!$B$7*('Small Signal'!$B$5+'Small Signal'!$B$6)+('Small Signal'!$B$5+'Small Signal'!$B$6)*('Small Signal'!$B$9*'Small Signal'!$B$8*'Small Signal'!$B$59*'Small Signal'!$B$7)))),-1) -> -773.365557586987+78.4576306804447i | X19: 0 | Y19: 0 | Z19: 1.00000000017606+7.01866157964705E-06i | AA19: -2189.80641503441+224.203819992784i | AB19: 66.85340345 | AC19: 174.1541289 | AD19: -3304.13205073665+337.327039690254i | AE19: 70.42617961 | AF19: 174.1707283 | AH19: 0.00075-134.897371254155i | AI19: 0.14 | AJ19: 1000-43167158801.3297i | AK19: 0.139999848400758-0.000145295483087873i | AL19: 1.02794354373886-0.0000118751969681023i | AM19: 0.006+0.0000205711940432977i | AN19: 2.83179424490661-0.00264211717534417i | AO19: 9.041237677 | AP19: -0.05345802205 | AR19: 1.01809513601868-0.0000116487418424642i | AS19: 2.82839155659802-0.00263639525206418i | AT19: 9.030794415 | AU19: -0.05340642351
A20: Phase Margin | C20: =VLOOKUP(0,J2:Q212,8,FALSE) -> 68.32541123 | D20: deg | F20: 18 | G20: 168.5794368 | H20: 168.5788137 | I20: 1 | J20: 1 | K20: 1 | L20: =10^('Small Signal'!F20/30) -> 3.981071706 | M20: 25.0138112470457i | N20: =IF(D$32=1, IF(AND('Small Signal'!$B$63>=1,FCCM=0),U20+0,R20+0), 0) -> 0 | O20: =IF(D$32=1, IF(AND('Small Signal'!$B$63>=1,FCCM=0),V20,S20), 0) -> 0 | P20: =IF(AND('Small Signal'!$B$63>=1,FCCM=0),AE20+0,AB20+0) -> 66.84598435 | Q20: =IF(AND('Small Signal'!$B$63>=1,FCCM=0),AF20,AC20) -> 173.6913601 | R20: 9.041237069 | S20: -0.05772264179 | T20: =IMDIV(IMSUM('Small Signal'!$B$76,IMPRODUCT(M20,'Small Signal'!$B$77)),IMSUM(IMPRODUCT('Small Signal'!$B$80,IMPOWER(M20,2)),IMSUM(IMPRODUCT(M20,'Small Signal'!$B$79),'Small Signal'!$B$78))) -> 4.27268209672148-0.00293552711093707i | U20: 12.61401367 | V20: -0.03936480268 | W20: =IMPRODUCT(IMDIV(IMSUM(IMPRODUCT(M20,'Small Signal'!$B$59*'Small Signal'!$B$6*'Small Signal'!$B$51*'Small Signal'!$B$7*'Small Signal'!$B$8),'Small Signal'!$B$59*'Small Signal'!$B$6*'Small Signal'!$B$51),IMSUM(IMSUM(IMPRODUCT(M20,('Small Signal'!$B$5+'Small Signal'!$B$6)*('Small Signal'!$B$58*'Small Signal'!$B$59)+'Small Signal'!$B$5*'Small Signal'!$B$59*('Small Signal'!$B$8+'Small Signal'!$B$9)+'Small Signal'!$B$6*'Small Signal'!$B$59*('Small Signal'!$B$8+'Small Signal'!$B$9)+'Small Signal'!$B$7*'Small Signal'!$B$8*('Small Signal'!$B$5+'Small Signal'!$B$6)),'Small Signal'!$B$6+'Small Signal'!$B$5),IMPRODUCT(IMPOWER(M20,2),'Small Signal'!$B$58*'Small Signal'!$B$59*'Small Signal'!$B$8*'Small Signal'!$B$7*('Small Signal'!$B$5+'Small Signal'!$B$6)+('Small Signal'!$B$5+'Small Signal'!$B$6)*('Small Signal'!$B$9*'Small Signal'!$B$8*'Small Signal'!$B$59*'Small Signal'!$B$7)))),-1) -> -772.053223804988+84.5720091990634i | X20: 0 | Y20: 0 | Z20: 1.00000000020527+7.57857644569544E-06i | AA20: -2186.05612233082+241.676512285998i | AB20: 66.84598435 | AC20: 173.6913601 | AD20: -3298.48972364184+363.615692758168i | AE20: 70.41876095 | AF20: 173.7092837 | AH20: 0.00075-124.930981893816i | AI20: 0.14 | AJ20: 1000-39977914206.0212i | AK20: 0.139999823248292-0.000156886425499368i | AL20: 1.0279435437161-0.0000128225427336223i | AM20: 0.006+0.0000222122643873766i | AN20: 2.83179384218461-0.00285289210243158i | AO20: 9.041237069 | AP20: -0.05772264179 | AR20: 1.01809513599657-0.0000125780221135871i | AS20: 2.82839115522293-0.00284671371360259i | AT20: 9.030793809 | AU20: -0.05766692697
A21: Gain Margin | C21: =VLOOKUP(0,K2:Q212,6,FALSE) -> -14.16132946 | D21: dB | F21: 19 | G21: 168.5794865 | H21: 168.5788137 | I21: 1 | J21: 1 | K21: 1 | L21: =10^('Small Signal'!F21/30) -> 4.298662347 | M21: 27.0092920997135i | N21: =IF(D$32=1, IF(AND('Small Signal'!$B$63>=1,FCCM=0),U21+0,R21+0), 0) -> 0 | O21: =IF(D$32=1, IF(AND('Small Signal'!$B$63>=1,FCCM=0),V21,S21), 0) -> 0 | P21: =IF(AND('Small Signal'!$B$63>=1,FCCM=0),AE21+0,AB21+0) -> 66.83735029 | Q21: =IF(AND('Small Signal'!$B$63>=1,FCCM=0),AF21,AC21) -> 173.1925924 | R21: 9.04123636 | S21: -0.06232747157 | T21: =IMDIV(IMSUM('Small Signal'!$B$76,IMPRODUCT(M21,'Small Signal'!$B$77)),IMSUM(IMPRODUCT('Small Signal'!$B$80,IMPOWER(M21,2)),IMSUM(IMPRODUCT(M21,'Small Signal'!$B$79),'Small Signal'!$B$78))) -> 4.27268182958369-0.00316970911505361i | U21: 12.61401347 | V21: -0.04250513577 | W21: =IMPRODUCT(IMDIV(IMSUM(IMPRODUCT(M21,'Small Signal'!$B$59*'Small Signal'!$B$6*'Small Signal'!$B$51*'Small Signal'!$B$7*'Small Signal'!$B$8),'Small Signal'!$B$59*'Small Signal'!$B$6*'Small Signal'!$B$51),IMSUM(IMSUM(IMPRODUCT(M21,('Small Signal'!$B$5+'Small Signal'!$B$6)*('Small Signal'!$B$58*'Small Signal'!$B$59)+'Small Signal'!$B$5*'Small Signal'!$B$59*('Small Signal'!$B$8+'Small Signal'!$B$9)+'Small Signal'!$B$6*'Small Signal'!$B$59*('Small Signal'!$B$8+'Small Signal'!$B$9)+'Small Signal'!$B$7*'Small Signal'!$B$8*('Small Signal'!$B$5+'Small Signal'!$B$6)),'Small Signal'!$B$6+'Small Signal'!$B$5),IMPRODUCT(IMPOWER(M21,2),'Small Signal'!$B$58*'Small Signal'!$B$59*'Small Signal'!$B$8*'Small Signal'!$B$7*('Small Signal'!$B$5+'Small Signal'!$B$6)+('Small Signal'!$B$5+'Small Signal'!$B$6)*('Small Signal'!$B$9*'Small Signal'!$B$8*'Small Signal'!$B$59*'Small Signal'!$B$7)))),-1) -> -770.528799951575+91.1373963679273i | X21: 0 | Y21: 0 | Z21: 1.00000000023933+8.18315861086776E-06i | AA21: -2181.6997339429+260.438021656333i | AB21: 66.83735029 | AC21: 173.1925924 | AD21: -3291.93552368803+391.843449617427i | AE21: 70.4101274 | AF21: 173.2119459 | AH21: 0.00075-115.700922055382i | AI21: 0.14 | AJ21: 1000-37024295057.7223i | AK21: 0.139999793922681-0.000169402029886033i | AL21: 1.02794354368956-0.0000138454631612936i | AM21: 0.006+0.0000239842513845456i | AN21: 2.83179337264534-0.00308048153011065i | AO21: 9.04123636 | AP21: -0.06232747157 | AR21: 1.01809513597078-0.0000135814358691162i | AS21: 2.82839068725405-0.00307381026158788i | AT21: 9.030793102 | AU21: -0.0622673121
F22: 20 | G22: 168.5795401 | H22: 168.5788137 | I22: 1 | J22: 1 | K22: 1 | L22: =10^('Small Signal'!F22/30) -> 4.641588834 | M22: 29.1639627613246i | N22: =IF(D$32=1, IF(AND('Small Signal'!$B$63>=1,FCCM=0),U22+0,R22+0), 0) -> 0 | O22: =IF(D$32=1, IF(AND('Small Signal'!$B$63>=1,FCCM=0),V22,S22), 0) -> 0 | P22: =IF(AND('Small Signal'!$B$63>=1,FCCM=0),AE22+0,AB22+0) -> 66.82730534 | Q22: =IF(AND('Small Signal'!$B$63>=1,FCCM=0),AF22,AC22) -> 172.6551874 | R22: 9.041235533 | S22: -0.06729965153 | T22: =IMDIV(IMSUM('Small Signal'!$B$76,IMPRODUCT(M22,'Small Signal'!$B$77)),IMSUM(IMPRODUCT('Small Signal'!$B$80,IMPOWER(M22,2)),IMSUM(IMPRODUCT(M22,'Small Signal'!$B$79),'Small Signal'!$B$78))) -> 4.27268151812394-0.00342257298832573i | U22: 12.61401323 | V22: -0.04589598933 | W22: =IMPRODUCT(IMDIV(IMSUM(IMPRODUCT(M22,'Small Signal'!$B$59*'Small Signal'!$B$6*'Small Signal'!$B$51*'Small Signal'!$B$7*'Small Signal'!$B$8),'Small Signal'!$B$59*'Small Signal'!$B$6*'Small Signal'!$B$51),IMSUM(IMSUM(IMPRODUCT(M22,('Small Signal'!$B$5+'Small Signal'!$B$6)*('Small Signal'!$B$58*'Small Signal'!$B$59)+'Small Signal'!$B$5*'Small Signal'!$B$59*('Small Signal'!$B$8+'Small Signal'!$B$9)+'Small Signal'!$B$6*'Small Signal'!$B$59*('Small Signal'!$B$8+'Small Signal'!$B$9)+'Small Signal'!$B$7*'Small Signal'!$B$8*('Small Signal'!$B$5+'Small Signal'!$B$6)),'Small Signal'!$B$6+'Small Signal'!$B$5),IMPRODUCT(IMPOWER(M22,2),'Small Signal'!$B$58*'Small Signal'!$B$59*'Small Signal'!$B$8*'Small Signal'!$B$7*('Small Signal'!$B$5+'Small Signal'!$B$6)+('Small Signal'!$B$5+'Small Signal'!$B$6)*('Small Signal'!$B$9*'Small Signal'!$B$8*'Small Signal'!$B$59*'Small Signal'!$B$7)))),-1) -> -768.759079824743+98.1805598516958i | X22: 0 | Y22: 0 | Z22: 1.00000000027904+8.83597141614913E-06i | AA22: -2176.64235558705+280.564839375614i | AB22: 66.82730534 | AC22: 172.6551874 | AD22: -3284.32668212502+422.12539757854i | AE22: 70.40008304 | AF22: 172.6760848 | AH22: 0.00075-107.152790777259i | AI22: 0.14 | AJ22: 1000-34288893048.723i | AK22: 0.139999759731545-0.000182916059407242i | AL22: 1.02794354365862-0.000014949987232038i | AM22: 0.006+0.0000258975989320562i | AN22: 2.83179282520298-0.00332622681111457i | AO22: 9.041235533 | AP22: -0.06729965153 | AR22: 1.01809513594072-0.0000146648971197852i | AS22: 2.82839014164262-0.0033190233439303i | AT22: 9.030792277 | AU22: -0.06723469285
A23: fpole ps | C23: =(B4)/(2*PI()*B3*B14) -> 3552.565694 | D23: Hz | F23: 21 | G23: 168.5795981 | H23: 168.5788137 | I23: 1 | J23: 1 | K23: 1 | L23: =10^('Small Signal'!F23/30) -> 5.011872336 | M23: 31.4905226247286i | N23: =IF(D$32=1, IF(AND('Small Signal'!$B$63>=1,FCCM=0),U23+0,R23+0), 0) -> 0 | O23: =IF(D$32=1, IF(AND('Small Signal'!$B$63>=1,FCCM=0),V23,S23), 0) -> 0 | P23: =IF(AND('Small Signal'!$B$63>=1,FCCM=0),AE23+0,AB23+0) -> 66.81562305 | Q23: =IF(AND('Small Signal'!$B$63>=1,FCCM=0),AF23,AC23) -> 172.0763541 | R23: 9.04123457 | S23: -0.07266848686 | T23: =IMDIV(IMSUM('Small Signal'!$B$76,IMPRODUCT(M23,'Small Signal'!$B$77)),IMSUM(IMPRODUCT('Small Signal'!$B$80,IMPOWER(M23,2)),IMSUM(IMPRODUCT(M23,'Small Signal'!$B$79),'Small Signal'!$B$78))) -> 4.27268115498858-0.00369560906999746i | U23: 12.61401295 | V23: -0.04955734864 | W23: =IMPRODUCT(IMDIV(IMSUM(IMPRODUCT(M23,'Small Signal'!$B$59*'Small Signal'!$B$6*'Small Signal'!$B$51*'Small Signal'!$B$7*'Small Signal'!$B$8),'Small Signal'!$B$59*'Small Signal'!$B$6*'Small Signal'!$B$51),IMSUM(IMSUM(IMPRODUCT(M23,('Small Signal'!$B$5+'Small Signal'!$B$6)*('Small Signal'!$B$58*'Small Signal'!$B$59)+'Small Signal'!$B$5*'Small Signal'!$B$59*('Small Signal'!$B$8+'Small Signal'!$B$9)+'Small Signal'!$B$6*'Small Signal'!$B$59*('Small Signal'!$B$8+'Small Signal'!$B$9)+'Small Signal'!$B$7*'Small Signal'!$B$8*('Small Signal'!$B$5+'Small Signal'!$B$6)),'Small Signal'!$B$6+'Small Signal'!$B$5),IMPRODUCT(IMPOWER(M23,2),'Small Signal'!$B$58*'Small Signal'!$B$59*'Small Signal'!$B$8*'Small Signal'!$B$7*('Small Signal'!$B$5+'Small Signal'!$B$6)+('Small Signal'!$B$5+'Small Signal'!$B$6)*('Small Signal'!$B$9*'Small Signal'!$B$8*'Small Signal'!$B$59*'Small Signal'!$B$7)))),-1) -> -766.70603403573+105.728157676043i | X23: 0 | Y23: 0 | Z23: 1.00000000032533+9.54086246861683E-06i | AA23: -2170.77530962567+302.133143122174i | AB23: 66.81562305 | AC23: 172.0763541 | AD23: -3275.49969310203+454.576152627494i | AE23: 70.38840143 | AF23: 172.0989186 | AH23: 0.00075-99.2362063100856i | AI23: 0.14 | AJ23: 1000-31755586019.2275i | AK23: 0.139999719867629-0.000197508161198486i | AL23: 1.02794354362254-0.0000161426248897046i | AM23: 0.006+0.000027963584090759i | AN23: 2.83179218693228-0.00359157629787436i | AO23: 9.04123457 | AP23: -0.07266848686 | AR23: 1.01809513590568-0.0000158347916674902i | AS23: 2.82838950550665-0.00358379817653653i | AT23: 9.030791316 | AU23: -0.07259834611
A24: fzero esr (Co1) | C24: =1/(2*PI()*B14*B15) -> 663145.5962 | D24: Hz | F24: 22 | G24: 168.5796607 | H24: 168.5788137 | I24: 1 | J24: 1 | K24: 1 | L24: =10^('Small Signal'!F24/30) -> 5.411695265 | M24: 34.0026841789007i | N24: =IF(D$32=1, IF(AND('Small Signal'!$B$63>=1,FCCM=0),U24+0,R24+0), 0) -> 0 | O24: =IF(D$32=1, IF(AND('Small Signal'!$B$63>=1,FCCM=0),V24,S24), 0) -> 0 | P24: =IF(AND('Small Signal'!$B$63>=1,FCCM=0),AE24+0,AB24+0) -> 66.80204205 | Q24: =IF(AND('Small Signal'!$B$63>=1,FCCM=0),AF24,AC24) -> 171.4531517 | R24: 9.041233446 | S24: -0.07846562053 | T24: =IMDIV(IMSUM('Small Signal'!$B$76,IMPRODUCT(M24,'Small Signal'!$B$77)),IMSUM(IMPRODUCT('Small Signal'!$B$80,IMPOWER(M24,2)),IMSUM(IMPRODUCT(M24,'Small Signal'!$B$79),'Small Signal'!$B$78))) -> 4.27268073160387-0.00399042658880427i | U24: 12.61401263 | V24: -0.05351079331 | W24: =IMPRODUCT(IMDIV(IMSUM(IMPRODUCT(M24,'Small Signal'!$B$59*'Small Signal'!$B$6*'Small Signal'!$B$51*'Small Signal'!$B$7*'Small Signal'!$B$8),'Small Signal'!$B$59*'Small Signal'!$B$6*'Small Signal'!$B$51),IMSUM(IMSUM(IMPRODUCT(M24,('Small Signal'!$B$5+'Small Signal'!$B$6)*('Small Signal'!$B$58*'Small Signal'!$B$59)+'Small Signal'!$B$5*'Small Signal'!$B$59*('Small Signal'!$B$8+'Small Signal'!$B$9)+'Small Signal'!$B$6*'Small Signal'!$B$59*('Small Signal'!$B$8+'Small Signal'!$B$9)+'Small Signal'!$B$7*'Small Signal'!$B$8*('Small Signal'!$B$5+'Small Signal'!$B$6)),'Small Signal'!$B$6+'Small Signal'!$B$5),IMPRODUCT(IMPOWER(M24,2),'Small Signal'!$B$58*'Small Signal'!$B$59*'Small Signal'!$B$8*'Small Signal'!$B$7*('Small Signal'!$B$5+'Small Signal'!$B$6)+('Small Signal'!$B$5+'Small Signal'!$B$6)*('Small Signal'!$B$9*'Small Signal'!$B$8*'Small Signal'!$B$59*'Small Signal'!$B$7)))),-1) -> -764.326241526624+113.806210877897i | X24: 0 | Y24: 0 | Z24: 1.00000000037931+0.0000103019863188097i | AA24: -2163.97451049983+325.217289936498i | AB24: 66.80204205 | AC24: 171.4531517 | AD24: -3265.26786950015+489.307592111546i | AE24: 70.37482123 | AF24: 171.4775162 | AH24: 0.00075-91.9045091722238i | AI24: 0.14 | AJ24: 1000-29409442935.1115i | AK24: 0.139999673389743-0.000213264335639148i | AL24: 1.02794354358048-0.0000174304054099629i | AM24: 0.006+0.0000301943835508638i | AN24: 2.83179144276366-0.00387809387664173i | AO24: 9.041233446 | AP24: -0.07846562053 | AR24: 1.01809513586481-0.0000170980147425034i | AS24: 2.82838876382692-0.00386969525895675i | AT24: 9.030790195 | AU24: -0.07838988432
A25: fzero esr (Co2) | C25: =1/(2*PI()*B16*B17) -> 159154943.1 | D25: Hz | F25: 23 | G25: 168.5797282 | H25: 168.5788137 | I25: 1 | J25: 1 | K25: 1 | L25: =10^('Small Signal'!F25/30) -> 5.843414134 | M25: 36.7152538288504i | N25: =IF(D$32=1, IF(AND('Small Signal'!$B$63>=1,FCCM=0),U25+0,R25+0), 0) -> 0 | O25: =IF(D$32=1, IF(AND('Small Signal'!$B$63>=1,FCCM=0),V25,S25), 0) -> 0 | P25: =IF(AND('Small Signal'!$B$63>=1,FCCM=0),AE25+0,AB25+0) -> 66.7862612 | Q25: =IF(AND('Small Signal'!$B$63>=1,FCCM=0),AF25,AC25) -> 170.7824941 | R25: 9.041232136 | S25: -0.08472521976 | T25: =IMDIV(IMSUM('Small Signal'!$B$76,IMPRODUCT(M25,'Small Signal'!$B$77)),IMSUM(IMPRODUCT('Small Signal'!$B$80,IMPOWER(M25,2)),IMSUM(IMPRODUCT(M25,'Small Signal'!$B$79),'Small Signal'!$B$78))) -> 4.27268023797364-0.00430876314673815i | U25: 12.61401226 | V25: -0.05777962445 | W25: =IMPRODUCT(IMDIV(IMSUM(IMPRODUCT(M25,'Small Signal'!$B$59*'Small Signal'!$B$6*'Small Signal'!$B$51*'Small Signal'!$B$7*'Small Signal'!$B$8),'Small Signal'!$B$59*'Small Signal'!$B$6*'Small Signal'!$B$51),IMSUM(IMSUM(IMPRODUCT(M25,('Small Signal'!$B$5+'Small Signal'!$B$6)*('Small Signal'!$B$58*'Small Signal'!$B$59)+'Small Signal'!$B$5*'Small Signal'!$B$59*('Small Signal'!$B$8+'Small Signal'!$B$9)+'Small Signal'!$B$6*'Small Signal'!$B$59*('Small Signal'!$B$8+'Small Signal'!$B$9)+'Small Signal'!$B$7*'Small Signal'!$B$8*('Small Signal'!$B$5+'Small Signal'!$B$6)),'Small Signal'!$B$6+'Small Signal'!$B$5),IMPRODUCT(IMPOWER(M25,2),'Small Signal'!$B$58*'Small Signal'!$B$59*'Small Signal'!$B$8*'Small Signal'!$B$7*('Small Signal'!$B$5+'Small Signal'!$B$6)+('Small Signal'!$B$5+'Small Signal'!$B$6)*('Small Signal'!$B$9*'Small Signal'!$B$8*'Small Signal'!$B$59*'Small Signal'!$B$7)))),-1) -> -761.570301799508+122.439427195718i | X25: 0 | Y25: 0 | Z25: 1.00000000044224+0.0000111238289471886i | AA25: -2156.09878504032+349.887883487896i | AB25: 66.7862612 | AC25: 170.7824941 | AD25: -3253.41881583477+526.425946978001i | AE25: 70.35904132 | AF25: 170.8088023 | AH25: 0.00075-85.1144871438808i | AI25: 0.14 | AJ25: 1000-27236635886.0418i | AK25: 0.139999619200546-0.000230277443023235i | AL25: 1.02794354353145-0.0000188209188300826i | AM25: 0.006+0.0000326031454000192i | AN25: 2.83179057512723-0.00418746818195792i | AO25: 9.041232136 | AP25: -0.08472521976 | AR25: 1.01809513581717-0.0000184620116432043i | AS25: 2.8283878990923-0.00417839956890585i | AT25: 9.030788888 | AU25: -0.0846434417
F26: 24 | G26: 168.5798012 | H26: 168.5788137 | I26: 1 | J26: 1 | K26: 1 | L26: =10^('Small Signal'!F26/30) -> 6.309573445 | M26: 39.64421916295i | N26: =IF(D$32=1, IF(AND('Small Signal'!$B$63>=1,FCCM=0),U26+0,R26+0), 0) -> 0 | O26: =IF(D$32=1, IF(AND('Small Signal'!$B$63>=1,FCCM=0),V26,S26), 0) -> 0 | P26: =IF(AND('Small Signal'!$B$63>=1,FCCM=0),AE26+0,AB26+0) -> 66.76793419 | Q26: =IF(AND('Small Signal'!$B$63>=1,FCCM=0),AF26,AC26) -> 170.0611603 | R26: 9.041230609 | S26: -0.09148417736 | T26: =IMDIV(IMSUM('Small Signal'!$B$76,IMPRODUCT(M26,'Small Signal'!$B$77)),IMSUM(IMPRODUCT('Small Signal'!$B$80,IMPOWER(M26,2)),IMSUM(IMPRODUCT(M26,'Small Signal'!$B$79),'Small Signal'!$B$78))) -> 4.27267966244313-0.00465249495920909i | U26: 12.61401182 | V26: -0.062389002 | W26: =IMPRODUCT(IMDIV(IMSUM(IMPRODUCT(M26,'Small Signal'!$B$59*'Small Signal'!$B$6*'Small Signal'!$B$51*'Small Signal'!$B$7*'Small Signal'!$B$8),'Small Signal'!$B$59*'Small Signal'!$B$6*'Small Signal'!$B$51),IMSUM(IMSUM(IMPRODUCT(M26,('Small Signal'!$B$5+'Small Signal'!$B$6)*('Small Signal'!$B$58*'Small Signal'!$B$59)+'Small Signal'!$B$5*'Small Signal'!$B$59*('Small Signal'!$B$8+'Small Signal'!$B$9)+'Small Signal'!$B$6*'Small Signal'!$B$59*('Small Signal'!$B$8+'Small Signal'!$B$9)+'Small Signal'!$B$7*'Small Signal'!$B$8*('Small Signal'!$B$5+'Small Signal'!$B$6)),'Small Signal'!$B$6+'Small Signal'!$B$5),IMPRODUCT(IMPOWER(M26,2),'Small Signal'!$B$58*'Small Signal'!$B$59*'Small Signal'!$B$8*'Small Signal'!$B$7*('Small Signal'!$B$5+'Small Signal'!$B$6)+('Small Signal'!$B$5+'Small Signal'!$B$6)*('Small Signal'!$B$9*'Small Signal'!$B$8*'Small Signal'!$B$59*'Small Signal'!$B$7)))),-1) -> -758.38224713826+131.650347751472i | X26: 0 | Y26: 0 | Z26: 1.00000000051562+0.0000120112342040064i | AA26: -2146.9881927584+376.209335497685i | AB26: 66.76793419 | AC26: 170.0611603 | AD26: -3239.71190112627+566.028132973244i | AE26: 70.34071539 | AF26: 170.0895673 | AH26: 0.00075-78.8261205790252i | AI26: 0.14 | AJ26: 1000-25224358585.2881i | AK26: 0.139999556020635-0.000248647750608312i | AL26: 1.02794354347427-0.0000203223606837788i | AM26: 0.006+0.0000352040666166996i | AN26: 2.83178956353809-0.00452152254562326i | AO26: 9.041230609 | AP26: -0.09148417736 | AR26: 1.01809513576163-0.0000199348216178494i | AS26: 2.82838689088649-0.00451173048969656i | AT26: 9.030787365 | AU26: -0.09139587549
A27: fzero comp | C27: =1/(2*PI()*B7*B8) -> 6168.079025 | D27: Hz | F27: 25 | G27: 168.57988 | H27: 168.5788137 | I27: 1 | J27: 1 | K27: 1 | L27: =10^('Small Signal'!F27/30) -> 6.812920691 | M27: 42.8068431820296i | N27: =IF(D$32=1, IF(AND('Small Signal'!$B$63>=1,FCCM=0),U27+0,R27+0), 0) -> 0 | O27: =IF(D$32=1, IF(AND('Small Signal'!$B$63>=1,FCCM=0),V27,S27), 0) -> 0 | P27: =IF(AND('Small Signal'!$B$63>=1,FCCM=0),AE27+0,AB27+0) -> 66.74666364 | Q27: =IF(AND('Small Signal'!$B$63>=1,FCCM=0),AF27,AC27) -> 169.2858092 | R27: 9.041228828 | S27: -0.09878232917 | T27: =IMDIV(IMSUM('Small Signal'!$B$76,IMPRODUCT(M27,'Small Signal'!$B$77)),IMSUM(IMPRODUCT('Small Signal'!$B$80,IMPOWER(M27,2)),IMSUM(IMPRODUCT(M27,'Small Signal'!$B$79),'Small Signal'!$B$78))) -> 4.27267899142394-0.0050236479119011i | U27: 12.61401131 | V27: -0.06736609304 | W27: =IMPRODUCT(IMDIV(IMSUM(IMPRODUCT(M27,'Small Signal'!$B$59*'Small Signal'!$B$6*'Small Signal'!$B$51*'Small Signal'!$B$7*'Small Signal'!$B$8),'Small Signal'!$B$59*'Small Signal'!$B$6*'Small Signal'!$B$51),IMSUM(IMSUM(IMPRODUCT(M27,('Small Signal'!$B$5+'Small Signal'!$B$6)*('Small Signal'!$B$58*'Small Signal'!$B$59)+'Small Signal'!$B$5*'Small Signal'!$B$59*('Small Signal'!$B$8+'Small Signal'!$B$9)+'Small Signal'!$B$6*'Small Signal'!$B$59*('Small Signal'!$B$8+'Small Signal'!$B$9)+'Small Signal'!$B$7*'Small Signal'!$B$8*('Small Signal'!$B$5+'Small Signal'!$B$6)),'Small Signal'!$B$6+'Small Signal'!$B$5),IMPRODUCT(IMPOWER(M27,2),'Small Signal'!$B$58*'Small Signal'!$B$59*'Small Signal'!$B$8*'Small Signal'!$B$7*('Small Signal'!$B$5+'Small Signal'!$B$6)+('Small Signal'!$B$5+'Small Signal'!$B$6)*('Small Signal'!$B$9*'Small Signal'!$B$8*'Small Signal'!$B$59*'Small Signal'!$B$7)))),-1) -> -754.698983034299+141.45828678635i | X27: 0 | Y27: 0 | Z27: 1.00000000060116+0.0000129694323584218i | AA27: -2136.46242673546+404.236835764045i | AB27: 66.74666364 | AC27: 169.2858092 | AD27: -3223.87585303263+608.197192085095i | AE27: 70.31944612 | AF27: 169.3164823 | AH27: 0.00075-73.0023465339737i | AI27: 0.14 | AJ27: 1000-23360750890.8716i | AK27: 0.139999482358338-0.000268483523253111i | AL27: 1.02794354340761-0.0000219435803047865i | AM27: 0.006+0.0000380124767456423i | AN27: 2.83178838411262-0.00488222573861069i | AO27: 9.041228828 | AP27: -0.09878232917 | AR27: 1.01809513569687-0.000021525125247018i | AS27: 2.82838571540561-0.0048716525289017i | AT27: 9.030785588 | AU27: -0.09868698304
A28: fpole comp | C28: =1/(2*PI()*B7*(B9+0.00000000001)) -> 263545.1947 | D28: Hz | F28: 26 | G28: 168.579965 | H28: 168.5788137 | I28: 1 | J28: 1 | K28: 1 | L28: =10^('Small Signal'!F28/30) -> 7.356422545 | M28: 46.2217660456129i | N28: =IF(D$32=1, IF(AND('Small Signal'!$B$63>=1,FCCM=0),U28+0,R28+0), 0) -> 0 | O28: =IF(D$32=1, IF(AND('Small Signal'!$B$63>=1,FCCM=0),V28,S28), 0) -> 0 | P28: =IF(AND('Small Signal'!$B$63>=1,FCCM=0),AE28+0,AB28+0) -> 66.72199482 | Q28: =IF(AND('Small Signal'!$B$63>=1,FCCM=0),AF28,AC28) -> 168.4530012 | R28: 9.041226752 | S28: -0.1066626888 | T28: =IMDIV(IMSUM('Small Signal'!$B$76,IMPRODUCT(M28,'Small Signal'!$B$77)),IMSUM(IMPRODUCT('Small Signal'!$B$80,IMPOWER(M28,2)),IMSUM(IMPRODUCT(M28,'Small Signal'!$B$79),'Small Signal'!$B$78))) -> 4.2726782090732-0.00542440949941852i | U28: 12.61401071 | V28: -0.07274023188 | W28: =IMPRODUCT(IMDIV(IMSUM(IMPRODUCT(M28,'Small Signal'!$B$59*'Small Signal'!$B$6*'Small Signal'!$B$51*'Small Signal'!$B$7*'Small Signal'!$B$8),'Small Signal'!$B$59*'Small Signal'!$B$6*'Small Signal'!$B$51),IMSUM(IMSUM(IMPRODUCT(M28,('Small Signal'!$B$5+'Small Signal'!$B$6)*('Small Signal'!$B$58*'Small Signal'!$B$59)+'Small Signal'!$B$5*'Small Signal'!$B$59*('Small Signal'!$B$8+'Small Signal'!$B$9)+'Small Signal'!$B$6*'Small Signal'!$B$59*('Small Signal'!$B$8+'Small Signal'!$B$9)+'Small Signal'!$B$7*'Small Signal'!$B$8*('Small Signal'!$B$5+'Small Signal'!$B$6)),'Small Signal'!$B$6+'Small Signal'!$B$5),IMPRODUCT(IMPOWER(M28,2),'Small Signal'!$B$58*'Small Signal'!$B$59*'Small Signal'!$B$8*'Small Signal'!$B$7*('Small Signal'!$B$5+'Small Signal'!$B$6)+('Small Signal'!$B$5+'Small Signal'!$B$6)*('Small Signal'!$B$9*'Small Signal'!$B$8*'Small Signal'!$B$59*'Small Signal'!$B$7)))),-1) -> -750.449796337168+151.878034144492i | X28: 0 | Y28: 0 | Z28: 1.0000000007009+0.0000140040709251212i | AA28: -2124.31940805257+434.012644182951i | AB28: 66.72199482 | AC28: 168.4530012 | AD28: -3205.60664316207+652.996713930134i | AE28: 70.29477878 | AF28: 168.4861213 | AH28: 0.00075-67.6088403224613i | AI28: 0.14 | AJ28: 1000-21634828903.1876i | AK28: 0.139999396474503-0.000289901661107542i | AL28: 1.02794354332989-0.0000236941329838606i | AM28: 0.006+0.0000410449282485043i | AN28: 2.83178700900472-0.00527170356898938i | AO28: 9.041226752 | AP28: -0.1066626888 | AR28: 1.01809513562136-0.0000232422956059994i | AS28: 2.82838434489679-0.00526028689117646i | AT28: 9.030783517 | AU28: -0.1065597365
A29: fzero Cff | C29: =1/(2*PI()*Cff_ss*Rhs_ss) -> 114846.9787 | D29: Hz | F29: 27 | G29: 168.5800569 | H29: 168.5788137 | I29: 1 | J29: 1 | K29: 1 | L29: =10^('Small Signal'!F29/30) -> 7.943282347 | M29: 49.9091149349751i | N29: =IF(D$32=1, IF(AND('Small Signal'!$B$63>=1,FCCM=0),U29+0,R29+0), 0) -> 0 | O29: =IF(D$32=1, IF(AND('Small Signal'!$B$63>=1,FCCM=0),V29,S29), 0) -> 0 | P29: =IF(AND('Small Signal'!$B$63>=1,FCCM=0),AE29+0,AB29+0) -> 66.69340889 | Q29: =IF(AND('Small Signal'!$B$63>=1,FCCM=0),AF29,AC29) -> 167.5592284 | R29: 9.041224332 | S29: -0.115171701 | T29: =IMDIV(IMSUM('Small Signal'!$B$76,IMPRODUCT(M29,'Small Signal'!$B$77)),IMSUM(IMPRODUCT('Small Signal'!$B$80,IMPOWER(M29,2)),IMSUM(IMPRODUCT(M29,'Small Signal'!$B$79),'Small Signal'!$B$78))) -> 4.27267729691944-0.00585714171599613i | U29: 12.61401002 | V29: -0.07854309296 | W29: =IMPRODUCT(IMDIV(IMSUM(IMPRODUCT(M29,'Small Signal'!$B$59*'Small Signal'!$B$6*'Small Signal'!$B$51*'Small Signal'!$B$7*'Small Signal'!$B$8),'Small Signal'!$B$59*'Small Signal'!$B$6*'Small Signal'!$B$51),IMSUM(IMSUM(IMPRODUCT(M29,('Small Signal'!$B$5+'Small Signal'!$B$6)*('Small Signal'!$B$58*'Small Signal'!$B$59)+'Small Signal'!$B$5*'Small Signal'!$B$59*('Small Signal'!$B$8+'Small Signal'!$B$9)+'Small Signal'!$B$6*'Small Signal'!$B$59*('Small Signal'!$B$8+'Small Signal'!$B$9)+'Small Signal'!$B$7*'Small Signal'!$B$8*('Small Signal'!$B$5+'Small Signal'!$B$6)),'Small Signal'!$B$6+'Small Signal'!$B$5),IMPRODUCT(IMPOWER(M29,2),'Small Signal'!$B$58*'Small Signal'!$B$59*'Small Signal'!$B$8*'Small Signal'!$B$7*('Small Signal'!$B$5+'Small Signal'!$B$6)+('Small Signal'!$B$5+'Small Signal'!$B$6)*('Small Signal'!$B$9*'Small Signal'!$B$8*'Small Signal'!$B$59*'Small Signal'!$B$7)))),-1) -> -745.555984535995+162.918292326326i | X29: 0 | Y29: 0 | Z29: 1.00000000081719+0.0000151212479501368i | AA29: -2110.33422637891+465.561624238654i | AB29: 66.69340889 | AC29: 167.5592284 | AD29: -3184.56589318308+700.464115934214i | AE29: 70.26619457 | AF29: 167.5949906 | AH29: 0.00075-62.6138132097005i | AI29: 0.14 | AJ29: 1000-20036420227.1041i | AK29: 0.139999296341438-0.000313028388091695i | AL29: 1.02794354323928-0.0000255843362866071i | AM29: 0.006+0.0000443192940622579i | AN29: 2.83178540574826-0.00569225140390695i | AO29: 9.041224332 | AP29: -0.115171701 | AR29: 1.01809513553332-0.0000250964535086665i | AS29: 2.82838274700244-0.00567992397314136i | AT29: 9.030781102 | AU29: -0.1150605357
A30: fpole Cff | C30: =1/(2*PI()*Cff_ss*Rhs_ss*Rls_ss/(Rhs_ss+Rls_ss)) -> 146981.3155 | D30: Hz | F30: 28 | G30: 168.580156 | H30: 168.5788137 | I30: 1 | J30: 1 | K30: 1 | L30: =10^('Small Signal'!F30/30) -> 8.576958986 | M30: 53.890622680545i | N30: =IF(D$32=1, IF(AND('Small Signal'!$B$63>=1,FCCM=0),U30+0,R30+0), 0) -> 0 | O30: =IF(D$32=1, IF(AND('Small Signal'!$B$63>=1,FCCM=0),V30,S30), 0) -> 0 | P30: =IF(AND('Small Signal'!$B$63>=1,FCCM=0),AE30+0,AB30+0) -> 66.66031597 | Q30: =IF(AND('Small Signal'!$B$63>=1,FCCM=0),AF30,AC30) -> 166.6009534 | R30: 9.04122151 | S30: -0.1243595156 | T30: =IMDIV(IMSUM('Small Signal'!$B$76,IMPRODUCT(M30,'Small Signal'!$B$77)),IMSUM(IMPRODUCT('Small Signal'!$B$80,IMPOWER(M30,2)),IMSUM(IMPRODUCT(M30,'Small Signal'!$B$79),'Small Signal'!$B$78))) -> 4.27267623342656-0.00632439497413695i | U30: 12.61400921 | V30: -0.08480887752 | W30: =IMPRODUCT(IMDIV(IMSUM(IMPRODUCT(M30,'Small Signal'!$B$59*'Small Signal'!$B$6*'Small Signal'!$B$51*'Small Signal'!$B$7*'Small Signal'!$B$8),'Small Signal'!$B$59*'Small Signal'!$B$6*'Small Signal'!$B$51),IMSUM(IMSUM(IMPRODUCT(M30,('Small Signal'!$B$5+'Small Signal'!$B$6)*('Small Signal'!$B$58*'Small Signal'!$B$59)+'Small Signal'!$B$5*'Small Signal'!$B$59*('Small Signal'!$B$8+'Small Signal'!$B$9)+'Small Signal'!$B$6*'Small Signal'!$B$59*('Small Signal'!$B$8+'Small Signal'!$B$9)+'Small Signal'!$B$7*'Small Signal'!$B$8*('Small Signal'!$B$5+'Small Signal'!$B$6)),'Small Signal'!$B$6+'Small Signal'!$B$5),IMPRODUCT(IMPOWER(M30,2),'Small Signal'!$B$58*'Small Signal'!$B$59*'Small Signal'!$B$8*'Small Signal'!$B$7*('Small Signal'!$B$5+'Small Signal'!$B$6)+('Small Signal'!$B$5+'Small Signal'!$B$6)*('Small Signal'!$B$9*'Small Signal'!$B$8*'Small Signal'!$B$59*'Small Signal'!$B$7)))),-1) -> -739.930676002132+174.57982584621i | X30: 0 | Y30: 0 | Z30: 1.00000000095278+0.0000163275479520447i | AA30: -2094.25862627615+498.885954335471i | AB30: 66.66031597 | AC30: 166.6009534 | AD30: -3160.38010196439+750.602686577367i | AE30: 70.23310366 | AF30: 166.6395685 | AH30: 0.00075-57.9878250530617i | AI30: 0.14 | AJ30: 1000-18556104016.9797i | AK30: 0.139999179595037-0.000337999995194098i | AL30: 1.02794354313363-0.0000276253308640787i | AM30: 0.006+0.000047854872940324i | AN30: 2.83178353649073-0.00614634768904527i | AO30: 9.04122151 | AP30: -0.1243595156 | AR30: 1.01809513543068-0.0000270985271584382i | AS30: 2.82838088399668-0.00613303685358388i | AT30: 9.030778287 | AU30: -0.1242394822
F31: 29 | G31: 168.5802631 | H31: 168.5788137 | I31: 1 | J31: 1 | K31: 1 | L31: =10^('Small Signal'!F31/30) -> 9.261187281 | M31: 58.1897558528268i | N31: =IF(D$32=1, IF(AND('Small Signal'!$B$63>=1,FCCM=0),U31+0,R31+0), 0) -> 0 | O31: =IF(D$32=1, IF(AND('Small Signal'!$B$63>=1,FCCM=0),V31,S31), 0) -> 0 | P31: =IF(AND('Small Signal'!$B$63>=1,FCCM=0),AE31+0,AB31+0) -> 66.62204815 | Q31: =IF(AND('Small Signal'!$B$63>=1,FCCM=0),AF31,AC31) -> 165.5746609 | R31: 9.04121822 | S31: -0.1342802828 | T31: =IMDIV(IMSUM('Small Signal'!$B$76,IMPRODUCT(M31,'Small Signal'!$B$77)),IMSUM(IMPRODUCT('Small Signal'!$B$80,IMPOWER(M31,2)),IMSUM(IMPRODUCT(M31,'Small Signal'!$B$79),'Small Signal'!$B$78))) -> 4.27267499348534-0.00682892313306752i | U31: 12.61400827 | V31: -0.09157451516 | W31: =IMPRODUCT(IMDIV(IMSUM(IMPRODUCT(M31,'Small Signal'!$B$59*'Small Signal'!$B$6*'Small Signal'!$B$51*'Small Signal'!$B$7*'Small Signal'!$B$8),'Small Signal'!$B$59*'Small Signal'!$B$6*'Small Signal'!$B$51),IMSUM(IMSUM(IMPRODUCT(M31,('Small Signal'!$B$5+'Small Signal'!$B$6)*('Small Signal'!$B$58*'Small Signal'!$B$59)+'Small Signal'!$B$5*'Small Signal'!$B$59*('Small Signal'!$B$8+'Small Signal'!$B$9)+'Small Signal'!$B$6*'Small Signal'!$B$59*('Small Signal'!$B$8+'Small Signal'!$B$9)+'Small Signal'!$B$7*'Small Signal'!$B$8*('Small Signal'!$B$5+'Small Signal'!$B$6)),'Small Signal'!$B$6+'Small Signal'!$B$5),IMPRODUCT(IMPOWER(M31,2),'Small Signal'!$B$58*'Small Signal'!$B$59*'Small Signal'!$B$8*'Small Signal'!$B$7*('Small Signal'!$B$5+'Small Signal'!$B$6)+('Small Signal'!$B$5+'Small Signal'!$B$6)*('Small Signal'!$B$9*'Small Signal'!$B$8*'Small Signal'!$B$59*'Small Signal'!$B$7)))),-1) -> -733.478929544571+186.853311950812i | X31: 0 | Y31: 0 | Z31: 1.00000000111086+0.000017630080730372i | AA31: -2075.8212917029+533.958985696812i | AB31: 66.62204815 | AC31: 165.5746609 | AD31: -3132.64107360901+803.372344651734i | AE31: 70.19483819 | AF31: 165.6163565 | AH31: 0.00075-53.7036107850964i | AI31: 0.14 | AJ31: 1000-17185155451.2309i | AK31: 0.139999043478974-0.00036496364293543i | AL31: 1.02794354301045-0.0000298291461145429i | AM31: 0.006+0.0000516725031973102i | AN31: 2.83178135709955-0.00663666854474184i | AO31: 9.04121822 | AP31: -0.1342802828 | AR31: 1.01809513531101-0.0000292603165579051i | AS31: 2.8283787118945-0.0066222958580005i | AT31: 9.030775004 | AU31: -0.1341506738
D32: =VLOOKUP(DeviceCalculator!K136,B35:C36,2,FALSE) -> 0 | F32: 30 | G32: 168.5803787 | H32: 168.5788137 | I32: 1 | J32: 1 | K32: 1 | L32: =10^('Small Signal'!F32/30) -> 10 | M32: 62.8318530717959i | N32: =IF(D$32=1, IF(AND('Small Signal'!$B$63>=1,FCCM=0),U32+0,R32+0), 0) -> 0 | O32: =IF(D$32=1, IF(AND('Small Signal'!$B$63>=1,FCCM=0),V32,S32), 0) -> 0 | P32: =IF(AND('Small Signal'!$B$63>=1,FCCM=0),AE32+0,AB32+0) -> 66.57785274 | Q32: =IF(AND('Small Signal'!$B$63>=1,FCCM=0),AF32,AC32) -> 164.4769207 | R32: 9.041214383 | S32: -0.1449924721 | T32: =IMDIV(IMSUM('Small Signal'!$B$76,IMPRODUCT(M32,'Small Signal'!$B$77)),IMSUM(IMPRODUCT('Small Signal'!$B$80,IMPOWER(M32,2)),IMSUM(IMPRODUCT(M32,'Small Signal'!$B$79),'Small Signal'!$B$78))) -> 4.27267354782067-0.00737369972540697i | U32: 12.61400717 | V32: -0.09887988153 | W32: =IMPRODUCT(IMDIV(IMSUM(IMPRODUCT(M32,'Small Signal'!$B$59*'Small Signal'!$B$6*'Small Signal'!$B$51*'Small Signal'!$B$7*'Small Signal'!$B$8),'Small Signal'!$B$59*'Small Signal'!$B$6*'Small Signal'!$B$51),IMSUM(IMSUM(IMPRODUCT(M32,('Small Signal'!$B$5+'Small Signal'!$B$6)*('Small Signal'!$B$58*'Small Signal'!$B$59)+'Small Signal'!$B$5*'Small Signal'!$B$59*('Small Signal'!$B$8+'Small Signal'!$B$9)+'Small Signal'!$B$6*'Small Signal'!$B$59*('Small Signal'!$B$8+'Small Signal'!$B$9)+'Small Signal'!$B$7*'Small Signal'!$B$8*('Small Signal'!$B$5+'Small Signal'!$B$6)),'Small Signal'!$B$6+'Small Signal'!$B$5),IMPRODUCT(IMPOWER(M32,2),'Small Signal'!$B$58*'Small Signal'!$B$59*'Small Signal'!$B$8*'Small Signal'!$B$7*('Small Signal'!$B$5+'Small Signal'!$B$6)+('Small Signal'!$B$5+'Small Signal'!$B$6)*('Small Signal'!$B$9*'Small Signal'!$B$8*'Small Signal'!$B$59*'Small Signal'!$B$7)))),-1) -> -726.098221166209+199.716900392894i | X32: 0 | Y32: 0 | Z32: 1.00000000129517+0.0000190365232699486i | AA32: -2054.72923703463+570.718268820555i | AB32: 66.57785274 | AC32: 164.4769207 | AD32: -3100.90801024292+858.679147615485i | AE32: 70.15064551 | AF32: 164.5219426 | AH32: 0.00075-49.7359197162172i | AI32: 0.14 | AJ32: 1000-15915494309.1895i | AK32: 0.139998884779631-0.000394078227683641i | AL32: 1.02794354286684-0.0000322087710834276i | AM32: 0.006+0.0000557946855277548i | AN32: 2.83177881612011-0.0071661035241895i | AO32: 9.041214383 | AP32: -0.1449924721 | AR32: 1.01809513517148-0.0000315945630567422i | AS32: 2.82837617941338-0.00715058428270812i | AT32: 9.030771177 | AU32: -0.1448525237
D33: =VLOOKUP(DeviceCalculator!K137,B35:C36,2,FALSE) -> 0 | F33: 31 | G33: 168.5805036 | H33: 168.5788137 | I33: 1 | J33: 1 | K33: 1 | L33: =10^('Small Signal'!F33/30) -> 10.79775162 | M33: 67.8442743499492i | N33: =IF(D$32=1, IF(AND('Small Signal'!$B$63>=1,FCCM=0),U33+0,R33+0), 0) -> 0 | O33: =IF(D$32=1, IF(AND('Small Signal'!$B$63>=1,FCCM=0),V33,S33), 0) -> 0 | P33: =IF(AND('Small Signal'!$B$63>=1,FCCM=0),AE33+0,AB33+0) -> 66.52688614 | Q33: =IF(AND('Small Signal'!$B$63>=1,FCCM=0),AF33,AC33) -> 163.3044665 | R33: 9.041209911 | S33: -0.1565592172 | T33: =IMDIV(IMSUM('Small Signal'!$B$76,IMPRODUCT(M33,'Small Signal'!$B$77)),IMSUM(IMPRODUCT('Small Signal'!$B$80,IMPOWER(M33,2)),IMSUM(IMPRODUCT(M33,'Small Signal'!$B$79),'Small Signal'!$B$78))) -> 4.27267186230022-0.00796193547745909i | U33: 12.61400589 | V33: -0.1067680333 | W33: =IMPRODUCT(IMDIV(IMSUM(IMPRODUCT(M33,'Small Signal'!$B$59*'Small Signal'!$B$6*'Small Signal'!$B$51*'Small Signal'!$B$7*'Small Signal'!$B$8),'Small Signal'!$B$59*'Small Signal'!$B$6*'Small Signal'!$B$51),IMSUM(IMSUM(IMPRODUCT(M33,('Small Signal'!$B$5+'Small Signal'!$B$6)*('Small Signal'!$B$58*'Small Signal'!$B$59)+'Small Signal'!$B$5*'Small Signal'!$B$59*('Small Signal'!$B$8+'Small Signal'!$B$9)+'Small Signal'!$B$6*'Small Signal'!$B$59*('Small Signal'!$B$8+'Small Signal'!$B$9)+'Small Signal'!$B$7*'Small Signal'!$B$8*('Small Signal'!$B$5+'Small Signal'!$B$6)),'Small Signal'!$B$6+'Small Signal'!$B$5),IMPRODUCT(IMPOWER(M33,2),'Small Signal'!$B$58*'Small Signal'!$B$59*'Small Signal'!$B$8*'Small Signal'!$B$7*('Small Signal'!$B$5+'Small Signal'!$B$6)+('Small Signal'!$B$5+'Small Signal'!$B$6)*('Small Signal'!$B$9*'Small Signal'!$B$8*'Small Signal'!$B$59*'Small Signal'!$B$7)))),-1) -> -717.679444453752+213.133517947863i | X33: 0 | Y33: 0 | Z33: 1.00000000151005+0.0000205551649881775i | AA33: -2030.67066590954+609.057850475345i | AB33: 66.52688614 | AC33: 163.3044665 | AD33: -3064.71181315082+916.363702479132i | AE33: 70.09968211 | AF33: 163.35308 | AH33: 0.00075-46.061366709899i | AI33: 0.14 | AJ33: 1000-14739637347.1677i | AK33: 0.139998699750239-0.00042551531687147i | AL33: 1.0279435426994-0.0000347782310193191i | AM33: 0.006+0.0000602457156227549i | AN33: 2.83177585356127-0.00773777262581667i | AO33: 9.041209911 | AP33: -0.1565592172 | AR33: 1.01809513500881-0.000034115024447816i | AS33: 2.82837322676285-0.00772101537043011i | AT33: 9.030766715 | AU33: -0.1564081046
F34: 32 | G34: 168.5806384 | H34: 168.5788137 | I34: 1 | J34: 1 | K34: 1 | L34: =10^('Small Signal'!F34/30) -> 11.65914401 | M34: 73.2565623492221i | N34: =IF(D$32=1, IF(AND('Small Signal'!$B$63>=1,FCCM=0),U34+0,R34+0), 0) -> 0 | O34: =IF(D$32=1, IF(AND('Small Signal'!$B$63>=1,FCCM=0),V34,S34), 0) -> 0 | P34: =IF(AND('Small Signal'!$B$63>=1,FCCM=0),AE34+0,AB34+0) -> 66.46820888 | Q34: =IF(AND('Small Signal'!$B$63>=1,FCCM=0),AF34,AC34) -> 162.0542898 | R34: 9.041204696 | S34: -0.1690486875 | T34: =IMDIV(IMSUM('Small Signal'!$B$76,IMPRODUCT(M34,'Small Signal'!$B$77)),IMSUM(IMPRODUCT('Small Signal'!$B$80,IMPOWER(M34,2)),IMSUM(IMPRODUCT(M34,'Small Signal'!$B$79),'Small Signal'!$B$78))) -> 4.27266989712881-0.00859709722610543i | U34: 12.6140044 | V34: -0.1152854618 | W34: =IMPRODUCT(IMDIV(IMSUM(IMPRODUCT(M34,'Small Signal'!$B$59*'Small Signal'!$B$6*'Small Signal'!$B$51*'Small Signal'!$B$7*'Small Signal'!$B$8),'Small Signal'!$B$59*'Small Signal'!$B$6*'Small Signal'!$B$51),IMSUM(IMSUM(IMPRODUCT(M34,('Small Signal'!$B$5+'Small Signal'!$B$6)*('Small Signal'!$B$58*'Small Signal'!$B$59)+'Small Signal'!$B$5*'Small Signal'!$B$59*('Small Signal'!$B$8+'Small Signal'!$B$9)+'Small Signal'!$B$6*'Small Signal'!$B$59*('Small Signal'!$B$8+'Small Signal'!$B$9)+'Small Signal'!$B$7*'Small Signal'!$B$8*('Small Signal'!$B$5+'Small Signal'!$B$6)),'Small Signal'!$B$6+'Small Signal'!$B$5),IMPRODUCT(IMPOWER(M34,2),'Small Signal'!$B$58*'Small Signal'!$B$59*'Small Signal'!$B$8*'Small Signal'!$B$7*('Small Signal'!$B$5+'Small Signal'!$B$6)+('Small Signal'!$B$5+'Small Signal'!$B$6)*('Small Signal'!$B$9*'Small Signal'!$B$8*'Small Signal'!$B$59*'Small Signal'!$B$7)))),-1) -> -708.108565346389+227.047992554505i | X34: 0 | Y34: 0 | Z34: 1.00000000176059+0.0000221949565919085i | AA34: -2003.3197001118+648.820055228267i | AB34: 66.46820888 | AC34: 162.0542898 | AD34: -3023.5621973876+976.188801174081i | AE34: 70.04100857 | AF34: 162.1067814 | AH34: 0.00075-42.6582943532455i | AI34: 0.14 | AJ34: 1000-13650654193.0386i | AK34: 0.139998484022428-0.000459460158559174i | AL34: 1.02794354250418-0.000037552670037224i | AM34: 0.006+0.0000650518273661092i | AN34: 2.83177239947899-0.00835504465914032i | AO34: 9.041204696 | AP34: -0.1690486875 | AR34: 1.01809513481915-0.0000368365560540917i | AS34: 2.82836978423274-0.00833695063643622i | AT34: 9.030761513 | AU34: -0.1688855201
B35: YES | C35: 1 | F35: 33 | G35: 168.580784 | H35: 168.5788137 | I35: 1 | J35: 1 | K35: 1 | L35: =10^('Small Signal'!F35/30) -> 12.58925412 | M35: 79.1006165022013i | N35: =IF(D$32=1, IF(AND('Small Signal'!$B$63>=1,FCCM=0),U35+0,R35+0), 0) -> 0 | O35: =IF(D$32=1, IF(AND('Small Signal'!$B$63>=1,FCCM=0),V35,S35), 0) -> 0 | P35: =IF(AND('Small Signal'!$B$63>=1,FCCM=0),AE35+0,AB35+0) -> 66.40078234 | Q35: =IF(AND('Small Signal'!$B$63>=1,FCCM=0),AF35,AC35) -> 160.7237506 | R35: 9.041198616 | S35: -0.1825344901 | T35: =IMDIV(IMSUM('Small Signal'!$B$76,IMPRODUCT(M35,'Small Signal'!$B$77)),IMSUM(IMPRODUCT('Small Signal'!$B$80,IMPOWER(M35,2)),IMSUM(IMPRODUCT(M35,'Small Signal'!$B$79),'Small Signal'!$B$78))) -> 4.2726676059087-0.00928292834343032i | U35: 12.61400266 | V35: -0.1244823674 | W35: =IMPRODUCT(IMDIV(IMSUM(IMPRODUCT(M35,'Small Signal'!$B$59*'Small Signal'!$B$6*'Small Signal'!$B$51*'Small Signal'!$B$7*'Small Signal'!$B$8),'Small Signal'!$B$59*'Small Signal'!$B$6*'Small Signal'!$B$51),IMSUM(IMSUM(IMPRODUCT(M35,('Small Signal'!$B$5+'Small Signal'!$B$6)*('Small Signal'!$B$58*'Small Signal'!$B$59)+'Small Signal'!$B$5*'Small Signal'!$B$59*('Small Signal'!$B$8+'Small Signal'!$B$9)+'Small Signal'!$B$6*'Small Signal'!$B$59*('Small Signal'!$B$8+'Small Signal'!$B$9)+'Small Signal'!$B$7*'Small Signal'!$B$8*('Small Signal'!$B$5+'Small Signal'!$B$6)),'Small Signal'!$B$6+'Small Signal'!$B$5),IMPRODUCT(IMPOWER(M35,2),'Small Signal'!$B$58*'Small Signal'!$B$59*'Small Signal'!$B$8*'Small Signal'!$B$7*('Small Signal'!$B$5+'Small Signal'!$B$6)+('Small Signal'!$B$5+'Small Signal'!$B$6)*('Small Signal'!$B$9*'Small Signal'!$B$8*'Small Signal'!$B$59*'Small Signal'!$B$7)))),-1) -> -697.269077377588+241.384123462389i | X35: 0 | Y35: 0 | Z35: 1.0000000020527+0.0000239655628318653i | AA35: -1972.34339599007+689.787112670447i | AB35: 66.40078234 | AC35: 160.7237506 | AD35: -2976.95824799172+1037.8268237798i | AE35: 69.97358636 | AF35: 160.7804296 | AH35: 0.00075-39.5066453105715i | AI35: 0.14 | AJ35: 1000-12642126499.3829i | AK35: 0.139998232503109-0.000496112771205535i | AL35: 1.02794354227656-0.0000405484403763041i | AM35: 0.006+0.0000702413474539548i | AN35: 2.83176837232515-0.00902155707110937i | AO35: 9.041198616 | AP35: -0.1825344901 | AR35: 1.01809513459802-0.0000397751982842615i | AS35: 2.8283657705477-0.00900201965202621i | AT35: 9.030755447 | AU35: -0.1823583063
B36: NO | C36: 0 | F36: 34 | G36: 168.5809411 | H36: 168.5788137 | I36: 1 | J36: 1 | K36: 1 | L36: =10^('Small Signal'!F36/30) -> 13.59356391 | M36: 85.4108810238862i | N36: =IF(D$32=1, IF(AND('Small Signal'!$B$63>=1,FCCM=0),U36+0,R36+0), 0) -> 0 | O36: =IF(D$32=1, IF(AND('Small Signal'!$B$63>=1,FCCM=0),V36,S36), 0) -> 0 | P36: =IF(AND('Small Signal'!$B$63>=1,FCCM=0),AE36+0,AB36+0) -> 66.32346802 | Q36: =IF(AND('Small Signal'!$B$63>=1,FCCM=0),AF36,AC36) -> 159.3107041 | R36: 9.041191527 | S36: -0.1970961031 | T36: =IMDIV(IMSUM('Small Signal'!$B$76,IMPRODUCT(M36,'Small Signal'!$B$77)),IMSUM(IMPRODUCT('Small Signal'!$B$80,IMPOWER(M36,2)),IMSUM(IMPRODUCT(M36,'Small Signal'!$B$79),'Small Signal'!$B$78))) -> 4.27266493454429-0.0100234707890058i | U36: 12.61400063 | V36: -0.1344129548 | W36: =IMPRODUCT(IMDIV(IMSUM(IMPRODUCT(M36,'Small Signal'!$B$59*'Small Signal'!$B$6*'Small Signal'!$B$51*'Small Signal'!$B$7*'Small Signal'!$B$8),'Small Signal'!$B$59*'Small Signal'!$B$6*'Small Signal'!$B$51),IMSUM(IMSUM(IMPRODUCT(M36,('Small Signal'!$B$5+'Small Signal'!$B$6)*('Small Signal'!$B$58*'Small Signal'!$B$59)+'Small Signal'!$B$5*'Small Signal'!$B$59*('Small Signal'!$B$8+'Small Signal'!$B$9)+'Small Signal'!$B$6*'Small Signal'!$B$59*('Small Signal'!$B$8+'Small Signal'!$B$9)+'Small Signal'!$B$7*'Small Signal'!$B$8*('Small Signal'!$B$5+'Small Signal'!$B$6)),'Small Signal'!$B$6+'Small Signal'!$B$5),IMPRODUCT(IMPOWER(M36,2),'Small Signal'!$B$58*'Small Signal'!$B$59*'Small Signal'!$B$8*'Small Signal'!$B$7*('Small Signal'!$B$5+'Small Signal'!$B$6)+('Small Signal'!$B$5+'Small Signal'!$B$6)*('Small Signal'!$B$9*'Small Signal'!$B$8*'Small Signal'!$B$59*'Small Signal'!$B$7)))),-1) -> -685.045393570186+256.041887115948i | X36: 0 | Y36: 0 | Z36: 1.00000000239327+0.0000258774194655544i | AA36: -1937.41143757793+731.673172537267i | AB36: 66.32346802 | AC36: 159.3107041 | AD36: -2924.40300330216+1100.84772534645i | AE36: 69.8962771 | AF36: 159.3719046 | AH36: 0.00075-36.5878441076618i | AI36: 0.14 | AJ36: 1000-11708110114.4518i | AK36: 0.13999793925426-0.000535689119960526i | AL36: 1.02794354201119-0.000043783198778156i | AM36: 0.006+0.0000758448623492109i | AN36: 2.83176367702275-0.00974123734824726i | AO36: 9.041191527 | AP36: -0.1970961031 | AR36: 1.01809513434019-0.000042948271173129i | AS36: 2.82836109094867-0.00972014140041972i | AT36: 9.030748376 | AU36: -0.1969058646
F37: 35 | G37: 168.5811108 | H37: 168.5788137 | I37: 1 | J37: 1 | K37: 1 | L37: =10^('Small Signal'!F37/30) -> 14.67799268 | M37: 92.2245479221195i | N37: =IF(D$32=1, IF(AND('Small Signal'!$B$63>=1,FCCM=0),U37+0,R37+0), 0) -> 0 | O37: =IF(D$32=1, IF(AND('Small Signal'!$B$63>=1,FCCM=0),V37,S37), 0) -> 0 | P37: =IF(AND('Small Signal'!$B$63>=1,FCCM=0),AE37+0,AB37+0) -> 66.23503019 | Q37: =IF(AND('Small Signal'!$B$63>=1,FCCM=0),AF37,AC37) -> 157.8136428 | R37: 9.041183263 | S37: -0.2128193438 | T37: =IMDIV(IMSUM('Small Signal'!$B$76,IMPRODUCT(M37,'Small Signal'!$B$77)),IMSUM(IMPRODUCT('Small Signal'!$B$80,IMPOWER(M37,2)),IMSUM(IMPRODUCT(M37,'Small Signal'!$B$79),'Small Signal'!$B$78))) -> 4.2726618199649-0.0108230889192374i | U37: 12.61399826 | V37: -0.1451357529 | W37: =IMPRODUCT(IMDIV(IMSUM(IMPRODUCT(M37,'Small Signal'!$B$59*'Small Signal'!$B$6*'Small Signal'!$B$51*'Small Signal'!$B$7*'Small Signal'!$B$8),'Small Signal'!$B$59*'Small Signal'!$B$6*'Small Signal'!$B$51),IMSUM(IMSUM(IMPRODUCT(M37,('Small Signal'!$B$5+'Small Signal'!$B$6)*('Small Signal'!$B$58*'Small Signal'!$B$59)+'Small Signal'!$B$5*'Small Signal'!$B$59*('Small Signal'!$B$8+'Small Signal'!$B$9)+'Small Signal'!$B$6*'Small Signal'!$B$59*('Small Signal'!$B$8+'Small Signal'!$B$9)+'Small Signal'!$B$7*'Small Signal'!$B$8*('Small Signal'!$B$5+'Small Signal'!$B$6)),'Small Signal'!$B$6+'Small Signal'!$B$5),IMPRODUCT(IMPOWER(M37,2),'Small Signal'!$B$58*'Small Signal'!$B$59*'Small Signal'!$B$8*'Small Signal'!$B$7*('Small Signal'!$B$5+'Small Signal'!$B$6)+('Small Signal'!$B$5+'Small Signal'!$B$6)*('Small Signal'!$B$9*'Small Signal'!$B$8*'Small Signal'!$B$59*'Small Signal'!$B$7)))),-1) -> -671.327278411605+270.895040583616i | X37: 0 | Y37: 0 | Z37: 1.00000000279035+0.0000279417947643871i | AA37: -1898.20880198152+774.117455899998i | AB37: 66.23503019 | AC37: 157.8136428 | AD37: -2865.42251005819+1164.70873194762i | AE37: 69.80784517 | AF37: 157.8797254 | AH37: 0.00075-33.8846876499624i | AI37: 0.14 | AJ37: 1000-10843100047.9879i | AK37: 0.139997597352764-0.000578422386274298i | AL37: 1.02794354170178-0.0000472760105536797i | AM37: 0.006+0.0000818953985548421i | AN37: 2.83175820272143-0.0105183261187861i | AO37: 9.041183263 | AP37: -0.2128193438 | AR37: 1.01809513403959-0.0000463744764639674i | AS37: 2.82835563495604-0.0104955473289817i | AT37: 9.03074013 | AU37: -0.2126139294
F38: 36 | G38: 168.5812941 | H38: 168.5788137 | I38: 1 | J38: 1 | K38: 1 | L38: =10^('Small Signal'!F38/30) -> 15.84893192 | M38: 99.5817762032062i | N38: =IF(D$32=1, IF(AND('Small Signal'!$B$63>=1,FCCM=0),U38+0,R38+0), 0) -> 0 | O38: =IF(D$32=1, IF(AND('Small Signal'!$B$63>=1,FCCM=0),V38,S38), 0) -> 0 | P38: =IF(AND('Small Signal'!$B$63>=1,FCCM=0),AE38+0,AB38+0) -> 66.13414272 | Q38: =IF(AND('Small Signal'!$B$63>=1,FCCM=0),AF38,AC38) -> 156.2318493 | R38: 9.041173627 | S38: -0.2297968742 | T38: =IMDIV(IMSUM('Small Signal'!$B$76,IMPRODUCT(M38,'Small Signal'!$B$77)),IMSUM(IMPRODUCT('Small Signal'!$B$80,IMPOWER(M38,2)),IMSUM(IMPRODUCT(M38,'Small Signal'!$B$79),'Small Signal'!$B$78))) -> 4.27265818863584-0.0116864951933812i | U38: 12.61399551 | V38: -0.1567139594 | W38: =IMPRODUCT(IMDIV(IMSUM(IMPRODUCT(M38,'Small Signal'!$B$59*'Small Signal'!$B$6*'Small Signal'!$B$51*'Small Signal'!$B$7*'Small Signal'!$B$8),'Small Signal'!$B$59*'Small Signal'!$B$6*'Small Signal'!$B$51),IMSUM(IMSUM(IMPRODUCT(M38,('Small Signal'!$B$5+'Small Signal'!$B$6)*('Small Signal'!$B$58*'Small Signal'!$B$59)+'Small Signal'!$B$5*'Small Signal'!$B$59*('Small Signal'!$B$8+'Small Signal'!$B$9)+'Small Signal'!$B$6*'Small Signal'!$B$59*('Small Signal'!$B$8+'Small Signal'!$B$9)+'Small Signal'!$B$7*'Small Signal'!$B$8*('Small Signal'!$B$5+'Small Signal'!$B$6)),'Small Signal'!$B$6+'Small Signal'!$B$5),IMPRODUCT(IMPOWER(M38,2),'Small Signal'!$B$58*'Small Signal'!$B$59*'Small Signal'!$B$8*'Small Signal'!$B$7*('Small Signal'!$B$5+'Small Signal'!$B$6)+('Small Signal'!$B$5+'Small Signal'!$B$6)*('Small Signal'!$B$9*'Small Signal'!$B$8*'Small Signal'!$B$59*'Small Signal'!$B$7)))),-1) -> -656.015359805825+285.789458152554i | X38: 0 | Y38: 0 | Z38: 1.00000000325331+0.0000301708559275229i | AA38: -1854.45151104851+816.679501540954i | AB38: 66.13414272 | AC38: 156.2318493 | AD38: -2799.58952181623+1228.74718895046i | AE38: 69.70696456 | AF38: 156.3032036 | AH38: 0.00075-31.3812438294245i | AI38: 0.14 | AJ38: 1000-10041998025.4159i | AK38: 0.139997198727006-0.000624564338131728i | AL38: 1.02794354134104-0.0000510474619518919i | AM38: 0.006+0.0000884286172684471i | AN38: 2.83175182018099-0.0113574020885057i | AO38: 9.041173627 | AP38: -0.2297968742 | AR38: 1.01809513368912-0.0000500740078345056i | AS38: 2.82834927376178-0.0113328062312126i | AT38: 9.030730517 | AU38: -0.2295750734
A39: Ro | B39: =B3/B4 -> 0.14 | F39: 37 | G39: 168.581492 | H39: 168.5788137 | I39: 1 | J39: 1 | K39: 1 | L39: =10^('Small Signal'!F39/30) -> 17.11328304 | M39: 107.525928564699i | N39: =IF(D$32=1, IF(AND('Small Signal'!$B$63>=1,FCCM=0),U39+0,R39+0), 0) -> 0 | O39: =IF(D$32=1, IF(AND('Small Signal'!$B$63>=1,FCCM=0),V39,S39), 0) -> 0 | P39: =IF(AND('Small Signal'!$B$63>=1,FCCM=0),AE39+0,AB39+0) -> 66.01940114 | Q39: =IF(AND('Small Signal'!$B$63>=1,FCCM=0),AF39,AC39) -> 154.5655568 | R39: 9.041162392 | S39: -0.2481287464 | T39: =IMDIV(IMSUM('Small Signal'!$B$76,IMPRODUCT(M39,'Small Signal'!$B$77)),IMSUM(IMPRODUCT('Small Signal'!$B$80,IMPOWER(M39,2)),IMSUM(IMPRODUCT(M39,'Small Signal'!$B$79),'Small Signal'!$B$78))) -> 4.27265395482227-0.0126187779268325i | U39: 12.61399229 | V39: -0.1692158137 | W39: =IMPRODUCT(IMDIV(IMSUM(IMPRODUCT(M39,'Small Signal'!$B$59*'Small Signal'!$B$6*'Small Signal'!$B$51*'Small Signal'!$B$7*'Small Signal'!$B$8),'Small Signal'!$B$59*'Small Signal'!$B$6*'Small Signal'!$B$51),IMSUM(IMSUM(IMPRODUCT(M39,('Small Signal'!$B$5+'Small Signal'!$B$6)*('Small Signal'!$B$58*'Small Signal'!$B$59)+'Small Signal'!$B$5*'Small Signal'!$B$59*('Small Signal'!$B$8+'Small Signal'!$B$9)+'Small Signal'!$B$6*'Small Signal'!$B$59*('Small Signal'!$B$8+'Small Signal'!$B$9)+'Small Signal'!$B$7*'Small Signal'!$B$8*('Small Signal'!$B$5+'Small Signal'!$B$6)),'Small Signal'!$B$6+'Small Signal'!$B$5),IMPRODUCT(IMPOWER(M39,2),'Small Signal'!$B$58*'Small Signal'!$B$59*'Small Signal'!$B$8*'Small Signal'!$B$7*('Small Signal'!$B$5+'Small Signal'!$B$6)+('Small Signal'!$B$5+'Small Signal'!$B$6)*('Small Signal'!$B$9*'Small Signal'!$B$8*'Small Signal'!$B$59*'Small Signal'!$B$7)))),-1) -> -639.027660064684+300.542600320292i | X39: 0 | Y39: 0 | Z39: 1.00000000379308+0.0000325777407938611i | AA39: -1805.90529517609+858.83764840658i | AB39: 66.01940114 | AC39: 154.5655568 | AD39: -2726.5515786852+1292.17827798252i | AE39: 69.592231 | AF39: 154.6426031 | AH39: 0.00075-29.0627576224061i | AI39: 0.14 | AJ39: 1000-9300082439.16995i | AK39: 0.139996733966375-0.000674386808769499i | AL39: 1.02794354092044-0.0000551197814929688i | AM39: 0.006+0.0000954830245654527i | AN39: 2.83174437872091-0.0122634089541573i | AO39: 9.041162392 | AP39: -0.2481287464 | AR39: 1.0180951332805-0.0000540686699162013i | AS39: 2.82834185718936-0.0122368511020812i | AT39: 9.030719309 | AU39: -0.2478892522
A40: Co | B40: =B14 -> 0.00032 | F40: 38 | G40: 168.5817056 | H40: 168.5788137 | I40: 1 | J40: 1 | K40: 1 | L40: =10^('Small Signal'!F40/30) -> 18.47849797 | M40: 116.103826970385i | N40: =IF(D$32=1, IF(AND('Small Signal'!$B$63>=1,FCCM=0),U40+0,R40+0), 0) -> 0 | O40: =IF(D$32=1, IF(AND('Small Signal'!$B$63>=1,FCCM=0),V40,S40), 0) -> 0 | P40: =IF(AND('Small Signal'!$B$63>=1,FCCM=0),AE40+0,AB40+0) -> 65.88934071 | Q40: =IF(AND('Small Signal'!$B$63>=1,FCCM=0),AF40,AC40) -> 152.8161068 | R40: 9.041149293 | S40: -0.2679229922 | T40: =IMDIV(IMSUM('Small Signal'!$B$76,IMPRODUCT(M40,'Small Signal'!$B$77)),IMSUM(IMPRODUCT('Small Signal'!$B$80,IMPOWER(M40,2)),IMSUM(IMPRODUCT(M40,'Small Signal'!$B$79),'Small Signal'!$B$78))) -> 4.27264901856523-0.0136254312541219i | U40: 12.61398854 | V40: -0.1827149984 | W40: =IMPRODUCT(IMDIV(IMSUM(IMPRODUCT(M40,'Small Signal'!$B$59*'Small Signal'!$B$6*'Small Signal'!$B$51*'Small Signal'!$B$7*'Small Signal'!$B$8),'Small Signal'!$B$59*'Small Signal'!$B$6*'Small Signal'!$B$51),IMSUM(IMSUM(IMPRODUCT(M40,('Small Signal'!$B$5+'Small Signal'!$B$6)*('Small Signal'!$B$58*'Small Signal'!$B$59)+'Small Signal'!$B$5*'Small Signal'!$B$59*('Small Signal'!$B$8+'Small Signal'!$B$9)+'Small Signal'!$B$6*'Small Signal'!$B$59*('Small Signal'!$B$8+'Small Signal'!$B$9)+'Small Signal'!$B$7*'Small Signal'!$B$8*('Small Signal'!$B$5+'Small Signal'!$B$6)),'Small Signal'!$B$6+'Small Signal'!$B$5),IMPRODUCT(IMPOWER(M40,2),'Small Signal'!$B$58*'Small Signal'!$B$59*'Small Signal'!$B$8*'Small Signal'!$B$7*('Small Signal'!$B$5+'Small Signal'!$B$6)+('Small Signal'!$B$5+'Small Signal'!$B$6)*('Small Signal'!$B$9*'Small Signal'!$B$8*'Small Signal'!$B$59*'Small Signal'!$B$7)))),-1) -> -620.306944495694+314.944550605561i | X40: 0 | Y40: 0 | Z40: 1.00000000442241+0.0000351766352748426i | AA40: -1752.40659358905+899.991998456739i | AB40: 65.88934071 | AC40: 152.8161068 | AD40: -2646.06260228559+1354.099474676i | AE40: 69.46217991 | AF40: 152.8992994 | AH40: 0.00075-26.9155641251783i | AI40: 0.14 | AJ40: 1000-8612980520.05705i | AK40: 0.13999619209918-0.000728183292315746i | AL40: 1.02794354043007-0.0000595169709806457i | AM40: 0.006+0.000103100198349702i | AN40: 2.83173570266409-0.0132416844492155i | AO40: 9.041149293 | AP40: -0.2679229922 | AR40: 1.01809513280409-0.0000583820068082897i | AS40: 2.82833321014913-0.0132130081211163i | AT40: 9.030706241 | AU40: -0.2676643933
A41: Rc | B41: =B15 -> 0.00075 | F41: 39 | G41: 168.5819363 | H41: 168.5788137 | I41: 1 | J41: 1 | K41: 1 | L41: =10^('Small Signal'!F41/30) -> 19.95262315 | M41: 125.366028613816i | N41: =IF(D$32=1, IF(AND('Small Signal'!$B$63>=1,FCCM=0),U41+0,R41+0), 0) -> 0 | O41: =IF(D$32=1, IF(AND('Small Signal'!$B$63>=1,FCCM=0),V41,S41), 0) -> 0 | P41: =IF(AND('Small Signal'!$B$63>=1,FCCM=0),AE41+0,AB41+0) -> 65.74246094 | Q41: =IF(AND('Small Signal'!$B$63>=1,FCCM=0),AF41,AC41) -> 150.9860972 | R41: 9.041134021 | S41: -0.2892962585 | T41: =IMDIV(IMSUM('Small Signal'!$B$76,IMPRODUCT(M41,'Small Signal'!$B$77)),IMSUM(IMPRODUCT('Small Signal'!$B$80,IMPOWER(M41,2)),IMSUM(IMPRODUCT(M41,'Small Signal'!$B$79),'Small Signal'!$B$78))) -> 4.27264326332185-0.014712387476781i | U41: 12.61398417 | V41: -0.1972910738 | W41: =IMPRODUCT(IMDIV(IMSUM(IMPRODUCT(M41,'Small Signal'!$B$59*'Small Signal'!$B$6*'Small Signal'!$B$51*'Small Signal'!$B$7*'Small Signal'!$B$8),'Small Signal'!$B$59*'Small Signal'!$B$6*'Small Signal'!$B$51),IMSUM(IMSUM(IMPRODUCT(M41,('Small Signal'!$B$5+'Small Signal'!$B$6)*('Small Signal'!$B$58*'Small Signal'!$B$59)+'Small Signal'!$B$5*'Small Signal'!$B$59*('Small Signal'!$B$8+'Small Signal'!$B$9)+'Small Signal'!$B$6*'Small Signal'!$B$59*('Small Signal'!$B$8+'Small Signal'!$B$9)+'Small Signal'!$B$7*'Small Signal'!$B$8*('Small Signal'!$B$5+'Small Signal'!$B$6)),'Small Signal'!$B$6+'Small Signal'!$B$5),IMPRODUCT(IMPOWER(M41,2),'Small Signal'!$B$58*'Small Signal'!$B$59*'Small Signal'!$B$8*'Small Signal'!$B$7*('Small Signal'!$B$5+'Small Signal'!$B$6)+('Small Signal'!$B$5+'Small Signal'!$B$6)*('Small Signal'!$B$9*'Small Signal'!$B$8*'Small Signal'!$B$59*'Small Signal'!$B$7)))),-1) -> -599.828511275156+328.761042979014i | X41: 0 | Y41: 0 | Z41: 1.00000000515615+0.0000379828569644299i | AA41: -1693.88481569278+939.473068159249i | AB41: 65.74246094 | AC41: 150.9860972 | AD41: -2558.01638799659+1413.50356500445i | AE41: 69.31531103 | AF41: 151.0759261 | AH41: 0.00075-24.9270080144791i | AI41: 0.14 | AJ41: 1000-7976642564.63329i | AK41: 0.139995560333738-0.00078627066540987i | AL41: 1.02794353985833-0.0000642649469661365i | AM41: 0.006+0.000111325033409069i | AN41: 2.83172558719056-0.0142979916882589i | AO41: 9.041134021 | AP41: -0.2892962585 | AR41: 1.01809513224862-0.0000630394408440451i | AS41: 2.82832312850607-0.0142670279292152i | AT41: 9.030691006 | AU41: -0.289017031
A42: Lo | B42: =B12 -> 8.88e-07 | F42: 40 | G42: 168.5821854 | H42: 168.5788137 | I42: 1 | J42: 1 | K42: 1 | L42: =10^('Small Signal'!F42/30) -> 21.5443469 | M42: 135.367123896863i | N42: =IF(D$32=1, IF(AND('Small Signal'!$B$63>=1,FCCM=0),U42+0,R42+0), 0) -> 0 | O42: =IF(D$32=1, IF(AND('Small Signal'!$B$63>=1,FCCM=0),V42,S42), 0) -> 0 | P42: =IF(AND('Small Signal'!$B$63>=1,FCCM=0),AE42+0,AB42+0) -> 65.57725681 | Q42: =IF(AND('Small Signal'!$B$63>=1,FCCM=0),AF42,AC42) -> 149.079505 | R42: 9.041116216 | S42: -0.3123744941 | T42: =IMDIV(IMSUM('Small Signal'!$B$76,IMPRODUCT(M42,'Small Signal'!$B$77)),IMSUM(IMPRODUCT('Small Signal'!$B$80,IMPOWER(M42,2)),IMSUM(IMPRODUCT(M42,'Small Signal'!$B$79),'Small Signal'!$B$78))) -> 4.27263655321396-0.0158860519849198i | U42: 12.61397907 | V42: -0.2130299468 | W42: =IMPRODUCT(IMDIV(IMSUM(IMPRODUCT(M42,'Small Signal'!$B$59*'Small Signal'!$B$6*'Small Signal'!$B$51*'Small Signal'!$B$7*'Small Signal'!$B$8),'Small Signal'!$B$59*'Small Signal'!$B$6*'Small Signal'!$B$51),IMSUM(IMSUM(IMPRODUCT(M42,('Small Signal'!$B$5+'Small Signal'!$B$6)*('Small Signal'!$B$58*'Small Signal'!$B$59)+'Small Signal'!$B$5*'Small Signal'!$B$59*('Small Signal'!$B$8+'Small Signal'!$B$9)+'Small Signal'!$B$6*'Small Signal'!$B$59*('Small Signal'!$B$8+'Small Signal'!$B$9)+'Small Signal'!$B$7*'Small Signal'!$B$8*('Small Signal'!$B$5+'Small Signal'!$B$6)),'Small Signal'!$B$6+'Small Signal'!$B$5),IMPRODUCT(IMPOWER(M42,2),'Small Signal'!$B$58*'Small Signal'!$B$59*'Small Signal'!$B$8*'Small Signal'!$B$7*('Small Signal'!$B$5+'Small Signal'!$B$6)+('Small Signal'!$B$5+'Small Signal'!$B$6)*('Small Signal'!$B$9*'Small Signal'!$B$8*'Small Signal'!$B$59*'Small Signal'!$B$7)))),-1) -> -577.607853593999+341.738819047045i | X42: 0 | Y42: 0 | Z42: 1.00000000601163+0.0000410129454190426i | AA42: -1630.38423741842+976.557097780163i | AB42: 65.57725681 | AC42: 149.079505 | AD42: -2462.47954804453+1469.30167830167i | AE42: 69.1501196 | AF42: 149.1764997 | AH42: 0.00075-23.0853689584256i | AI42: 0.14 | AJ42: 1000-7387318066.69621i | AK42: 0.139994823756549-0.000848991044513012i | AL42: 1.02794353919173-0.0000693916934973429i | AM42: 0.006+0.000120206006020414i | AN42: 2.83171379350415-0.0154385529885654i | AO42: 9.041116216 | AP42: -0.3123744941 | AR42: 1.018095131601-0.0000680684224271278i | AS42: 2.82831137426258-0.015405119377378i | AT42: 9.030673242 | AU42: -0.3120729927
A43: Rdc | B43: =B13 -> 0.006 | F43: 41 | G43: 168.5824544 | H43: 168.5788137 | I43: 1 | J43: 1 | K43: 1 | L43: =10^('Small Signal'!F43/30) -> 23.26305067 | M43: 146.166058179571i | N43: =IF(D$32=1, IF(AND('Small Signal'!$B$63>=1,FCCM=0),U43+0,R43+0), 0) -> 0 | O43: =IF(D$32=1, IF(AND('Small Signal'!$B$63>=1,FCCM=0),V43,S43), 0) -> 0 | P43: =IF(AND('Small Signal'!$B$63>=1,FCCM=0),AE43+0,AB43+0) -> 65.39225631 | Q43: =IF(AND('Small Signal'!$B$63>=1,FCCM=0),AF43,AC43) -> 147.101773 | R43: 9.041095456 | S43: -0.3372936909 | T43: =IMDIV(IMSUM('Small Signal'!$B$76,IMPRODUCT(M43,'Small Signal'!$B$77)),IMSUM(IMPRODUCT('Small Signal'!$B$80,IMPOWER(M43,2)),IMSUM(IMPRODUCT(M43,'Small Signal'!$B$79),'Small Signal'!$B$78))) -> 4.27262872982058-0.0171533409560708i | U43: 12.61397313 | V43: -0.2300243769 | W43: =IMPRODUCT(IMDIV(IMSUM(IMPRODUCT(M43,'Small Signal'!$B$59*'Small Signal'!$B$6*'Small Signal'!$B$51*'Small Signal'!$B$7*'Small Signal'!$B$8),'Small Signal'!$B$59*'Small Signal'!$B$6*'Small Signal'!$B$51),IMSUM(IMSUM(IMPRODUCT(M43,('Small Signal'!$B$5+'Small Signal'!$B$6)*('Small Signal'!$B$58*'Small Signal'!$B$59)+'Small Signal'!$B$5*'Small Signal'!$B$59*('Small Signal'!$B$8+'Small Signal'!$B$9)+'Small Signal'!$B$6*'Small Signal'!$B$59*('Small Signal'!$B$8+'Small Signal'!$B$9)+'Small Signal'!$B$7*'Small Signal'!$B$8*('Small Signal'!$B$5+'Small Signal'!$B$6)),'Small Signal'!$B$6+'Small Signal'!$B$5),IMPRODUCT(IMPOWER(M43,2),'Small Signal'!$B$58*'Small Signal'!$B$59*'Small Signal'!$B$8*'Small Signal'!$B$7*('Small Signal'!$B$5+'Small Signal'!$B$6)+('Small Signal'!$B$5+'Small Signal'!$B$6)*('Small Signal'!$B$9*'Small Signal'!$B$8*'Small Signal'!$B$59*'Small Signal'!$B$7)))),-1) -> -553.707444447546+353.613482307425i | X43: 0 | Y43: 0 | Z43: 1.00000000700904+0.0000442847596395214i | AA43: -1562.0833903242+1010.48849662042i | AB43: 65.39225631 | AC43: 147.101773 | AD43: -2359.72068243343+1520.35705634313i | AE43: 68.96513391 | AF43: 147.206505 | AH43: 0.00075-21.379792538161i | AI43: 0.14 | AJ43: 1000-6841533612.21152i | AK43: 0.139993964980436-0.00091671378930647i | AL43: 1.02794353841454-0.0000749274270536378i | AM43: 0.006+0.000129795459663459i | AN43: 2.83170004319744-0.0166700863605139i | AO43: 9.041095456 | AP43: -0.3372936909 | AR43: 1.01809513084593-0.0000734985918211327i | AS43: 2.82829766994222-0.0166339859385719i | AT43: 9.030652532 | AU43: -0.336968139
A44: Vin | B44: =B2 -> 9.5 | F44: 42 | G44: 168.5827448 | H44: 168.5788137 | I44: 1 | J44: 1 | K44: 1 | L44: =10^('Small Signal'!F44/30) -> 25.11886432 | M44: 157.826479197648i | N44: =IF(D$32=1, IF(AND('Small Signal'!$B$63>=1,FCCM=0),U44+0,R44+0), 0) -> 0 | O44: =IF(D$32=1, IF(AND('Small Signal'!$B$63>=1,FCCM=0),V44,S44), 0) -> 0 | P44: =IF(AND('Small Signal'!$B$63>=1,FCCM=0),AE44+0,AB44+0) -> 65.18606303 | Q44: =IF(AND('Small Signal'!$B$63>=1,FCCM=0),AF44,AC44) -> 145.0598447 | R44: 9.041071252 | S44: -0.3642006836 | T44: =IMDIV(IMSUM('Small Signal'!$B$76,IMPRODUCT(M44,'Small Signal'!$B$77)),IMSUM(IMPRODUCT('Small Signal'!$B$80,IMPOWER(M44,2)),IMSUM(IMPRODUCT(M44,'Small Signal'!$B$79),'Small Signal'!$B$78))) -> 4.2726196084381-0.0185217220506181i | U44: 12.6139662 | V44: -0.2483745226 | W44: =IMPRODUCT(IMDIV(IMSUM(IMPRODUCT(M44,'Small Signal'!$B$59*'Small Signal'!$B$6*'Small Signal'!$B$51*'Small Signal'!$B$7*'Small Signal'!$B$8),'Small Signal'!$B$59*'Small Signal'!$B$6*'Small Signal'!$B$51),IMSUM(IMSUM(IMPRODUCT(M44,('Small Signal'!$B$5+'Small Signal'!$B$6)*('Small Signal'!$B$58*'Small Signal'!$B$59)+'Small Signal'!$B$5*'Small Signal'!$B$59*('Small Signal'!$B$8+'Small Signal'!$B$9)+'Small Signal'!$B$6*'Small Signal'!$B$59*('Small Signal'!$B$8+'Small Signal'!$B$9)+'Small Signal'!$B$7*'Small Signal'!$B$8*('Small Signal'!$B$5+'Small Signal'!$B$6)),'Small Signal'!$B$6+'Small Signal'!$B$5),IMPRODUCT(IMPOWER(M44,2),'Small Signal'!$B$58*'Small Signal'!$B$59*'Small Signal'!$B$8*'Small Signal'!$B$7*('Small Signal'!$B$5+'Small Signal'!$B$6)+('Small Signal'!$B$5+'Small Signal'!$B$6)*('Small Signal'!$B$9*'Small Signal'!$B$8*'Small Signal'!$B$59*'Small Signal'!$B$7)))),-1) -> -528.241768084849+364.11975297641i | X44: 0 | Y44: 0 | Z44: 1.00000000817195+0.0000478175833296699i | AA44: -1489.30944012837+1040.5091484269i | AB44: 65.18606303 | AC44: 145.0598447 | AD44: -2250.23201145757+1565.52914359064i | AE44: 68.75895789 | AF44: 145.1729311 | AH44: 0.00075-19.8002262730991i | AI44: 0.14 | AJ44: 1000-6336072407.39172i | AK44: 0.139992963734373-0.000989837663294153i | AL44: 1.0279435375084-0.0000809047746383214i | AM44: 0.006+0.000140149913527511i | AN44: 2.83168401168282-0.017999844872111i | AO44: 9.041071252 | AP44: -0.3642006836 | AR44: 1.01809512996558-0.0000793619538458975i | AS44: 2.82828169204284-0.0179608649876196i | AT44: 9.030628385 | AU44: -0.3638491632
A45: Vout | B45: =B3 -> 0.77 | F45: 43 | G45: 168.5830585 | H45: 168.5788137 | I45: 1 | J45: 1 | K45: 1 | L45: =10^('Small Signal'!F45/30) -> 27.12272579 | M45: 170.417112195251i | N45: =IF(D$32=1, IF(AND('Small Signal'!$B$63>=1,FCCM=0),U45+0,R45+0), 0) -> 0 | O45: =IF(D$32=1, IF(AND('Small Signal'!$B$63>=1,FCCM=0),V45,S45), 0) -> 0 | P45: =IF(AND('Small Signal'!$B$63>=1,FCCM=0),AE45+0,AB45+0) -> 64.95740202 | Q45: =IF(AND('Small Signal'!$B$63>=1,FCCM=0),AF45,AC45) -> 142.9621345 | R45: 9.041043033 | S45: -0.3932540136 | T45: =IMDIV(IMSUM('Small Signal'!$B$76,IMPRODUCT(M45,'Small Signal'!$B$77)),IMSUM(IMPRODUCT('Small Signal'!$B$80,IMPOWER(M45,2)),IMSUM(IMPRODUCT(M45,'Small Signal'!$B$79),'Small Signal'!$B$78))) -> 4.27260897372023-0.0199992583400654i | U45: 12.61395812 | V45: -0.2681885318 | W45: =IMPRODUCT(IMDIV(IMSUM(IMPRODUCT(M45,'Small Signal'!$B$59*'Small Signal'!$B$6*'Small Signal'!$B$51*'Small Signal'!$B$7*'Small Signal'!$B$8),'Small Signal'!$B$59*'Small Signal'!$B$6*'Small Signal'!$B$51),IMSUM(IMSUM(IMPRODUCT(M45,('Small Signal'!$B$5+'Small Signal'!$B$6)*('Small Signal'!$B$58*'Small Signal'!$B$59)+'Small Signal'!$B$5*'Small Signal'!$B$59*('Small Signal'!$B$8+'Small Signal'!$B$9)+'Small Signal'!$B$6*'Small Signal'!$B$59*('Small Signal'!$B$8+'Small Signal'!$B$9)+'Small Signal'!$B$7*'Small Signal'!$B$8*('Small Signal'!$B$5+'Small Signal'!$B$6)),'Small Signal'!$B$6+'Small Signal'!$B$5),IMPRODUCT(IMPOWER(M45,2),'Small Signal'!$B$58*'Small Signal'!$B$59*'Small Signal'!$B$8*'Small Signal'!$B$7*('Small Signal'!$B$5+'Small Signal'!$B$6)+('Small Signal'!$B$5+'Small Signal'!$B$6)*('Small Signal'!$B$9*'Small Signal'!$B$8*'Small Signal'!$B$59*'Small Signal'!$B$7)))),-1) -> -501.379698225391+373.003688777736i | X45: 0 | Y45: 0 | Z45: 1.00000000952779+0.0000516322385517169i | AA45: -1412.54498302598+1065.89333498072i | AB45: 64.95740202 | AC45: 142.9621345 | AD45: -2134.73960074528+1603.72613001378i | AE45: 68.53031701 | AF45: 143.0842417 | AH45: 0.00075-18.3373603727049i | AI45: 0.14 | AJ45: 1000-5867955319.26557i | AK45: 0.139991796385349-0.00106879316347281i | AL45: 1.02794353645191-0.0000873589660783958i | AM45: 0.006+0.000151330395629383i | AN45: 2.8316653205347-0.0194356591073738i | AO45: 9.041043033 | AP45: -0.3932540136 | AR45: 1.01809512893918-0.0000856930665102052i | AS45: 2.82826306340419-0.0193935701684046i | AT45: 9.030600232 | AU45: -0.3928744535
A46: fsw | B46: =B11 -> 484970.9939 | F46: 44 | G46: 168.5833971 | H46: 168.5788137 | I46: 1 | J46: 1 | K46: 1 | L46: =10^('Small Signal'!F46/30) -> 29.28644565 | M46: 184.012164984046i | N46: =IF(D$32=1, IF(AND('Small Signal'!$B$63>=1,FCCM=0),U46+0,R46+0), 0) -> 0 | O46: =IF(D$32=1, IF(AND('Small Signal'!$B$63>=1,FCCM=0),V46,S46), 0) -> 0 | P46: =IF(AND('Small Signal'!$B$63>=1,FCCM=0),AE46+0,AB46+0) -> 64.7051663 | Q46: =IF(AND('Small Signal'!$B$63>=1,FCCM=0),AF46,AC46) -> 140.8184264 | R46: 9.041010131 | S46: -0.4246248605 | T46: =IMDIV(IMSUM('Small Signal'!$B$76,IMPRODUCT(M46,'Small Signal'!$B$77)),IMSUM(IMPRODUCT('Small Signal'!$B$80,IMPOWER(M46,2)),IMSUM(IMPRODUCT(M46,'Small Signal'!$B$79),'Small Signal'!$B$78))) -> 4.27259657459487-0.0215946557225041i | U46: 12.6139487 | V46: -0.2895831787 | W46: =IMPRODUCT(IMDIV(IMSUM(IMPRODUCT(M46,'Small Signal'!$B$59*'Small Signal'!$B$6*'Small Signal'!$B$51*'Small Signal'!$B$7*'Small Signal'!$B$8),'Small Signal'!$B$59*'Small Signal'!$B$6*'Small Signal'!$B$51),IMSUM(IMSUM(IMPRODUCT(M46,('Small Signal'!$B$5+'Small Signal'!$B$6)*('Small Signal'!$B$58*'Small Signal'!$B$59)+'Small Signal'!$B$5*'Small Signal'!$B$59*('Small Signal'!$B$8+'Small Signal'!$B$9)+'Small Signal'!$B$6*'Small Signal'!$B$59*('Small Signal'!$B$8+'Small Signal'!$B$9)+'Small Signal'!$B$7*'Small Signal'!$B$8*('Small Signal'!$B$5+'Small Signal'!$B$6)),'Small Signal'!$B$6+'Small Signal'!$B$5),IMPRODUCT(IMPOWER(M46,2),'Small Signal'!$B$58*'Small Signal'!$B$59*'Small Signal'!$B$8*'Small Signal'!$B$7*('Small Signal'!$B$5+'Small Signal'!$B$6)+('Small Signal'!$B$5+'Small Signal'!$B$6)*('Small Signal'!$B$9*'Small Signal'!$B$8*'Small Signal'!$B$59*'Small Signal'!$B$7)))),-1) -> -473.343443927735+380.036069094509i | X46: 0 | Y46: 0 | Z46: 1.00000001110859+0.0000557512084485444i | AA46: -1332.42503329011+1085.98598425256i | AB46: 64.7051663 | AC46: 140.8184264 | AD46: -2014.19882905835+1633.96249574582i | AE46: 68.27810476 | AF46: 140.9502738 | AH46: 0.00075-16.9825728656089i | AI46: 0.14 | AJ46: 1000-5434423316.99483i | AK46: 0.139990435381023-0.00115404503170504i | AL46: 1.02794353522014-0.0000943280416650481i | AM46: 0.006+0.000163402802505833i | AN46: 2.83164352856267-0.0209859829533643i | AO46: 9.041010131 | AP46: -0.4246248605 | AR46: 1.01809512774247-0.0000925292446926535i | AS46: 2.82824134431107-0.0209405370827164i | AT46: 9.030567409 | AU46: -0.4242150247
F47: 45 | G47: 168.5837627 | H47: 168.5788137 | I47: 1 | J47: 1 | K47: 1 | L47: =10^('Small Signal'!F47/30) -> 31.6227766 | M47: 198.691765315922i | N47: =IF(D$32=1, IF(AND('Small Signal'!$B$63>=1,FCCM=0),U47+0,R47+0), 0) -> 0 | O47: =IF(D$32=1, IF(AND('Small Signal'!$B$63>=1,FCCM=0),V47,S47), 0) -> 0 | P47: =IF(AND('Small Signal'!$B$63>=1,FCCM=0),AE47+0,AB47+0) -> 64.42846074 | Q47: =IF(AND('Small Signal'!$B$63>=1,FCCM=0),AF47,AC47) -> 138.639695 | R47: 9.040971771 | S47: -0.4584980484 | T47: =IMDIV(IMSUM('Small Signal'!$B$76,IMPRODUCT(M47,'Small Signal'!$B$77)),IMSUM(IMPRODUCT('Small Signal'!$B$80,IMPOWER(M47,2)),IMSUM(IMPRODUCT(M47,'Small Signal'!$B$79),'Small Signal'!$B$78))) -> 4.27258211833764-0.0233173140990277i | U47: 12.61393772 | V47: -0.3126845517 | W47: =IMPRODUCT(IMDIV(IMSUM(IMPRODUCT(M47,'Small Signal'!$B$59*'Small Signal'!$B$6*'Small Signal'!$B$51*'Small Signal'!$B$7*'Small Signal'!$B$8),'Small Signal'!$B$59*'Small Signal'!$B$6*'Small Signal'!$B$51),IMSUM(IMSUM(IMPRODUCT(M47,('Small Signal'!$B$5+'Small Signal'!$B$6)*('Small Signal'!$B$58*'Small Signal'!$B$59)+'Small Signal'!$B$5*'Small Signal'!$B$59*('Small Signal'!$B$8+'Small Signal'!$B$9)+'Small Signal'!$B$6*'Small Signal'!$B$59*('Small Signal'!$B$8+'Small Signal'!$B$9)+'Small Signal'!$B$7*'Small Signal'!$B$8*('Small Signal'!$B$5+'Small Signal'!$B$6)),'Small Signal'!$B$6+'Small Signal'!$B$5),IMPRODUCT(IMPOWER(M47,2),'Small Signal'!$B$58*'Small Signal'!$B$59*'Small Signal'!$B$8*'Small Signal'!$B$7*('Small Signal'!$B$5+'Small Signal'!$B$6)+('Small Signal'!$B$5+'Small Signal'!$B$6)*('Small Signal'!$B$9*'Small Signal'!$B$8*'Small Signal'!$B$59*'Small Signal'!$B$7)))),-1) -> -444.403569906417+385.02581097736i | X47: 0 | Y47: 0 | Z47: 1.00000001295166+0.0000601987697559593i | AA47: -1249.72279271514+1100.24100958512i | AB47: 64.42846074 | AC47: 138.639695 | AD47: -1889.77297833678+1655.41669270655i | AE47: 68.00142656 | AF47: 138.7820594 | AH47: 0.00075-15.7278787826522i | AI47: 0.14 | AJ47: 1000-5032921210.4487i | AK47: 0.139988848600072-0.00124609496121767i | AL47: 1.027943533784-0.000101853076358633i | AM47: 0.006+0.000176438287600539i | AN47: 2.83161812140556-0.0226599429662853i | AO47: 9.040971771 | AP47: -0.4584980484 | AR47: 1.01809512634721-0.000099910780071147i | AS47: 2.82821602212221-0.0226108725506598i | AT47: 9.03052914 | AU47: -0.4580555226
F48: 46 | G48: 168.5841575 | H48: 168.5788137 | I48: 1 | J48: 1 | K48: 1 | L48: =10^('Small Signal'!F48/30) -> 34.14548874 | M48: 214.542433147179i | N48: =IF(D$32=1, IF(AND('Small Signal'!$B$63>=1,FCCM=0),U48+0,R48+0), 0) -> 0 | O48: =IF(D$32=1, IF(AND('Small Signal'!$B$63>=1,FCCM=0),V48,S48), 0) -> 0 | P48: =IF(AND('Small Signal'!$B$63>=1,FCCM=0),AE48+0,AB48+0) -> 64.12664 | Q48: =IF(AND('Small Signal'!$B$63>=1,FCCM=0),AF48,AC48) -> 136.4378541 | R48: 9.040927048 | S48: -0.4950731312 | T48: =IMDIV(IMSUM('Small Signal'!$B$76,IMPRODUCT(M48,'Small Signal'!$B$77)),IMSUM(IMPRODUCT('Small Signal'!$B$80,IMPOWER(M48,2)),IMSUM(IMPRODUCT(M48,'Small Signal'!$B$79),'Small Signal'!$B$78))) -> 4.2725652636629-0.0251773826055238i | U48: 12.61392491 | V48: -0.3376287959 | W48: =IMPRODUCT(IMDIV(IMSUM(IMPRODUCT(M48,'Small Signal'!$B$59*'Small Signal'!$B$6*'Small Signal'!$B$51*'Small Signal'!$B$7*'Small Signal'!$B$8),'Small Signal'!$B$59*'Small Signal'!$B$6*'Small Signal'!$B$51),IMSUM(IMSUM(IMPRODUCT(M48,('Small Signal'!$B$5+'Small Signal'!$B$6)*('Small Signal'!$B$58*'Small Signal'!$B$59)+'Small Signal'!$B$5*'Small Signal'!$B$59*('Small Signal'!$B$8+'Small Signal'!$B$9)+'Small Signal'!$B$6*'Small Signal'!$B$59*('Small Signal'!$B$8+'Small Signal'!$B$9)+'Small Signal'!$B$7*'Small Signal'!$B$8*('Small Signal'!$B$5+'Small Signal'!$B$6)),'Small Signal'!$B$6+'Small Signal'!$B$5),IMPRODUCT(IMPOWER(M48,2),'Small Signal'!$B$58*'Small Signal'!$B$59*'Small Signal'!$B$8*'Small Signal'!$B$7*('Small Signal'!$B$5+'Small Signal'!$B$6)+('Small Signal'!$B$5+'Small Signal'!$B$6)*('Small Signal'!$B$9*'Small Signal'!$B$8*'Small Signal'!$B$59*'Small Signal'!$B$7)))),-1) -> -414.870032968193+387.83207694893i | X48: 0 | Y48: 0 | Z48: 1.00000001510053+0.0000650011358859625i | AA48: -1165.32403521526+1108.25591037493i | AB48: 64.12664 | AC48: 136.4378541 | AD48: -1762.79469520655+1667.48320165784i | AE48: 67.69963771 | AF48: 136.5915742 | AH48: 0.00075-14.5658830943537i | AI48: 0.14 | AJ48: 1000-4661082590.19318i | AK48: 0.139986998594971-0.00134548451244151i | AL48: 1.02794353210959-0.000109978421879577i | AM48: 0.006+0.000190513680634695i | AN48: 2.83158849940194-0.0244673915831184i | AO48: 9.040927048 | AP48: -0.4950731312 | AR48: 1.01809512472047-0.000107881178597235i | AS48: 2.82818649918103-0.0244144077085939i | AT48: 9.030484522 | AU48: -0.4945953088
F49: 47 | G49: 168.5845838 | H49: 168.5788137 | I49: 1 | J49: 1 | K49: 1 | L49: =10^('Small Signal'!F49/30) -> 36.86945065 | M49: 231.657590577677i | N49: =IF(D$32=1, IF(AND('Small Signal'!$B$63>=1,FCCM=0),U49+0,R49+0), 0) -> 0 | O49: =IF(D$32=1, IF(AND('Small Signal'!$B$63>=1,FCCM=0),V49,S49), 0) -> 0 | P49: =IF(AND('Small Signal'!$B$63>=1,FCCM=0),AE49+0,AB49+0) -> 63.79933716 | Q49: =IF(AND('Small Signal'!$B$63>=1,FCCM=0),AF49,AC49) -> 134.2254435 | R49: 9.040874904 | S49: -0.534565564 | T49: =IMDIV(IMSUM('Small Signal'!$B$76,IMPRODUCT(M49,'Small Signal'!$B$77)),IMSUM(IMPRODUCT('Small Signal'!$B$80,IMPOWER(M49,2)),IMSUM(IMPRODUCT(M49,'Small Signal'!$B$79),'Small Signal'!$B$78))) -> 4.27254561266872-0.0271858192163101i | U49: 12.61390998 | V49: -0.364562915 | W49: =IMPRODUCT(IMDIV(IMSUM(IMPRODUCT(M49,'Small Signal'!$B$59*'Small Signal'!$B$6*'Small Signal'!$B$51*'Small Signal'!$B$7*'Small Signal'!$B$8),'Small Signal'!$B$59*'Small Signal'!$B$6*'Small Signal'!$B$51),IMSUM(IMSUM(IMPRODUCT(M49,('Small Signal'!$B$5+'Small Signal'!$B$6)*('Small Signal'!$B$58*'Small Signal'!$B$59)+'Small Signal'!$B$5*'Small Signal'!$B$59*('Small Signal'!$B$8+'Small Signal'!$B$9)+'Small Signal'!$B$6*'Small Signal'!$B$59*('Small Signal'!$B$8+'Small Signal'!$B$9)+'Small Signal'!$B$7*'Small Signal'!$B$8*('Small Signal'!$B$5+'Small Signal'!$B$6)),'Small Signal'!$B$6+'Small Signal'!$B$5),IMPRODUCT(IMPOWER(M49,2),'Small Signal'!$B$58*'Small Signal'!$B$59*'Small Signal'!$B$8*'Small Signal'!$B$7*('Small Signal'!$B$5+'Small Signal'!$B$6)+('Small Signal'!$B$5+'Small Signal'!$B$6)*('Small Signal'!$B$9*'Small Signal'!$B$8*'Small Signal'!$B$59*'Small Signal'!$B$7)))),-1) -> -385.079700341052+388.373718367338i | X49: 0 | Y49: 0 | Z49: 1.00000001760592+0.0000701866114242854i | AA49: -1080.19143763221+1109.79875849416i | AB49: 63.79933716 | AC49: 134.2254435 | AD49: -1634.71232652405+1669.81313360355i | AE49: 67.37237207 | AF49: 134.3914247 | AH49: 0.00075-13.4897371254155i | AI49: 0.14 | AJ49: 1000-4316715880.13297i | AK49: 0.139984841709452-0.00145279825319391i | AL49: 1.02794353015736-0.000118751968112037i | AM49: 0.006+0.000205711940432977i | AN49: 2.83155396345178-0.0264189644616181i | AO49: 9.040874904 | AP49: -0.534565564 | AR49: 1.01809512282382-0.000116487416914925i | AS49: 2.8281520787248-0.0263617552268833i | AT49: 9.030432502 | AU49: -0.5340496307
A50: FCCM | B50: =VLOOKUP(DeviceCalculator!C4,partData!$A$3:$ZZ$34,20,FALSE) -> 1 | F50: 48 | G50: 168.5850441 | H50: 168.5788137 | I50: 1 | J50: 1 | K50: 1 | L50: =10^('Small Signal'!F50/30) -> 39.81071706 | M50: 250.138112470457i | N50: =IF(D$32=1, IF(AND('Small Signal'!$B$63>=1,FCCM=0),U50+0,R50+0), 0) -> 0 | O50: =IF(D$32=1, IF(AND('Small Signal'!$B$63>=1,FCCM=0),V50,S50), 0) -> 0 | P50: =IF(AND('Small Signal'!$B$63>=1,FCCM=0),AE50+0,AB50+0) -> 63.44648052 | Q50: =IF(AND('Small Signal'!$B$63>=1,FCCM=0),AF50,AC50) -> 132.0152728 | R50: 9.04081411 | S50: -0.5772079665 | T50: =IMDIV(IMSUM('Small Signal'!$B$76,IMPRODUCT(M50,'Small Signal'!$B$77)),IMSUM(IMPRODUCT('Small Signal'!$B$80,IMPOWER(M50,2)),IMSUM(IMPRODUCT(M50,'Small Signal'!$B$79),'Small Signal'!$B$78))) -> 4.27252270144637-0.0293544550595098i | U50: 12.61389258 | V50: -0.3936456373 | W50: =IMPRODUCT(IMDIV(IMSUM(IMPRODUCT(M50,'Small Signal'!$B$59*'Small Signal'!$B$6*'Small Signal'!$B$51*'Small Signal'!$B$7*'Small Signal'!$B$8),'Small Signal'!$B$59*'Small Signal'!$B$6*'Small Signal'!$B$51),IMSUM(IMSUM(IMPRODUCT(M50,('Small Signal'!$B$5+'Small Signal'!$B$6)*('Small Signal'!$B$58*'Small Signal'!$B$59)+'Small Signal'!$B$5*'Small Signal'!$B$59*('Small Signal'!$B$8+'Small Signal'!$B$9)+'Small Signal'!$B$6*'Small Signal'!$B$59*('Small Signal'!$B$8+'Small Signal'!$B$9)+'Small Signal'!$B$7*'Small Signal'!$B$8*('Small Signal'!$B$5+'Small Signal'!$B$6)),'Small Signal'!$B$6+'Small Signal'!$B$5),IMPRODUCT(IMPOWER(M50,2),'Small Signal'!$B$58*'Small Signal'!$B$59*'Small Signal'!$B$8*'Small Signal'!$B$7*('Small Signal'!$B$5+'Small Signal'!$B$6)+('Small Signal'!$B$5+'Small Signal'!$B$6)*('Small Signal'!$B$9*'Small Signal'!$B$8*'Small Signal'!$B$59*'Small Signal'!$B$7)))),-1) -> -355.381332674027+386.634911966194i | X50: 0 | Y50: 0 | Z50: 1.000000020527+0.0000757857589526996i | AA50: -995.321665266407+1104.82430583312i | AB50: 63.44648052 | AC50: 132.0152728 | AD50: -1507.0253543723+1662.33846390625i | AE50: 67.01955878 | AF50: 132.1944929 | AH50: 0.00075-12.4930981893816i | AI50: 0.14 | AJ50: 1000-3997791420.60212i | AK50: 0.139982327049932-0.00156866713896294i | AL50: 1.02794352788124-0.000128225425360986i | AM50: 0.006+0.000222122643873766i | AN50: 2.8315136985373-0.0285261422478399i | AO50: 9.04081411 | AP50: -0.5772079665 | AR50: 1.01809512061249-0.00012578021923525i | AS50: 2.82811194846035-0.0284643709460973i | AT50: 9.030371852 | AU50: -0.5766508841
A51: gmea | B51: =gmea -> 0.0011 | F51: 49 | G51: 168.5855412 | H51: 168.5788137 | I51: 1 | J51: 1 | K51: 1 | L51: =10^('Small Signal'!F51/30) -> 42.98662347 | M51: 270.092920997135i | N51: =IF(D$32=1, IF(AND('Small Signal'!$B$63>=1,FCCM=0),U51+0,R51+0), 0) -> 0 | O51: =IF(D$32=1, IF(AND('Small Signal'!$B$63>=1,FCCM=0),V51,S51), 0) -> 0 | P51: =IF(AND('Small Signal'!$B$63>=1,FCCM=0),AE51+0,AB51+0) -> 63.06829684 | Q51: =IF(AND('Small Signal'!$B$63>=1,FCCM=0),AF51,AC51) -> 129.8200459 | R51: 9.04074323 | S51: -0.623251487 | T51: =IMDIV(IMSUM('Small Signal'!$B$76,IMPRODUCT(M51,'Small Signal'!$B$77)),IMSUM(IMPRODUCT('Small Signal'!$B$80,IMPOWER(M51,2)),IMSUM(IMPRODUCT(M51,'Small Signal'!$B$79),'Small Signal'!$B$78))) -> 4.27249598913263-0.0316960638088733i | U51: 12.61387229 | V51: -0.4250483495 | W51: =IMPRODUCT(IMDIV(IMSUM(IMPRODUCT(M51,'Small Signal'!$B$59*'Small Signal'!$B$6*'Small Signal'!$B$51*'Small Signal'!$B$7*'Small Signal'!$B$8),'Small Signal'!$B$59*'Small Signal'!$B$6*'Small Signal'!$B$51),IMSUM(IMSUM(IMPRODUCT(M51,('Small Signal'!$B$5+'Small Signal'!$B$6)*('Small Signal'!$B$58*'Small Signal'!$B$59)+'Small Signal'!$B$5*'Small Signal'!$B$59*('Small Signal'!$B$8+'Small Signal'!$B$9)+'Small Signal'!$B$6*'Small Signal'!$B$59*('Small Signal'!$B$8+'Small Signal'!$B$9)+'Small Signal'!$B$7*'Small Signal'!$B$8*('Small Signal'!$B$5+'Small Signal'!$B$6)),'Small Signal'!$B$6+'Small Signal'!$B$5),IMPRODUCT(IMPOWER(M51,2),'Small Signal'!$B$58*'Small Signal'!$B$59*'Small Signal'!$B$8*'Small Signal'!$B$7*('Small Signal'!$B$5+'Small Signal'!$B$6)+('Small Signal'!$B$5+'Small Signal'!$B$6)*('Small Signal'!$B$9*'Small Signal'!$B$8*'Small Signal'!$B$59*'Small Signal'!$B$7)))),-1) -> -326.119413728215+382.666275374155i | X51: 0 | Y51: 0 | Z51: 1.00000002393272+0.0000818315791792313i | AA51: -911.699161571405+1093.4771719813i | AB51: 63.06829684 | AC51: 129.8200459 | AD51: -1381.21487245032+1645.27682845924i | AE51: 66.64142566 | AF51: 130.0135604 | AH51: 0.00075-11.5700922055382i | AI51: 0.14 | AJ51: 1000-3702429505.77223i | AK51: 0.139979395286867-0.00169377214975756i | AL51: 1.02794352522747-0.00013845462912626i | AM51: 0.006+0.000239842513845456i | AN51: 2.83146675451711-0.0308013170864582i | AO51: 9.04074323 | AP51: -0.623251487 | AR51: 1.01809511803426-0.000135814356298421i | AS51: 2.82806516142247-0.0307346202463569i | AT51: 9.03030114 | AU51: -0.6226499751
A52: Aol | B52: 1000 | F52: 50 | G52: 168.5860778 | H52: 168.5788137 | I52: 1 | J52: 1 | K52: 1 | L52: =10^('Small Signal'!F52/30) -> 46.41588834 | M52: 291.639627613247i | N52: =IF(D$32=1, IF(AND('Small Signal'!$B$63>=1,FCCM=0),U52+0,R52+0), 0) -> 0 | O52: =IF(D$32=1, IF(AND('Small Signal'!$B$63>=1,FCCM=0),V52,S52), 0) -> 0 | P52: =IF(AND('Small Signal'!$B$63>=1,FCCM=0),AE52+0,AB52+0) -> 62.66530087 | Q52: =IF(AND('Small Signal'!$B$63>=1,FCCM=0),AF52,AC52) -> 127.6519919 | R52: 9.040660592 | S52: -0.6729672724 | T52: =IMDIV(IMSUM('Small Signal'!$B$76,IMPRODUCT(M52,'Small Signal'!$B$77)),IMSUM(IMPRODUCT('Small Signal'!$B$80,IMPOWER(M52,2)),IMSUM(IMPRODUCT(M52,'Small Signal'!$B$79),'Small Signal'!$B$78))) -> 4.27246484514727-0.0342244365429615i | U52: 12.61384863 | V52: -0.4589561062 | W52: =IMPRODUCT(IMDIV(IMSUM(IMPRODUCT(M52,'Small Signal'!$B$59*'Small Signal'!$B$6*'Small Signal'!$B$51*'Small Signal'!$B$7*'Small Signal'!$B$8),'Small Signal'!$B$59*'Small Signal'!$B$6*'Small Signal'!$B$51),IMSUM(IMSUM(IMPRODUCT(M52,('Small Signal'!$B$5+'Small Signal'!$B$6)*('Small Signal'!$B$58*'Small Signal'!$B$59)+'Small Signal'!$B$5*'Small Signal'!$B$59*('Small Signal'!$B$8+'Small Signal'!$B$9)+'Small Signal'!$B$6*'Small Signal'!$B$59*('Small Signal'!$B$8+'Small Signal'!$B$9)+'Small Signal'!$B$7*'Small Signal'!$B$8*('Small Signal'!$B$5+'Small Signal'!$B$6)),'Small Signal'!$B$6+'Small Signal'!$B$5),IMPRODUCT(IMPOWER(M52,2),'Small Signal'!$B$58*'Small Signal'!$B$59*'Small Signal'!$B$8*'Small Signal'!$B$7*('Small Signal'!$B$5+'Small Signal'!$B$6)+('Small Signal'!$B$5+'Small Signal'!$B$6)*('Small Signal'!$B$9*'Small Signal'!$B$8*'Small Signal'!$B$59*'Small Signal'!$B$7)))),-1) -> -297.618397074302+376.581317537207i | X52: 0 | Y52: 0 | Z52: 1.00000002790351+0.0000883597054378364i | AA52: -830.251129547735+1076.08170031375i | AB52: 62.66530087 | AC52: 127.6519919 | AD52: -1258.67585536372+1619.11626246165i | AE52: 66.23848862 | AF52: 127.8609404 | AH52: 0.00075-10.7152790777259i | AI52: 0.14 | AJ52: 1000-3428889304.87229i | AK52: 0.139975977257973-0.00182884820060685i | AL52: 1.0279435221334-0.000149499869189841i | AM52: 0.006+0.000258975989320563i | AN52: 2.83141202374287-0.0332578642044756i | AO52: 9.040660592 | AP52: -0.6729672724 | AR52: 1.01809511502828-0.000146648968185571i | AS52: 2.8280106136651-0.0331858494798816i | AT52: 9.030218697 | AU52: -0.6723177898
A53: BW | B53: =2*PI()*VLOOKUP(DeviceCalculator!C4,partData!$A$3:$ZZ$34,21,FALSE) -> 62831853.07 | F53: 51 | G53: 168.5866573 | H53: 168.5788137 | I53: 1 | J53: 1 | K53: 1 | L53: =10^('Small Signal'!F53/30) -> 50.11872336 | M53: 314.905226247286i | N53: =IF(D$32=1, IF(AND('Small Signal'!$B$63>=1,FCCM=0),U53+0,R53+0), 0) -> 0 | O53: =IF(D$32=1, IF(AND('Small Signal'!$B$63>=1,FCCM=0),V53,S53), 0) -> 0 | P53: =IF(AND('Small Signal'!$B$63>=1,FCCM=0),AE53+0,AB53+0) -> 62.23827193 | Q53: =IF(AND('Small Signal'!$B$63>=1,FCCM=0),AF53,AC53) -> 125.5225291 | R53: 9.040564244 | S53: -0.7266480545 | T53: =IMDIV(IMSUM('Small Signal'!$B$76,IMPRODUCT(M53,'Small Signal'!$B$77)),IMSUM(IMPRODUCT('Small Signal'!$B$80,IMPOWER(M53,2)),IMSUM(IMPRODUCT(M53,'Small Signal'!$B$79),'Small Signal'!$B$78))) -> 4.27242853431494-0.0369544624901534i | U53: 12.61382104 | V53: -0.4955687188 | W53: =IMPRODUCT(IMDIV(IMSUM(IMPRODUCT(M53,'Small Signal'!$B$59*'Small Signal'!$B$6*'Small Signal'!$B$51*'Small Signal'!$B$7*'Small Signal'!$B$8),'Small Signal'!$B$59*'Small Signal'!$B$6*'Small Signal'!$B$51),IMSUM(IMSUM(IMPRODUCT(M53,('Small Signal'!$B$5+'Small Signal'!$B$6)*('Small Signal'!$B$58*'Small Signal'!$B$59)+'Small Signal'!$B$5*'Small Signal'!$B$59*('Small Signal'!$B$8+'Small Signal'!$B$9)+'Small Signal'!$B$6*'Small Signal'!$B$59*('Small Signal'!$B$8+'Small Signal'!$B$9)+'Small Signal'!$B$7*'Small Signal'!$B$8*('Small Signal'!$B$5+'Small Signal'!$B$6)),'Small Signal'!$B$6+'Small Signal'!$B$5),IMPRODUCT(IMPOWER(M53,2),'Small Signal'!$B$58*'Small Signal'!$B$59*'Small Signal'!$B$8*'Small Signal'!$B$7*('Small Signal'!$B$5+'Small Signal'!$B$6)+('Small Signal'!$B$5+'Small Signal'!$B$6)*('Small Signal'!$B$9*'Small Signal'!$B$8*'Small Signal'!$B$59*'Small Signal'!$B$7)))),-1) -> -270.168871566824+368.548679391649i | X53: 0 | Y53: 0 | Z53: 1.0000000325331+0.0000954086137037364i | AA53: -751.807996488892+1053.11978374258i | AB53: 62.23827193 | AC53: 125.5225291 | AD53: -1140.65767761739+1584.58183954729i | AE53: 65.8115284 | AF53: 125.7481419 | AH53: 0.00075-9.92362063100856i | AI53: 0.14 | AJ53: 1000-3175558601.92275i | AK53: 0.139971992340748-0.00197468834328128i | AL53: 1.02794351852598-0.000161426244955931i | AM53: 0.006+0.00027963584090759i | AN53: 2.83134821497504-0.0359102189129648i | AO53: 9.040564244 | AP53: -0.7266480545 | AR53: 1.01809511152355-0.000158347912882664i | AS53: 2.82794701826426-0.0358324628108279i | AT53: 9.030122578 | AU53: -0.7259467782
A54: Ri | B54: =1/gmps -> 0.04329004329 | F54: 52 | G54: 168.5872831 | H54: 168.5788137 | I54: 1 | J54: 1 | K54: 1 | L54: =10^('Small Signal'!F54/30) -> 54.11695265 | M54: 340.026841789008i | N54: =IF(D$32=1, IF(AND('Small Signal'!$B$63>=1,FCCM=0),U54+0,R54+0), 0) -> 0 | O54: =IF(D$32=1, IF(AND('Small Signal'!$B$63>=1,FCCM=0),V54,S54), 0) -> 0 | P54: =IF(AND('Small Signal'!$B$63>=1,FCCM=0),AE54+0,AB54+0) -> 61.78822004 | Q54: =IF(AND('Small Signal'!$B$63>=1,FCCM=0),AF54,AC54) -> 123.441982 | R54: 9.040451914 | S54: -0.7846098598 | T54: =IMDIV(IMSUM('Small Signal'!$B$76,IMPRODUCT(M54,'Small Signal'!$B$77)),IMSUM(IMPRODUCT('Small Signal'!$B$80,IMPOWER(M54,2)),IMSUM(IMPRODUCT(M54,'Small Signal'!$B$79),'Small Signal'!$B$78))) -> 4.27238619952094-0.0399022161067442i | U54: 12.61378888 | V54: -0.5351019311 | W54: =IMPRODUCT(IMDIV(IMSUM(IMPRODUCT(M54,'Small Signal'!$B$59*'Small Signal'!$B$6*'Small Signal'!$B$51*'Small Signal'!$B$7*'Small Signal'!$B$8),'Small Signal'!$B$59*'Small Signal'!$B$6*'Small Signal'!$B$51),IMSUM(IMSUM(IMPRODUCT(M54,('Small Signal'!$B$5+'Small Signal'!$B$6)*('Small Signal'!$B$58*'Small Signal'!$B$59)+'Small Signal'!$B$5*'Small Signal'!$B$59*('Small Signal'!$B$8+'Small Signal'!$B$9)+'Small Signal'!$B$6*'Small Signal'!$B$59*('Small Signal'!$B$8+'Small Signal'!$B$9)+'Small Signal'!$B$7*'Small Signal'!$B$8*('Small Signal'!$B$5+'Small Signal'!$B$6)),'Small Signal'!$B$6+'Small Signal'!$B$5),IMPRODUCT(IMPOWER(M54,2),'Small Signal'!$B$58*'Small Signal'!$B$59*'Small Signal'!$B$8*'Small Signal'!$B$7*('Small Signal'!$B$5+'Small Signal'!$B$6)+('Small Signal'!$B$5+'Small Signal'!$B$6)*('Small Signal'!$B$9*'Small Signal'!$B$8*'Small Signal'!$B$59*'Small Signal'!$B$7)))),-1) -> -244.016838820435+358.781127700748i | X54: 0 | Y54: 0 | Z54: 1.00000003793081+0.000103019849362034i | AA54: -677.072771995325+1025.19941187704i | AB54: 61.78822004 | AC54: 123.441982 | AD54: -1028.21801253462+1542.58835127353i | AE54: 65.36155663 | AF54: 123.6855873 | AH54: 0.00075-9.19045091722229i | AI54: 0.14 | AJ54: 1000-2940944293.51115i | AK54: 0.139967346556373-0.00213214827711281i | AL54: 1.02794351432004-0.000174304049138059i | AM54: 0.006+0.000301943835508639i | AN54: 2.83127382298872-0.038773959383473i | AO54: 9.040451914 | AP54: -0.7846098598 | AR54: 1.01809510743735-0.00017098014265089i | AS54: 2.82787287502515-0.0386900048185458i | AT54: 9.030010514 | AU54: -0.7838526628
F55: 53 | G55: 168.5879587 | H55: 168.5788137 | I55: 1 | J55: 1 | K55: 1 | L55: =10^('Small Signal'!F55/30) -> 58.43414134 | M55: 367.152538288504i | N55: =IF(D$32=1, IF(AND('Small Signal'!$B$63>=1,FCCM=0),U55+0,R55+0), 0) -> 0 | O55: =IF(D$32=1, IF(AND('Small Signal'!$B$63>=1,FCCM=0),V55,S55), 0) -> 0 | P55: =IF(AND('Small Signal'!$B$63>=1,FCCM=0),AE55+0,AB55+0) -> 61.31634436 | Q55: =IF(AND('Small Signal'!$B$63>=1,FCCM=0),AF55,AC55) -> 121.419367 | R55: 9.040320951 | S55: -0.8471938532 | T55: =IMDIV(IMSUM('Small Signal'!$B$76,IMPRODUCT(M55,'Small Signal'!$B$77)),IMSUM(IMPRODUCT('Small Signal'!$B$80,IMPOWER(M55,2)),IMSUM(IMPRODUCT(M55,'Small Signal'!$B$79),'Small Signal'!$B$78))) -> 4.27233684149318-0.0430850509653153i | U55: 12.61375138 | V55: -0.5777886884 | W55: =IMPRODUCT(IMDIV(IMSUM(IMPRODUCT(M55,'Small Signal'!$B$59*'Small Signal'!$B$6*'Small Signal'!$B$51*'Small Signal'!$B$7*'Small Signal'!$B$8),'Small Signal'!$B$59*'Small Signal'!$B$6*'Small Signal'!$B$51),IMSUM(IMSUM(IMPRODUCT(M55,('Small Signal'!$B$5+'Small Signal'!$B$6)*('Small Signal'!$B$58*'Small Signal'!$B$59)+'Small Signal'!$B$5*'Small Signal'!$B$59*('Small Signal'!$B$8+'Small Signal'!$B$9)+'Small Signal'!$B$6*'Small Signal'!$B$59*('Small Signal'!$B$8+'Small Signal'!$B$9)+'Small Signal'!$B$7*'Small Signal'!$B$8*('Small Signal'!$B$5+'Small Signal'!$B$6)),'Small Signal'!$B$6+'Small Signal'!$B$5),IMPRODUCT(IMPOWER(M55,2),'Small Signal'!$B$58*'Small Signal'!$B$59*'Small Signal'!$B$8*'Small Signal'!$B$7*('Small Signal'!$B$5+'Small Signal'!$B$6)+('Small Signal'!$B$5+'Small Signal'!$B$6)*('Small Signal'!$B$9*'Small Signal'!$B$8*'Small Signal'!$B$59*'Small Signal'!$B$7)))),-1) -> -219.356821223932+347.522586008134i | X55: 0 | Y55: 0 | Z55: 1.00000004422408+0.000111238272065905i | AA55: -606.601352637814+993.017608779847i | AB55: 61.31634436 | AC55: 121.419367 | AD55: -922.193200418079+1494.18454727556i | AE55: 64.88977435 | AF55: 121.6823987 | AH55: 0.00075-8.51144871438808i | AI55: 0.14 | AJ55: 1000-2723663588.60418i | AK55: 0.139961930360927-0.00230215118683738i | AL55: 1.02794350941627-0.00018820918205458i | AM55: 0.006+0.000326031454000192i | AN55: 2.8311870931598-0.0418658955646681i | AO55: 9.040320951 | AP55: -0.8471938532 | AR55: 1.01809510267318-0.000184620110421751i | AS55: 2.82778643518643-0.0417752492293547i | AT55: 9.029879861 | AU55: -0.8463762805
A56: Se | B56: =IF(B3/B2>0.1,VLOOKUP(DeviceCalculator!C4,partData!$A$3:$ZZ$34,24,FALSE)*fsw_ss*Ri,0)*1 -> 0 | F56: 54 | G56: 168.5886882 | H56: 168.5788137 | I56: 1 | J56: 1 | K56: 1 | L56: =10^('Small Signal'!F56/30) -> 63.09573445 | M56: 396.4421916295i | N56: =IF(D$32=1, IF(AND('Small Signal'!$B$63>=1,FCCM=0),U56+0,R56+0), 0) -> 0 | O56: =IF(D$32=1, IF(AND('Small Signal'!$B$63>=1,FCCM=0),V56,S56), 0) -> 0 | P56: =IF(AND('Small Signal'!$B$63>=1,FCCM=0),AE56+0,AB56+0) -> 60.82398746 | Q56: =IF(AND('Small Signal'!$B$63>=1,FCCM=0),AF56,AC56) -> 119.4622536 | R56: 9.040168264 | S56: -0.9147683239 | T56: =IMDIV(IMSUM('Small Signal'!$B$76,IMPRODUCT(M56,'Small Signal'!$B$77)),IMSUM(IMPRODUCT('Small Signal'!$B$80,IMPOWER(M56,2)),IMSUM(IMPRODUCT(M56,'Small Signal'!$B$79),'Small Signal'!$B$78))) -> 4.27227929523407-0.0465217009613784i | U56: 12.61370766 | V56: -0.6238805075 | W56: =IMPRODUCT(IMDIV(IMSUM(IMPRODUCT(M56,'Small Signal'!$B$59*'Small Signal'!$B$6*'Small Signal'!$B$51*'Small Signal'!$B$7*'Small Signal'!$B$8),'Small Signal'!$B$59*'Small Signal'!$B$6*'Small Signal'!$B$51),IMSUM(IMSUM(IMPRODUCT(M56,('Small Signal'!$B$5+'Small Signal'!$B$6)*('Small Signal'!$B$58*'Small Signal'!$B$59)+'Small Signal'!$B$5*'Small Signal'!$B$59*('Small Signal'!$B$8+'Small Signal'!$B$9)+'Small Signal'!$B$6*'Small Signal'!$B$59*('Small Signal'!$B$8+'Small Signal'!$B$9)+'Small Signal'!$B$7*'Small Signal'!$B$8*('Small Signal'!$B$5+'Small Signal'!$B$6)),'Small Signal'!$B$6+'Small Signal'!$B$5),IMPRODUCT(IMPOWER(M56,2),'Small Signal'!$B$58*'Small Signal'!$B$59*'Small Signal'!$B$8*'Small Signal'!$B$7*('Small Signal'!$B$5+'Small Signal'!$B$6)+('Small Signal'!$B$5+'Small Signal'!$B$6)*('Small Signal'!$B$9*'Small Signal'!$B$8*'Small Signal'!$B$59*'Small Signal'!$B$7)))),-1) -> -196.328984727546+335.034577804148i | X56: 0 | Y56: 0 | Z56: 1.00000005156149+0.000120112320127233i | AA56: -540.794299767815+957.32169097128i | AB56: 60.82398746 | AC56: 119.4622536 | AD56: -823.185878065494+1440.4948482577i | AE56: 64.39752635 | AF56: 119.7462595 | AH56: 0.00075-7.88261205790252i | AI56: 0.14 | AJ56: 1000-2522435858.52881i | AK56: 0.139955616072729-0.00248569292507855i | AL56: 1.0279435036989-0.00020322359897423i | AM56: 0.006+0.000352040666166996i | AN56: 2.83108598020818-0.045204164609462i | AO56: 9.040168264 | AP56: -0.9147683239 | AR56: 1.01809509711857-0.000199348208611985i | AS56: 2.82768566030084-0.0451062941466836i | AT56: 9.029727535 | AU56: -0.9138855668
F57: 55 | G57: 168.589476 | H57: 168.5788137 | I57: 1 | J57: 1 | K57: 1 | L57: =10^('Small Signal'!F57/30) -> 68.12920691 | M57: 428.068431820296i | N57: =IF(D$32=1, IF(AND('Small Signal'!$B$63>=1,FCCM=0),U57+0,R57+0), 0) -> 0 | O57: =IF(D$32=1, IF(AND('Small Signal'!$B$63>=1,FCCM=0),V57,S57), 0) -> 0 | P57: =IF(AND('Small Signal'!$B$63>=1,FCCM=0),AE57+0,AB57+0) -> 60.31258875 | Q57: =IF(AND('Small Signal'!$B$63>=1,FCCM=0),AF57,AC57) -> 117.5767014 | R57: 9.039990251 | S57: -0.9877308262 | T57: =IMDIV(IMSUM('Small Signal'!$B$76,IMPRODUCT(M57,'Small Signal'!$B$77)),IMSUM(IMPRODUCT('Small Signal'!$B$80,IMPOWER(M57,2)),IMSUM(IMPRODUCT(M57,'Small Signal'!$B$79),'Small Signal'!$B$78))) -> 4.27221220254895-0.0502323893776936i | U57: 12.61365669 | V57: -0.6736489549 | W57: =IMPRODUCT(IMDIV(IMSUM(IMPRODUCT(M57,'Small Signal'!$B$59*'Small Signal'!$B$6*'Small Signal'!$B$51*'Small Signal'!$B$7*'Small Signal'!$B$8),'Small Signal'!$B$59*'Small Signal'!$B$6*'Small Signal'!$B$51),IMSUM(IMSUM(IMPRODUCT(M57,('Small Signal'!$B$5+'Small Signal'!$B$6)*('Small Signal'!$B$58*'Small Signal'!$B$59)+'Small Signal'!$B$5*'Small Signal'!$B$59*('Small Signal'!$B$8+'Small Signal'!$B$9)+'Small Signal'!$B$6*'Small Signal'!$B$59*('Small Signal'!$B$8+'Small Signal'!$B$9)+'Small Signal'!$B$7*'Small Signal'!$B$8*('Small Signal'!$B$5+'Small Signal'!$B$6)),'Small Signal'!$B$6+'Small Signal'!$B$5),IMPRODUCT(IMPOWER(M57,2),'Small Signal'!$B$58*'Small Signal'!$B$59*'Small Signal'!$B$8*'Small Signal'!$B$7*('Small Signal'!$B$5+'Small Signal'!$B$6)+('Small Signal'!$B$5+'Small Signal'!$B$6)*('Small Signal'!$B$9*'Small Signal'!$B$8*'Small Signal'!$B$59*'Small Signal'!$B$7)))),-1) -> -175.019973428227+321.583332203078i | X57: 0 | Y57: 0 | Z57: 1.00000006011628+0.000129694295997599i | AA57: -479.899224655793+918.872418691518i | AB57: 60.31258875 | AC57: 117.5767014 | AD57: -731.568567009263+1382.66390742846i | AE57: 63.88625459 | AF57: 117.8833523 | AH57: 0.00075-7.30023465339737i | AI57: 0.14 | AJ57: 1000-2336075089.08716i | AK57: 0.139948254876363-0.00268384755631896i | AL57: 1.02794349703294-0.000219435793148232i | AM57: 0.006+0.000380124767456423i | AN57: 2.83096810013922-0.0488083331815564i | AO57: 9.039990251 | AP57: -0.9877308262 | AR57: 1.01809509064236-0.000215251242944511i | AS57: 2.82756817433662-0.0487026641482343i | AT57: 9.029549943 | AU57: -0.9867776944
A58: Co err amp | B58: =B51/B53 -> 1.750704374e-11 | F58: 56 | G58: 168.5903266 | H58: 168.5788137 | I58: 1 | J58: 1 | K58: 1 | L58: =10^('Small Signal'!F58/30) -> 73.56422545 | M58: 462.217660456129i | N58: =IF(D$32=1, IF(AND('Small Signal'!$B$63>=1,FCCM=0),U58+0,R58+0), 0) -> 0 | O58: =IF(D$32=1, IF(AND('Small Signal'!$B$63>=1,FCCM=0),V58,S58), 0) -> 0 | P58: =IF(AND('Small Signal'!$B$63>=1,FCCM=0),AE58+0,AB58+0) -> 59.78363997 | Q58: =IF(AND('Small Signal'!$B$63>=1,FCCM=0),AF58,AC58) -> 115.7672651 | R58: 9.039782712 | S58: -1.066510484 | T58: =IMDIV(IMSUM('Small Signal'!$B$76,IMPRODUCT(M58,'Small Signal'!$B$77)),IMSUM(IMPRODUCT('Small Signal'!$B$80,IMPOWER(M58,2)),IMSUM(IMPRODUCT(M58,'Small Signal'!$B$79),'Small Signal'!$B$78))) -> 4.27213398002503-0.0542389463772036i | U58: 12.61359726 | V58: -0.7273872427 | W58: =IMPRODUCT(IMDIV(IMSUM(IMPRODUCT(M58,'Small Signal'!$B$59*'Small Signal'!$B$6*'Small Signal'!$B$51*'Small Signal'!$B$7*'Small Signal'!$B$8),'Small Signal'!$B$59*'Small Signal'!$B$6*'Small Signal'!$B$51),IMSUM(IMSUM(IMPRODUCT(M58,('Small Signal'!$B$5+'Small Signal'!$B$6)*('Small Signal'!$B$58*'Small Signal'!$B$59)+'Small Signal'!$B$5*'Small Signal'!$B$59*('Small Signal'!$B$8+'Small Signal'!$B$9)+'Small Signal'!$B$6*'Small Signal'!$B$59*('Small Signal'!$B$8+'Small Signal'!$B$9)+'Small Signal'!$B$7*'Small Signal'!$B$8*('Small Signal'!$B$5+'Small Signal'!$B$6)),'Small Signal'!$B$6+'Small Signal'!$B$5),IMPRODUCT(IMPOWER(M58,2),'Small Signal'!$B$58*'Small Signal'!$B$59*'Small Signal'!$B$8*'Small Signal'!$B$7*('Small Signal'!$B$5+'Small Signal'!$B$6)+('Small Signal'!$B$5+'Small Signal'!$B$6)*('Small Signal'!$B$9*'Small Signal'!$B$8*'Small Signal'!$B$59*'Small Signal'!$B$7)))),-1) -> -155.466791787956+307.42852042586i | X58: 0 | Y58: 0 | Z58: 1.00000007009043+0.000140040674521718i | AA58: -424.021882957278+878.411807543731i | AB58: 59.78363997 | AC58: 115.7672651 | AD58: -647.500364928602+1321.80818352336i | AE58: 63.35745382 | AF58: 116.0983646 | AH58: 0.00075-6.76088403224613i | AI58: 0.14 | AJ58: 1000-2163482890.31876i | AK58: 0.139939673334409-0.00289777327781396i | AL58: 1.02794348926099-0.000236941317375706i | AM58: 0.006+0.000410449282485043i | AN58: 2.83083067427124-0.0526995070010931i | AO58: 9.039782712 | AP58: -1.066510484 | AR58: 1.01809508309167-0.000232422944067886i | AS58: 2.82743120789137-0.0525854196097105i | AT58: 9.029342896 | AU58: -1.065481376
A59: Ro err amp | B59: =B52/B51 -> 909090.9091 | F59: 57 | G59: 168.591245 | H59: 168.5788137 | I59: 1 | J59: 1 | K59: 1 | L59: =10^('Small Signal'!F59/30) -> 79.43282347 | M59: 499.091149349751i | N59: =IF(D$32=1, IF(AND('Small Signal'!$B$63>=1,FCCM=0),U59+0,R59+0), 0) -> 0 | O59: =IF(D$32=1, IF(AND('Small Signal'!$B$63>=1,FCCM=0),V59,S59), 0) -> 0 | P59: =IF(AND('Small Signal'!$B$63>=1,FCCM=0),AE59+0,AB59+0) -> 59.23864503 | Q59: =IF(AND('Small Signal'!$B$63>=1,FCCM=0),AF59,AC59) -> 114.0370576 | R59: 9.039540751 | S59: -1.151570472 | T59: =IMDIV(IMSUM('Small Signal'!$B$76,IMPRODUCT(M59,'Small Signal'!$B$77)),IMSUM(IMPRODUCT('Small Signal'!$B$80,IMPOWER(M59,2)),IMSUM(IMPRODUCT(M59,'Small Signal'!$B$79),'Small Signal'!$B$78))) -> 4.27204278171002-0.0585649355266366i | U59: 12.61352797 | V59: -0.78541195 | W59: =IMPRODUCT(IMDIV(IMSUM(IMPRODUCT(M59,'Small Signal'!$B$59*'Small Signal'!$B$6*'Small Signal'!$B$51*'Small Signal'!$B$7*'Small Signal'!$B$8),'Small Signal'!$B$59*'Small Signal'!$B$6*'Small Signal'!$B$51),IMSUM(IMSUM(IMPRODUCT(M59,('Small Signal'!$B$5+'Small Signal'!$B$6)*('Small Signal'!$B$58*'Small Signal'!$B$59)+'Small Signal'!$B$5*'Small Signal'!$B$59*('Small Signal'!$B$8+'Small Signal'!$B$9)+'Small Signal'!$B$6*'Small Signal'!$B$59*('Small Signal'!$B$8+'Small Signal'!$B$9)+'Small Signal'!$B$7*'Small Signal'!$B$8*('Small Signal'!$B$5+'Small Signal'!$B$6)),'Small Signal'!$B$6+'Small Signal'!$B$5),IMPRODUCT(IMPOWER(M59,2),'Small Signal'!$B$58*'Small Signal'!$B$59*'Small Signal'!$B$8*'Small Signal'!$B$7*('Small Signal'!$B$5+'Small Signal'!$B$6)+('Small Signal'!$B$5+'Small Signal'!$B$6)*('Small Signal'!$B$9*'Small Signal'!$B$8*'Small Signal'!$B$59*'Small Signal'!$B$7)))),-1) -> -137.662871857195+292.81423216016i | X59: 0 | Y59: 0 | Z59: 1.00000008171944+0.000151212435779527i | AA59: -373.143513353519+836.637341079129i | AB59: 59.23864503 | AC59: 114.0370576 | AD59: -570.95303139926+1258.9771440965i | AE59: 62.81263145 | AF59: 114.3945523 | AH59: 0.00075-6.26138132097005i | AI59: 0.14 | AJ59: 1000-2003642022.71041i | AK59: 0.139929669326921-0.0031287187307015i | AL59: 1.02794348019957-0.00025584334717621i | AM59: 0.006+0.000443192940622579i | AN59: 2.83067046405725-0.0569004479691486i | AO59: 9.039540751 | AP59: -1.151570472 | AR59: 1.0180950742882-0.000250964519989497i | AS59: 2.8272715332302-0.056777273594923i | AT59: 9.029101508 | AU59: -1.150459341
A60: wo | B60: =((1/(B14*B12))^0.5)*(1/(2*3.14159)) -> 9441.45715 | F60: 58 | G60: 168.5922367 | H60: 168.5788137 | I60: 1 | J60: 1 | K60: 1 | L60: =10^('Small Signal'!F60/30) -> 85.76958986 | M60: 538.90622680545i | N60: =IF(D$32=1, IF(AND('Small Signal'!$B$63>=1,FCCM=0),U60+0,R60+0), 0) -> 0 | O60: =IF(D$32=1, IF(AND('Small Signal'!$B$63>=1,FCCM=0),V60,S60), 0) -> 0 | P60: =IF(AND('Small Signal'!$B$63>=1,FCCM=0),AE60+0,AB60+0) -> 58.67908567 | Q60: =IF(AND('Small Signal'!$B$63>=1,FCCM=0),AF60,AC60) -> 112.3878569 | R60: 9.039258664 | S60: -1.243410682 | T60: =IMDIV(IMSUM('Small Signal'!$B$76,IMPRODUCT(M60,'Small Signal'!$B$77)),IMSUM(IMPRODUCT('Small Signal'!$B$80,IMPOWER(M60,2)),IMSUM(IMPRODUCT(M60,'Small Signal'!$B$79),'Small Signal'!$B$78))) -> 4.27193645561428-0.0632357899826619i | U60: 12.61344719 | V60: -0.8480648815 | W60: =IMPRODUCT(IMDIV(IMSUM(IMPRODUCT(M60,'Small Signal'!$B$59*'Small Signal'!$B$6*'Small Signal'!$B$51*'Small Signal'!$B$7*'Small Signal'!$B$8),'Small Signal'!$B$59*'Small Signal'!$B$6*'Small Signal'!$B$51),IMSUM(IMSUM(IMPRODUCT(M60,('Small Signal'!$B$5+'Small Signal'!$B$6)*('Small Signal'!$B$58*'Small Signal'!$B$59)+'Small Signal'!$B$5*'Small Signal'!$B$59*('Small Signal'!$B$8+'Small Signal'!$B$9)+'Small Signal'!$B$6*'Small Signal'!$B$59*('Small Signal'!$B$8+'Small Signal'!$B$9)+'Small Signal'!$B$7*'Small Signal'!$B$8*('Small Signal'!$B$5+'Small Signal'!$B$6)),'Small Signal'!$B$6+'Small Signal'!$B$5),IMPRODUCT(IMPOWER(M60,2),'Small Signal'!$B$58*'Small Signal'!$B$59*'Small Signal'!$B$8*'Small Signal'!$B$7*('Small Signal'!$B$5+'Small Signal'!$B$6)+('Small Signal'!$B$5+'Small Signal'!$B$6)*('Small Signal'!$B$9*'Small Signal'!$B$8*'Small Signal'!$B$59*'Small Signal'!$B$7)))),-1) -> -121.565422514879+277.962441395999i | X60: 0 | Y60: 0 | Z60: 1.00000009527787+0.000163275424477912i | AA60: -327.141839874111+794.183297606798i | AB60: 58.67908567 | AC60: 112.3878569 | AD60: -501.742585616279+1195.12517221842i | AE60: 62.25327325 | AF60: 112.7738477 | AH60: 0.00075-5.79878250530617i | AI60: 0.14 | AJ60: 1000-1855610401.69797i | AK60: 0.139918007326038-0.0033780297113109i | AL60: 1.02794346963472-0.000276253288888422i | AM60: 0.006+0.00047854872940324i | AN60: 2.83048369520205-0.0614356991768508i | AO60: 9.039258664 | AP60: -1.243410682 | AR60: 1.01809506402411-0.000270985252578173i | AS60: 2.82708538865508-0.0613027166184066i | AT60: 9.028820088 | AU60: -1.242211006
A61: esr zero | B61: =1/(B14*B15*2*3.14159) -> 663146.1564 | F61: 59 | G61: 168.5933075 | H61: 168.5788137 | I61: 1 | J61: 1 | K61: 1 | L61: =10^('Small Signal'!F61/30) -> 92.61187281 | M61: 581.897558528268i | N61: =IF(D$32=1, IF(AND('Small Signal'!$B$63>=1,FCCM=0),U61+0,R61+0), 0) -> 0 | O61: =IF(D$32=1, IF(AND('Small Signal'!$B$63>=1,FCCM=0),V61,S61), 0) -> 0 | P61: =IF(AND('Small Signal'!$B$63>=1,FCCM=0),AE61+0,AB61+0) -> 58.10639358 | Q61: =IF(AND('Small Signal'!$B$63>=1,FCCM=0),AF61,AC61) -> 110.8202429 | R61: 9.038929796 | S61: -1.3425706 | T61: =IMDIV(IMSUM('Small Signal'!$B$76,IMPRODUCT(M61,'Small Signal'!$B$77)),IMSUM(IMPRODUCT('Small Signal'!$B$80,IMPOWER(M61,2)),IMSUM(IMPRODUCT(M61,'Small Signal'!$B$79),'Small Signal'!$B$78))) -> 4.27181249301873-0.0682789590000493i | U61: 12.613353 | V61: -0.9157150716 | W61: =IMPRODUCT(IMDIV(IMSUM(IMPRODUCT(M61,'Small Signal'!$B$59*'Small Signal'!$B$6*'Small Signal'!$B$51*'Small Signal'!$B$7*'Small Signal'!$B$8),'Small Signal'!$B$59*'Small Signal'!$B$6*'Small Signal'!$B$51),IMSUM(IMSUM(IMPRODUCT(M61,('Small Signal'!$B$5+'Small Signal'!$B$6)*('Small Signal'!$B$58*'Small Signal'!$B$59)+'Small Signal'!$B$5*'Small Signal'!$B$59*('Small Signal'!$B$8+'Small Signal'!$B$9)+'Small Signal'!$B$6*'Small Signal'!$B$59*('Small Signal'!$B$8+'Small Signal'!$B$9)+'Small Signal'!$B$7*'Small Signal'!$B$8*('Small Signal'!$B$5+'Small Signal'!$B$6)),'Small Signal'!$B$6+'Small Signal'!$B$5),IMPRODUCT(IMPOWER(M61,2),'Small Signal'!$B$58*'Small Signal'!$B$59*'Small Signal'!$B$8*'Small Signal'!$B$7*('Small Signal'!$B$5+'Small Signal'!$B$6)+('Small Signal'!$B$5+'Small Signal'!$B$6)*('Small Signal'!$B$9*'Small Signal'!$B$8*'Small Signal'!$B$59*'Small Signal'!$B$7)))),-1) -> -107.103241509389+263.068908509879i | X61: 0 | Y61: 0 | Z61: 1.00000011108583+0.000176300738009279i | AA61: -285.81339681037+751.609039119449i | AB61: 58.10639358 | AC61: 110.8202429 | AD61: -439.562893904276+1131.09394773309i | AE61: 61.68081569 | AF61: 111.2369972 | AH61: 0.00075-5.37036107850964i | AI61: 0.14 | AJ61: 1000-1718515545.12309i | AK61: 0.139904412898569-0.00364715628806801i | AL61: 1.02794345731702-0.000298291436278675i | AM61: 0.006+0.000516725031973102i | AN61: 2.83026596933868-0.0663317180526594i | AO61: 9.038929796 | AP61: -1.3425706 | AR61: 1.01809505205706-0.000292603141651652i | AS61: 2.82686839047388-0.066188149534801i | AT61: 9.028492 | AU61: -1.341275337
F62: 60 | G62: 168.5944638 | H62: 168.5788137 | I62: 1 | J62: 1 | K62: 1 | L62: =10^('Small Signal'!F62/30) -> 100 | M62: 628.318530717959i | N62: =IF(D$32=1, IF(AND('Small Signal'!$B$63>=1,FCCM=0),U62+0,R62+0), 0) -> 0 | O62: =IF(D$32=1, IF(AND('Small Signal'!$B$63>=1,FCCM=0),V62,S62), 0) -> 0 | P62: =IF(AND('Small Signal'!$B$63>=1,FCCM=0),AE62+0,AB62+0) -> 57.52192929 | Q62: =IF(AND('Small Signal'!$B$63>=1,FCCM=0),AF62,AC62) -> 109.3337512 | R62: 9.038546397 | S62: -1.449632379 | T62: =IMDIV(IMSUM('Small Signal'!$B$76,IMPRODUCT(M62,'Small Signal'!$B$77)),IMSUM(IMPRODUCT('Small Signal'!$B$80,IMPOWER(M62,2)),IMSUM(IMPRODUCT(M62,'Small Signal'!$B$79),'Small Signal'!$B$78))) -> 4.27166796940182-0.0737240654450984i | U62: 12.6132432 | V62: -0.9887609473 | W62: =IMPRODUCT(IMDIV(IMSUM(IMPRODUCT(M62,'Small Signal'!$B$59*'Small Signal'!$B$6*'Small Signal'!$B$51*'Small Signal'!$B$7*'Small Signal'!$B$8),'Small Signal'!$B$59*'Small Signal'!$B$6*'Small Signal'!$B$51),IMSUM(IMSUM(IMPRODUCT(M62,('Small Signal'!$B$5+'Small Signal'!$B$6)*('Small Signal'!$B$58*'Small Signal'!$B$59)+'Small Signal'!$B$5*'Small Signal'!$B$59*('Small Signal'!$B$8+'Small Signal'!$B$9)+'Small Signal'!$B$6*'Small Signal'!$B$59*('Small Signal'!$B$8+'Small Signal'!$B$9)+'Small Signal'!$B$7*'Small Signal'!$B$8*('Small Signal'!$B$5+'Small Signal'!$B$6)),'Small Signal'!$B$6+'Small Signal'!$B$5),IMPRODUCT(IMPOWER(M62,2),'Small Signal'!$B$58*'Small Signal'!$B$59*'Small Signal'!$B$8*'Small Signal'!$B$7*('Small Signal'!$B$5+'Small Signal'!$B$6)+('Small Signal'!$B$5+'Small Signal'!$B$6)*('Small Signal'!$B$9*'Small Signal'!$B$8*'Small Signal'!$B$59*'Small Signal'!$B$7)))),-1) -> -94.1843318182579+248.301249277277i | X62: 0 | Y62: 0 | Z62: 1.00000012951656+0.000190365145462959i | AA62: -248.895294460871+709.393492690549i | AB62: 57.52192929 | AC62: 109.3337512 | AD62: -384.018415895747+1067.60414514307i | AE62: 61.0966248 | AF62: 109.7837155 | AH62: 0.00075-4.97359197162172i | AI62: 0.14 | AJ62: 1000-1591549430.91895i | AK62: 0.139888566312768-0.00393766032305581i | AL62: 1.02794344295563-0.000322087679528888i | AM62: 0.006+0.000557946855277548i | AN62: 2.83001216125287-0.0716170178254386i | AO62: 9.038546397 | AP62: -1.449632379 | AR62: 1.01809503810451-0.000315945600444612i | AS62: 2.82661543056547-0.0714620247338442i | AT62: 9.028109507 | AU62: -1.448233936
A63: DCM >= 1 | B63: =(1-(B3/B2))/(2*B12*B11/(B3/B4)) -> 0.1493688194 | F63: 61 | G63: 168.5957123 | H63: 168.5788137 | I63: 1 | J63: 1 | K63: 1 | L63: =10^('Small Signal'!F63/30) -> 107.9775162 | M63: 678.442743499492i | N63: =IF(D$32=1, IF(AND('Small Signal'!$B$63>=1,FCCM=0),U63+0,R63+0), 0) -> 0 | O63: =IF(D$32=1, IF(AND('Small Signal'!$B$63>=1,FCCM=0),V63,S63), 0) -> 0 | P63: =IF(AND('Small Signal'!$B$63>=1,FCCM=0),AE63+0,AB63+0) -> 56.92696723 | Q63: =IF(AND('Small Signal'!$B$63>=1,FCCM=0),AF63,AC63) -> 107.9270322 | R63: 9.038099428 | S63: -1.565224157 | T63: =IMDIV(IMSUM('Small Signal'!$B$76,IMPRODUCT(M63,'Small Signal'!$B$77)),IMSUM(IMPRODUCT('Small Signal'!$B$80,IMPOWER(M63,2)),IMSUM(IMPRODUCT(M63,'Small Signal'!$B$79),'Small Signal'!$B$78))) -> 4.27149947560654-0.0796030750159667i | U63: 12.61311517 | V63: -1.06763266 | W63: =IMPRODUCT(IMDIV(IMSUM(IMPRODUCT(M63,'Small Signal'!$B$59*'Small Signal'!$B$6*'Small Signal'!$B$51*'Small Signal'!$B$7*'Small Signal'!$B$8),'Small Signal'!$B$59*'Small Signal'!$B$6*'Small Signal'!$B$51),IMSUM(IMSUM(IMPRODUCT(M63,('Small Signal'!$B$5+'Small Signal'!$B$6)*('Small Signal'!$B$58*'Small Signal'!$B$59)+'Small Signal'!$B$5*'Small Signal'!$B$59*('Small Signal'!$B$8+'Small Signal'!$B$9)+'Small Signal'!$B$6*'Small Signal'!$B$59*('Small Signal'!$B$8+'Small Signal'!$B$9)+'Small Signal'!$B$7*'Small Signal'!$B$8*('Small Signal'!$B$5+'Small Signal'!$B$6)),'Small Signal'!$B$6+'Small Signal'!$B$5),IMPRODUCT(IMPOWER(M63,2),'Small Signal'!$B$58*'Small Signal'!$B$59*'Small Signal'!$B$8*'Small Signal'!$B$7*('Small Signal'!$B$5+'Small Signal'!$B$6)+('Small Signal'!$B$5+'Small Signal'!$B$6)*('Small Signal'!$B$9*'Small Signal'!$B$8*'Small Signal'!$B$59*'Small Signal'!$B$7)))),-1) -> -82.7028553755993+233.798777565383i | X63: 0 | Y63: 0 | Z63: 1.00000015100521+0.000205551540057503i | AA63: -216.085091295767+667.934700546252i | AB63: 56.92696723 | AC63: 107.9270322 | AD63: -334.654101738857+1005.25475736848i | AE63: 60.50198148 | AF63: 108.4128465 | AH63: 0.00075-4.6061366709899i | AI63: 0.14 | AJ63: 1000-1473963734.71677i | AK63: 0.139870095106473-0.00425122338873661i | AL63: 1.02794342621149-0.000347782270782043i | AM63: 0.006+0.000602457156227549i | AN63: 2.82971629933059-0.0773223173746118i | AO63: 9.038099428 | AP63: -1.565224157 | AR63: 1.01809502183703-0.000341150206555789i | AS63: 2.82632055722238-0.077154995714104i | AT63: 9.027663597 | AU63: -1.563714342
A64: Fm | B64: =1*B11/(B65+B56) -> 1.139531845 | C64: With Vin_max | F64: 62 | G64: 168.5970603 | H64: 168.5788137 | I64: 1 | J64: 1 | K64: 1 | L64: =10^('Small Signal'!F64/30) -> 116.5914401 | M64: 732.565623492221i | N64: =IF(D$32=1, IF(AND('Small Signal'!$B$63>=1,FCCM=0),U64+0,R64+0), 0) -> 0 | O64: =IF(D$32=1, IF(AND('Small Signal'!$B$63>=1,FCCM=0),V64,S64), 0) -> 0 | P64: =IF(AND('Small Signal'!$B$63>=1,FCCM=0),AE64+0,AB64+0) -> 56.32268643 | Q64: =IF(AND('Small Signal'!$B$63>=1,FCCM=0),AF64,AC64) -> 106.5980076 | R64: 9.03757836 | S64: -1.690023606 | T64: =IMDIV(IMSUM('Small Signal'!$B$76,IMPRODUCT(M64,'Small Signal'!$B$77)),IMSUM(IMPRODUCT('Small Signal'!$B$80,IMPOWER(M64,2)),IMSUM(IMPRODUCT(M64,'Small Signal'!$B$79),'Small Signal'!$B$78))) -> 4.27130303764238-0.0859504778819913i | U64: 12.61296591 | V64: -1.152794603 | W64: =IMPRODUCT(IMDIV(IMSUM(IMPRODUCT(M64,'Small Signal'!$B$59*'Small Signal'!$B$6*'Small Signal'!$B$51*'Small Signal'!$B$7*'Small Signal'!$B$8),'Small Signal'!$B$59*'Small Signal'!$B$6*'Small Signal'!$B$51),IMSUM(IMSUM(IMPRODUCT(M64,('Small Signal'!$B$5+'Small Signal'!$B$6)*('Small Signal'!$B$58*'Small Signal'!$B$59)+'Small Signal'!$B$5*'Small Signal'!$B$59*('Small Signal'!$B$8+'Small Signal'!$B$9)+'Small Signal'!$B$6*'Small Signal'!$B$59*('Small Signal'!$B$8+'Small Signal'!$B$9)+'Small Signal'!$B$7*'Small Signal'!$B$8*('Small Signal'!$B$5+'Small Signal'!$B$6)),'Small Signal'!$B$6+'Small Signal'!$B$5),IMPRODUCT(IMPOWER(M64,2),'Small Signal'!$B$58*'Small Signal'!$B$59*'Small Signal'!$B$8*'Small Signal'!$B$7*('Small Signal'!$B$5+'Small Signal'!$B$6)+('Small Signal'!$B$5+'Small Signal'!$B$6)*('Small Signal'!$B$9*'Small Signal'!$B$8*'Small Signal'!$B$59*'Small Signal'!$B$7)))),-1) -> -72.5451433965564+219.673684783633i | X64: 0 | Y64: 0 | Z64: 1.00000017605914+0.00022194942765853i | AA64: -187.057970180145+627.553190206517i | AB64: 56.32268643 | AC64: 106.5980076 | AD64: -290.981233170662+944.528166849378i | AE64: 59.89807223 | AF64: 107.1225199 | AH64: 0.00075-4.26582943532455i | AI64: 0.14 | AJ64: 1000-1365065419.30386i | AK64: 0.139848565452196-0.00458965505897943i | AL64: 1.02794340668925-0.000375526650756547i | AM64: 0.006+0.000650518273661092i | AN64: 2.82937142654315-0.083480699393351i | AO64: 9.03757836 | AP64: -1.690023606 | AR64: 1.01809500287054-0.000368365512799483i | AS64: 2.82597683659474-0.0833000749640677i | AT64: 9.027143761 | AU64: -1.688393582
A65: Sn | B65: =Ri*((Vi_ss-Vo_ss)/Lo_ss) -> 425587.9256 | C65: =Ri*((Vin_max-Vo_ss)/Lo_ss) -> 449962.95 | F65: 63 | G65: 168.598516 | H65: 168.5788137 | I65: 1 | J65: 1 | K65: 1 | L65: =10^('Small Signal'!F65/30) -> 125.8925412 | M65: 791.006165022012i | N65: =IF(D$32=1, IF(AND('Small Signal'!$B$63>=1,FCCM=0),U65+0,R65+0), 0) -> 0 | O65: =IF(D$32=1, IF(AND('Small Signal'!$B$63>=1,FCCM=0),V65,S65), 0) -> 0 | P65: =IF(AND('Small Signal'!$B$63>=1,FCCM=0),AE65+0,AB65+0) -> 55.71016578 | Q65: =IF(AND('Small Signal'!$B$63>=1,FCCM=0),AF65,AC65) -> 105.3440167 | R65: 9.036970917 | S65: -1.82476173 | T65: =IMDIV(IMSUM('Small Signal'!$B$76,IMPRODUCT(M65,'Small Signal'!$B$77)),IMSUM(IMPRODUCT('Small Signal'!$B$80,IMPOWER(M65,2)),IMSUM(IMPRODUCT(M65,'Small Signal'!$B$79),'Small Signal'!$B$78))) -> 4.27107402325677-0.0928034834537407i | U65: 12.61279188 | V65: -1.244748121 | W65: =IMPRODUCT(IMDIV(IMSUM(IMPRODUCT(M65,'Small Signal'!$B$59*'Small Signal'!$B$6*'Small Signal'!$B$51*'Small Signal'!$B$7*'Small Signal'!$B$8),'Small Signal'!$B$59*'Small Signal'!$B$6*'Small Signal'!$B$51),IMSUM(IMSUM(IMPRODUCT(M65,('Small Signal'!$B$5+'Small Signal'!$B$6)*('Small Signal'!$B$58*'Small Signal'!$B$59)+'Small Signal'!$B$5*'Small Signal'!$B$59*('Small Signal'!$B$8+'Small Signal'!$B$9)+'Small Signal'!$B$6*'Small Signal'!$B$59*('Small Signal'!$B$8+'Small Signal'!$B$9)+'Small Signal'!$B$7*'Small Signal'!$B$8*('Small Signal'!$B$5+'Small Signal'!$B$6)),'Small Signal'!$B$6+'Small Signal'!$B$5),IMPRODUCT(IMPOWER(M65,2),'Small Signal'!$B$58*'Small Signal'!$B$59*'Small Signal'!$B$8*'Small Signal'!$B$7*('Small Signal'!$B$5+'Small Signal'!$B$6)+('Small Signal'!$B$5+'Small Signal'!$B$6)*('Small Signal'!$B$9*'Small Signal'!$B$8*'Small Signal'!$B$59*'Small Signal'!$B$7)))),-1) -> -63.5946405972961+206.013135047053i | X65: 0 | Y65: 0 | Z65: 1.00000020526986+0.000239655454258937i | AA65: -161.480868016673+588.497961463735i | AB65: 55.71016578 | AC65: 105.3440167 | AD65: -252.498680903869+885.799153725575i | AE65: 59.28598471 | AF65: 105.9102991 | AH65: 0.00075-3.95066453105715i | AI65: 0.14 | AJ65: 1000-1264212649.93829i | AK65: 0.139823472130262-0.00495490153862026i | AL65: 1.02794338392798-0.000405484341300584i | AM65: 0.006+0.000702413474539547i | AN65: 2.82896943887472-0.0901277765958738i | AO65: 9.036970917 | AP65: -1.82476173 | AR65: 1.01809498075724-0.00039775192273971i | AS65: 2.82557619164969-0.0899327998853716i | AT65: 9.026537756 | AU65: -1.823001969
A66: Sf | B66: =Ri*((Vo_ss)/Lo_ss) -> 37537.53754 | F66: 64 | G66: =DEGREES((ATAN(10)+ATAN(L66/(fsw_ss/6))-ATAN(L66/(fsw_ss/6*Vo_ss/Vref))-ATAN(MAX(1/10,L66/(fsw_ss/2)))))+90 -> 168.6000877 | H66: =DEGREES((ATAN(10)-ATAN(MAX(1/10,L66/(fsw_ss/2)))))+90 -> 168.5788137 | I66: =IF(fz_cff>fsw_ss/4,IF(AU66+H66>65,1,0),IF(AU66+G66>65,1,0)) -> 1 | J66: 1 | K66: 1 | L66: =10^('Small Signal'!F66/30) -> 135.9356391 | M66: 854.108810238863i | N66: =IF(D$32=1, IF(AND('Small Signal'!$B$63>=1,FCCM=0),U66+0,R66+0), 0) -> 0 | O66: =IF(D$32=1, IF(AND('Small Signal'!$B$63>=1,FCCM=0),V66,S66), 0) -> 0 | P66: =IF(AND('Small Signal'!$B$63>=1,FCCM=0),AE66+0,AB66+0) -> 55.0903832 | Q66: =IF(AND('Small Signal'!$B$63>=1,FCCM=0),AF66,AC66) -> 104.1619495 | R66: 9.036262798 | S66: -1.970226934 | T66: =IMDIV(IMSUM('Small Signal'!$B$76,IMPRODUCT(M66,'Small Signal'!$B$77)),IMSUM(IMPRODUCT('Small Signal'!$B$80,IMPOWER(M66,2)),IMSUM(IMPRODUCT(M66,'Small Signal'!$B$79),'Small Signal'!$B$78))) -> 4.27080703310779-0.100202228980431i | U66: =20*LOG(IMABS(T66)) -> 12.61258899 | V66: =(180/PI())*IMARGUMENT(T66) -> -1.344034435 | W66: =IMPRODUCT(IMDIV(IMSUM(IMPRODUCT(M66,'Small Signal'!$B$59*'Small Signal'!$B$6*'Small Signal'!$B$51*'Small Signal'!$B$7*'Small Signal'!$B$8),'Small Signal'!$B$59*'Small Signal'!$B$6*'Small Signal'!$B$51),IMSUM(IMSUM(IMPRODUCT(M66,('Small Signal'!$B$5+'Small Signal'!$B$6)*('Small Signal'!$B$58*'Small Signal'!$B$59)+'Small Signal'!$B$5*'Small Signal'!$B$59*('Small Signal'!$B$8+'Small Signal'!$B$9)+'Small Signal'!$B$6*'Small Signal'!$B$59*('Small Signal'!$B$8+'Small Signal'!$B$9)+'Small Signal'!$B$7*'Small Signal'!$B$8*('Small Signal'!$B$5+'Small Signal'!$B$6)),'Small Signal'!$B$6+'Small Signal'!$B$5),IMPRODUCT(IMPOWER(M66,2),'Small Signal'!$B$58*'Small Signal'!$B$59*'Small Signal'!$B$8*'Small Signal'!$B$7*('Small Signal'!$B$5+'Small Signal'!$B$6)+('Small Signal'!$B$5+'Small Signal'!$B$6)*('Small Signal'!$B$9*'Small Signal'!$B$8*'Small Signal'!$B$59*'Small Signal'!$B$7)))),-1) -> -55.7357803368529+192.881908070141i | X66: =IF(D$33=1, 20*LOG(IMABS(Z66))+20*LOG(IMABS(W66)), 0) -> 0 | Y66: =IF(D$33=1, (180/PI())*IMARGUMENT(Z66)+(180/PI())*IMARGUMENT(W66), 0) -> 0 | Z66: =IMDIV(COMPLEX(1,IMABS(M66)/(2*PI()*fz_cff)),COMPLEX(1,IMABS(M66)/(2*PI()*fp_cff))) -> 1.00000023932706+0.000258773975527382i | AA66: =IMPRODUCT(AN66,W66,Z66) -> -139.023550318402+550.954038606638i | AB66: 55.0903832 | AC66: 104.1619495 | AD66: =IMPRODUCT(T66,W66) -> -218.709565539756+829.346258968925i | AE66: =20*LOG(IMABS(AD66)) -> 58.66670703 | AF66: =(180/PI())*IMARGUMENT(AD66) -> 104.7733154 | AH66: =IMSUM(ESR_ss,IMDIV(1,IMPRODUCT(Co_ss,M66))) -> 0.00075-3.65878441076618i | AI66: =Ro -> 0.14 | AJ66: =IMSUM(ESR2_ss,IMDIV(1,IMPRODUCT(Co2_ss,M66))) -> 1000-1170811011.44518i | AK66: =IMDIV(1,(IMSUM(IMDIV(1,AH66),IMDIV(1,AI66),IMDIV(1,AJ66)))) -> 0.139794226893572-0.00534905457638931i | AL66: =IMDIV(IMPRODUCT(Re,IMDIV(1,IMPRODUCT(Ce,M66))),IMSUM(Re,IMDIV(1,IMPRODUCT(Ce,M66)))) -> 1.0279433573903-0.000437831909145988i | AM66: =IMSUM(Rdc_ss,IMPRODUCT(Lo_ss,M66)) -> 0.006+0.00075844862349211i | AN66: =IMDIV(IMPRODUCT(AK66,AL66),IMPRODUCT(Ri,IMSUM(AL66,AK66,AM66))) -> 2.82850089762985-0.0973018654420696i | AO66: 9.036262798 | AP66: -1.970226934 | AR66: =IMDIV(IMPRODUCT(Re_vimax,IMDIV(1,IMPRODUCT(Ce,M66))),IMSUM(Re_vimax,IMDIV(1,IMPRODUCT(Ce,M66)))) -> 1.01809495497501-0.000429482636066217i | AS66: =IMDIV(IMPRODUCT(AK66,AR66),IMPRODUCT(Ri,IMSUM(AR66,AK66,AM66))) -> 2.8251092150952-0.0970914062364461i | AT66: 9.025831313 | AU66: -1.968327164
A67: Se to Sn ratio | B67: =B56/B66 -> 0 | F67: 65 | G67: 168.6017848 | H67: 168.5788137 | I67: 1 | J67: =IF(P67>0,1,0) -> 1 | K67: 1 | L67: =10^('Small Signal'!F67/30) -> 146.7799268 | M67: =COMPLEX(0,L67*2*PI()) -> 922.245479221195i | N67: =IF(D$32=1, IF(AND('Small Signal'!$B$63>=1,FCCM=0),U67+0,R67+0), 0) -> 0 | O67: =IF(D$32=1, IF(AND('Small Signal'!$B$63>=1,FCCM=0),V67,S67), 0) -> 0 | P67: =IF(AND('Small Signal'!$B$63>=1,FCCM=0),AE67+0,AB67+0) -> 54.46421757 | Q67: =IF(AND('Small Signal'!$B$63>=1,FCCM=0),AF67,AC67) -> 103.0483638 | R67: =AO67 -> 9.035437338 | S67: -2.127269371 | T67: =IMDIV(IMSUM('Small Signal'!$B$76,IMPRODUCT(M67,'Small Signal'!$B$77)),IMSUM(IMPRODUCT('Small Signal'!$B$80,IMPOWER(M67,2)),IMSUM(IMPRODUCT(M67,'Small Signal'!$B$79),'Small Signal'!$B$78))) -> 4.27049577402002-0.108190002636619i | U67: 12.61235245 | V67: -1.451237792 | W67: =IMPRODUCT(IMDIV(IMSUM(IMPRODUCT(M67,'Small Signal'!$B$59*'Small Signal'!$B$6*'Small Signal'!$B$51*'Small Signal'!$B$7*'Small Signal'!$B$8),'Small Signal'!$B$59*'Small Signal'!$B$6*'Small Signal'!$B$51),IMSUM(IMSUM(IMPRODUCT(M67,('Small Signal'!$B$5+'Small Signal'!$B$6)*('Small Signal'!$B$58*'Small Signal'!$B$59)+'Small Signal'!$B$5*'Small Signal'!$B$59*('Small Signal'!$B$8+'Small Signal'!$B$9)+'Small Signal'!$B$6*'Small Signal'!$B$59*('Small Signal'!$B$8+'Small Signal'!$B$9)+'Small Signal'!$B$7*'Small Signal'!$B$8*('Small Signal'!$B$5+'Small Signal'!$B$6)),'Small Signal'!$B$6+'Small Signal'!$B$5),IMPRODUCT(IMPOWER(M67,2),'Small Signal'!$B$58*'Small Signal'!$B$59*'Small Signal'!$B$8*'Small Signal'!$B$7*('Small Signal'!$B$5+'Small Signal'!$B$6)+('Small Signal'!$B$5+'Small Signal'!$B$6)*('Small Signal'!$B$9*'Small Signal'!$B$8*'Small Signal'!$B$59*'Small Signal'!$B$7)))),-1) -> -48.8568682873874+180.325292601366i | X67: 0 | Y67: 0 | Z67: 1.00000027903482+0.000279417671777899i | AA67: -119.366852500457+515.050738603413i | AB67: =20*LOG(IMABS(AA67)) -> 54.46421757 | AC67: =(180/PI())*IMARGUMENT(AA67) -> 103.0483638 | AD67: -189.13365567115+775.364224711886i | AE67: 58.04112993 | AF67: 103.7083859 | AH67: 0.00075-3.38846876499624i | AI67: 0.14 | AJ67: 1000-1084310004.79879i | AK67: 0.139760144976785-0.00577436058102479i | AL67: 1.02794332644964-0.000472760006540479i | AM67: 0.006+0.000818953985548421i | AN67: 2.8279548115334-0.10504416651541i | AO67: =20*LOG(IMABS(AN67)) -> 9.035437338 | AP67: =(180/PI())*IMARGUMENT(AN67) -> -2.127269371 | AR67: 1.01809492491515-0.000463744669382994i | AS67: 2.82456495219323-0.104817008239294i | AT67: =20*LOG(IMABS(AS67)) -> 9.025007805 | AU67: =(180/PI())*IMARGUMENT(AS67) -> -2.125218519
F68: 66 | G68: 168.6036173 | H68: 168.5788137 | I68: 1 | J68: 1 | K68: 1 | L68: =10^('Small Signal'!F68/30) -> 158.4893192 | M68: 995.817762032063i | N68: =IF(D$32=1, IF(AND('Small Signal'!$B$63>=1,FCCM=0),U68+0,R68+0), 0) -> 0 | O68: =IF(D$32=1, IF(AND('Small Signal'!$B$63>=1,FCCM=0),V68,S68), 0) -> 0 | P68: =IF(AND('Small Signal'!$B$63>=1,FCCM=0),AE68+0,AB68+0) -> 53.83245276 | Q68: =IF(AND('Small Signal'!$B$63>=1,FCCM=0),AF68,AC68) -> 101.9995856 | R68: 9.03447512 | S68: -2.296805566 | T68: =IMDIV(IMSUM('Small Signal'!$B$76,IMPRODUCT(M68,'Small Signal'!$B$77)),IMSUM(IMPRODUCT('Small Signal'!$B$80,IMPOWER(M68,2)),IMSUM(IMPRODUCT(M68,'Small Signal'!$B$79),'Small Signal'!$B$78))) -> 4.27013291140095-0.116813481699457i | U68: 12.61207668 | V68: -1.566988859 | W68: =IMPRODUCT(IMDIV(IMSUM(IMPRODUCT(M68,'Small Signal'!$B$59*'Small Signal'!$B$6*'Small Signal'!$B$51*'Small Signal'!$B$7*'Small Signal'!$B$8),'Small Signal'!$B$59*'Small Signal'!$B$6*'Small Signal'!$B$51),IMSUM(IMSUM(IMPRODUCT(M68,('Small Signal'!$B$5+'Small Signal'!$B$6)*('Small Signal'!$B$58*'Small Signal'!$B$59)+'Small Signal'!$B$5*'Small Signal'!$B$59*('Small Signal'!$B$8+'Small Signal'!$B$9)+'Small Signal'!$B$6*'Small Signal'!$B$59*('Small Signal'!$B$8+'Small Signal'!$B$9)+'Small Signal'!$B$7*'Small Signal'!$B$8*('Small Signal'!$B$5+'Small Signal'!$B$6)),'Small Signal'!$B$6+'Small Signal'!$B$5),IMPRODUCT(IMPOWER(M68,2),'Small Signal'!$B$58*'Small Signal'!$B$59*'Small Signal'!$B$8*'Small Signal'!$B$7*('Small Signal'!$B$5+'Small Signal'!$B$6)+('Small Signal'!$B$5+'Small Signal'!$B$6)*('Small Signal'!$B$9*'Small Signal'!$B$8*'Small Signal'!$B$59*'Small Signal'!$B$7)))),-1) -> -42.8520986269009+168.372007263775i | X68: 0 | Y68: 0 | Z68: 1.00000032533067+0.000301708211980605i | AA68: -102.208442243618+480.870017589374i | AB68: 53.83245276 | AC68: 101.9995856 | AD68: -163.316036280121+723.976552414422i | AE68: 57.41005109 | AF68: 102.7121157 | AH68: 0.00075-3.13812438294245i | AI68: 0.14 | AJ68: 1000-1004199802.54158i | AK68: 0.139720429468691-0.00623322982835549i | AL68: 1.02794329037548-0.000510474494889943i | AM68: 0.006+0.000884286172684472i | AN68: 2.82731838394273-0.113398950252846i | AO68: 9.03447512 | AP68: -2.296805566 | AR68: 1.01809488986794-0.000500739958424005i | AS68: 2.82393064879648-0.113153784056995i | AT68: 9.024047863 | AU68: -2.294591701
A69: R | B69: =B3/B4 -> 0.14 | F69: 67 | G69: 168.605596 | H69: 168.5788137 | I69: 1 | J69: 1 | K69: 1 | L69: =10^('Small Signal'!F69/30) -> 171.1328304 | M69: 1075.25928564699i | N69: =IF(D$32=1, IF(AND('Small Signal'!$B$63>=1,FCCM=0),U69+0,R69+0), 0) -> 0 | O69: =IF(D$32=1, IF(AND('Small Signal'!$B$63>=1,FCCM=0),V69,S69), 0) -> 0 | P69: =IF(AND('Small Signal'!$B$63>=1,FCCM=0),AE69+0,AB69+0) -> 53.19578299 | Q69: =IF(AND('Small Signal'!$B$63>=1,FCCM=0),AF69,AC69) -> 101.0117934 | R69: 9.033353526 | S69: -2.479823343 | T69: =IMDIV(IMSUM('Small Signal'!$B$76,IMPRODUCT(M69,'Small Signal'!$B$77)),IMSUM(IMPRODUCT('Small Signal'!$B$80,IMPOWER(M69,2)),IMSUM(IMPRODUCT(M69,'Small Signal'!$B$79),'Small Signal'!$B$78))) -> 4.26970989742807-0.126122986323325i | U69: 12.61175516 | V69: -1.691968379 | W69: =IMPRODUCT(IMDIV(IMSUM(IMPRODUCT(M69,'Small Signal'!$B$59*'Small Signal'!$B$6*'Small Signal'!$B$51*'Small Signal'!$B$7*'Small Signal'!$B$8),'Small Signal'!$B$59*'Small Signal'!$B$6*'Small Signal'!$B$51),IMSUM(IMSUM(IMPRODUCT(M69,('Small Signal'!$B$5+'Small Signal'!$B$6)*('Small Signal'!$B$58*'Small Signal'!$B$59)+'Small Signal'!$B$5*'Small Signal'!$B$59*('Small Signal'!$B$8+'Small Signal'!$B$9)+'Small Signal'!$B$6*'Small Signal'!$B$59*('Small Signal'!$B$8+'Small Signal'!$B$9)+'Small Signal'!$B$7*'Small Signal'!$B$8*('Small Signal'!$B$5+'Small Signal'!$B$6)),'Small Signal'!$B$6+'Small Signal'!$B$5),IMPRODUCT(IMPOWER(M69,2),'Small Signal'!$B$58*'Small Signal'!$B$59*'Small Signal'!$B$8*'Small Signal'!$B$7*('Small Signal'!$B$5+'Small Signal'!$B$6)+('Small Signal'!$B$5+'Small Signal'!$B$6)*('Small Signal'!$B$9*'Small Signal'!$B$8*'Small Signal'!$B$59*'Small Signal'!$B$7)))),-1) -> -37.622846492803+157.036993751037i | X69: 0 | Y69: 0 | Z69: 1.00000037930763+0.000325776970720669i | AA69: -87.2665137084849+448.454452570979i | AB69: 53.19578299 | AC69: 101.0117934 | AD69: -140.83266542462+675.247512234809i | AE69: 56.77418087 | AF69: 101.7809827 | AH69: 0.00075-2.90627576224061i | AI69: 0.14 | AJ69: 1000-930008243.916995i | AK69: 0.139674153229255-0.00672824560634619i | AL69: 1.02794324831609-0.00055119765803111i | AM69: 0.006+0.000954830245654527i | AN69: 2.82657671983501-0.122413746162796i | AO69: 9.033353526 | AP69: -2.479823343 | AR69: 1.01809484900588-0.000540686548190361i | AS69: 2.82319145928699-0.122149164789675i | AT69: 9.02292892 | AU69: -2.477433614
A70: Ddcm | B70: =(B3*B4*B12*2*B11/(B2*(B2-B3)))^0.5 -> 0.2097186946 | F70: 68 | G70: 168.6077326 | H70: 168.5788137 | I70: 1 | J70: 1 | K70: 1 | L70: =10^('Small Signal'!F70/30) -> 184.7849797 | M70: 1161.03826970385i | N70: =IF(D$32=1, IF(AND('Small Signal'!$B$63>=1,FCCM=0),U70+0,R70+0), 0) -> 0 | O70: =IF(D$32=1, IF(AND('Small Signal'!$B$63>=1,FCCM=0),V70,S70), 0) -> 0 | P70: =IF(AND('Small Signal'!$B$63>=1,FCCM=0),AE70+0,AB70+0) -> 52.55481911 | Q70: =IF(AND('Small Signal'!$B$63>=1,FCCM=0),AF70,AC70) -> 100.0810872 | R70: 9.032046209 | S70: -2.677387039 | T70: =IMDIV(IMSUM('Small Signal'!$B$76,IMPRODUCT(M70,'Small Signal'!$B$77)),IMSUM(IMPRODUCT('Small Signal'!$B$80,IMPOWER(M70,2)),IMSUM(IMPRODUCT(M70,'Small Signal'!$B$79),'Small Signal'!$B$78))) -> 4.26921677107862-0.136172749280307i | U70: 12.61138032 | V70: -1.826911103 | W70: =IMPRODUCT(IMDIV(IMSUM(IMPRODUCT(M70,'Small Signal'!$B$59*'Small Signal'!$B$6*'Small Signal'!$B$51*'Small Signal'!$B$7*'Small Signal'!$B$8),'Small Signal'!$B$59*'Small Signal'!$B$6*'Small Signal'!$B$51),IMSUM(IMSUM(IMPRODUCT(M70,('Small Signal'!$B$5+'Small Signal'!$B$6)*('Small Signal'!$B$58*'Small Signal'!$B$59)+'Small Signal'!$B$5*'Small Signal'!$B$59*('Small Signal'!$B$8+'Small Signal'!$B$9)+'Small Signal'!$B$6*'Small Signal'!$B$59*('Small Signal'!$B$8+'Small Signal'!$B$9)+'Small Signal'!$B$7*'Small Signal'!$B$8*('Small Signal'!$B$5+'Small Signal'!$B$6)),'Small Signal'!$B$6+'Small Signal'!$B$5),IMPRODUCT(IMPOWER(M70,2),'Small Signal'!$B$58*'Small Signal'!$B$59*'Small Signal'!$B$8*'Small Signal'!$B$7*('Small Signal'!$B$5+'Small Signal'!$B$6)+('Small Signal'!$B$5+'Small Signal'!$B$6)*('Small Signal'!$B$9*'Small Signal'!$B$8*'Small Signal'!$B$59*'Small Signal'!$B$7)))),-1) -> -33.0783814449548+146.323984637248i | X70: 0 | Y70: 0 | Z70: 1.00000044224013+0.000351765802323773i | AA70: -74.2818272676373+417.814579033398i | AB70: 52.55481911 | AC70: 100.0810872 | AD70: -121.293441551233+629.193183367492i | AE70: 56.13414884 | AF70: 100.9114084 | AH70: 0.00075-2.69155641251783i | AI70: 0.14 | AJ70: 1000-861298052.005705i | AK70: 0.139620237992667-0.00726217309347336i | AL70: 1.02794319927846-0.000595169512282859i | AM70: 0.006+0.00103100198349702i | AN70: 2.82571248650437-0.132139532948373i | AO70: 9.032046209 | AP70: -2.677387039 | AR70: 1.01809480136423-0.000583819878020853i | AS70: 2.82233010836963-0.131854024421075i | AT70: 9.021624693 | AU70: -2.674807611
A71: Hd | B71: =(2*B4/B70)*B69*B69*(1-(B3/B2))/(B69*(1-(B3/B2))+B69+B13) -> 3.439683512 | F71: 69 | G71: 168.6100396 | H71: 168.5788137 | I71: 1 | J71: 1 | K71: 1 | L71: =10^('Small Signal'!F71/30) -> 199.5262315 | M71: 1253.66028613816i | N71: =IF(D$32=1, IF(AND('Small Signal'!$B$63>=1,FCCM=0),U71+0,R71+0), 0) -> 0 | O71: =IF(D$32=1, IF(AND('Small Signal'!$B$63>=1,FCCM=0),V71,S71), 0) -> 0 | P71: =IF(AND('Small Signal'!$B$63>=1,FCCM=0),AE71+0,AB71+0) -> 51.91009509 | Q71: =IF(AND('Small Signal'!$B$63>=1,FCCM=0),AF71,AC71) -> 99.2035432 | R71: 9.030522485 | S71: -2.890643026 | T71: =IMDIV(IMSUM('Small Signal'!$B$76,IMPRODUCT(M71,'Small Signal'!$B$77)),IMSUM(IMPRODUCT('Small Signal'!$B$80,IMPOWER(M71,2)),IMSUM(IMPRODUCT(M71,'Small Signal'!$B$79),'Small Signal'!$B$78))) -> 4.26864192545554-0.147021201840173i | U71: 12.61094333 | V71: -1.972610019 | W71: =IMPRODUCT(IMDIV(IMSUM(IMPRODUCT(M71,'Small Signal'!$B$59*'Small Signal'!$B$6*'Small Signal'!$B$51*'Small Signal'!$B$7*'Small Signal'!$B$8),'Small Signal'!$B$59*'Small Signal'!$B$6*'Small Signal'!$B$51),IMSUM(IMSUM(IMPRODUCT(M71,('Small Signal'!$B$5+'Small Signal'!$B$6)*('Small Signal'!$B$58*'Small Signal'!$B$59)+'Small Signal'!$B$5*'Small Signal'!$B$59*('Small Signal'!$B$8+'Small Signal'!$B$9)+'Small Signal'!$B$6*'Small Signal'!$B$59*('Small Signal'!$B$8+'Small Signal'!$B$9)+'Small Signal'!$B$7*'Small Signal'!$B$8*('Small Signal'!$B$5+'Small Signal'!$B$6)),'Small Signal'!$B$6+'Small Signal'!$B$5),IMPRODUCT(IMPOWER(M71,2),'Small Signal'!$B$58*'Small Signal'!$B$59*'Small Signal'!$B$8*'Small Signal'!$B$7*('Small Signal'!$B$5+'Small Signal'!$B$6)+('Small Signal'!$B$5+'Small Signal'!$B$6)*('Small Signal'!$B$9*'Small Signal'!$B$8*'Small Signal'!$B$59*'Small Signal'!$B$7)))),-1) -> -29.1361359361941+136.227793022575i | X71: 0 | Y71: 0 | Z71: 1.00000051561401+0.000379827876700899i | AA71: -63.0184777028741+388.935433635228i | AB71: 51.91009509 | AC71: 99.2035432 | AD71: -104.343357548797+585.791298430761i | AE71: 55.49051083 | AF71: 100.0998137 | AH71: 0.00075-2.49270080144791i | AI71: 0.14 | AJ71: 1000-797664256.463329i | AK71: 0.139557430255305-0.00783796770079382i | AL71: 1.02794314210477-0.000642649220993903i | AM71: 0.006+0.00111325033409069i | AN71: 2.82470552111449-0.142630926039425i | AO71: 9.030522485 | AP71: -2.890643026 | AR71: 1.01809474581815-0.000630394169166532i | AS71: 2.82132649988463-0.14232286723853i | AT71: 9.02010457 | AU71: -2.887859008
A72: a1 | B72: =B12/(B69*(1-(B3/B2))+B69+B13)+B14*(B15+1/((1/(B13+B69*(1-(B3/B2))))+1/B69)) -> 2.543705657e-05 | F72: 70 | G72: 168.6125306 | H72: 168.5788137 | I72: 1 | J72: 1 | K72: 1 | L72: =10^('Small Signal'!F72/30) -> 215.443469 | M72: 1353.67123896863i | N72: =IF(D$32=1, IF(AND('Small Signal'!$B$63>=1,FCCM=0),U72+0,R72+0), 0) -> 0 | O72: =IF(D$32=1, IF(AND('Small Signal'!$B$63>=1,FCCM=0),V72,S72), 0) -> 0 | P72: =IF(AND('Small Signal'!$B$63>=1,FCCM=0),AE72+0,AB72+0) -> 51.26207468 | Q72: =IF(AND('Small Signal'!$B$63>=1,FCCM=0),AF72,AC72) -> 98.37525734 | R72: 9.028746629 | S72: -3.120825513 | T72: =IMDIV(IMSUM('Small Signal'!$B$76,IMPRODUCT(M72,'Small Signal'!$B$77)),IMSUM(IMPRODUCT('Small Signal'!$B$80,IMPOWER(M72,2)),IMSUM(IMPRODUCT(M72,'Small Signal'!$B$79),'Small Signal'!$B$78))) -> 4.26797183715308-0.15873127569615i | U72: 12.61043387 | V72: -2.129920907 | W72: =IMPRODUCT(IMDIV(IMSUM(IMPRODUCT(M72,'Small Signal'!$B$59*'Small Signal'!$B$6*'Small Signal'!$B$51*'Small Signal'!$B$7*'Small Signal'!$B$8),'Small Signal'!$B$59*'Small Signal'!$B$6*'Small Signal'!$B$51),IMSUM(IMSUM(IMPRODUCT(M72,('Small Signal'!$B$5+'Small Signal'!$B$6)*('Small Signal'!$B$58*'Small Signal'!$B$59)+'Small Signal'!$B$5*'Small Signal'!$B$59*('Small Signal'!$B$8+'Small Signal'!$B$9)+'Small Signal'!$B$6*'Small Signal'!$B$59*('Small Signal'!$B$8+'Small Signal'!$B$9)+'Small Signal'!$B$7*'Small Signal'!$B$8*('Small Signal'!$B$5+'Small Signal'!$B$6)),'Small Signal'!$B$6+'Small Signal'!$B$5),IMPRODUCT(IMPOWER(M72,2),'Small Signal'!$B$58*'Small Signal'!$B$59*'Small Signal'!$B$8*'Small Signal'!$B$7*('Small Signal'!$B$5+'Small Signal'!$B$6)+('Small Signal'!$B$5+'Small Signal'!$B$6)*('Small Signal'!$B$9*'Small Signal'!$B$8*'Small Signal'!$B$59*'Small Signal'!$B$7)))),-1) -> -25.7216457595102+126.736304338908i | X72: 0 | Y72: 0 | Z72: 1.00000060116161+0.00041012858182664i | AA72: -53.2637251529143+361.782245773668i | AB72: 51.26207468 | AC72: 98.37525734 | AD72: -89.6622444420871+544.989807307733i | AE72: 54.84375597 | AF72: 99.34266332 | AH72: 0.00075-2.30853689584256i | AI72: 0.14 | AJ72: 1000-738731806.669621i | AK72: 0.139484273503944-0.00845878252666119i | AL72: 1.02794307544517-0.000693916621919662i | AM72: 0.006+0.00120206006020414i | AN72: 2.82353237740269-0.15394635788278i | AO72: 9.028746629 | AP72: -3.120825513 | AR72: 1.01809468105617-0.00068068392304328i | AS72: 2.82015726495715-0.15361400810023i | AT72: 9.018332909 | AU72: -3.11782089
A73: a2 | B73: =(B12*B14*(B39+B15))/(B69*(1-(B3/B2))+B69+B13) -> 1.456221984e-10 | F73: 71 | G73: 168.6152203 | H73: 168.5788137 | I73: 1 | J73: 1 | K73: 1 | L73: =10^('Small Signal'!F73/30) -> 232.6305067 | M73: 1461.66058179571i | N73: =IF(D$32=1, IF(AND('Small Signal'!$B$63>=1,FCCM=0),U73+0,R73+0), 0) -> 0 | O73: =IF(D$32=1, IF(AND('Small Signal'!$B$63>=1,FCCM=0),V73,S73), 0) -> 0 | P73: =IF(AND('Small Signal'!$B$63>=1,FCCM=0),AE73+0,AB73+0) -> 50.61115774 | Q73: =IF(AND('Small Signal'!$B$63>=1,FCCM=0),AF73,AC73) -> 97.59237733 | R73: 9.02667705 | S73: -3.369262628 | T73: =IMDIV(IMSUM('Small Signal'!$B$76,IMPRODUCT(M73,'Small Signal'!$B$77)),IMSUM(IMPRODUCT('Small Signal'!$B$80,IMPOWER(M73,2)),IMSUM(IMPRODUCT(M73,'Small Signal'!$B$79),'Small Signal'!$B$78))) -> 4.2671907515944-0.171370720483164i | U73: 12.60983994 | V73: -2.299767221 | W73: =IMPRODUCT(IMDIV(IMSUM(IMPRODUCT(M73,'Small Signal'!$B$59*'Small Signal'!$B$6*'Small Signal'!$B$51*'Small Signal'!$B$7*'Small Signal'!$B$8),'Small Signal'!$B$59*'Small Signal'!$B$6*'Small Signal'!$B$51),IMSUM(IMSUM(IMPRODUCT(M73,('Small Signal'!$B$5+'Small Signal'!$B$6)*('Small Signal'!$B$58*'Small Signal'!$B$59)+'Small Signal'!$B$5*'Small Signal'!$B$59*('Small Signal'!$B$8+'Small Signal'!$B$9)+'Small Signal'!$B$6*'Small Signal'!$B$59*('Small Signal'!$B$8+'Small Signal'!$B$9)+'Small Signal'!$B$7*'Small Signal'!$B$8*('Small Signal'!$B$5+'Small Signal'!$B$6)),'Small Signal'!$B$6+'Small Signal'!$B$5),IMPRODUCT(IMPOWER(M73,2),'Small Signal'!$B$58*'Small Signal'!$B$59*'Small Signal'!$B$8*'Small Signal'!$B$7*('Small Signal'!$B$5+'Small Signal'!$B$6)+('Small Signal'!$B$5+'Small Signal'!$B$6)*('Small Signal'!$B$9*'Small Signal'!$B$8*'Small Signal'!$B$59*'Small Signal'!$B$7)))),-1) -> -22.7682600560105+117.832173460187i | X73: 0 | Y73: 0 | Z73: 1.00000070090273+0.000442846498154671i | AA73: -44.8271677020504+336.305287021929i | AB73: 50.61115774 | AC73: 97.59237733 | AD73: -76.9635242789348+506.714173959524i | AE73: 54.19431369 | AF73: 98.63649952 | AH73: 0.00075-2.1379792538161i | AI73: 0.14 | AJ73: 1000-684153361.221152i | AK73: 0.139399076296665-0.00912797447164694i | AL73: 1.02794299772578-0.000749273876425066i | AM73: 0.006+0.00129795459663459i | AN73: 2.82216580294591-0.166148244889484i | AO73: 9.02667705 | AP73: -3.369262628 | AR73: 1.01809460554926-0.000734985538987774i | AS73: 2.81879524091565-0.165789739479494i | AT73: 9.016268216 | AU73: -3.366020185
A74: wz1 | B74: =1/(B14*B15) -> 4166666.667 | F74: 72 | G74: 168.6181246 | H74: 168.5788137 | I74: 1 | J74: 1 | K74: 1 | L74: =10^('Small Signal'!F74/30) -> 251.1886432 | M74: 1578.26479197648i | N74: =IF(D$32=1, IF(AND('Small Signal'!$B$63>=1,FCCM=0),U74+0,R74+0), 0) -> 0 | O74: =IF(D$32=1, IF(AND('Small Signal'!$B$63>=1,FCCM=0),V74,S74), 0) -> 0 | P74: =IF(AND('Small Signal'!$B$63>=1,FCCM=0),AE74+0,AB74+0) -> 49.95768627 | Q74: =IF(AND('Small Signal'!$B$63>=1,FCCM=0),AF74,AC74) -> 96.85112661 | R74: 9.024265342 | S74: -3.637382748 | T74: =IMDIV(IMSUM('Small Signal'!$B$76,IMPRODUCT(M74,'Small Signal'!$B$77)),IMSUM(IMPRODUCT('Small Signal'!$B$80,IMPOWER(M74,2)),IMSUM(IMPRODUCT(M74,'Small Signal'!$B$79),'Small Signal'!$B$78))) -> 4.26628031734857-0.185012435958063i | U74: 12.60914755 | V74: -2.483145335 | W74: =IMPRODUCT(IMDIV(IMSUM(IMPRODUCT(M74,'Small Signal'!$B$59*'Small Signal'!$B$6*'Small Signal'!$B$51*'Small Signal'!$B$7*'Small Signal'!$B$8),'Small Signal'!$B$59*'Small Signal'!$B$6*'Small Signal'!$B$51),IMSUM(IMSUM(IMPRODUCT(M74,('Small Signal'!$B$5+'Small Signal'!$B$6)*('Small Signal'!$B$58*'Small Signal'!$B$59)+'Small Signal'!$B$5*'Small Signal'!$B$59*('Small Signal'!$B$8+'Small Signal'!$B$9)+'Small Signal'!$B$6*'Small Signal'!$B$59*('Small Signal'!$B$8+'Small Signal'!$B$9)+'Small Signal'!$B$7*'Small Signal'!$B$8*('Small Signal'!$B$5+'Small Signal'!$B$6)),'Small Signal'!$B$6+'Small Signal'!$B$5),IMPRODUCT(IMPOWER(M74,2),'Small Signal'!$B$58*'Small Signal'!$B$59*'Small Signal'!$B$8*'Small Signal'!$B$7*('Small Signal'!$B$5+'Small Signal'!$B$6)+('Small Signal'!$B$5+'Small Signal'!$B$6)*('Small Signal'!$B$9*'Small Signal'!$B$8*'Small Signal'!$B$59*'Small Signal'!$B$7)))),-1) -> -20.216699280918+109.494244801246i | X74: 0 | Y74: 0 | Z74: 1.00000081719225+0.000478174450694352i | AA74: -37.5394796715004+312.443928994056i | AB74: 49.95768627 | AC74: 96.85112661 | AD74: -65.9923092698685+470.873482239496i | AE74: 53.54256038 | AF74: 97.97796667 | AH74: 0.00075-1.98002262730991i | AI74: 0.14 | AJ74: 1000-633607240.739172i | AK74: 0.139299875669357-0.00984910843564568i | AL74: 1.02794290711164-0.000809047250226512i | AM74: 0.006+0.00140149913527511i | AN74: 2.82057413749798-0.1793031331245i | AO74: 9.024265342 | AP74: -3.637382748 | AR74: 1.01809451751469-0.000793619061044849i | AS74: 2.81720887151191-0.178916477410409i | AT74: 9.013862199 | AU74: -3.633883996
F75: 73 | G75: 168.6212606 | H75: 168.5788137 | I75: 1 | J75: 1 | K75: 1 | L75: =10^('Small Signal'!F75/30) -> 271.2272579 | M75: 1704.17112195251i | N75: =IF(D$32=1, IF(AND('Small Signal'!$B$63>=1,FCCM=0),U75+0,R75+0), 0) -> 0 | O75: =IF(D$32=1, IF(AND('Small Signal'!$B$63>=1,FCCM=0),V75,S75), 0) -> 0 | P75: =IF(AND('Small Signal'!$B$63>=1,FCCM=0),AE75+0,AB75+0) -> 49.30194983 | Q75: =IF(AND('Small Signal'!$B$63>=1,FCCM=0),AF75,AC75) -> 96.14782082 | R75: 9.021455188 | S75: -3.926721038 | T75: =IMDIV(IMSUM('Small Signal'!$B$76,IMPRODUCT(M75,'Small Signal'!$B$77)),IMSUM(IMPRODUCT('Small Signal'!$B$80,IMPOWER(M75,2)),IMSUM(IMPRODUCT(M75,'Small Signal'!$B$79),'Small Signal'!$B$78))) -> 4.2652191613859-0.199734817285772i | U75: 12.60834038 | V75: -2.681130169 | W75: =IMPRODUCT(IMDIV(IMSUM(IMPRODUCT(M75,'Small Signal'!$B$59*'Small Signal'!$B$6*'Small Signal'!$B$51*'Small Signal'!$B$7*'Small Signal'!$B$8),'Small Signal'!$B$59*'Small Signal'!$B$6*'Small Signal'!$B$51),IMSUM(IMSUM(IMPRODUCT(M75,('Small Signal'!$B$5+'Small Signal'!$B$6)*('Small Signal'!$B$58*'Small Signal'!$B$59)+'Small Signal'!$B$5*'Small Signal'!$B$59*('Small Signal'!$B$8+'Small Signal'!$B$9)+'Small Signal'!$B$6*'Small Signal'!$B$59*('Small Signal'!$B$8+'Small Signal'!$B$9)+'Small Signal'!$B$7*'Small Signal'!$B$8*('Small Signal'!$B$5+'Small Signal'!$B$6)),'Small Signal'!$B$6+'Small Signal'!$B$5),IMPRODUCT(IMPOWER(M75,2),'Small Signal'!$B$58*'Small Signal'!$B$59*'Small Signal'!$B$8*'Small Signal'!$B$7*('Small Signal'!$B$5+'Small Signal'!$B$6)+('Small Signal'!$B$5+'Small Signal'!$B$6)*('Small Signal'!$B$9*'Small Signal'!$B$8*'Small Signal'!$B$59*'Small Signal'!$B$7)))),-1) -> -18.0145220182984+101.698721344234i | X75: 0 | Y75: 0 | Z75: 1.00000095277575+0.000516320644924792i | AA75: -31.2508896484645+290.129983789243i | AB75: 49.30194983 | AC75: 96.14782082 | AD75: -56.5231089697673+437.365462229687i | AE75: 52.88882559 | AF75: 97.36382873 | AH75: 0.00075-1.83373603727049i | AI75: 0.14 | AJ75: 1000-586795531.926557i | AK75: 0.139184395308584-0.010625958864604i | AL75: 1.02794280146333-0.000873589036159743i | AM75: 0.006+0.00151330395629383i | AN75: 2.81872062203731-0.193481812569974i | AO75: 9.021455188 | AP75: -3.926721038 | AR75: 1.01809441487393-0.000856930064073339i | AS75: 2.81536151810486-0.193064876214522i | AT75: 9.011058672 | AU75: -3.922946136
A76: C0 | B76: =B64*B71*B12*B11*B74 -> 7033353.393 | F76: 74 | G76: 168.6246467 | H76: 168.5788137 | I76: 1 | J76: 1 | K76: 1 | L76: =10^('Small Signal'!F76/30) -> 292.8644565 | M76: 1840.12164984047i | N76: =IF(D$32=1, IF(AND('Small Signal'!$B$63>=1,FCCM=0),U76+0,R76+0), 0) -> 0 | O76: =IF(D$32=1, IF(AND('Small Signal'!$B$63>=1,FCCM=0),V76,S76), 0) -> 0 | P76: =IF(AND('Small Signal'!$B$63>=1,FCCM=0),AE76+0,AB76+0) -> 48.64419054 | Q76: =IF(AND('Small Signal'!$B$63>=1,FCCM=0),AF76,AC76) -> 95.47887842 | R76: 9.018181083 | S76: -4.238926144 | T76: =IMDIV(IMSUM('Small Signal'!$B$76,IMPRODUCT(M76,'Small Signal'!$B$77)),IMSUM(IMPRODUCT('Small Signal'!$B$80,IMPOWER(M76,2)),IMSUM(IMPRODUCT(M76,'Small Signal'!$B$79),'Small Signal'!$B$78))) -> 4.26398239604683-0.21562211106236i | U76: 12.60739944 | V76: -2.894881212 | W76: =IMPRODUCT(IMDIV(IMSUM(IMPRODUCT(M76,'Small Signal'!$B$59*'Small Signal'!$B$6*'Small Signal'!$B$51*'Small Signal'!$B$7*'Small Signal'!$B$8),'Small Signal'!$B$59*'Small Signal'!$B$6*'Small Signal'!$B$51),IMSUM(IMSUM(IMPRODUCT(M76,('Small Signal'!$B$5+'Small Signal'!$B$6)*('Small Signal'!$B$58*'Small Signal'!$B$59)+'Small Signal'!$B$5*'Small Signal'!$B$59*('Small Signal'!$B$8+'Small Signal'!$B$9)+'Small Signal'!$B$6*'Small Signal'!$B$59*('Small Signal'!$B$8+'Small Signal'!$B$9)+'Small Signal'!$B$7*'Small Signal'!$B$8*('Small Signal'!$B$5+'Small Signal'!$B$6)),'Small Signal'!$B$6+'Small Signal'!$B$5),IMPRODUCT(IMPOWER(M76,2),'Small Signal'!$B$58*'Small Signal'!$B$59*'Small Signal'!$B$8*'Small Signal'!$B$7*('Small Signal'!$B$5+'Small Signal'!$B$6)+('Small Signal'!$B$5+'Small Signal'!$B$6)*('Small Signal'!$B$9*'Small Signal'!$B$8*'Small Signal'!$B$59*'Small Signal'!$B$7)))),-1) -> -16.1155464217418+94.4201122722231i | X76: 0 | Y76: 0 | Z76: 1.00000111085434+0.00055750989321072i | AA76: -25.829529099622+269.290411864086i | AB76: 48.64419054 | AC76: 95.47887842 | AD76: -48.3573423101007+406.080564701904i | AE76: 52.23339789 | AF76: 96.79098043 | AH76: 0.00075-1.69825728656088i | AI76: 0.14 | AJ76: 1000-543442331.699481i | AK76: 0.139049997912499-0.0114625077254588i | AL76: 1.02794267828647-0.000943279630295278i | AM76: 0.006+0.00163402802505834i | AN76: 2.81656260738926-0.208759387007171i | AO76: 9.018181083 | AP76: -4.238926144 | AR76: 1.01809429520361-0.000925291690276304i | AS76: 2.81321067069411-0.2083098991139i | AT76: 9.007792283 | AU76: -4.234853825
A77: C1 | B77: =B64*B71*B12*B11 -> 1.688004814 | F77: 75 | G77: 168.628303 | H77: 168.5788137 | I77: 1 | J77: 1 | K77: 1 | L77: =10^('Small Signal'!F77/30) -> 316.227766 | M77: 1986.91765315922i | N77: =IF(D$32=1, IF(AND('Small Signal'!$B$63>=1,FCCM=0),U77+0,R77+0), 0) -> 0 | O77: =IF(D$32=1, IF(AND('Small Signal'!$B$63>=1,FCCM=0),V77,S77), 0) -> 0 | P77: =IF(AND('Small Signal'!$B$63>=1,FCCM=0),AE77+0,AB77+0) -> 47.98460727 | Q77: =IF(AND('Small Signal'!$B$63>=1,FCCM=0),AF77,AC77) -> 94.84082677 | R77: 9.014366872 | S77: -4.575766963 | T77: =IMDIV(IMSUM('Small Signal'!$B$76,IMPRODUCT(M77,'Small Signal'!$B$77)),IMSUM(IMPRODUCT('Small Signal'!$B$80,IMPOWER(M77,2)),IMSUM(IMPRODUCT(M77,'Small Signal'!$B$79),'Small Signal'!$B$78))) -> 4.26254104717381-0.232764778657797i | U77: 12.60630257 | V77: -3.125648961 | W77: =IMPRODUCT(IMDIV(IMSUM(IMPRODUCT(M77,'Small Signal'!$B$59*'Small Signal'!$B$6*'Small Signal'!$B$51*'Small Signal'!$B$7*'Small Signal'!$B$8),'Small Signal'!$B$59*'Small Signal'!$B$6*'Small Signal'!$B$51),IMSUM(IMSUM(IMPRODUCT(M77,('Small Signal'!$B$5+'Small Signal'!$B$6)*('Small Signal'!$B$58*'Small Signal'!$B$59)+'Small Signal'!$B$5*'Small Signal'!$B$59*('Small Signal'!$B$8+'Small Signal'!$B$9)+'Small Signal'!$B$6*'Small Signal'!$B$59*('Small Signal'!$B$8+'Small Signal'!$B$9)+'Small Signal'!$B$7*'Small Signal'!$B$8*('Small Signal'!$B$5+'Small Signal'!$B$6)),'Small Signal'!$B$6+'Small Signal'!$B$5),IMPRODUCT(IMPOWER(M77,2),'Small Signal'!$B$58*'Small Signal'!$B$59*'Small Signal'!$B$8*'Small Signal'!$B$7*('Small Signal'!$B$5+'Small Signal'!$B$6)+('Small Signal'!$B$5+'Small Signal'!$B$6)*('Small Signal'!$B$9*'Small Signal'!$B$8*'Small Signal'!$B$59*'Small Signal'!$B$7)))),-1) -> -14.4792595412504+87.6319895647643i | X77: 0 | Y77: 0 | Z77: 1.00000129516022+0.000601984938909994i | AA77: -21.1597466471665+249.849484119233i | AB77: 47.98460727 | AC77: 94.84082677 | AD77: -41.3207974728781+376.905214207563i | AE77: 51.57653014 | AF77: 96.25645363 | AH77: 0.00075-1.57278787826522i | AI77: 0.14 | AJ77: 1000-503292121.04487i | AK77: 0.13889363116349-0.0123629377589537i | AL77: 1.02794253467284-0.00101852977362393i | AM77: 0.006+0.00176438287600539i | AN77: 2.81405065070071-0.225215283141399i | AO77: 9.014366872 | AP77: -4.575766963 | AR77: 1.01809415567831-0.000999106848145399i | AS77: 2.81070704709896-0.224730828429183i | AT77: 9.003987054 | AU77: -4.571374457
A78: D0 | B78: =B12*B74*B11-B64*B71*B74*B54*B70 -> 1646120.77 | F78: 76 | G78: 168.6322509 | H78: 168.5788137 | I78: 1 | J78: 1 | K78: 1 | L78: =10^('Small Signal'!F78/30) -> 341.4548874 | M78: 2145.42433147179i | N78: =IF(D$32=1, IF(AND('Small Signal'!$B$63>=1,FCCM=0),U78+0,R78+0), 0) -> 0 | O78: =IF(D$32=1, IF(AND('Small Signal'!$B$63>=1,FCCM=0),V78,S78), 0) -> 0 | P78: =IF(AND('Small Signal'!$B$63>=1,FCCM=0),AE78+0,AB78+0) -> 47.3233594 | Q78: =IF(AND('Small Signal'!$B$63>=1,FCCM=0),AF78,AC78) -> 94.23030463 | R78: 9.009924055 | S78: -4.939139374 | T78: =IMDIV(IMSUM('Small Signal'!$B$76,IMPRODUCT(M78,'Small Signal'!$B$77)),IMSUM(IMPRODUCT('Small Signal'!$B$80,IMPOWER(M78,2)),IMSUM(IMPRODUCT(M78,'Small Signal'!$B$79),'Small Signal'!$B$78))) -> 4.26086139138071-0.25125986211831i | U78: 12.60502398 | V78: -3.374781801 | W78: =IMPRODUCT(IMDIV(IMSUM(IMPRODUCT(M78,'Small Signal'!$B$59*'Small Signal'!$B$6*'Small Signal'!$B$51*'Small Signal'!$B$7*'Small Signal'!$B$8),'Small Signal'!$B$59*'Small Signal'!$B$6*'Small Signal'!$B$51),IMSUM(IMSUM(IMPRODUCT(M78,('Small Signal'!$B$5+'Small Signal'!$B$6)*('Small Signal'!$B$58*'Small Signal'!$B$59)+'Small Signal'!$B$5*'Small Signal'!$B$59*('Small Signal'!$B$8+'Small Signal'!$B$9)+'Small Signal'!$B$6*'Small Signal'!$B$59*('Small Signal'!$B$8+'Small Signal'!$B$9)+'Small Signal'!$B$7*'Small Signal'!$B$8*('Small Signal'!$B$5+'Small Signal'!$B$6)),'Small Signal'!$B$6+'Small Signal'!$B$5),IMPRODUCT(IMPOWER(M78,2),'Small Signal'!$B$58*'Small Signal'!$B$59*'Small Signal'!$B$8*'Small Signal'!$B$7*('Small Signal'!$B$5+'Small Signal'!$B$6)+('Small Signal'!$B$5+'Small Signal'!$B$6)*('Small Signal'!$B$9*'Small Signal'!$B$8*'Small Signal'!$B$59*'Small Signal'!$B$7)))),-1) -> -13.0702377722047+81.3075826391521i | X78: 0 | Y78: 0 | Z78: 1.00000151004479+0.000650007885928237i | AA78: -17.1404544391827+231.730481364999i | AB78: 47.3233594 | AC78: 94.23030463 | AD78: -35.2611394966664+349.724365834157i | AE78: 50.91844437 | AF78: 95.75741956 | AH78: 0.00075-1.45658830943537i | AI78: 0.14 | AJ78: 1000-466108259.019318i | AK78: 0.138711766770159-0.0133316195851638i | AL78: 1.02794236723169-0.00109978297250714i | AM78: 0.006+0.00190513680634695i | AN78: 2.81112748777588-0.242933178424927i | AO78: 9.009924055 | AP78: -4.939139374 | AR78: 1.01809399300379-0.00107881058676291i | AS78: 2.8077935683045-0.24241119490836i | AT78: 8.999554688 | AU78: -4.93440234
A79: D1 | B79: =B12*B74*B11*B72-B70*B64*B71*B54 -> 45.60848279 | F79: 77 | G79: 168.6365137 | H79: 168.5788137 | I79: 1 | J79: 1 | K79: 1 | L79: =10^('Small Signal'!F79/30) -> 368.6945065 | M79: 2316.57590577677i | N79: =IF(D$32=1, IF(AND('Small Signal'!$B$63>=1,FCCM=0),U79+0,R79+0), 0) -> 0 | O79: =IF(D$32=1, IF(AND('Small Signal'!$B$63>=1,FCCM=0),V79,S79), 0) -> 0 | P79: =IF(AND('Small Signal'!$B$63>=1,FCCM=0),AE79+0,AB79+0) -> 46.66056984 | Q79: =IF(AND('Small Signal'!$B$63>=1,FCCM=0),AF79,AC79) -> 93.64406219 | R79: 9.004749844 | S79: -5.331072803 | T79: =IMDIV(IMSUM('Small Signal'!$B$76,IMPRODUCT(M79,'Small Signal'!$B$77)),IMSUM(IMPRODUCT('Small Signal'!$B$80,IMPOWER(M79,2)),IMSUM(IMPRODUCT(M79,'Small Signal'!$B$79),'Small Signal'!$B$78))) -> 4.25890418881244-0.271211346157914i | U79: 12.60353361 | V79: -3.643733329 | W79: =IMPRODUCT(IMDIV(IMSUM(IMPRODUCT(M79,'Small Signal'!$B$59*'Small Signal'!$B$6*'Small Signal'!$B$51*'Small Signal'!$B$7*'Small Signal'!$B$8),'Small Signal'!$B$59*'Small Signal'!$B$6*'Small Signal'!$B$51),IMSUM(IMSUM(IMPRODUCT(M79,('Small Signal'!$B$5+'Small Signal'!$B$6)*('Small Signal'!$B$58*'Small Signal'!$B$59)+'Small Signal'!$B$5*'Small Signal'!$B$59*('Small Signal'!$B$8+'Small Signal'!$B$9)+'Small Signal'!$B$6*'Small Signal'!$B$59*('Small Signal'!$B$8+'Small Signal'!$B$9)+'Small Signal'!$B$7*'Small Signal'!$B$8*('Small Signal'!$B$5+'Small Signal'!$B$6)),'Small Signal'!$B$6+'Small Signal'!$B$5),IMPRODUCT(IMPOWER(M79,2),'Small Signal'!$B$58*'Small Signal'!$B$59*'Small Signal'!$B$8*'Small Signal'!$B$7*('Small Signal'!$B$5+'Small Signal'!$B$6)+('Small Signal'!$B$5+'Small Signal'!$B$6)*('Small Signal'!$B$9*'Small Signal'!$B$8*'Small Signal'!$B$59*'Small Signal'!$B$7)))),-1) -> -11.8575938636366+75.4202377269788i | X79: 0 | Y79: 0 | Z79: 1.00000176058139+0.000701861742085229i | AA79: -13.6835507591799+214.857007501284i | AB79: 46.66056984 | AC79: 93.64406219 | AD79: -30.0455319735948+324.423480370611i | AE79: 50.25933617 | AF79: 95.29118802 | AH79: 0.00075-1.34897371254155i | AI79: 0.14 | AJ79: 1000-431671588.013297i | AK79: 0.138500332116868-0.0143730909103608i | AL79: 1.0279421720097-0.00118751811213625i | AM79: 0.006+0.00205711940432977i | AN79: 2.80772686952094-0.262000821994709i | AO79: 9.004749844 | AP79: -5.331072803 | AR79: 1.0180938033393-0.00116487265943429i | AS79: 2.8044041982254-0.261438600713162i | AT79: 8.994392636 | AU79: -5.325965263
A80: D2 | B80: =B12*B74*B11*B73 -> 0.0002613034064 | F80: 78 | G80: 168.6411166 | H80: 168.5788137 | I80: 1 | J80: 1 | K80: 1 | L80: =10^('Small Signal'!F80/30) -> 398.1071706 | M80: 2501.38112470457i | N80: =IF(D$32=1, IF(AND('Small Signal'!$B$63>=1,FCCM=0),U80+0,R80+0), 0) -> 0 | O80: =IF(D$32=1, IF(AND('Small Signal'!$B$63>=1,FCCM=0),V80,S80), 0) -> 0 | P80: =IF(AND('Small Signal'!$B$63>=1,FCCM=0),AE80+0,AB80+0) -> 45.99632746 | Q80: =IF(AND('Small Signal'!$B$63>=1,FCCM=0),AF80,AC80) -> 93.07895935 | R80: 8.998724932 | S80: -5.753736415 | T80: =IMDIV(IMSUM('Small Signal'!$B$76,IMPRODUCT(M80,'Small Signal'!$B$77)),IMSUM(IMPRODUCT('Small Signal'!$B$80,IMPOWER(M80,2)),IMSUM(IMPRODUCT(M80,'Small Signal'!$B$79),'Small Signal'!$B$78))) -> 4.25662379598735-0.292730507602096i | U80: 12.60179645 | V80: -3.934070143 | W80: =IMPRODUCT(IMDIV(IMSUM(IMPRODUCT(M80,'Small Signal'!$B$59*'Small Signal'!$B$6*'Small Signal'!$B$51*'Small Signal'!$B$7*'Small Signal'!$B$8),'Small Signal'!$B$59*'Small Signal'!$B$6*'Small Signal'!$B$51),IMSUM(IMSUM(IMPRODUCT(M80,('Small Signal'!$B$5+'Small Signal'!$B$6)*('Small Signal'!$B$58*'Small Signal'!$B$59)+'Small Signal'!$B$5*'Small Signal'!$B$59*('Small Signal'!$B$8+'Small Signal'!$B$9)+'Small Signal'!$B$6*'Small Signal'!$B$59*('Small Signal'!$B$8+'Small Signal'!$B$9)+'Small Signal'!$B$7*'Small Signal'!$B$8*('Small Signal'!$B$5+'Small Signal'!$B$6)),'Small Signal'!$B$6+'Small Signal'!$B$5),IMPRODUCT(IMPOWER(M80,2),'Small Signal'!$B$58*'Small Signal'!$B$59*'Small Signal'!$B$8*'Small Signal'!$B$7*('Small Signal'!$B$5+'Small Signal'!$B$6)+('Small Signal'!$B$5+'Small Signal'!$B$6)*('Small Signal'!$B$9*'Small Signal'!$B$8*'Small Signal'!$B$59*'Small Signal'!$B$7)))),-1) -> -10.814460016172+69.9437657350422i | X80: 0 | Y80: 0 | Z80: 1.00000205268505+0.000757852085312461i | AA80: -10.7124461369186+199.153984358955i | AB80: 45.99632746 | AC80: 93.07895935 | AD80: -25.5584137983705+300.890019978722i | AE80: 49.59937865 | AF80: 94.85520399 | AH80: 0.00075-1.24930981893816i | AI80: 0.14 | AJ80: 1000-399779142.060212i | AK80: 0.138254634205809-0.0154920257021658i | AL80: 1.02794194439767-0.00128225227837632i | AM80: 0.006+0.00222122643873766i | AN80: 2.80377225173601-0.282509717114802i | AO80: 8.998724932 | AP80: -5.753736415 | AR80: 1.01809358220682-0.0012578002917344i | AS80: 2.80046263711292-0.281904404585048i | AT80: 8.988381863 | AU80: -5.748230703
F81: 79 | G81: 168.6460866 | H81: 168.5788137 | I81: 1 | J81: 1 | K81: 1 | L81: =10^('Small Signal'!F81/30) -> 429.8662347 | M81: 2700.92920997135i | N81: =IF(D$32=1, IF(AND('Small Signal'!$B$63>=1,FCCM=0),U81+0,R81+0), 0) -> 0 | O81: =IF(D$32=1, IF(AND('Small Signal'!$B$63>=1,FCCM=0),V81,S81), 0) -> 0 | P81: =IF(AND('Small Signal'!$B$63>=1,FCCM=0),AE81+0,AB81+0) -> 45.33068898 | Q81: =IF(AND('Small Signal'!$B$63>=1,FCCM=0),AF81,AC81) -> 92.53196309 | R81: 8.99171094 | S81: -6.209444722 | T81: =IMDIV(IMSUM('Small Signal'!$B$76,IMPRODUCT(M81,'Small Signal'!$B$77)),IMSUM(IMPRODUCT('Small Signal'!$B$80,IMPOWER(M81,2)),IMSUM(IMPRODUCT(M81,'Small Signal'!$B$79),'Small Signal'!$B$78))) -> 4.25396714143824-0.315936240915374i | U81: 12.59977173 | V81: -4.247480095 | W81: =IMPRODUCT(IMDIV(IMSUM(IMPRODUCT(M81,'Small Signal'!$B$59*'Small Signal'!$B$6*'Small Signal'!$B$51*'Small Signal'!$B$7*'Small Signal'!$B$8),'Small Signal'!$B$59*'Small Signal'!$B$6*'Small Signal'!$B$51),IMSUM(IMSUM(IMPRODUCT(M81,('Small Signal'!$B$5+'Small Signal'!$B$6)*('Small Signal'!$B$58*'Small Signal'!$B$59)+'Small Signal'!$B$5*'Small Signal'!$B$59*('Small Signal'!$B$8+'Small Signal'!$B$9)+'Small Signal'!$B$6*'Small Signal'!$B$59*('Small Signal'!$B$8+'Small Signal'!$B$9)+'Small Signal'!$B$7*'Small Signal'!$B$8*('Small Signal'!$B$5+'Small Signal'!$B$6)),'Small Signal'!$B$6+'Small Signal'!$B$5),IMPRODUCT(IMPOWER(M81,2),'Small Signal'!$B$58*'Small Signal'!$B$59*'Small Signal'!$B$8*'Small Signal'!$B$7*('Small Signal'!$B$5+'Small Signal'!$B$6)+('Small Signal'!$B$5+'Small Signal'!$B$6)*('Small Signal'!$B$9*'Small Signal'!$B$8*'Small Signal'!$B$59*'Small Signal'!$B$7)))),-1) -> -9.91751224315186+64.8526992384281i | X81: 0 | Y81: 0 | Z81: 1.00000239325215+0.000818308862405282i | AA81: -8.16070776673537+184.548387305057i | AB81: 45.33068898 | AC81: 92.53196309 | AD81: -21.6994531965752+279.014553131184i | AE81: 48.93872607 | AF81: 94.4470422 | AH81: 0.00075-1.15700922055382i | AI81: 0.14 | AJ81: 1000-370242950.577223i | AK81: 0.137969275814595-0.016693190761285i | AL81: 1.02794167902166-0.00138454380459155i | AM81: 0.006+0.00239842513845456i | AN81: 2.79917532957152-0.304554626392679i | AO81: 8.99171094 | AP81: -6.209444722 | AR81: 1.0180933243854-0.0013581411702484i | AS81: 2.795880859889-0.303903230616552i | AT81: 8.981384306 | AU81: -6.20351144
A82: mc | B82: =1+Se_ss/Sn -> 1 | F82: 80 | G82: 168.651453 | H82: 168.5788137 | I82: 1 | J82: 1 | K82: 1 | L82: =10^('Small Signal'!F82/30) -> 464.1588834 | M82: 2916.39627613247i | N82: =IF(D$32=1, IF(AND('Small Signal'!$B$63>=1,FCCM=0),U82+0,R82+0), 0) -> 0 | O82: =IF(D$32=1, IF(AND('Small Signal'!$B$63>=1,FCCM=0),V82,S82), 0) -> 0 | P82: =IF(AND('Small Signal'!$B$63>=1,FCCM=0),AE82+0,AB82+0) -> 44.66368024 | Q82: =IF(AND('Small Signal'!$B$63>=1,FCCM=0),AF82,AC82) -> 92.00014463 | R82: 8.983547506 | S82: -6.70066227 | T82: =IMDIV(IMSUM('Small Signal'!$B$76,IMPRODUCT(M82,'Small Signal'!$B$77)),IMSUM(IMPRODUCT('Small Signal'!$B$80,IMPOWER(M82,2)),IMSUM(IMPRODUCT(M82,'Small Signal'!$B$79),'Small Signal'!$B$78))) -> 4.25087254491504-0.34095534501868i | U82: 12.59741197 | V82: -4.585781012 | W82: =IMPRODUCT(IMDIV(IMSUM(IMPRODUCT(M82,'Small Signal'!$B$59*'Small Signal'!$B$6*'Small Signal'!$B$51*'Small Signal'!$B$7*'Small Signal'!$B$8),'Small Signal'!$B$59*'Small Signal'!$B$6*'Small Signal'!$B$51),IMSUM(IMSUM(IMPRODUCT(M82,('Small Signal'!$B$5+'Small Signal'!$B$6)*('Small Signal'!$B$58*'Small Signal'!$B$59)+'Small Signal'!$B$5*'Small Signal'!$B$59*('Small Signal'!$B$8+'Small Signal'!$B$9)+'Small Signal'!$B$6*'Small Signal'!$B$59*('Small Signal'!$B$8+'Small Signal'!$B$9)+'Small Signal'!$B$7*'Small Signal'!$B$8*('Small Signal'!$B$5+'Small Signal'!$B$6)),'Small Signal'!$B$6+'Small Signal'!$B$5),IMPRODUCT(IMPOWER(M82,2),'Small Signal'!$B$58*'Small Signal'!$B$59*'Small Signal'!$B$8*'Small Signal'!$B$7*('Small Signal'!$B$5+'Small Signal'!$B$6)+('Small Signal'!$B$5+'Small Signal'!$B$6)*('Small Signal'!$B$9*'Small Signal'!$B$8*'Small Signal'!$B$59*'Small Signal'!$B$7)))),-1) -> -9.14653804482474+60.1224762340531i | X82: 0 | Y82: 0 | Z82: 1.00000279032319+0.000883588330809446i | AA82: -5.97082810415133+170.969772105979i | AB82: 44.66368024 | AC82: 92.00014463 | AD82: -18.3816878280074+258.691544590443i | AE82: 48.27751708 | AF82: 94.06440016 | AH82: 0.00075-1.07152790777259i | AI82: 0.14 | AJ82: 1000-342888930.487229i | AK82: 0.137638064153967-0.0179813866257062i | AL82: 1.02794136961612-0.00149499556136599i | AM82: 0.006+0.00258975989320563i | AN82: 2.79383441157629-0.328232852753092i | AO82: 8.983547506 | AP82: -6.70066227 | AR82: 1.01809302378786-0.00146648666958068i | AS82: 2.79055749426867-0.327532253794528i | AT82: 8.973239968 | AU82: -6.694270275
A83: wp | B83: =1/(Co_ss*Ro)+1/(fsw_ss*Lo_ss*Co_ss)*(mc*(1-Vo_ss/Vi_ss)-0.5) -> 25361.47879 | F83: 81 | G83: 168.6572475 | H83: 168.5788137 | I83: 1 | J83: 1 | K83: 1 | L83: =10^('Small Signal'!F83/30) -> 501.1872336 | M83: 3149.05226247286i | N83: =IF(D$32=1, IF(AND('Small Signal'!$B$63>=1,FCCM=0),U83+0,R83+0), 0) -> 0 | O83: =IF(D$32=1, IF(AND('Small Signal'!$B$63>=1,FCCM=0),V83,S83), 0) -> 0 | P83: =IF(AND('Small Signal'!$B$63>=1,FCCM=0),AE83+0,AB83+0) -> 43.99529695 | Q83: =IF(AND('Small Signal'!$B$63>=1,FCCM=0),AF83,AC83) -> 91.48067696 | R83: 8.974048979 | S83: -7.23000705 | T83: =IMDIV(IMSUM('Small Signal'!$B$76,IMPRODUCT(M83,'Small Signal'!$B$77)),IMSUM(IMPRODUCT('Small Signal'!$B$80,IMPOWER(M83,2)),IMSUM(IMPRODUCT(M83,'Small Signal'!$B$79),'Small Signal'!$B$78))) -> 4.24726835895259-0.367922752327156i | U83: 12.59466192 | V83: -4.950929862 | W83: =IMPRODUCT(IMDIV(IMSUM(IMPRODUCT(M83,'Small Signal'!$B$59*'Small Signal'!$B$6*'Small Signal'!$B$51*'Small Signal'!$B$7*'Small Signal'!$B$8),'Small Signal'!$B$59*'Small Signal'!$B$6*'Small Signal'!$B$51),IMSUM(IMSUM(IMPRODUCT(M83,('Small Signal'!$B$5+'Small Signal'!$B$6)*('Small Signal'!$B$58*'Small Signal'!$B$59)+'Small Signal'!$B$5*'Small Signal'!$B$59*('Small Signal'!$B$8+'Small Signal'!$B$9)+'Small Signal'!$B$6*'Small Signal'!$B$59*('Small Signal'!$B$8+'Small Signal'!$B$9)+'Small Signal'!$B$7*'Small Signal'!$B$8*('Small Signal'!$B$5+'Small Signal'!$B$6)),'Small Signal'!$B$6+'Small Signal'!$B$5),IMPRODUCT(IMPOWER(M83,2),'Small Signal'!$B$58*'Small Signal'!$B$59*'Small Signal'!$B$8*'Small Signal'!$B$7*('Small Signal'!$B$5+'Small Signal'!$B$6)+('Small Signal'!$B$5+'Small Signal'!$B$6)*('Small Signal'!$B$9*'Small Signal'!$B$8*'Small Signal'!$B$59*'Small Signal'!$B$7)))),-1) -> -8.48404727900725+55.7295654856561i | X83: 0 | Y83: 0 | Z83: 1.00000325327261+0.000954075154733125i | AA83: -4.0931173060097+158.350635572353i | AB83: 43.99529695 | AC83: 91.48067696 | AD83: -15.5298504445062+239.81989417117i | AE83: 47.61587768 | AF83: 93.70508986 | AH83: 0.00075-0.992362063100856i | AI83: 0.14 | AJ83: 1000-317555860.192275i | AK83: 0.13725391283508-0.0193613692078832i | AL83: 1.02794100887597-0.00161425850845389i | AM83: 0.006+0.0027963584090759i | AN83: 2.78763263396798-0.353643239700408i | AO83: 8.974048979 | AP83: -7.23000705 | AR83: 1.01809267331709-0.00158347533659838i | AS83: 2.78437603919337-0.352890206055918i | AT83: 8.963763614 | AU83: -7.223123458
A84: k_2 | B84: =-Ri/(Lo_ss*q_2*w_2) -> -0.04211324985 | F84: 82 | G84: 168.6635041 | H84: 168.5788137 | I84: 1 | J84: 1 | K84: 1 | L84: =10^('Small Signal'!F84/30) -> 541.1695265 | M84: 3400.26841789008i | N84: =IF(D$32=1, IF(AND('Small Signal'!$B$63>=1,FCCM=0),U84+0,R84+0), 0) -> 0 | O84: =IF(D$32=1, IF(AND('Small Signal'!$B$63>=1,FCCM=0),V84,S84), 0) -> 0 | P84: =IF(AND('Small Signal'!$B$63>=1,FCCM=0),AE84+0,AB84+0) -> 43.32550492 | Q84: =IF(AND('Small Signal'!$B$63>=1,FCCM=0),AF84,AC84) -> 90.97083351 | R84: 8.963000683 | S84: -7.800252141 | T84: =IMDIV(IMSUM('Small Signal'!$B$76,IMPRODUCT(M84,'Small Signal'!$B$77)),IMSUM(IMPRODUCT('Small Signal'!$B$80,IMPOWER(M84,2)),IMSUM(IMPRODUCT(M84,'Small Signal'!$B$79),'Small Signal'!$B$78))) -> 4.24307140974153-0.396981675630738i | U84: 12.59145723 | V84: -5.345032356 | W84: =IMPRODUCT(IMDIV(IMSUM(IMPRODUCT(M84,'Small Signal'!$B$59*'Small Signal'!$B$6*'Small Signal'!$B$51*'Small Signal'!$B$7*'Small Signal'!$B$8),'Small Signal'!$B$59*'Small Signal'!$B$6*'Small Signal'!$B$51),IMSUM(IMSUM(IMPRODUCT(M84,('Small Signal'!$B$5+'Small Signal'!$B$6)*('Small Signal'!$B$58*'Small Signal'!$B$59)+'Small Signal'!$B$5*'Small Signal'!$B$59*('Small Signal'!$B$8+'Small Signal'!$B$9)+'Small Signal'!$B$6*'Small Signal'!$B$59*('Small Signal'!$B$8+'Small Signal'!$B$9)+'Small Signal'!$B$7*'Small Signal'!$B$8*('Small Signal'!$B$5+'Small Signal'!$B$6)),'Small Signal'!$B$6+'Small Signal'!$B$5),IMPRODUCT(IMPOWER(M84,2),'Small Signal'!$B$58*'Small Signal'!$B$59*'Small Signal'!$B$8*'Small Signal'!$B$7*('Small Signal'!$B$5+'Small Signal'!$B$6)+('Small Signal'!$B$5+'Small Signal'!$B$6)*('Small Signal'!$B$9*'Small Signal'!$B$8*'Small Signal'!$B$59*'Small Signal'!$B$7)))),-1) -> -7.91492467149212+51.6515457865394i | X84: 0 | Y84: 0 | Z84: 1.00000379303007+0.0010301846677454i | AA84: -2.48471504266397+146.626645377972i | AB84: 43.32550492 | AC84: 90.97083351 | AD84: -13.0788733886079+222.303277254401i | AE84: 46.95392392 | AF84: 93.3670283 | AH84: 0.00075-0.919045091722229i | AI84: 0.14 | AJ84: 1000-294094429.351115i | AK84: 0.136808738692109-0.0208377480096088i | AL84: 1.02794058828416-0.00174303552982488i | AM84: 0.006+0.00301943835508639i | AN84: 2.78043602427415-0.380884823891632i | AO84: 8.963000683 | AP84: -7.800252141 | AR84: 1.01809226469846-0.00170979665237832i | AS84: 2.77720293255701-0.380076036112767i | AT84: 8.952741048 | AU84: -7.792842371
A85: wp2 | B85: =(1-Ro/Ri*k_2)/((Ro+ESR_ss)*Co_ss-Ro*ESR_ss*Co_ss*k_2/Ri) -> 25208.04361 | F85: 83 | G85: 168.6702598 | H85: 168.5788137 | I85: 1 | J85: 1 | K85: 1 | L85: =10^('Small Signal'!F85/30) -> 584.3414134 | M85: 3671.52538288504i | N85: =IF(D$32=1, IF(AND('Small Signal'!$B$63>=1,FCCM=0),U85+0,R85+0), 0) -> 0 | O85: =IF(D$32=1, IF(AND('Small Signal'!$B$63>=1,FCCM=0),V85,S85), 0) -> 0 | P85: =IF(AND('Small Signal'!$B$63>=1,FCCM=0),AE85+0,AB85+0) -> 42.65423984 | Q85: =IF(AND('Small Signal'!$B$63>=1,FCCM=0),AF85,AC85) -> 90.46798856 | R85: 8.950154712 | S85: -8.414324995 | T85: =IMDIV(IMSUM('Small Signal'!$B$76,IMPRODUCT(M85,'Small Signal'!$B$77)),IMSUM(IMPRODUCT('Small Signal'!$B$80,IMPOWER(M85,2)),IMSUM(IMPRODUCT(M85,'Small Signal'!$B$79),'Small Signal'!$B$78))) -> 4.2381852126277-0.428283641887205i | U85: 12.58772309 | V85: -5.770352928 | W85: =IMPRODUCT(IMDIV(IMSUM(IMPRODUCT(M85,'Small Signal'!$B$59*'Small Signal'!$B$6*'Small Signal'!$B$51*'Small Signal'!$B$7*'Small Signal'!$B$8),'Small Signal'!$B$59*'Small Signal'!$B$6*'Small Signal'!$B$51),IMSUM(IMSUM(IMPRODUCT(M85,('Small Signal'!$B$5+'Small Signal'!$B$6)*('Small Signal'!$B$58*'Small Signal'!$B$59)+'Small Signal'!$B$5*'Small Signal'!$B$59*('Small Signal'!$B$8+'Small Signal'!$B$9)+'Small Signal'!$B$6*'Small Signal'!$B$59*('Small Signal'!$B$8+'Small Signal'!$B$9)+'Small Signal'!$B$7*'Small Signal'!$B$8*('Small Signal'!$B$5+'Small Signal'!$B$6)),'Small Signal'!$B$6+'Small Signal'!$B$5),IMPRODUCT(IMPOWER(M85,2),'Small Signal'!$B$58*'Small Signal'!$B$59*'Small Signal'!$B$8*'Small Signal'!$B$7*('Small Signal'!$B$5+'Small Signal'!$B$6)+('Small Signal'!$B$5+'Small Signal'!$B$6)*('Small Signal'!$B$9*'Small Signal'!$B$8*'Small Signal'!$B$59*'Small Signal'!$B$7)))),-1) -> -7.42612150892528+47.8671492785651i | X85: 0 | Y85: 0 | Z85: 1.00000442233843+0.00111236531495328i | AA85: -1.10871460666881+135.736768221059i | AB85: 42.65423984 | AC85: 90.46798856 | AD85: -10.9725613465213+206.050330607997i | AE85: 46.29176443 | AF85: 93.0482271 | AH85: 0.00075-0.851144871438808i | AI85: 0.14 | AJ85: 1000-272366358.860418i | AK85: 0.136293356009119-0.0224148562226191i | AL85: 1.02794009791055-0.00188208557432024i | AM85: 0.006+0.00326031454000192i | AN85: 2.77209143570243-0.410055061773096i | AO85: 8.950154712 | AP85: -8.414324995 | AR85: 1.01809178828454-0.00184619509394604i | AS85: 2.76888548934028-0.40918714505321i | AT85: 8.93992491 | AU85: -8.406352858
F86: 84 | G86: 168.6775542 | H86: 168.5788137 | I86: 1 | J86: 1 | K86: 1 | L86: =10^('Small Signal'!F86/30) -> 630.9573445 | M86: 3964.421916295i | N86: =IF(D$32=1, IF(AND('Small Signal'!$B$63>=1,FCCM=0),U86+0,R86+0), 0) -> 0 | O86: =IF(D$32=1, IF(AND('Small Signal'!$B$63>=1,FCCM=0),V86,S86), 0) -> 0 | P86: =IF(AND('Small Signal'!$B$63>=1,FCCM=0),AE86+0,AB86+0) -> 41.98140657 | Q86: =IF(AND('Small Signal'!$B$63>=1,FCCM=0),AF86,AC86) -> 89.96962006 | R86: 8.935225239 | S86: -9.075303658 | T86: =IMDIV(IMSUM('Small Signal'!$B$76,IMPRODUCT(M86,'Small Signal'!$B$77)),IMSUM(IMPRODUCT('Small Signal'!$B$80,IMPOWER(M86,2)),IMSUM(IMPRODUCT(M86,'Small Signal'!$B$79),'Small Signal'!$B$78))) -> 4.23249793642908-0.461988373959587i | U86: 12.58337244 | V86: -6.229325039 | W86: =IMPRODUCT(IMDIV(IMSUM(IMPRODUCT(M86,'Small Signal'!$B$59*'Small Signal'!$B$6*'Small Signal'!$B$51*'Small Signal'!$B$7*'Small Signal'!$B$8),'Small Signal'!$B$59*'Small Signal'!$B$6*'Small Signal'!$B$51),IMSUM(IMSUM(IMPRODUCT(M86,('Small Signal'!$B$5+'Small Signal'!$B$6)*('Small Signal'!$B$58*'Small Signal'!$B$59)+'Small Signal'!$B$5*'Small Signal'!$B$59*('Small Signal'!$B$8+'Small Signal'!$B$9)+'Small Signal'!$B$6*'Small Signal'!$B$59*('Small Signal'!$B$8+'Small Signal'!$B$9)+'Small Signal'!$B$7*'Small Signal'!$B$8*('Small Signal'!$B$5+'Small Signal'!$B$6)),'Small Signal'!$B$6+'Small Signal'!$B$5),IMPRODUCT(IMPOWER(M86,2),'Small Signal'!$B$58*'Small Signal'!$B$59*'Small Signal'!$B$8*'Small Signal'!$B$7*('Small Signal'!$B$5+'Small Signal'!$B$6)+('Small Signal'!$B$5+'Small Signal'!$B$6)*('Small Signal'!$B$9*'Small Signal'!$B$8*'Small Signal'!$B$59*'Small Signal'!$B$7)))),-1) -> -7.00638354840999+44.3562770906109i | X86: 0 | Y86: 0 | Z86: 1.00000515605455+0.00120110128884506i | AA86: 0.0666092529789318+125.623320165722i | AB86: 41.98140657 | AC86: 89.96962006 | AD86: -9.16241958248373+190.974718996554i | AE86: 45.62950272 | AF86: 92.74678103 | AH86: 0.00075-0.788261205790252i | AI86: 0.14 | AJ86: 1000-252243585.852881i | AK86: 0.135697372031071-0.024096587569229i | AL86: 1.02793952617748-0.00203222812621463i | AM86: 0.006+0.00352040666166996i | AN86: 2.76242439054986-0.44124754057439i | AO86: 8.935225239 | AP86: -9.075303658 | AR86: 1.01809123282726-0.00199347451964053i | AS86: 2.75924974812106-0.440317108273597i | AT86: 8.925029998 | AU86: -9.066731505
A87: q_2 | B87: =1/(PI()*(((Sn+Se_ss)/(Sn+Sf))-0.5)) -> 0.7597849042 | C87: =1/(PI()*(((sn_vimax+Se_ss)/(sn_vimax+Sf))-0.5)) -> 0.7525056411 | F87: 85 | G87: 168.6854304 | H87: 168.5788137 | I87: 1 | J87: 1 | K87: 1 | L87: =10^('Small Signal'!F87/30) -> 681.2920691 | M87: 4280.68431820297i | N87: =IF(D$32=1, IF(AND('Small Signal'!$B$63>=1,FCCM=0),U87+0,R87+0), 0) -> 0 | O87: =IF(D$32=1, IF(AND('Small Signal'!$B$63>=1,FCCM=0),V87,S87), 0) -> 0 | P87: =IF(AND('Small Signal'!$B$63>=1,FCCM=0),AE87+0,AB87+0) -> 41.3068781 | Q87: =IF(AND('Small Signal'!$B$63>=1,FCCM=0),AF87,AC87) -> 89.4733156 | R87: 8.917883321 | S87: -9.786409056 | T87: =IMDIV(IMSUM('Small Signal'!$B$76,IMPRODUCT(M87,'Small Signal'!$B$77)),IMSUM(IMPRODUCT('Small Signal'!$B$80,IMPOWER(M87,2)),IMSUM(IMPRODUCT(M87,'Small Signal'!$B$79),'Small Signal'!$B$78))) -> 4.22588009041458-0.498263471540526i | U87: 12.57830408 | V87: -6.724561711 | W87: =IMPRODUCT(IMDIV(IMSUM(IMPRODUCT(M87,'Small Signal'!$B$59*'Small Signal'!$B$6*'Small Signal'!$B$51*'Small Signal'!$B$7*'Small Signal'!$B$8),'Small Signal'!$B$59*'Small Signal'!$B$6*'Small Signal'!$B$51),IMSUM(IMSUM(IMPRODUCT(M87,('Small Signal'!$B$5+'Small Signal'!$B$6)*('Small Signal'!$B$58*'Small Signal'!$B$59)+'Small Signal'!$B$5*'Small Signal'!$B$59*('Small Signal'!$B$8+'Small Signal'!$B$9)+'Small Signal'!$B$6*'Small Signal'!$B$59*('Small Signal'!$B$8+'Small Signal'!$B$9)+'Small Signal'!$B$7*'Small Signal'!$B$8*('Small Signal'!$B$5+'Small Signal'!$B$6)),'Small Signal'!$B$6+'Small Signal'!$B$5),IMPRODUCT(IMPOWER(M87,2),'Small Signal'!$B$58*'Small Signal'!$B$59*'Small Signal'!$B$8*'Small Signal'!$B$7*('Small Signal'!$B$5+'Small Signal'!$B$6)+('Small Signal'!$B$5+'Small Signal'!$B$6)*('Small Signal'!$B$9*'Small Signal'!$B$8*'Small Signal'!$B$59*'Small Signal'!$B$7)))),-1) -> -6.64601194773887+41.0999939758618i | X87: 0 | Y87: 0 | Z87: 1.00000601149987+0.00129691537394966i | AA87: 1.06847805748233+116.231958501923i | AB87: 41.3068781 | AC87: 89.4733156 | AD87: -7.60662389189951+176.995111243734i | AE87: 44.96723934 | AF87: 92.46085566 | AH87: 0.00075-0.730023465339737i | AI87: 0.14 | AJ87: 1000-233607508.908716i | AK87: 0.135009089358218-0.0258861944628762i | AL87: 1.02793885958647-0.00219434803189399i | AM87: 0.006+0.00380124767456424i | AN87: 2.75123689384619-0.474549073273958i | AO87: 8.917883321 | AP87: -9.786409056 | AR87: 1.01809058521237-0.00215250290381813i | AS87: 2.74809828669097-0.473552783606098i | AT87: 8.907728075 | AU87: -9.777197996
A88: w_2 | B88: =PI()*fsw_ss -> 1523581.312 | F88: 86 | G88: 168.6939347 | H88: 168.5788137 | I88: 1 | J88: 1 | K88: 1 | L88: =10^('Small Signal'!F88/30) -> 735.6422545 | M88: 4622.17660456129i | N88: =IF(D$32=1, IF(AND('Small Signal'!$B$63>=1,FCCM=0),U88+0,R88+0), 0) -> 0 | O88: =IF(D$32=1, IF(AND('Small Signal'!$B$63>=1,FCCM=0),V88,S88), 0) -> 0 | P88: =IF(AND('Small Signal'!$B$63>=1,FCCM=0),AE88+0,AB88+0) -> 40.63049414 | Q88: =IF(AND('Small Signal'!$B$63>=1,FCCM=0),AF88,AC88) -> 88.97678238 | R88: 8.897751198 | S88: -10.55099232 | T88: =IMDIV(IMSUM('Small Signal'!$B$76,IMPRODUCT(M88,'Small Signal'!$B$77)),IMSUM(IMPRODUCT('Small Signal'!$B$80,IMPOWER(M88,2)),IMSUM(IMPRODUCT(M88,'Small Signal'!$B$79),'Small Signal'!$B$78))) -> 4.21818190867759-0.53728383068497i | U88: 12.57240041 | V88: -7.258866163 | W88: =IMPRODUCT(IMDIV(IMSUM(IMPRODUCT(M88,'Small Signal'!$B$59*'Small Signal'!$B$6*'Small Signal'!$B$51*'Small Signal'!$B$7*'Small Signal'!$B$8),'Small Signal'!$B$59*'Small Signal'!$B$6*'Small Signal'!$B$51),IMSUM(IMSUM(IMPRODUCT(M88,('Small Signal'!$B$5+'Small Signal'!$B$6)*('Small Signal'!$B$58*'Small Signal'!$B$59)+'Small Signal'!$B$5*'Small Signal'!$B$59*('Small Signal'!$B$8+'Small Signal'!$B$9)+'Small Signal'!$B$6*'Small Signal'!$B$59*('Small Signal'!$B$8+'Small Signal'!$B$9)+'Small Signal'!$B$7*'Small Signal'!$B$8*('Small Signal'!$B$5+'Small Signal'!$B$6)),'Small Signal'!$B$6+'Small Signal'!$B$5),IMPRODUCT(IMPOWER(M88,2),'Small Signal'!$B$58*'Small Signal'!$B$59*'Small Signal'!$B$8*'Small Signal'!$B$7*('Small Signal'!$B$5+'Small Signal'!$B$6)+('Small Signal'!$B$5+'Small Signal'!$B$6)*('Small Signal'!$B$9*'Small Signal'!$B$8*'Small Signal'!$B$59*'Small Signal'!$B$7)))),-1) -> -6.33665398147199+38.0805073055537i | X88: 0 | Y88: 0 | Z88: 1.00000700886928+0.00140037201659264i | AA88: 1.92020235794632+107.511630706006i | AB88: 40.63049414 | AC88: 88.97678238 | AD88: -6.26911834664009+164.035088714442i | AE88: 44.30507395 | AF88: 92.18867375 | AH88: 0.00075-0.676088403224613i | AI88: 0.14 | AJ88: 1000-216348289.031876i | AK88: 0.1342154229821-0.0277860421120435i | AL88: 1.0279380823995-0.00236940071092327i | AM88: 0.006+0.00410449282485043i | AN88: 2.73830530851573-0.51003606877807i | AO88: 8.897751198 | AP88: -10.55099232 | AR88: 1.01808983014989-0.00232421744863398i | AS88: 2.73520809744639-0.508970697090651i | AT88: 8.887642182 | AU88: -10.54110254
F89: 87 | G89: 168.7031171 | H89: 168.5788137 | I89: 1 | J89: 1 | K89: 1 | L89: =10^('Small Signal'!F89/30) -> 794.3282347 | M89: 4990.91149349751i | N89: =IF(D$32=1, IF(AND('Small Signal'!$B$63>=1,FCCM=0),U89+0,R89+0), 0) -> 0 | O89: =IF(D$32=1, IF(AND('Small Signal'!$B$63>=1,FCCM=0),V89,S89), 0) -> 0 | P89: =IF(AND('Small Signal'!$B$63>=1,FCCM=0),AE89+0,AB89+0) -> 39.95205952 | Q89: =IF(AND('Small Signal'!$B$63>=1,FCCM=0),AF89,AC89) -> 88.47786193 | R89: 8.874396124 | S89: -11.37251599 | T89: =IMDIV(IMSUM('Small Signal'!$B$76,IMPRODUCT(M89,'Small Signal'!$B$77)),IMSUM(IMPRODUCT('Small Signal'!$B$80,IMPOWER(M89,2)),IMSUM(IMPRODUCT(M89,'Small Signal'!$B$79),'Small Signal'!$B$78))) -> 4.20923040935381-0.579230727240107i | U89: 12.56552482 | V89: -7.835242378 | W89: =IMPRODUCT(IMDIV(IMSUM(IMPRODUCT(M89,'Small Signal'!$B$59*'Small Signal'!$B$6*'Small Signal'!$B$51*'Small Signal'!$B$7*'Small Signal'!$B$8),'Small Signal'!$B$59*'Small Signal'!$B$6*'Small Signal'!$B$51),IMSUM(IMSUM(IMPRODUCT(M89,('Small Signal'!$B$5+'Small Signal'!$B$6)*('Small Signal'!$B$58*'Small Signal'!$B$59)+'Small Signal'!$B$5*'Small Signal'!$B$59*('Small Signal'!$B$8+'Small Signal'!$B$9)+'Small Signal'!$B$6*'Small Signal'!$B$59*('Small Signal'!$B$8+'Small Signal'!$B$9)+'Small Signal'!$B$7*'Small Signal'!$B$8*('Small Signal'!$B$5+'Small Signal'!$B$6)),'Small Signal'!$B$6+'Small Signal'!$B$5),IMPRODUCT(IMPOWER(M89,2),'Small Signal'!$B$58*'Small Signal'!$B$59*'Small Signal'!$B$8*'Small Signal'!$B$7*('Small Signal'!$B$5+'Small Signal'!$B$6)+('Small Signal'!$B$5+'Small Signal'!$B$6)*('Small Signal'!$B$9*'Small Signal'!$B$8*'Small Signal'!$B$59*'Small Signal'!$B$7)))),-1) -> -6.07112039664829+35.2811346845845i | X89: 0 | Y89: 0 | Z89: 1.00000817170767+0.00151208063723084i | AA89: 2.64169884343506+99.4144929720023i | AB89: 39.95205952 | AC89: 88.47786193 | AD89: -5.1188272912121+152.023004473373i | AE89: 43.64310731 | AF89: 91.92850047 | AH89: 0.00075-0.626138132097005i | AI89: 0.14 | AJ89: 1000-200364202.271041i | AK89: 0.133301842345508-0.0297973137428641i | AL89: 1.0279371762675-0.00255841778199791i | AM89: 0.006+0.00443192940622579i | AN89: 2.72337842185088-0.547770064753946i | AO89: 8.874396124 | AP89: -11.37251599 | AR89: 1.01808894981308-0.00250963010281811i | AS89: 2.72032865155518-0.546632593950294i | AT89: 8.864340469 | AU89: -11.36190715
A90: Re | B90: =Lo_ss*q_2*w_2 -> 1.027943544 | C90: =Lo_ss*q_2_vimax*w_2 -> 1.018095136 | F90: 88 | G90: 168.7130317 | H90: 168.5788137 | I90: 1 | J90: 1 | K90: 1 | L90: =10^('Small Signal'!F90/30) -> 857.6958986 | M90: 5389.0622680545i | N90: =IF(D$32=1, IF(AND('Small Signal'!$B$63>=1,FCCM=0),U90+0,R90+0), 0) -> 0 | O90: =IF(D$32=1, IF(AND('Small Signal'!$B$63>=1,FCCM=0),V90,S90), 0) -> 0 | P90: =IF(AND('Small Signal'!$B$63>=1,FCCM=0),AE90+0,AB90+0) -> 39.27134244 | Q90: =IF(AND('Small Signal'!$B$63>=1,FCCM=0),AF90,AC90) -> 87.97455053 | R90: 8.847323784 | S90: -12.25452765 | T90: =IMDIV(IMSUM('Small Signal'!$B$76,IMPRODUCT(M90,'Small Signal'!$B$77)),IMSUM(IMPRODUCT('Small Signal'!$B$80,IMPOWER(M90,2)),IMSUM(IMPRODUCT(M90,'Small Signal'!$B$79),'Small Signal'!$B$78))) -> 4.19882611147641-0.624290472772254i | U90: 12.55751878 | V90: -8.456905377 | W90: =IMPRODUCT(IMDIV(IMSUM(IMPRODUCT(M90,'Small Signal'!$B$59*'Small Signal'!$B$6*'Small Signal'!$B$51*'Small Signal'!$B$7*'Small Signal'!$B$8),'Small Signal'!$B$59*'Small Signal'!$B$6*'Small Signal'!$B$51),IMSUM(IMSUM(IMPRODUCT(M90,('Small Signal'!$B$5+'Small Signal'!$B$6)*('Small Signal'!$B$58*'Small Signal'!$B$59)+'Small Signal'!$B$5*'Small Signal'!$B$59*('Small Signal'!$B$8+'Small Signal'!$B$9)+'Small Signal'!$B$6*'Small Signal'!$B$59*('Small Signal'!$B$8+'Small Signal'!$B$9)+'Small Signal'!$B$7*'Small Signal'!$B$8*('Small Signal'!$B$5+'Small Signal'!$B$6)),'Small Signal'!$B$6+'Small Signal'!$B$5),IMPRODUCT(IMPOWER(M90,2),'Small Signal'!$B$58*'Small Signal'!$B$59*'Small Signal'!$B$8*'Small Signal'!$B$7*('Small Signal'!$B$5+'Small Signal'!$B$6)+('Small Signal'!$B$5+'Small Signal'!$B$6)*('Small Signal'!$B$9*'Small Signal'!$B$8*'Small Signal'!$B$59*'Small Signal'!$B$7)))),-1) -> -5.84322643058207+32.6862635593695i | X90: 0 | Y90: 0 | Z90: 1.00000952746549+0.00163269920411892i | AA90: 3.24994075026142+91.8958082162366i | AB90: 39.27134244 | AC90: 87.97455053 | AD90: -4.12896878135981+140.891807510544i | AE90: 42.9814431 | AF90: 91.67862701 | AH90: 0.00075-0.579878250530617i | AI90: 0.14 | AJ90: 1000-185561040.169797i | AK90: 0.132252351874226-0.031919663424587i | AL90: 1.02793611979717-0.00276251313666187i | AM90: 0.006+0.0047854872940324i | AN90: 2.70617588093963-0.587792314536693i | AO90: 8.847323784 | AP90: -12.25452765 | AR90: 1.01808792341764-0.00270983351970738i | AS90: 2.70318032855491-0.586580046153506i | AT90: 8.837329623 | AU90: -12.24315949
A91: Ce | B91: =1/(Lo_ss*w_2^2) -> 4.851273509e-07 | F91: 89 | G91: 168.7237368 | H91: 168.5788137 | I91: 1 | J91: 1 | K91: 1 | L91: =10^('Small Signal'!F91/30) -> 926.1187281 | M91: 5818.97558528269i | N91: =IF(D$32=1, IF(AND('Small Signal'!$B$63>=1,FCCM=0),U91+0,R91+0), 0) -> 0 | O91: =IF(D$32=1, IF(AND('Small Signal'!$B$63>=1,FCCM=0),V91,S91), 0) -> 0 | P91: =IF(AND('Small Signal'!$B$63>=1,FCCM=0),AE91+0,AB91+0) -> 38.58807282 | Q91: =IF(AND('Small Signal'!$B$63>=1,FCCM=0),AF91,AC91) -> 87.46502631 | R91: 8.815971419 | S91: -13.20062465 | T91: =IMDIV(IMSUM('Small Signal'!$B$76,IMPRODUCT(M91,'Small Signal'!$B$77)),IMSUM(IMPRODUCT('Small Signal'!$B$80,IMPOWER(M91,2)),IMSUM(IMPRODUCT(M91,'Small Signal'!$B$79),'Small Signal'!$B$78))) -> 4.18673940128206-0.672652532182388i | U91: 12.54819837 | V91: -9.127290909 | W91: =IMPRODUCT(IMDIV(IMSUM(IMPRODUCT(M91,'Small Signal'!$B$59*'Small Signal'!$B$6*'Small Signal'!$B$51*'Small Signal'!$B$7*'Small Signal'!$B$8),'Small Signal'!$B$59*'Small Signal'!$B$6*'Small Signal'!$B$51),IMSUM(IMSUM(IMPRODUCT(M91,('Small Signal'!$B$5+'Small Signal'!$B$6)*('Small Signal'!$B$58*'Small Signal'!$B$59)+'Small Signal'!$B$5*'Small Signal'!$B$59*('Small Signal'!$B$8+'Small Signal'!$B$9)+'Small Signal'!$B$6*'Small Signal'!$B$59*('Small Signal'!$B$8+'Small Signal'!$B$9)+'Small Signal'!$B$7*'Small Signal'!$B$8*('Small Signal'!$B$5+'Small Signal'!$B$6)),'Small Signal'!$B$6+'Small Signal'!$B$5),IMPRODUCT(IMPOWER(M91,2),'Small Signal'!$B$58*'Small Signal'!$B$59*'Small Signal'!$B$8*'Small Signal'!$B$7*('Small Signal'!$B$5+'Small Signal'!$B$6)+('Small Signal'!$B$5+'Small Signal'!$B$6)*('Small Signal'!$B$9*'Small Signal'!$B$8*'Small Signal'!$B$59*'Small Signal'!$B$7)))),-1) -> -5.64765372806627+30.2813054601758i | X91: 0 | Y91: 0 | Z91: 1.00001110814647+0.00176293808840236i | AA91: 3.75935005487773+84.9138313366553i | AB91: 38.58807282 | AC91: 87.46502631 | AD91: -3.27645759251695+130.578843273449i | AE91: 42.32018979 | AF91: 91.43735236 | AH91: 0.00075-0.537036107850964i | AI91: 0.14 | AJ91: 1000-171851554.512308i | AK91: 0.131049526827273-0.0341508153552004i | AL91: 1.02793488804594-0.0029828894962422i | AM91: 0.006+0.00516725031973103i | AN91: 2.68638723212455-0.630117335618247i | AO91: 8.815971419 | AP91: -13.20062465 | AR91: 1.01808672673103-0.00292600748931496i | AS91: 2.68345344527172-0.628828023793372i | AT91: 8.806047994 | AU91: -13.18845764
F92: 90 | G92: 168.7352954 | H92: 168.5788137 | I92: 1 | J92: 1 | K92: 1 | L92: =10^('Small Signal'!F92/30) -> 1000 | M92: 6283.18530717959i | N92: =IF(D$32=1, IF(AND('Small Signal'!$B$63>=1,FCCM=0),U92+0,R92+0), 0) -> 0 | O92: =IF(D$32=1, IF(AND('Small Signal'!$B$63>=1,FCCM=0),V92,S92), 0) -> 0 | P92: =IF(AND('Small Signal'!$B$63>=1,FCCM=0),AE92+0,AB92+0) -> 37.90194087 | Q92: =IF(AND('Small Signal'!$B$63>=1,FCCM=0),AF92,AC92) -> 86.94768369 | R92: 8.77970082 | S92: -14.21440801 | T92: =IMDIV(IMSUM('Small Signal'!$B$76,IMPRODUCT(M92,'Small Signal'!$B$77)),IMSUM(IMPRODUCT('Small Signal'!$B$80,IMPOWER(M92,2)),IMSUM(IMPRODUCT(M92,'Small Signal'!$B$79),'Small Signal'!$B$78))) -> 4.17270655383183-0.724506970071411i | U92: 12.53735047 | V92: -9.850064178 | W92: =IMPRODUCT(IMDIV(IMSUM(IMPRODUCT(M92,'Small Signal'!$B$59*'Small Signal'!$B$6*'Small Signal'!$B$51*'Small Signal'!$B$7*'Small Signal'!$B$8),'Small Signal'!$B$59*'Small Signal'!$B$6*'Small Signal'!$B$51),IMSUM(IMSUM(IMPRODUCT(M92,('Small Signal'!$B$5+'Small Signal'!$B$6)*('Small Signal'!$B$58*'Small Signal'!$B$59)+'Small Signal'!$B$5*'Small Signal'!$B$59*('Small Signal'!$B$8+'Small Signal'!$B$9)+'Small Signal'!$B$6*'Small Signal'!$B$59*('Small Signal'!$B$8+'Small Signal'!$B$9)+'Small Signal'!$B$7*'Small Signal'!$B$8*('Small Signal'!$B$5+'Small Signal'!$B$6)),'Small Signal'!$B$6+'Small Signal'!$B$5),IMPRODUCT(IMPOWER(M92,2),'Small Signal'!$B$58*'Small Signal'!$B$59*'Small Signal'!$B$8*'Small Signal'!$B$7*('Small Signal'!$B$5+'Small Signal'!$B$6)+('Small Signal'!$B$5+'Small Signal'!$B$6)*('Small Signal'!$B$9*'Small Signal'!$B$8*'Small Signal'!$B$59*'Small Signal'!$B$7)))),-1) -> -5.47983063252777+28.0526469315331i | X92: 0 | Y92: 0 | Z92: 1.00001295106263+0.00190356422214001i | AA92: 4.18213941981389+78.4296877416886i | AB92: 37.90194087 | AC92: 86.94768369 | AD92: -2.54138696338894+121.025639191616i | AE92: 41.65946229 | AF92: 91.20296287 | AH92: 0.00075-0.497359197162172i | AI92: 0.14 | AJ92: 1000-159154943.091895i | AK92: 0.129674624808351-0.0364861122546308i | AL92: 1.02793345193317-0.00322084549020821i | AM92: 0.006+0.00557946855277548i | AN92: 2.66367186559863-0.67472536098555i | AO92: 8.77970082 | AP92: -14.21440801 | AR92: 1.01808533150043-0.00315942588192573i | AS92: 2.66080818379726-0.673357370917412i | AT92: 8.769858589 | AU92: -14.20140432
F93: 91 | G93: 168.7477753 | H93: 168.5788137 | I93: 1 | J93: 1 | K93: 1 | L93: =10^('Small Signal'!F93/30) -> 1079.775162 | M93: 6784.42743499492i | N93: =IF(D$32=1, IF(AND('Small Signal'!$B$63>=1,FCCM=0),U93+0,R93+0), 0) -> 0 | O93: =IF(D$32=1, IF(AND('Small Signal'!$B$63>=1,FCCM=0),V93,S93), 0) -> 0 | P93: =IF(AND('Small Signal'!$B$63>=1,FCCM=0),AE93+0,AB93+0) -> 37.2125962 | Q93: =IF(AND('Small Signal'!$B$63>=1,FCCM=0),AF93,AC93) -> 86.42117624 | R93: 8.737791457 | S93: -15.29942413 | T93: =IMDIV(IMSUM('Small Signal'!$B$76,IMPRODUCT(M93,'Small Signal'!$B$77)),IMSUM(IMPRODUCT('Small Signal'!$B$80,IMPOWER(M93,2)),IMSUM(IMPRODUCT(M93,'Small Signal'!$B$79),'Small Signal'!$B$78))) -> 4.15642543660435-0.780041068333036i | U93: 12.52472832 | V93: -10.62912714 | W93: =IMPRODUCT(IMDIV(IMSUM(IMPRODUCT(M93,'Small Signal'!$B$59*'Small Signal'!$B$6*'Small Signal'!$B$51*'Small Signal'!$B$7*'Small Signal'!$B$8),'Small Signal'!$B$59*'Small Signal'!$B$6*'Small Signal'!$B$51),IMSUM(IMSUM(IMPRODUCT(M93,('Small Signal'!$B$5+'Small Signal'!$B$6)*('Small Signal'!$B$58*'Small Signal'!$B$59)+'Small Signal'!$B$5*'Small Signal'!$B$59*('Small Signal'!$B$8+'Small Signal'!$B$9)+'Small Signal'!$B$6*'Small Signal'!$B$59*('Small Signal'!$B$8+'Small Signal'!$B$9)+'Small Signal'!$B$7*'Small Signal'!$B$8*('Small Signal'!$B$5+'Small Signal'!$B$6)),'Small Signal'!$B$6+'Small Signal'!$B$5),IMPRODUCT(IMPOWER(M93,2),'Small Signal'!$B$58*'Small Signal'!$B$59*'Small Signal'!$B$8*'Small Signal'!$B$7*('Small Signal'!$B$5+'Small Signal'!$B$6)+('Small Signal'!$B$5+'Small Signal'!$B$6)*('Small Signal'!$B$9*'Small Signal'!$B$8*'Small Signal'!$B$59*'Small Signal'!$B$7)))),-1) -> -5.33582856891443+25.9875987312756i | X93: 0 | Y93: 0 | Z93: 1.00001509971447+0.00205540558222896i | AA93: 4.52861134595382+72.4072496662815i | AB93: 37.2125962 | AC93: 86.42117624 | AD93: -1.90657931144165+112.177681820279i | AE93: 40.99938357 | AF93: 90.97370911 | AH93: 0.00075-0.46061366709899i | AI93: 0.14 | AJ93: 1000-147396373.471677i | AK93: 0.128107796455856-0.0389180210829133i | AL93: 1.02793177755368-0.0034777832971237i | AM93: 0.006+0.00602457156227549i | AN93: 2.63766023784517-0.721553692720011i | AO93: 8.737791457 | AP93: -15.29942413 | AR93: 1.01808370478581-0.0034114641436127i | AS93: 2.63487578974371-0.720106184096814i | AT93: 8.728042196 | AU93: -15.28554868
F94: 92 | G94: 168.76125 | H94: 168.5788137 | I94: 1 | J94: 1 | K94: 1 | L94: =10^('Small Signal'!F94/30) -> 1165.914401 | M94: 7325.65623492221i | N94: =IF(D$32=1, IF(AND('Small Signal'!$B$63>=1,FCCM=0),U94+0,R94+0), 0) -> 0 | O94: =IF(D$32=1, IF(AND('Small Signal'!$B$63>=1,FCCM=0),V94,S94), 0) -> 0 | P94: =IF(AND('Small Signal'!$B$63>=1,FCCM=0),AE94+0,AB94+0) -> 36.51964788 | Q94: =IF(AND('Small Signal'!$B$63>=1,FCCM=0),AF94,AC94) -> 85.88446823 | R94: 8.689434076 | S94: -16.45909245 | T94: =IMDIV(IMSUM('Small Signal'!$B$76,IMPRODUCT(M94,'Small Signal'!$B$77)),IMSUM(IMPRODUCT('Small Signal'!$B$80,IMPOWER(M94,2)),IMSUM(IMPRODUCT(M94,'Small Signal'!$B$79),'Small Signal'!$B$78))) -> 4.13755095136228-0.839434931117917i | U94: 12.51004659 | V94: -11.46862378 | W94: =IMPRODUCT(IMDIV(IMSUM(IMPRODUCT(M94,'Small Signal'!$B$59*'Small Signal'!$B$6*'Small Signal'!$B$51*'Small Signal'!$B$7*'Small Signal'!$B$8),'Small Signal'!$B$59*'Small Signal'!$B$6*'Small Signal'!$B$51),IMSUM(IMSUM(IMPRODUCT(M94,('Small Signal'!$B$5+'Small Signal'!$B$6)*('Small Signal'!$B$58*'Small Signal'!$B$59)+'Small Signal'!$B$5*'Small Signal'!$B$59*('Small Signal'!$B$8+'Small Signal'!$B$9)+'Small Signal'!$B$6*'Small Signal'!$B$59*('Small Signal'!$B$8+'Small Signal'!$B$9)+'Small Signal'!$B$7*'Small Signal'!$B$8*('Small Signal'!$B$5+'Small Signal'!$B$6)),'Small Signal'!$B$6+'Small Signal'!$B$5),IMPRODUCT(IMPOWER(M94,2),'Small Signal'!$B$58*'Small Signal'!$B$59*'Small Signal'!$B$8*'Small Signal'!$B$7*('Small Signal'!$B$5+'Small Signal'!$B$6)+('Small Signal'!$B$5+'Small Signal'!$B$6)*('Small Signal'!$B$9*'Small Signal'!$B$8*'Small Signal'!$B$59*'Small Signal'!$B$7)))),-1) -> -5.21227247448731+24.0743445006747i | X94: 0 | Y94: 0 | Z94: 1.00001760481693+0.002219356024729i | AA94: 4.80742148093996+66.8130134872077i | AB94: 36.51964788 | AC94: 85.88446823 | AD94: -1.35719721794152+103.984190577779i | AE94: 40.34008608 | AF94: 90.74777961 | AH94: 0.00075-0.426582943532455i | AI94: 0.14 | AJ94: 1000-136506541.930386i | AK94: 0.126328421027709-0.0414356119552766i | AL94: 1.02792982537741-0.00375521689253302i | AM94: 0.006+0.00650518273661092i | AN94: 2.60795681577068-0.770487047268527i | AO94: 8.689434076 | AP94: -16.45909245 | AR94: 1.01808180818237-0.0036836073871842i | AS94: 2.60526148314233-0.768960181383589i | AT94: 8.679790974 | AU94: -16.44431428
F95: 93 | G95: 168.7757984 | H95: 168.5788137 | I95: 1 | J95: 1 | K95: 1 | L95: =10^('Small Signal'!F95/30) -> 1258.925412 | M95: 7910.06165022013i | N95: =IF(D$32=1, IF(AND('Small Signal'!$B$63>=1,FCCM=0),U95+0,R95+0), 0) -> 0 | O95: =IF(D$32=1, IF(AND('Small Signal'!$B$63>=1,FCCM=0),V95,S95), 0) -> 0 | P95: =IF(AND('Small Signal'!$B$63>=1,FCCM=0),AE95+0,AB95+0) -> 35.82266569 | Q95: =IF(AND('Small Signal'!$B$63>=1,FCCM=0),AF95,AC95) -> 85.33689512 | R95: 8.633725232 | S95: -17.69661775 | T95: =IMDIV(IMSUM('Small Signal'!$B$76,IMPRODUCT(M95,'Small Signal'!$B$77)),IMSUM(IMPRODUCT('Small Signal'!$B$80,IMPOWER(M95,2)),IMSUM(IMPRODUCT(M95,'Small Signal'!$B$79),'Small Signal'!$B$78))) -> 4.11569031160249-0.902855866585973i | U95: 12.49297572 | V95: -12.37294265 | W95: =IMPRODUCT(IMDIV(IMSUM(IMPRODUCT(M95,'Small Signal'!$B$59*'Small Signal'!$B$6*'Small Signal'!$B$51*'Small Signal'!$B$7*'Small Signal'!$B$8),'Small Signal'!$B$59*'Small Signal'!$B$6*'Small Signal'!$B$51),IMSUM(IMSUM(IMPRODUCT(M95,('Small Signal'!$B$5+'Small Signal'!$B$6)*('Small Signal'!$B$58*'Small Signal'!$B$59)+'Small Signal'!$B$5*'Small Signal'!$B$59*('Small Signal'!$B$8+'Small Signal'!$B$9)+'Small Signal'!$B$6*'Small Signal'!$B$59*('Small Signal'!$B$8+'Small Signal'!$B$9)+'Small Signal'!$B$7*'Small Signal'!$B$8*('Small Signal'!$B$5+'Small Signal'!$B$6)),'Small Signal'!$B$6+'Small Signal'!$B$5),IMPRODUCT(IMPOWER(M95,2),'Small Signal'!$B$58*'Small Signal'!$B$59*'Small Signal'!$B$8*'Small Signal'!$B$7*('Small Signal'!$B$5+'Small Signal'!$B$6)+('Small Signal'!$B$5+'Small Signal'!$B$6)*('Small Signal'!$B$9*'Small Signal'!$B$8*'Small Signal'!$B$59*'Small Signal'!$B$7)))),-1) -> -5.10626346040062+22.3018898075267i | X95: 0 | Y95: 0 | Z95: 1.00002052549532+0.00239638049564941i | AA95: 5.02581253678769+61.6159800679587i | AB95: 35.82266569 | AC95: 85.33689512 | AD95: -0.880407003781244+96.3978917328203i | AE95: 39.68171296 | AF95: 90.52327081 | AH95: 0.00075-0.395066453105715i | AI95: 0.14 | AJ95: 1000-126421264.993829i | AK95: 0.124315592889858-0.0440240359993764i | AL95: 1.02792754931634-0.00405478095152036i | AM95: 0.006+0.00702413474539548i | AN95: 2.57414524687633-0.821347110934984i | AO95: 8.633725232 | AP95: -17.69661775 | AR95: 1.01807959691403-0.00397745912540926i | AS95: 2.57154958505638-0.819742277662418i | AT95: 8.62420296 | AU95: -17.68091165
F96: 94 | G96: 168.7915061 | H96: 168.5788137 | I96: 1 | J96: 1 | K96: 1 | L96: =10^('Small Signal'!F96/30) -> 1359.356391 | M96: 8541.08810238863i | N96: =IF(D$32=1, IF(AND('Small Signal'!$B$63>=1,FCCM=0),U96+0,R96+0), 0) -> 0 | O96: =IF(D$32=1, IF(AND('Small Signal'!$B$63>=1,FCCM=0),V96,S96), 0) -> 0 | P96: =IF(AND('Small Signal'!$B$63>=1,FCCM=0),AE96+0,AB96+0) -> 35.12118334 | Q96: =IF(AND('Small Signal'!$B$63>=1,FCCM=0),AF96,AC96) -> 84.77823251 | R96: 8.569663325 | S96: -19.01488621 | T96: =IMDIV(IMSUM('Small Signal'!$B$76,IMPRODUCT(M96,'Small Signal'!$B$77)),IMSUM(IMPRODUCT('Small Signal'!$B$80,IMPOWER(M96,2)),IMSUM(IMPRODUCT(M96,'Small Signal'!$B$79),'Small Signal'!$B$78))) -> 4.09039830815242-0.9704513100539i | U96: 12.47313572 | V96: -13.34671573 | W96: =IMPRODUCT(IMDIV(IMSUM(IMPRODUCT(M96,'Small Signal'!$B$59*'Small Signal'!$B$6*'Small Signal'!$B$51*'Small Signal'!$B$7*'Small Signal'!$B$8),'Small Signal'!$B$59*'Small Signal'!$B$6*'Small Signal'!$B$51),IMSUM(IMSUM(IMPRODUCT(M96,('Small Signal'!$B$5+'Small Signal'!$B$6)*('Small Signal'!$B$58*'Small Signal'!$B$59)+'Small Signal'!$B$5*'Small Signal'!$B$59*('Small Signal'!$B$8+'Small Signal'!$B$9)+'Small Signal'!$B$6*'Small Signal'!$B$59*('Small Signal'!$B$8+'Small Signal'!$B$9)+'Small Signal'!$B$7*'Small Signal'!$B$8*('Small Signal'!$B$5+'Small Signal'!$B$6)),'Small Signal'!$B$6+'Small Signal'!$B$5),IMPRODUCT(IMPOWER(M96,2),'Small Signal'!$B$58*'Small Signal'!$B$59*'Small Signal'!$B$8*'Small Signal'!$B$7*('Small Signal'!$B$5+'Small Signal'!$B$6)+('Small Signal'!$B$5+'Small Signal'!$B$6)*('Small Signal'!$B$9*'Small Signal'!$B$8*'Small Signal'!$B$59*'Small Signal'!$B$7)))),-1) -> -5.01531209796949+20.6600122263684i | X96: 0 | Y96: 0 | Z96: 1.00002393067932+0.00258752064585161i | AA96: 5.18982475282051+56.7875390500514i | AB96: 35.12118334 | AC96: 84.77823251 | AD96: -0.465088189581959+89.3747952529493i | AE96: 39.0244188 | AF96: 90.29815285 | AH96: 0.00075-0.365878441076618i | AI96: 0.14 | AJ96: 1000-117081101.144518i | AK96: 0.122048782098632-0.0466640397930559i | AL96: 1.02792489563668-0.00437824045731359i | AM96: 0.006+0.0075844862349211i | AN96: 2.53579629426621-0.873881697824116i | AO96: 8.569663325 | AP96: -19.01488621 | AR96: 1.01807701877655-0.0042947506969359i | AS96: 2.53331139794907-0.872201755206093i | AT96: 8.560278085 | AU96: -18.99823456
F97: 95 | G97: 168.8084651 | H97: 168.5788137 | I97: 1 | J97: 1 | K97: 1 | L97: =10^('Small Signal'!F97/30) -> 1467.799268 | M97: 9222.45479221195i | N97: =IF(D$32=1, IF(AND('Small Signal'!$B$63>=1,FCCM=0),U97+0,R97+0), 0) -> 0 | O97: =IF(D$32=1, IF(AND('Small Signal'!$B$63>=1,FCCM=0),V97,S97), 0) -> 0 | P97: =IF(AND('Small Signal'!$B$63>=1,FCCM=0),AE97+0,AB97+0) -> 34.41470396 | Q97: =IF(AND('Small Signal'!$B$63>=1,FCCM=0),AF97,AC97) -> 84.208772 | R97: 8.496146849 | S97: -20.416345 | T97: =IMDIV(IMSUM('Small Signal'!$B$76,IMPRODUCT(M97,'Small Signal'!$B$77)),IMSUM(IMPRODUCT('Small Signal'!$B$80,IMPOWER(M97,2)),IMSUM(IMPRODUCT(M97,'Small Signal'!$B$79),'Small Signal'!$B$78))) -> 4.06117278805474-1.04234003388855i | U97: 12.45008919 | V97: -14.3948127 | W97: =IMPRODUCT(IMDIV(IMSUM(IMPRODUCT(M97,'Small Signal'!$B$59*'Small Signal'!$B$6*'Small Signal'!$B$51*'Small Signal'!$B$7*'Small Signal'!$B$8),'Small Signal'!$B$59*'Small Signal'!$B$6*'Small Signal'!$B$51),IMSUM(IMSUM(IMPRODUCT(M97,('Small Signal'!$B$5+'Small Signal'!$B$6)*('Small Signal'!$B$58*'Small Signal'!$B$59)+'Small Signal'!$B$5*'Small Signal'!$B$59*('Small Signal'!$B$8+'Small Signal'!$B$9)+'Small Signal'!$B$6*'Small Signal'!$B$59*('Small Signal'!$B$8+'Small Signal'!$B$9)+'Small Signal'!$B$7*'Small Signal'!$B$8*('Small Signal'!$B$5+'Small Signal'!$B$6)),'Small Signal'!$B$6+'Small Signal'!$B$5),IMPRODUCT(IMPOWER(M97,2),'Small Signal'!$B$58*'Small Signal'!$B$59*'Small Signal'!$B$8*'Small Signal'!$B$7*('Small Signal'!$B$5+'Small Signal'!$B$6)+('Small Signal'!$B$5+'Small Signal'!$B$6)*('Small Signal'!$B$9*'Small Signal'!$B$8*'Small Signal'!$B$59*'Small Signal'!$B$7)))),-1) -> -4.93728091683774+19.1392129330767i | X97: 0 | Y97: 0 | Z97: 1.00002790072773+0.00279390087931277i | AA97: 5.30448825551088+52.3013569257788i | AB97: 34.41470396 | AC97: 84.208772 | AD97: -0.101583049180046+82.8739763067704i | AE97: 38.36837006 | AF97: 90.07023046 | AH97: 0.00075-0.338846876499624i | AI97: 0.14 | AJ97: 1000-108431000.479879i | AK97: 0.11950868493739-0.0493315671962193i | AL97: 1.02792180169065-0.00472750107118074i | AM97: 0.006+0.00818953985548421i | AN97: 2.49247906248166-0.927754121551632i | AO97: 8.496146849 | AP97: -20.416345 | AR97: 1.01807401290542-0.00463735143912624i | AS97: 2.49011636597279-0.926003636439393i | AT97: 8.486916376 | AU97: -20.3987399
F98: 96 | G98: 168.8267748 | H98: 168.5788137 | I98: 1 | J98: 1 | K98: 1 | L98: =10^('Small Signal'!F98/30) -> 1584.893192 | M98: 9958.17762032063i | N98: =IF(D$32=1, IF(AND('Small Signal'!$B$63>=1,FCCM=0),U98+0,R98+0), 0) -> 0 | O98: =IF(D$32=1, IF(AND('Small Signal'!$B$63>=1,FCCM=0),V98,S98), 0) -> 0 | P98: =IF(AND('Small Signal'!$B$63>=1,FCCM=0),AE98+0,AB98+0) -> 33.70270867 | Q98: =IF(AND('Small Signal'!$B$63>=1,FCCM=0),AF98,AC98) -> 83.62940152 | R98: 8.411975675 | S98: -21.90286634 | T98: =IMDIV(IMSUM('Small Signal'!$B$76,IMPRODUCT(M98,'Small Signal'!$B$77)),IMSUM(IMPRODUCT('Small Signal'!$B$80,IMPOWER(M98,2)),IMSUM(IMPRODUCT(M98,'Small Signal'!$B$79),'Small Signal'!$B$78))) -> 4.02745066477884-1.11860138120896i | U98: 12.42333372 | V98: -15.52232913 | W98: =IMPRODUCT(IMDIV(IMSUM(IMPRODUCT(M98,'Small Signal'!$B$59*'Small Signal'!$B$6*'Small Signal'!$B$51*'Small Signal'!$B$7*'Small Signal'!$B$8),'Small Signal'!$B$59*'Small Signal'!$B$6*'Small Signal'!$B$51),IMSUM(IMSUM(IMPRODUCT(M98,('Small Signal'!$B$5+'Small Signal'!$B$6)*('Small Signal'!$B$58*'Small Signal'!$B$59)+'Small Signal'!$B$5*'Small Signal'!$B$59*('Small Signal'!$B$8+'Small Signal'!$B$9)+'Small Signal'!$B$6*'Small Signal'!$B$59*('Small Signal'!$B$8+'Small Signal'!$B$9)+'Small Signal'!$B$7*'Small Signal'!$B$8*('Small Signal'!$B$5+'Small Signal'!$B$6)),'Small Signal'!$B$6+'Small Signal'!$B$5),IMPRODUCT(IMPOWER(M98,2),'Small Signal'!$B$58*'Small Signal'!$B$59*'Small Signal'!$B$8*'Small Signal'!$B$7*('Small Signal'!$B$5+'Small Signal'!$B$6)+('Small Signal'!$B$5+'Small Signal'!$B$6)*('Small Signal'!$B$9*'Small Signal'!$B$8*'Small Signal'!$B$59*'Small Signal'!$B$7)))),-1) -> -4.87033487720706+17.7306701450189i | X98: 0 | Y98: 0 | Z98: 1.00003252932209+0.00301673486555392i | AA98: 5.37400195026436+48.1332676673147i | AB98: 33.70270867 | AC98: 83.62940152 | AD98: 0.218518675075469+76.8573625831247i | AE98: 37.71374465 | AF98: 89.8370987 | AH98: 0.00075-0.313812438294245i | AI98: 0.14 | AJ98: 1000-100419980.254158i | AK98: 0.116678267037348-0.0519975123526098i | AL98: 1.02791819443795-0.00510462032299687i | AM98: 0.006+0.00884286172684472i | AN98: 2.44377595352484-0.982533649125115i | AO98: 8.411975675 | AP98: -21.90286634 | AR98: 1.0180705083394-0.0050072796660899i | AS98: 2.44154695616983-0.980719122283406i | AT98: 8.402919187 | AU98: -21.884312
F99: 97 | G99: 168.8465424 | H99: 168.5788137 | I99: 1 | J99: 1 | K99: 1 | L99: =10^('Small Signal'!F99/30) -> 1711.328304 | M99: 10752.5928564699i | N99: =IF(D$32=1, IF(AND('Small Signal'!$B$63>=1,FCCM=0),U99+0,R99+0), 0) -> 0 | O99: =IF(D$32=1, IF(AND('Small Signal'!$B$63>=1,FCCM=0),V99,S99), 0) -> 0 | P99: =IF(AND('Small Signal'!$B$63>=1,FCCM=0),AE99+0,AB99+0) -> 32.98466876 | Q99: =IF(AND('Small Signal'!$B$63>=1,FCCM=0),AF99,AC99) -> 83.04168569 | R99: 8.315856251 | S99: -23.47559865 | T99: =IMDIV(IMSUM('Small Signal'!$B$76,IMPRODUCT(M99,'Small Signal'!$B$77)),IMSUM(IMPRODUCT('Small Signal'!$B$80,IMPOWER(M99,2)),IMSUM(IMPRODUCT(M99,'Small Signal'!$B$79),'Small Signal'!$B$78))) -> 3.98860489334477-1.19926227082932i | U99: 12.3922936 | V99: -16.7345674 | W99: =IMPRODUCT(IMDIV(IMSUM(IMPRODUCT(M99,'Small Signal'!$B$59*'Small Signal'!$B$6*'Small Signal'!$B$51*'Small Signal'!$B$7*'Small Signal'!$B$8),'Small Signal'!$B$59*'Small Signal'!$B$6*'Small Signal'!$B$51),IMSUM(IMSUM(IMPRODUCT(M99,('Small Signal'!$B$5+'Small Signal'!$B$6)*('Small Signal'!$B$58*'Small Signal'!$B$59)+'Small Signal'!$B$5*'Small Signal'!$B$59*('Small Signal'!$B$8+'Small Signal'!$B$9)+'Small Signal'!$B$6*'Small Signal'!$B$59*('Small Signal'!$B$8+'Small Signal'!$B$9)+'Small Signal'!$B$7*'Small Signal'!$B$8*('Small Signal'!$B$5+'Small Signal'!$B$6)),'Small Signal'!$B$6+'Small Signal'!$B$5),IMPRODUCT(IMPOWER(M99,2),'Small Signal'!$B$58*'Small Signal'!$B$59*'Small Signal'!$B$8*'Small Signal'!$B$7*('Small Signal'!$B$5+'Small Signal'!$B$6)+('Small Signal'!$B$5+'Small Signal'!$B$6)*('Small Signal'!$B$9*'Small Signal'!$B$8*'Small Signal'!$B$59*'Small Signal'!$B$7)))),-1) -> -4.81289873512686+16.426194624498i | X99: 0 | Y99: 0 | Z99: 1.00003792567354+0.00325733254852101i | AA99: 5.40190265718237+44.2611636754683i | AB99: 32.98466876 | AC99: 83.04168569 | AD99: 0.502564020359987+71.2895281246661i | AE99: 37.06073063 | AF99: 89.59609327 | AH99: 0.00075-0.290627576224061i | AI99: 0.14 | AJ99: 1000-93000824.3916995i | AK99: 0.113543981569453-0.054627697969712i | AL99: 1.02791398872203-0.00551181968624375i | AM99: 0.006+0.00954830245654527i | AN99: 2.38930160251604-1.03768818041355i | AO99: 8.315856251 | AP99: -23.47559865 | AR99: 1.01806642234587-0.00540671451450902i | AS99: 2.38721751366194-1.03581823415554i | AT99: 8.306994331 | AU99: -23.45611391
F100: 98 | G100: 168.8678834 | H100: 168.5788137 | I100: 1 | J100: 1 | K100: 1 | L100: =10^('Small Signal'!F100/30) -> 1847.849797 | M100: 11610.3826970385i | N100: =IF(D$32=1, IF(AND('Small Signal'!$B$63>=1,FCCM=0),U100+0,R100+0), 0) -> 0 | O100: =IF(D$32=1, IF(AND('Small Signal'!$B$63>=1,FCCM=0),V100,S100), 0) -> 0 | P100: =IF(AND('Small Signal'!$B$63>=1,FCCM=0),AE100+0,AB100+0) -> 32.26006208 | Q100: =IF(AND('Small Signal'!$B$63>=1,FCCM=0),AF100,AC100) -> 82.44794043 | R100: 8.206411655 | S100: -25.13480904 | T100: =IMDIV(IMSUM('Small Signal'!$B$76,IMPRODUCT(M100,'Small Signal'!$B$77)),IMSUM(IMPRODUCT('Small Signal'!$B$80,IMPOWER(M100,2)),IMSUM(IMPRODUCT(M100,'Small Signal'!$B$79),'Small Signal'!$B$78))) -> 3.94394298293433-1.28428176033328i | U100: 12.35631097 | V100: -18.03700846 | W100: =IMPRODUCT(IMDIV(IMSUM(IMPRODUCT(M100,'Small Signal'!$B$59*'Small Signal'!$B$6*'Small Signal'!$B$51*'Small Signal'!$B$7*'Small Signal'!$B$8),'Small Signal'!$B$59*'Small Signal'!$B$6*'Small Signal'!$B$51),IMSUM(IMSUM(IMPRODUCT(M100,('Small Signal'!$B$5+'Small Signal'!$B$6)*('Small Signal'!$B$58*'Small Signal'!$B$59)+'Small Signal'!$B$5*'Small Signal'!$B$59*('Small Signal'!$B$8+'Small Signal'!$B$9)+'Small Signal'!$B$6*'Small Signal'!$B$59*('Small Signal'!$B$8+'Small Signal'!$B$9)+'Small Signal'!$B$7*'Small Signal'!$B$8*('Small Signal'!$B$5+'Small Signal'!$B$6)),'Small Signal'!$B$6+'Small Signal'!$B$5),IMPRODUCT(IMPOWER(M100,2),'Small Signal'!$B$58*'Small Signal'!$B$59*'Small Signal'!$B$8*'Small Signal'!$B$7*('Small Signal'!$B$5+'Small Signal'!$B$6)+('Small Signal'!$B$5+'Small Signal'!$B$6)*('Small Signal'!$B$9*'Small Signal'!$B$8*'Small Signal'!$B$59*'Small Signal'!$B$7)))),-1) -> -4.76362035937845+15.2181873758761i | X100: 0 | Y100: 0 | Z100: 1.00004421709456+0.0035171076855596i | AA100: 5.39122700342796+40.6648839222215i | AB100: 32.26006208 | AC100: 82.44794043 | AD100: 0.756993382438107+66.1374940547684i | AE100: 36.40952362 | AF100: 89.34423533 | AH100: 0.00075-0.269155641251783i | AI100: 0.14 | AJ100: 1000-86129805.2005705i | AK100: 0.110097117845084-0.0571831573484828i | AL100: 1.02790908526073-0.00595149760585189i | AM100: 0.006+0.0103100198349702i | AN100: 2.3287257221376-1.09258055245813i | AO100: 8.206411655 | AP100: -25.13480904 | AR100: 1.01806165846858-0.0058380087244174i | AS100: 2.32679702610892-1.09066605396521i | AT100: 8.197766052 | AU100: -25.11443007
F101: 99 | G101: 168.8909224 | H101: 168.5788137 | I101: 1 | J101: 1 | K101: 1 | L101: =10^('Small Signal'!F101/30) -> 1995.262315 | M101: 12536.6028613816i | N101: =IF(D$32=1, IF(AND('Small Signal'!$B$63>=1,FCCM=0),U101+0,R101+0), 0) -> 0 | O101: =IF(D$32=1, IF(AND('Small Signal'!$B$63>=1,FCCM=0),V101,S101), 0) -> 0 | P101: =IF(AND('Small Signal'!$B$63>=1,FCCM=0),AE101+0,AB101+0) -> 31.52839387 | Q101: =IF(AND('Small Signal'!$B$63>=1,FCCM=0),AF101,AC101) -> 81.8512937 | R101: 8.082197349 | S101: -26.87972411 | T101: =IMDIV(IMSUM('Small Signal'!$B$76,IMPRODUCT(M101,'Small Signal'!$B$77)),IMSUM(IMPRODUCT('Small Signal'!$B$80,IMPOWER(M101,2)),IMSUM(IMPRODUCT(M101,'Small Signal'!$B$79),'Small Signal'!$B$78))) -> 3.8927077798888-1.37353303619213i | U101: 12.31463648 | V101: -19.43527278 | W101: =IMPRODUCT(IMDIV(IMSUM(IMPRODUCT(M101,'Small Signal'!$B$59*'Small Signal'!$B$6*'Small Signal'!$B$51*'Small Signal'!$B$7*'Small Signal'!$B$8),'Small Signal'!$B$59*'Small Signal'!$B$6*'Small Signal'!$B$51),IMSUM(IMSUM(IMPRODUCT(M101,('Small Signal'!$B$5+'Small Signal'!$B$6)*('Small Signal'!$B$58*'Small Signal'!$B$59)+'Small Signal'!$B$5*'Small Signal'!$B$59*('Small Signal'!$B$8+'Small Signal'!$B$9)+'Small Signal'!$B$6*'Small Signal'!$B$59*('Small Signal'!$B$8+'Small Signal'!$B$9)+'Small Signal'!$B$7*'Small Signal'!$B$8*('Small Signal'!$B$5+'Small Signal'!$B$6)),'Small Signal'!$B$6+'Small Signal'!$B$5),IMPRODUCT(IMPOWER(M101,2),'Small Signal'!$B$58*'Small Signal'!$B$59*'Small Signal'!$B$8*'Small Signal'!$B$7*('Small Signal'!$B$5+'Small Signal'!$B$6)+('Small Signal'!$B$5+'Small Signal'!$B$6)*('Small Signal'!$B$9*'Small Signal'!$B$8*'Small Signal'!$B$59*'Small Signal'!$B$7)))),-1) -> -4.72133918187888+14.0995996000866i | X101: 0 | Y101: 0 | Z101: 1.00005155199566+0.0037975859512679i | AA101: 5.34466706602819+37.3260955206779i | AB101: 31.52839387 | AC101: 81.8512937 | AD101: 0.987472083006555+61.3705363979531i | AE101: 35.76032262 | AF101: 89.07817164 | AH101: 0.00075-0.249270080144791i | AI101: 0.14 | AJ101: 1000-79766425.6463329i | AK101: 0.106335202983496-0.0596207930686843i | AL101: 1.02790336830364-0.0064262435521946i | AM101: 0.006+0.0111325033409069i | AN101: 2.26179931850643-1.14647004786936i | AO101: 8.082197349 | AP101: -26.87972411 | AR101: 1.01805610425173-0.00630370242691857i | AS101: 2.26003526894221-1.14452413796655i | AT101: 8.07379068 | AU101: -26.858507
F102: 100 | G102: 168.9157938 | H102: 168.5788137 | I102: 1 | J102: 1 | K102: 1 | L102: =10^('Small Signal'!F102/30) -> 2154.43469 | M102: 13536.7123896863i | N102: =IF(D$32=1, IF(AND('Small Signal'!$B$63>=1,FCCM=0),U102+0,R102+0), 0) -> 0 | O102: =IF(D$32=1, IF(AND('Small Signal'!$B$63>=1,FCCM=0),V102,S102), 0) -> 0 | P102: =IF(AND('Small Signal'!$B$63>=1,FCCM=0),AE102+0,AB102+0) -> 30.7892223 | Q102: =IF(AND('Small Signal'!$B$63>=1,FCCM=0),AF102,AC102) -> 81.25572245 | R102: 7.9417233 | S102: -28.70837809 | T102: =IMDIV(IMSUM('Small Signal'!$B$76,IMPRODUCT(M102,'Small Signal'!$B$77)),IMSUM(IMPRODUCT('Small Signal'!$B$80,IMPOWER(M102,2)),IMSUM(IMPRODUCT(M102,'Small Signal'!$B$79),'Small Signal'!$B$78))) -> 3.83408142878647-1.46678284084723i | U102: 12.26641974 | V102: -20.9350685 | W102: =IMPRODUCT(IMDIV(IMSUM(IMPRODUCT(M102,'Small Signal'!$B$59*'Small Signal'!$B$6*'Small Signal'!$B$51*'Small Signal'!$B$7*'Small Signal'!$B$8),'Small Signal'!$B$59*'Small Signal'!$B$6*'Small Signal'!$B$51),IMSUM(IMSUM(IMPRODUCT(M102,('Small Signal'!$B$5+'Small Signal'!$B$6)*('Small Signal'!$B$58*'Small Signal'!$B$59)+'Small Signal'!$B$5*'Small Signal'!$B$59*('Small Signal'!$B$8+'Small Signal'!$B$9)+'Small Signal'!$B$6*'Small Signal'!$B$59*('Small Signal'!$B$8+'Small Signal'!$B$9)+'Small Signal'!$B$7*'Small Signal'!$B$8*('Small Signal'!$B$5+'Small Signal'!$B$6)),'Small Signal'!$B$6+'Small Signal'!$B$5),IMPRODUCT(IMPOWER(M102,2),'Small Signal'!$B$58*'Small Signal'!$B$59*'Small Signal'!$B$8*'Small Signal'!$B$7*('Small Signal'!$B$5+'Small Signal'!$B$6)+('Small Signal'!$B$5+'Small Signal'!$B$6)*('Small Signal'!$B$9*'Small Signal'!$B$8*'Small Signal'!$B$59*'Small Signal'!$B$7)))),-1) -> -4.68505907209608+13.0638949199509i | X102: 0 | Y102: 0 | Z102: 1.00006010337685+0.00410041364185239i | AA102: 5.26471893594731+34.2281647380173i | AB102: 30.7892223 | AC102: 81.25572245 | AD102: 1.19899892212413+56.9600011555078i | AE102: 35.1133237 | AF102: 88.79411108 | AH102: 0.00075-0.230853689584256i | AI102: 0.14 | AJ102: 1000-73873180.6669621i | AK102: 0.102263344732159-0.0618944658914115i | AL102: 1.02789670290135-0.00693885317969353i | AM102: 0.006+0.0120206006020414i | AN102: 2.188383135954-1.19852071625906i | AO102: 7.9417233 | AP102: -28.70837809 | AR102: 1.01804962858685-0.00680653801589812i | AS102: 2.1867912002237-1.19655871296277i | AT102: 7.933578653 | AU102: -28.68640133
F103: 101 | G103: 168.9426424 | H103: 168.5788137 | I103: 1 | J103: 1 | K103: 1 | L103: =10^('Small Signal'!F103/30) -> 2326.305067 | M103: 14616.6058179571i | N103: =IF(D$32=1, IF(AND('Small Signal'!$B$63>=1,FCCM=0),U103+0,R103+0), 0) -> 0 | O103: =IF(D$32=1, IF(AND('Small Signal'!$B$63>=1,FCCM=0),V103,S103), 0) -> 0 | P103: =IF(AND('Small Signal'!$B$63>=1,FCCM=0),AE103+0,AB103+0) -> 30.042188 | Q103: =IF(AND('Small Signal'!$B$63>=1,FCCM=0),AF103,AC103) -> 80.66605461 | R103: 7.783482777 | S103: -30.61747988 | T103: =IMDIV(IMSUM('Small Signal'!$B$76,IMPRODUCT(M103,'Small Signal'!$B$77)),IMSUM(IMPRODUCT('Small Signal'!$B$80,IMPOWER(M103,2)),IMSUM(IMPRODUCT(M103,'Small Signal'!$B$79),'Small Signal'!$B$78))) -> 3.76719359448946-1.56366856518003i | U103: 12.21069977 | V103: -22.54212465 | W103: =IMPRODUCT(IMDIV(IMSUM(IMPRODUCT(M103,'Small Signal'!$B$59*'Small Signal'!$B$6*'Small Signal'!$B$51*'Small Signal'!$B$7*'Small Signal'!$B$8),'Small Signal'!$B$59*'Small Signal'!$B$6*'Small Signal'!$B$51),IMSUM(IMSUM(IMPRODUCT(M103,('Small Signal'!$B$5+'Small Signal'!$B$6)*('Small Signal'!$B$58*'Small Signal'!$B$59)+'Small Signal'!$B$5*'Small Signal'!$B$59*('Small Signal'!$B$8+'Small Signal'!$B$9)+'Small Signal'!$B$6*'Small Signal'!$B$59*('Small Signal'!$B$8+'Small Signal'!$B$9)+'Small Signal'!$B$7*'Small Signal'!$B$8*('Small Signal'!$B$5+'Small Signal'!$B$6)),'Small Signal'!$B$6+'Small Signal'!$B$5),IMPRODUCT(IMPOWER(M103,2),'Small Signal'!$B$58*'Small Signal'!$B$59*'Small Signal'!$B$8*'Small Signal'!$B$7*('Small Signal'!$B$5+'Small Signal'!$B$6)+('Small Signal'!$B$5+'Small Signal'!$B$6)*('Small Signal'!$B$9*'Small Signal'!$B$8*'Small Signal'!$B$59*'Small Signal'!$B$7)))),-1) -> -4.65392502110479+12.1050138523194i | X103: 0 | Y103: 0 | Z103: 1.00007007289526+0.00442736701601804i | AA103: 5.15382135437967+31.3560138694832i | AB103: 30.042188 | AC103: 80.66605461 | AD103: 1.39599311320048+52.8791269058702i | AE103: 34.46871125 | AF103: 88.48775983 | AH103: 0.00075-0.21379792538161i | AI103: 0.14 | AJ103: 1000-68415336.1221152i | AK103: 0.0978953731192856-0.0639565317814005i | AL103: 1.02788893172197-0.00749234467387457i | AM103: 0.006+0.0129795459663459i | AN103: 2.10847648890664-1.24781791385369i | AO103: 7.783482777 | AP103: -30.61747988 | AR103: 1.01804207861992-0.00734947618608598i | AS103: 2.1070617762586-1.24585706398538i | AT103: 7.775623209 | AU103: -30.59484641
F104: 102 | G104: 168.971624 | H104: 168.5788137 | I104: 1 | J104: 1 | K104: 1 | L104: =10^('Small Signal'!F104/30) -> 2511.886432 | M104: 15782.6479197648i | N104: =IF(D$32=1, IF(AND('Small Signal'!$B$63>=1,FCCM=0),U104+0,R104+0), 0) -> 0 | O104: =IF(D$32=1, IF(AND('Small Signal'!$B$63>=1,FCCM=0),V104,S104), 0) -> 0 | P104: =IF(AND('Small Signal'!$B$63>=1,FCCM=0),AE104+0,AB104+0) -> 29.28704674 | Q104: =IF(AND('Small Signal'!$B$63>=1,FCCM=0),AF104,AC104) -> 80.08792407 | R104: 7.605987643 | S104: -32.60231247 | T104: =IMDIV(IMSUM('Small Signal'!$B$76,IMPRODUCT(M104,'Small Signal'!$B$77)),IMSUM(IMPRODUCT('Small Signal'!$B$80,IMPOWER(M104,2)),IMSUM(IMPRODUCT(M104,'Small Signal'!$B$79),'Small Signal'!$B$78))) -> 3.69113517958146-1.66367354928765i | U104: 12.14639591 | V104: -24.26210788 | W104: =IMPRODUCT(IMDIV(IMSUM(IMPRODUCT(M104,'Small Signal'!$B$59*'Small Signal'!$B$6*'Small Signal'!$B$51*'Small Signal'!$B$7*'Small Signal'!$B$8),'Small Signal'!$B$59*'Small Signal'!$B$6*'Small Signal'!$B$51),IMSUM(IMSUM(IMPRODUCT(M104,('Small Signal'!$B$5+'Small Signal'!$B$6)*('Small Signal'!$B$58*'Small Signal'!$B$59)+'Small Signal'!$B$5*'Small Signal'!$B$59*('Small Signal'!$B$8+'Small Signal'!$B$9)+'Small Signal'!$B$6*'Small Signal'!$B$59*('Small Signal'!$B$8+'Small Signal'!$B$9)+'Small Signal'!$B$7*'Small Signal'!$B$8*('Small Signal'!$B$5+'Small Signal'!$B$6)),'Small Signal'!$B$6+'Small Signal'!$B$5),IMPRODUCT(IMPOWER(M104,2),'Small Signal'!$B$58*'Small Signal'!$B$59*'Small Signal'!$B$8*'Small Signal'!$B$7*('Small Signal'!$B$5+'Small Signal'!$B$6)+('Small Signal'!$B$5+'Small Signal'!$B$6)*('Small Signal'!$B$9*'Small Signal'!$B$8*'Small Signal'!$B$59*'Small Signal'!$B$7)))),-1) -> -4.62720310399033+11.2173404757945i | X104: 0 | Y104: 0 | Z104: 1.00008169560316+0.00478036230824482i | AA104: 5.01447958184266+28.6959615902042i | AB104: 29.28704674 | AC104: 80.08792407 | AD104: 1.58236048272582+49.1028754628385i | AE104: 33.82664621 | AF104: 88.15425854 | AH104: 0.00075-0.198002262730991i | AI104: 0.14 | AJ104: 1000-63360724.0739172i | AK104: 0.0932546204102476-0.0657597932673111i | AL104: 1.02787987134038-0.00808997637629302i | AM104: 0.006+0.0140149913527511i | AN104: 2.02224393782131-1.29339395563769i | AO104: 7.605987643 | AP104: -32.60231247 | AR104: 1.01803327614613-0.00793571322532781i | AS104: 2.02100865760436-1.29145301743756i | AT104: 7.598435579 | AU104: -32.5791512
